Workbook

Sheet User Guide
A1: User Guide for Shore Power Emissions Calculator | B1: User Guide: Transportation Refrigeration Unit (TRU) Emissions Calculator
I2: Go to General Calculator
I3: Go to Detailed Calculator
B6: The Transportaion Refrigeration Unit (TRU) Emissions Calculator can calculate emissions of criteria and greenhouse gas pollutants based on equipment and fuel inputs, and the regional electricity grid mix. TRU emissions are estimated using emission factors from the United States Environmental Protection Agency’s (EPA) Emissions & Generation Resource Integrated Database (eGRID) 2020 data,1 and diesel TRU emissions are estimated using outputs from EPA’s MOVES3 emissions model.2
B12: Emission reductions and costs are for stationary operation only. Calculator does not account for onroad operation.
B15: The calculator provides two primary data input modes:
B16: General Calculator
B17: Detailed Calculator
B19: The General Calculator is appropriate for users who will be using default values for diesel TRU, fuel, and electric grid parameters. The Detailed Calculator is appropriate for users who can supply inputs to specify TRU equipment and operating details, and/or electricity generation emission rates.
B23: User input is required in blue cells (via dropdown menus or numeric input); default parameters are shown in white cells; calculator output is shown in grey/brown cells. Non-user input cells are protected to avoid inadvertent changes. Cells may be unprotected if necessary by selecting “Unprotect Sheet” in the Excel "Review" ribbon. No password is required.
B27: Placing a mouse over cells with red flags in the upper right corner displays definitions and additional information:
B28: Example
B30: The General Calculator_EXAMPLE tab provides a read-only view of a completed General Calculator screen for reference.
B31: The inputs on the Example tab reflect a typical (but hypothetical) project.
B33: Footnotes | C33: are listed at the bottom of this page.
B35: A list of acronyms and abbreviations used in this guide and in the TRU calculator can be found at the end of this document.
B37: Acronyms and Abbreviations
B39: General Calculator
B40: The General Calculator is found in the General Calculator tab and is available for users who will rely on default values3 for estimating TRU emissions.
B43: 1. Select the General Calculator tab in the TRU Emissions Calculator Workbook.
B45: 2. Select the TRU Type using the dropdown menu. Selections include Trailer TRUs above and below 25 hp, and Truck TRUs (< 16 hp).
B48: 3. Enter the TRU engine Model Year using the dropdown menu.
B50: 4. Enter the Number of TRUs for the selected TRU Type.
B52: 5. Select the Plug Location (dock or yard).
B54: 6. Select the eGRID Subregion containing the electric charging area of interest using the dropdown menu. Select the "?" icon to identify the appropriate eGRID2020 subregion. Return to the General Calculator using the link at the top of the screen.
B58: 7. After specifying the required inputs, the General Calculator displays the default values that will be used in the emissions and cost calculations, including TRU power rating, annual operating hours, time with plug-in access, fuel and electricity prices, and incremental eTRU capital and operation/maintenance costs.
B62: 8. Energy and emissions outputs are displayed to the right. The Annual Energy Consumption displaced from diesel TRUs as well as the energy consumed by eTRUs are shown in kWhs. Differences in emissions are presented in absolute and percentage terms. Negative differences show reductions in emissions, positive differences show increases in emissions. The equations used to calculate emission reductions are provided on the References tab.
B67: 9. Cost calculation results are presented at the far right of the screen. The number of TRUs are multiplied by incremental per unit costs/savings to obtain total eTRU capital and charging infrastructure costs, and total operation and maintenance savings. All prices are adjusted to 2020 dollars using the Consumer Price Index (see References tab).
B71: Detailed Calculator
B73: The Detailed Calculator is similar in format to the General Calculator, with additional functionality allowing the user to specify alternate TRU characteristics and operating details, as well as specific electric generation emission rates.
B76: 1. Select the Detailed Calculator tab in the TRU Emissions Calculator Workbook.
B78: 2. Select the User Type using the dropdown menu that best describes your role/organization. Selections include Fleet Manager, Agency Manager, (equipment) Vendor/Manufacturer, Facility Operator (e.g. for distribution centers), or Other.
B81: 3. Select the TRU Type using the dropdown menu. Selections include Trailer TRUs above and below 25 hp, and Truck TRUs (< 16 hp).
B84: 4. Enter the TRU engine Model Year using the dropdown menu.
B86: 5. Enter the Number of TRUs for the selected TRU Type.
B88: 6. Select the Plug Location (dock or yard).
B90: 7. Select the eGRID Subregion containing the electric charging area of interest using the dropdown menu. Select the "?" icon to identify the appropriate eGRID2020 subregion. Return to the Detailed Calculator using the link at the top of the screen. To input user-defined eGRID emissions rates, enter your own values at the bottom of the eGRID2020 Subregion tab. Then select the "USER DEFINED" eGRID subregion in the drop-down list.
B93: 8. The Detailed Calculator allows you to replace many off the default values3 used in the General Calculator with alternative values. Parameters that may be replaced include: - TRU Power Rating (hp) - Average TRU Load Factor (average fraction of rated power used, > 0 and <= 1.0) - Total Annual Operating Hours per TRU (>0 and <= 8,760) - Annual Engine Hours Stationary with Plug-in Access per TRU (>0 and <= total hours per TRU) - eTRU-to-Plug Ratio (total number of eTRUs divided by total number of plugs) - Average Regional Diesel Fuel Price ($/gal) - Average Regional Electricity Price ($/kWh) - Incremental Capital Cost per eTRU ($) - Electric Infrastructure Capital Cost per eTRU ($)4 - Annual Maintenance Savings per eTRU ($)
B107: The default values for these parameters are based on recent research, with sources documented on the References tab. Defaults are shown in the Calculator in the first (white) column and are used if no value is entered. To use your own value instead of the default, enter it in the second (blue) column.
B111: 9. Energy and emissions outputs are displayed to the right. The Annual Energy Consumption displaced from diesel TRUs as well as the energy consumed by eTRUs are shown in kWhs. Differences in emissions are presented in absolute and percentage terms. Negative differences show reductions in emissions, positive differences show increases in emissions. The equations used to calculate emission reductions are provided on the References tab. The Annual Energy Consumption Displaced by diesel TRUs is calculated as:
B116: 10. Cost calculation results are presented at the far right of the screen. Electric plug and installation costs are divided by the eTRU-to-Plug ratio to determine infrastructure costs per eTRU. The number of TRUs are multiplied by incremental per unit costs/savings to obtain total eTRU capital and charging infrastructure costs, and total operation and maintenance savings. All prices are adjusted to 2020 dollars using the Consumer Price Index (see References tab).
B121: Footnotes
B123: (1) See https://www.epa.gov/egrid for emissions other than PM2.5. PM2.5 emission factors developed separately -
B124: see https://www.epa.gov/egrid/egrid-related-materials.
B125: (2) See https://www.epa.gov/moves.
B126: (3) Details regarding default values are provided in the eGRID2020 Subregion, Diesel TRU Emission Factors,
B127: TRU Ops & Costs, Diesel Fuel Prices, and Electricity Prices tabs at the bottom of the screen.
B128: (4) Truck eTRU capital = Level 2 charger + installation
B129: Trailer eTRU capital = yard outlet + trailer wiring & receptacle cost
B131: Acronyms and Abbreviations
B133: CH4 | C133: Methane
B134: CO2 | C134: Carbon dioxide
B135: CO2e | C135: Carbon dioxide-equivalents (CO2 + 25 x CH4 + 298 x N2O)
B136: eGRID | C136: Emissions & Generation Resource Integrated Database
B137: EPA | C137: United States Environmental Protection Agency
B138: eTRU | C138: Electric Transportation Refrigeration Unit
B139: g | C139: Grams
B140: gal | C140: Gallon
B141: GGL | C141: Gross grid loss
B142: hp | C142: Horsepower
B143: hph | C143: Horespower-hour
B144: kW | C144: Kilowatt
B145: kWh | C145: Kilowatt-hour
B146: MOVES | C146: MOtor Vehicle Emissions Simulator
B147: MT | C147: Metric Tons
B148: N2O | C148: Nitrous oxide
B149: NOx | C149: Nitrogen oxides
B150: PM2.5 | C150: Particulate matter 2.5µm or smaller in diameter
B151: SCC | C151: Source Classification Code
B152: SO2 | C152: Sulfur dioxide
B153: TRU | C153: Transportation Refrigeration Unit

Sheet General Calculator
B1: Emissions Calculator: Transport Refrigeration Unit (TRU) - General Calculator | V1: Annual Emissions Results - Diesel TRU vs. eTRU | AX1: Incremental Costs/Savings - Diesel TRU vs. eTRU
V2: Diesel TRU Emissions (MT) | AD2: eTRU Emissions (MT) | AL2: Difference (MT) | AR2: Percent Difference | AX2: Incremental Costs | BB2: Operational Savings
A3: User Type | B3: TRU Type | C3: Model Year | D3: Number of TRUs | E3: Plug Location | F3: eGRID Subregion | G3: TRU Power Rating (hp) | H3: Average TRU Load Factor | I3: Total Annual Operating Hours per TRU | J3: Percent of Annual Operating Hours Stationary with Plug-in Access | K3: Annual Engine Hours Stationary with Plug-in Access per TRU | L3: Average Regional Diesel Fuel Price ($/gal) | M3: Average Regional Electricity Price ($/kWh) | N3: Incremental Capital Cost per eTRU ($) | O3: Electric Infrastructure Capital Cost per eTRU ($) | P3: Annual Maintenance Savings per eTRU ($) | R3: Annual Diesel TRU Energy Consumption Displaced (kWh) | S3: Annual eTRU Energy Consumption (kWh) | T3: GGL (%) | V3: NOx | W3: SO2 | X3: PM2.5 | Y3: CO2 | Z3: CH4 | AA3: N2O | AB3: CO2e | AD3: NOx | AE3: SO2 | AF3: PM2.5 | AG3: CO2 | AH3: CH4 | AI3: N2O | AJ3: CO2e | AL3: NOx | AM3: SO2 | AN3: PM2.5 | AO3: CO2 | AP3: CO2e | AR3: NOx | AS3: SO2 | AT3: PM2.5 | AU3: CO2 | AV3: CO2e | AX3: Total eTRU Capital Cost ($) | AY3: Total Electric Infrastructure Cost ($) | AZ3: Total Capital Cost ($) | BB3: Annual eTRU Maintenance Savings ($) | BC3: Annual eTRU Operating Savings ($) | BD3: Total eTRU Savings ($)
A4: Dropdown | B4: Dropdown | C4: Dropdown | D4: Numeric Input | E4: Dropdown | F4: Dropdown | G4: Default | H4: Default | I4: Default | J4: Default | K4: Default | L4: Default | M4: Default | N4: Default | O4: Default | P4: Default | R4: Output | S4: Output | T4: Output | V4: Output | W4: Output | X4: Output | Y4: Output | Z4: Output | AA4: Output | AB4: Output | AD4: Output | AE4: Output | AF4: Output | AG4: Output | AH4: Output | AI4: Output | AJ4: Output | AL4: Output | AM4: Output | AN4: Output | AO4: Output | AP4: Output | AR4: Output | AS4: Output | AT4: Output | AU4: Output | AV4: Output | AX4: Output | AY4: Output | AZ4: Output | BB4: Output | BC4: Output | BD4: Output
A5: Agency Manager | G5: =IF(OR(ISBLANK($B5),ISBLANK($C5)),"",INDEX('TRU Ops & Costs'!$D$4:$D$74,MATCH($B5&$C5,'TRU Ops & Costs'!$P$4:$P$74,0))/0.7457) ->  | H5: =IF(OR(ISBLANK($B5),ISBLANK($C5)),"",INDEX('TRU Ops & Costs'!$E$4:$E$74,MATCH($B5&$C5,'TRU Ops & Costs'!$P$4:$P$74,0))) ->  | I5: =IF(OR(ISBLANK($B5),ISBLANK($C5)),"",INDEX('TRU Ops & Costs'!$F$4:$F$74,MATCH($B5&$C5,'TRU Ops & Costs'!$P$4:$P$74,0))) ->  | J5: =IF(OR(ISBLANK($B5),ISBLANK($C5)),"",INDEX('TRU Ops & Costs'!$G$4:$G$74,MATCH($B5&$C5,'TRU Ops & Costs'!$P$4:$P$74,0))) ->  | K5: =IF(OR(ISBLANK($B5),ISBLANK($C5)),"",$I5*$J5) ->  | L5: =IF(ISBLANK($F5),"",INDEX('Diesel Fuel Prices'!$D$5:$D$31,MATCH($F5,'Diesel Fuel Prices'!$B$5:$B$31,0))*References!$B$38/References!$B$37) ->  | M5: =IF(ISBLANK($F5),"",VLOOKUP($F5,'Electricity Prices'!$B$4:$F$32,5,FALSE)*References!$B$38/References!$B$37) ->  | N5: =IF(OR(ISBLANK($B5),ISBLANK($C5)),"",INDEX('TRU Ops & Costs'!$I$4:$I$74,MATCH($B5&$C5,'TRU Ops & Costs'!$P$4:$P$74,0))) ->  | O5: =IF(OR(ISBLANK($B5),ISBLANK($C5)),"",IF(E5="Yard",INDEX('TRU Ops & Costs'!$J$4:$J$74,MATCH($B5&$C5,'TRU Ops & Costs'!$P$4:$P$74,0)),INDEX('TRU Ops & Costs'!$K$4:$K$74,MATCH($B5&$C5,'TRU Ops & Costs'!$P$4:$P$74,0)))) ->  | P5: =IF(OR(ISBLANK($B5),ISBLANK($C5)),"",$K5*INDEX('TRU Ops & Costs'!$M$4:$M$74,MATCH($B5&$C5,'TRU Ops & Costs'!$P$4:$P$74,0))*-INDEX('TRU Ops & Costs'!$L$4:$L$74,MATCH($B5&$C5,'TRU Ops & Costs'!$P$4:$P$74,0))) ->  | R5: =IF(OR(ISBLANK($B5),ISBLANK($C5),ISBLANK($D5)),"",$D5*$G5*0.7457*$H5*$K5) ->  | S5: =IF(OR(ISBLANK($B5),ISBLANK($C5),ISBLANK($D5)),"",R5/EfficiencyImprovement) ->  | T5: =IF(ISBLANK($F5),"",INDEX('eGRID2020 Subregion'!$J$7:$J$36,MATCH($F5,RegionGEN,0))) ->  | V5: =IF(OR(ISBLANK($B5),ISBLANK($C5),$R5=""),"",ROUND($R5*INDEX('Diesel TRU Emission Factors'!$D$6:$D$76,MATCH($B5&$C5,'Diesel TRU Emission Factors'!$R$6:$R$77,0))*GramsToMT,4)) ->  | W5: =IF(OR(ISBLANK($B5),ISBLANK($C5),$R5=""),"",ROUND($R5*INDEX('Diesel TRU Emission Factors'!$E$6:$E$76,MATCH($B5&$C5,'Diesel TRU Emission Factors'!$R$6:$R$77,0))*GramsToMT,4)) ->  | X5: =IF(OR(ISBLANK($B5),ISBLANK($C5),$R5=""),"",ROUND($R5*INDEX('Diesel TRU Emission Factors'!$H$6:$H$76,MATCH($B5&$C5,'Diesel TRU Emission Factors'!$R$6:$R$77,0))*GramsToMT,4)) ->  | Y5: =IF(OR(ISBLANK($B5),ISBLANK($C5),$R5=""),"",ROUND($R5*INDEX('Diesel TRU Emission Factors'!$F$6:$F$76,MATCH($B5&$C5,'Diesel TRU Emission Factors'!$R$6:$R$77,0))*GramsToMT,1)) ->  | Z5: =IF(OR(ISBLANK($B5),ISBLANK($C5),$R5=""),"",$R5*INDEX('Diesel TRU Emission Factors'!$G$6:$G$76,MATCH($B5&$C5,'Diesel TRU Emission Factors'!$R$6:$R$77,0))*GramsToMT) ->  | AA5: =IF(ISBLANK(F5),"",R5*GalTokWh*'Diesel TRU Emission Factors'!$P$4/1000000) ->  | AB5: =IF(ISBLANK($F5),"",ROUND(Y5*References!$B$28+Z5*References!$B$29+'General Calculator'!AA5*References!$B$30,1)) ->  | AD5: =IF(OR(ISBLANK($F5),$S5="",$T5=""),"",ROUND($S5*(1+$T5)*INDEX('eGRID2020 Subregion'!$C$7:$C$36,MATCH($F5,RegionGEN,0))*GramsToMT,4)) ->  | AE5: =IF(OR(ISBLANK($F5),$S5="",$T5=""),"",ROUND($S5*(1+$T5)*INDEX('eGRID2020 Subregion'!$D$7:$D$36,MATCH($F5,RegionGEN,0))*GramsToMT,4)) ->  | AF5: =IF(OR(ISBLANK($F5),$S5="",$T5=""),"",ROUND($S5*(1+$T5)*INDEX('eGRID2020 Subregion'!$I$7:$I$36,MATCH($F5,RegionGEN,0))*GramsToMT,4)) ->  | AG5: =IF(OR(ISBLANK($F5),$S5="",$T5=""),"",ROUND($S5*(1+$T5)*INDEX('eGRID2020 Subregion'!$E$7:$E$36,MATCH($F5,RegionGEN,0))*GramsToMT,1)) ->  | AH5: =IF(OR(ISBLANK($F5),$S5="",$T5=""),"",$S5*(1+$T5)*INDEX('eGRID2020 Subregion'!$F$7:$F$33,MATCH($F5,RegionGEN,0))*GramsToMT) ->  | AI5: =IF(OR(ISBLANK($F5),$S5="",$T5=""),"",$S5*(1+$T5)*INDEX('eGRID2020 Subregion'!$G$7:$G$33,MATCH($F5,RegionGEN,0))*GramsToMT) ->  | AJ5: =IF(ISBLANK($F5),"",ROUND(AG5*References!$B$28+AH5*References!$B$29+'General Calculator'!AI5*References!$B$30,1)) ->  | AL5: =IF(OR($V5="",$AD5=""),"",ROUND($AD5-$V5,4)) ->  | AM5: =IF(OR($W5="",$AE5=""),"",ROUND($AE5-$W5,4)) ->  | AN5: =IF(OR($X5="",$AF5=""),"",ROUND($AF5-$X5,4)) ->  | AO5: =IF(OR($Y5="",$AG5=""),"",ROUND($AG5-$Y5,1)) ->  | AP5: =IF(OR($AB5="",$AJ5=""),"",ROUND($AJ5-$AB5,1)) ->  | AR5: =IF(OR($V5="",$AL5="",$V5=0),"",ROUND($AL5/$V5,2)) ->  | AS5: =IF(OR($W5="",$AM5="",$W5=0),"", $AM5/$W5) ->  | AT5: =IF(OR($X5="",$AN5="",$X5=0),"",ROUND($AN5/$X5,2)) ->  | AU5: =IF(OR($Y5="",$AO5="",$Y5=0),"",ROUND($AO5/$Y5,2)) ->  | AV5: =IF(OR($AB5="",$AP5="",$AB5=0),"",ROUND($AP5/$AB5,2)) ->  | AX5: =IF(OR(ISBLANK($D5),$N5=""),"",$D5*$N5) ->  | AY5: =IF(OR(ISBLANK($D5),$O5=""),"",$D5*$O5) ->  | AZ5: =IF(OR($AX5="",$AY5=""),"",$AX5+$AY5) ->  | BB5: =IF(OR(ISBLANK($D5),$P5=""),"",$D5*$P5) ->  | BC5: =IF(OR($R5="",$L5="",$M5="",$S5="",$T5=""),"",($R5*$L5*GalTokWh)-($S5*$M5*(1+$T5))) ->  | BD5: =IF(OR($BB5="",$BC5=""),"",$BB5+$BC5) -> 
G6: =IF(OR(ISBLANK($B6),ISBLANK($C6)),"",INDEX('TRU Ops & Costs'!$D$4:$D$74,MATCH($B6&$C6,'TRU Ops & Costs'!$P$4:$P$74,0))/0.7457) ->  | H6: =IF(OR(ISBLANK($B6),ISBLANK($C6)),"",INDEX('TRU Ops & Costs'!$E$4:$E$74,MATCH($B6&$C6,'TRU Ops & Costs'!$P$4:$P$74,0))) ->  | I6: =IF(OR(ISBLANK($B6),ISBLANK($C6)),"",INDEX('TRU Ops & Costs'!$F$4:$F$74,MATCH($B6&$C6,'TRU Ops & Costs'!$P$4:$P$74,0))) ->  | J6: =IF(OR(ISBLANK($B6),ISBLANK($C6)),"",INDEX('TRU Ops & Costs'!$G$4:$G$74,MATCH($B6&$C6,'TRU Ops & Costs'!$P$4:$P$74,0))) ->  | K6: =IF(OR(ISBLANK($B6),ISBLANK($C6)),"",$I6*$J6) ->  | L6: =IF(ISBLANK($F6),"",INDEX('Diesel Fuel Prices'!$D$5:$D$31,MATCH($F6,'Diesel Fuel Prices'!$B$5:$B$31,0))*References!$B$38/References!$B$37) ->  | M6: =IF(ISBLANK($F6),"",VLOOKUP($F6,'Electricity Prices'!$B$4:$F$32,5,FALSE)*References!$B$38/References!$B$37) ->  | N6: =IF(OR(ISBLANK($B6),ISBLANK($C6)),"",INDEX('TRU Ops & Costs'!$I$4:$I$74,MATCH($B6&$C6,'TRU Ops & Costs'!$P$4:$P$74,0))) ->  | O6: =IF(OR(ISBLANK($B6),ISBLANK($C6)),"",IF(E6="Yard",INDEX('TRU Ops & Costs'!$J$4:$J$74,MATCH($B6&$C6,'TRU Ops & Costs'!$P$4:$P$74,0)),INDEX('TRU Ops & Costs'!$K$4:$K$74,MATCH($B6&$C6,'TRU Ops & Costs'!$P$4:$P$74,0)))) ->  | P6: =IF(OR(ISBLANK($B6),ISBLANK($C6)),"",$K6*INDEX('TRU Ops & Costs'!$M$4:$M$74,MATCH($B6&$C6,'TRU Ops & Costs'!$P$4:$P$74,0))*-INDEX('TRU Ops & Costs'!$L$4:$L$74,MATCH($B6&$C6,'TRU Ops & Costs'!$P$4:$P$74,0))) ->  | R6: =IF(OR(ISBLANK($B6),ISBLANK($C6),ISBLANK($D6)),"",$D6*$G6*0.7457*$H6*$K6) ->  | S6: =IF(OR(ISBLANK($B6),ISBLANK($C6),ISBLANK($D6)),"",R6/EfficiencyImprovement) ->  | T6: =IF(ISBLANK($F6),"",INDEX('eGRID2020 Subregion'!$J$7:$J$36,MATCH($F6,RegionGEN,0))) ->  | V6: =IF(OR(ISBLANK($B6),ISBLANK($C6),$R6=""),"",ROUND($R6*INDEX('Diesel TRU Emission Factors'!$D$6:$D$76,MATCH($B6&$C6,'Diesel TRU Emission Factors'!$R$6:$R$77,0))*GramsToMT,4)) ->  | W6: =IF(OR(ISBLANK($B6),ISBLANK($C6),$R6=""),"",ROUND($R6*INDEX('Diesel TRU Emission Factors'!$E$6:$E$76,MATCH($B6&$C6,'Diesel TRU Emission Factors'!$R$6:$R$77,0))*GramsToMT,4)) ->  | X6: =IF(OR(ISBLANK($B6),ISBLANK($C6),$R6=""),"",ROUND($R6*INDEX('Diesel TRU Emission Factors'!$H$6:$H$76,MATCH($B6&$C6,'Diesel TRU Emission Factors'!$R$6:$R$77,0))*GramsToMT,4)) ->  | Y6: =IF(OR(ISBLANK($B6),ISBLANK($C6),$R6=""),"",ROUND($R6*INDEX('Diesel TRU Emission Factors'!$F$6:$F$76,MATCH($B6&$C6,'Diesel TRU Emission Factors'!$R$6:$R$77,0))*GramsToMT,1)) ->  | Z6: =IF(OR(ISBLANK($B6),ISBLANK($C6),$R6=""),"",$R6*INDEX('Diesel TRU Emission Factors'!$G$6:$G$76,MATCH($B6&$C6,'Diesel TRU Emission Factors'!$R$6:$R$77,0))*GramsToMT) ->  | AA6: =IF(ISBLANK(F6),"",R6*GalTokWh*'Diesel TRU Emission Factors'!$P$4/1000000) ->  | AB6: =IF(ISBLANK($F6),"",ROUND(Y6*References!$B$28+Z6*References!$B$29+'General Calculator'!AA6*References!$B$30,1)) ->  | AD6: =IF(OR(ISBLANK($F6),$S6="",$T6=""),"",ROUND($S6*(1+$T6)*INDEX('eGRID2020 Subregion'!$C$7:$C$36,MATCH($F6,RegionGEN,0))*GramsToMT,4)) ->  | AE6: =IF(OR(ISBLANK($F6),$S6="",$T6=""),"",ROUND($S6*(1+$T6)*INDEX('eGRID2020 Subregion'!$D$7:$D$36,MATCH($F6,RegionGEN,0))*GramsToMT,4)) ->  | AF6: =IF(OR(ISBLANK($F6),$S6="",$T6=""),"",ROUND($S6*(1+$T6)*INDEX('eGRID2020 Subregion'!$I$7:$I$36,MATCH($F6,RegionGEN,0))*GramsToMT,4)) ->  | AG6: =IF(OR(ISBLANK($F6),$S6="",$T6=""),"",ROUND($S6*(1+$T6)*INDEX('eGRID2020 Subregion'!$E$7:$E$36,MATCH($F6,RegionGEN,0))*GramsToMT,1)) ->  | AH6: =IF(OR(ISBLANK($F6),$S6="",$T6=""),"",$S6*(1+$T6)*INDEX('eGRID2020 Subregion'!$F$7:$F$33,MATCH($F6,RegionGEN,0))*GramsToMT) ->  | AI6: =IF(OR(ISBLANK($F6),$S6="",$T6=""),"",$S6*(1+$T6)*INDEX('eGRID2020 Subregion'!$G$7:$G$33,MATCH($F6,RegionGEN,0))*GramsToMT) ->  | AJ6: =IF(ISBLANK($F6),"",ROUND(AG6*References!$B$28+AH6*References!$B$29+'General Calculator'!AI6*References!$B$30,1)) ->  | AS6: =IF(OR(W6="",AM6="",W6=0),"", AM6/W6) ->  | AZ6: =IF(OR($AX6="",$AY6=""),"",$AX6+$AY6) ->  | BC6: =IF(OR($R6="",$L6="",$M6="",$S6="",$T6=""),"",($R6*$L6*GalTokWh)-($S6*$M6*(1+$T6))) ->  | BD6: =IF(OR($BB6="",$BC6=""),"",$BB6+$BC6) -> 
G7: =IF(OR(ISBLANK($B7),ISBLANK($C7)),"",INDEX('TRU Ops & Costs'!$D$4:$D$74,MATCH($B7&$C7,'TRU Ops & Costs'!$P$4:$P$74,0))/0.7457) ->  | H7: =IF(OR(ISBLANK($B7),ISBLANK($C7)),"",INDEX('TRU Ops & Costs'!$E$4:$E$74,MATCH($B7&$C7,'TRU Ops & Costs'!$P$4:$P$74,0))) ->  | I7: =IF(OR(ISBLANK($B7),ISBLANK($C7)),"",INDEX('TRU Ops & Costs'!$F$4:$F$74,MATCH($B7&$C7,'TRU Ops & Costs'!$P$4:$P$74,0))) ->  | J7: =IF(OR(ISBLANK($B7),ISBLANK($C7)),"",INDEX('TRU Ops & Costs'!$G$4:$G$74,MATCH($B7&$C7,'TRU Ops & Costs'!$P$4:$P$74,0))) ->  | L7: =IF(ISBLANK($F7),"",INDEX('Diesel Fuel Prices'!$D$5:$D$31,MATCH($F7,'Diesel Fuel Prices'!$B$5:$B$31,0))*References!$B$38/References!$B$37) ->  | M7: =IF(ISBLANK($F7),"",VLOOKUP($F7,'Electricity Prices'!$B$4:$F$32,5,FALSE)*References!$B$38/References!$B$37) ->  | N7: =IF(OR(ISBLANK($B7),ISBLANK($C7)),"",INDEX('TRU Ops & Costs'!$I$4:$I$74,MATCH($B7&$C7,'TRU Ops & Costs'!$P$4:$P$74,0))) ->  | O7: =IF(OR(ISBLANK($B7),ISBLANK($C7)),"",IF(E7="Yard",INDEX('TRU Ops & Costs'!$J$4:$J$74,MATCH($B7&$C7,'TRU Ops & Costs'!$P$4:$P$74,0)),INDEX('TRU Ops & Costs'!$K$4:$K$74,MATCH($B7&$C7,'TRU Ops & Costs'!$P$4:$P$74,0)))) ->  | P7: =IF(OR(ISBLANK($B7),ISBLANK($C7)),"",$K7*INDEX('TRU Ops & Costs'!$M$4:$M$74,MATCH($B7&$C7,'TRU Ops & Costs'!$P$4:$P$74,0))*-INDEX('TRU Ops & Costs'!$L$4:$L$74,MATCH($B7&$C7,'TRU Ops & Costs'!$P$4:$P$74,0))) ->  | T7: =IF(ISBLANK($F7),"",INDEX('eGRID2020 Subregion'!$J$7:$J$36,MATCH($F7,RegionGEN,0))) ->  | V7: =IF(OR(ISBLANK($B7),ISBLANK($C7),$R7=""),"",ROUND($R7*INDEX('Diesel TRU Emission Factors'!$D$6:$D$76,MATCH($B7&$C7,'Diesel TRU Emission Factors'!$R$6:$R$77,0))*GramsToMT,4)) ->  | W7: =IF(OR(ISBLANK($B7),ISBLANK($C7),$R7=""),"",ROUND($R7*INDEX('Diesel TRU Emission Factors'!$E$6:$E$76,MATCH($B7&$C7,'Diesel TRU Emission Factors'!$R$6:$R$77,0))*GramsToMT,4)) ->  | X7: =IF(OR(ISBLANK($B7),ISBLANK($C7),$R7=""),"",ROUND($R7*INDEX('Diesel TRU Emission Factors'!$H$6:$H$76,MATCH($B7&$C7,'Diesel TRU Emission Factors'!$R$6:$R$77,0))*GramsToMT,4)) ->  | Y7: =IF(OR(ISBLANK($B7),ISBLANK($C7),$R7=""),"",ROUND($R7*INDEX('Diesel TRU Emission Factors'!$F$6:$F$76,MATCH($B7&$C7,'Diesel TRU Emission Factors'!$R$6:$R$77,0))*GramsToMT,1)) ->  | Z7: =IF(OR(ISBLANK($B7),ISBLANK($C7),$R7=""),"",$R7*INDEX('Diesel TRU Emission Factors'!$G$6:$G$76,MATCH($B7&$C7,'Diesel TRU Emission Factors'!$R$6:$R$77,0))*GramsToMT) ->  | AA7: =IF(ISBLANK(F7),"",R7*GalTokWh*'Diesel TRU Emission Factors'!$P$4/1000000) ->  | AB7: =IF(ISBLANK($F7),"",ROUND(Y7*References!$B$28+Z7*References!$B$29+'General Calculator'!AA7*References!$B$30,1)) ->  | AD7: =IF(OR(ISBLANK($F7),$S7="",$T7=""),"",ROUND($S7*(1+$T7)*INDEX('eGRID2020 Subregion'!$C$7:$C$36,MATCH($F7,RegionGEN,0))*GramsToMT,4)) ->  | AE7: =IF(OR(ISBLANK($F7),$S7="",$T7=""),"",ROUND($S7*(1+$T7)*INDEX('eGRID2020 Subregion'!$D$7:$D$36,MATCH($F7,RegionGEN,0))*GramsToMT,4)) ->  | AF7: =IF(OR(ISBLANK($F7),$S7="",$T7=""),"",ROUND($S7*(1+$T7)*INDEX('eGRID2020 Subregion'!$I$7:$I$36,MATCH($F7,RegionGEN,0))*GramsToMT,4)) ->  | AG7: =IF(OR(ISBLANK($F7),$S7="",$T7=""),"",ROUND($S7*(1+$T7)*INDEX('eGRID2020 Subregion'!$E$7:$E$36,MATCH($F7,RegionGEN,0))*GramsToMT,1)) ->  | AH7: =IF(OR(ISBLANK($F7),$S7="",$T7=""),"",$S7*(1+$T7)*INDEX('eGRID2020 Subregion'!$F$7:$F$33,MATCH($F7,RegionGEN,0))*GramsToMT) ->  | AI7: =IF(OR(ISBLANK($F7),$S7="",$T7=""),"",$S7*(1+$T7)*INDEX('eGRID2020 Subregion'!$G$7:$G$33,MATCH($F7,RegionGEN,0))*GramsToMT) ->  | AJ7: =IF(ISBLANK($F7),"",ROUND(AG7*References!$B$28+AH7*References!$B$29+'General Calculator'!AI7*References!$B$30,1)) ->  | AS7: =IF(OR($W7="",$AM7="",$W7=0),"", $AM7/$W7) ->  | AZ7: =IF(OR($AX7="",$AY7=""),"",$AX7+$AY7) ->  | BC7: =IF(OR($R7="",$L7="",$M7="",$S7="",$T7=""),"",($R7*$L7*GalTokWh)-($S7*$M7*(1+$T7))) ->  | BD7: =IF(OR($BB7="",$BC7=""),"",$BB7+$BC7) -> 
G8: =IF(OR(ISBLANK($B8),ISBLANK($C8)),"",INDEX('TRU Ops & Costs'!$D$4:$D$74,MATCH($B8&$C8,'TRU Ops & Costs'!$P$4:$P$74,0))/0.7457) ->  | H8: =IF(OR(ISBLANK($B8),ISBLANK($C8)),"",INDEX('TRU Ops & Costs'!$E$4:$E$74,MATCH($B8&$C8,'TRU Ops & Costs'!$P$4:$P$74,0))) ->  | I8: =IF(OR(ISBLANK($B8),ISBLANK($C8)),"",INDEX('TRU Ops & Costs'!$F$4:$F$74,MATCH($B8&$C8,'TRU Ops & Costs'!$P$4:$P$74,0))) ->  | J8: =IF(OR(ISBLANK($B8),ISBLANK($C8)),"",INDEX('TRU Ops & Costs'!$G$4:$G$74,MATCH($B8&$C8,'TRU Ops & Costs'!$P$4:$P$74,0))) ->  | L8: =IF(ISBLANK($F8),"",INDEX('Diesel Fuel Prices'!$D$5:$D$31,MATCH($F8,'Diesel Fuel Prices'!$B$5:$B$31,0))*References!$B$38/References!$B$37) ->  | M8: =IF(ISBLANK($F8),"",VLOOKUP($F8,'Electricity Prices'!$B$4:$F$32,5,FALSE)*References!$B$38/References!$B$37) ->  | N8: =IF(OR(ISBLANK($B8),ISBLANK($C8)),"",INDEX('TRU Ops & Costs'!$I$4:$I$74,MATCH($B8&$C8,'TRU Ops & Costs'!$P$4:$P$74,0))) ->  | O8: =IF(OR(ISBLANK($B8),ISBLANK($C8)),"",IF(E8="Yard",INDEX('TRU Ops & Costs'!$J$4:$J$74,MATCH($B8&$C8,'TRU Ops & Costs'!$P$4:$P$74,0)),INDEX('TRU Ops & Costs'!$K$4:$K$74,MATCH($B8&$C8,'TRU Ops & Costs'!$P$4:$P$74,0)))) ->  | P8: =IF(OR(ISBLANK($B8),ISBLANK($C8)),"",$K8*INDEX('TRU Ops & Costs'!$M$4:$M$74,MATCH($B8&$C8,'TRU Ops & Costs'!$P$4:$P$74,0))*-INDEX('TRU Ops & Costs'!$L$4:$L$74,MATCH($B8&$C8,'TRU Ops & Costs'!$P$4:$P$74,0))) ->  | T8: =IF(ISBLANK($F8),"",INDEX('eGRID2020 Subregion'!$J$7:$J$36,MATCH($F8,RegionGEN,0))) ->  | V8: =IF(OR(ISBLANK($B8),ISBLANK($C8),$R8=""),"",ROUND($R8*INDEX('Diesel TRU Emission Factors'!$D$6:$D$76,MATCH($B8&$C8,'Diesel TRU Emission Factors'!$R$6:$R$77,0))*GramsToMT,4)) ->  | W8: =IF(OR(ISBLANK($B8),ISBLANK($C8),$R8=""),"",ROUND($R8*INDEX('Diesel TRU Emission Factors'!$E$6:$E$76,MATCH($B8&$C8,'Diesel TRU Emission Factors'!$R$6:$R$77,0))*GramsToMT,4)) ->  | X8: =IF(OR(ISBLANK($B8),ISBLANK($C8),$R8=""),"",ROUND($R8*INDEX('Diesel TRU Emission Factors'!$H$6:$H$76,MATCH($B8&$C8,'Diesel TRU Emission Factors'!$R$6:$R$77,0))*GramsToMT,4)) ->  | Y8: =IF(OR(ISBLANK($B8),ISBLANK($C8),$R8=""),"",ROUND($R8*INDEX('Diesel TRU Emission Factors'!$F$6:$F$76,MATCH($B8&$C8,'Diesel TRU Emission Factors'!$R$6:$R$77,0))*GramsToMT,1)) ->  | Z8: =IF(OR(ISBLANK($B8),ISBLANK($C8),$R8=""),"",$R8*INDEX('Diesel TRU Emission Factors'!$G$6:$G$76,MATCH($B8&$C8,'Diesel TRU Emission Factors'!$R$6:$R$77,0))*GramsToMT) ->  | AA8: =IF(ISBLANK(F8),"",R8*GalTokWh*'Diesel TRU Emission Factors'!$P$4/1000000) ->  | AB8: =IF(ISBLANK($F8),"",ROUND(Y8*References!$B$28+Z8*References!$B$29+'General Calculator'!AA8*References!$B$30,1)) ->  | AD8: =IF(OR(ISBLANK($F8),$S8="",$T8=""),"",ROUND($S8*(1+$T8)*INDEX('eGRID2020 Subregion'!$C$7:$C$36,MATCH($F8,RegionGEN,0))*GramsToMT,4)) ->  | AE8: =IF(OR(ISBLANK($F8),$S8="",$T8=""),"",ROUND($S8*(1+$T8)*INDEX('eGRID2020 Subregion'!$D$7:$D$36,MATCH($F8,RegionGEN,0))*GramsToMT,4)) ->  | AF8: =IF(OR(ISBLANK($F8),$S8="",$T8=""),"",ROUND($S8*(1+$T8)*INDEX('eGRID2020 Subregion'!$I$7:$I$36,MATCH($F8,RegionGEN,0))*GramsToMT,4)) ->  | AG8: =IF(OR(ISBLANK($F8),$S8="",$T8=""),"",ROUND($S8*(1+$T8)*INDEX('eGRID2020 Subregion'!$E$7:$E$36,MATCH($F8,RegionGEN,0))*GramsToMT,1)) ->  | AH8: =IF(OR(ISBLANK($F8),$S8="",$T8=""),"",$S8*(1+$T8)*INDEX('eGRID2020 Subregion'!$F$7:$F$33,MATCH($F8,RegionGEN,0))*GramsToMT) ->  | AI8: =IF(OR(ISBLANK($F8),$S8="",$T8=""),"",$S8*(1+$T8)*INDEX('eGRID2020 Subregion'!$G$7:$G$33,MATCH($F8,RegionGEN,0))*GramsToMT) ->  | AJ8: =IF(ISBLANK($F8),"",ROUND(AG8*References!$B$28+AH8*References!$B$29+'General Calculator'!AI8*References!$B$30,1)) ->  | AS8: =IF(OR(W8="",AM8="",W8=0),"", AM8/W8) -> 
G9: =IF(OR(ISBLANK($B9),ISBLANK($C9)),"",INDEX('TRU Ops & Costs'!$D$4:$D$74,MATCH($B9&$C9,'TRU Ops & Costs'!$P$4:$P$74,0))/0.7457) ->  | H9: =IF(OR(ISBLANK($B9),ISBLANK($C9)),"",INDEX('TRU Ops & Costs'!$E$4:$E$74,MATCH($B9&$C9,'TRU Ops & Costs'!$P$4:$P$74,0))) ->  | I9: =IF(OR(ISBLANK($B9),ISBLANK($C9)),"",INDEX('TRU Ops & Costs'!$F$4:$F$74,MATCH($B9&$C9,'TRU Ops & Costs'!$P$4:$P$74,0))) ->  | J9: =IF(OR(ISBLANK($B9),ISBLANK($C9)),"",INDEX('TRU Ops & Costs'!$G$4:$G$74,MATCH($B9&$C9,'TRU Ops & Costs'!$P$4:$P$74,0))) ->  | L9: =IF(ISBLANK($F9),"",INDEX('Diesel Fuel Prices'!$D$5:$D$31,MATCH($F9,'Diesel Fuel Prices'!$B$5:$B$31,0))*References!$B$38/References!$B$37) ->  | M9: =IF(ISBLANK($F9),"",VLOOKUP($F9,'Electricity Prices'!$B$4:$F$32,5,FALSE)*References!$B$38/References!$B$37) ->  | N9: =IF(OR(ISBLANK($B9),ISBLANK($C9)),"",INDEX('TRU Ops & Costs'!$I$4:$I$74,MATCH($B9&$C9,'TRU Ops & Costs'!$P$4:$P$74,0))) ->  | O9: =IF(OR(ISBLANK($B9),ISBLANK($C9)),"",IF(E9="Yard",INDEX('TRU Ops & Costs'!$J$4:$J$74,MATCH($B9&$C9,'TRU Ops & Costs'!$P$4:$P$74,0)),INDEX('TRU Ops & Costs'!$K$4:$K$74,MATCH($B9&$C9,'TRU Ops & Costs'!$P$4:$P$74,0)))) ->  | P9: =IF(OR(ISBLANK($B9),ISBLANK($C9)),"",$K9*INDEX('TRU Ops & Costs'!$M$4:$M$74,MATCH($B9&$C9,'TRU Ops & Costs'!$P$4:$P$74,0))*-INDEX('TRU Ops & Costs'!$L$4:$L$74,MATCH($B9&$C9,'TRU Ops & Costs'!$P$4:$P$74,0))) ->  | T9: =IF(ISBLANK($F9),"",INDEX('eGRID2020 Subregion'!$J$7:$J$36,MATCH($F9,RegionGEN,0))) ->  | V9: =IF(OR(ISBLANK($B9),ISBLANK($C9),$R9=""),"",ROUND($R9*INDEX('Diesel TRU Emission Factors'!$D$6:$D$76,MATCH($B9&$C9,'Diesel TRU Emission Factors'!$R$6:$R$77,0))*GramsToMT,4)) ->  | W9: =IF(OR(ISBLANK($B9),ISBLANK($C9),$R9=""),"",ROUND($R9*INDEX('Diesel TRU Emission Factors'!$E$6:$E$76,MATCH($B9&$C9,'Diesel TRU Emission Factors'!$R$6:$R$77,0))*GramsToMT,4)) ->  | X9: =IF(OR(ISBLANK($B9),ISBLANK($C9),$R9=""),"",ROUND($R9*INDEX('Diesel TRU Emission Factors'!$H$6:$H$76,MATCH($B9&$C9,'Diesel TRU Emission Factors'!$R$6:$R$77,0))*GramsToMT,4)) ->  | Y9: =IF(OR(ISBLANK($B9),ISBLANK($C9),$R9=""),"",ROUND($R9*INDEX('Diesel TRU Emission Factors'!$F$6:$F$76,MATCH($B9&$C9,'Diesel TRU Emission Factors'!$R$6:$R$77,0))*GramsToMT,1)) ->  | Z9: =IF(OR(ISBLANK($B9),ISBLANK($C9),$R9=""),"",$R9*INDEX('Diesel TRU Emission Factors'!$G$6:$G$76,MATCH($B9&$C9,'Diesel TRU Emission Factors'!$R$6:$R$77,0))*GramsToMT) ->  | AA9: =IF(ISBLANK(F9),"",R9*GalTokWh*'Diesel TRU Emission Factors'!$P$4/1000000) ->  | AB9: =IF(ISBLANK($F9),"",ROUND(Y9*References!$B$28+Z9*References!$B$29+'General Calculator'!AA9*References!$B$30,1)) ->  | AD9: =IF(OR(ISBLANK($F9),$S9="",$T9=""),"",ROUND($S9*(1+$T9)*INDEX('eGRID2020 Subregion'!$C$7:$C$36,MATCH($F9,RegionGEN,0))*GramsToMT,4)) ->  | AE9: =IF(OR(ISBLANK($F9),$S9="",$T9=""),"",ROUND($S9*(1+$T9)*INDEX('eGRID2020 Subregion'!$D$7:$D$36,MATCH($F9,RegionGEN,0))*GramsToMT,4)) ->  | AF9: =IF(OR(ISBLANK($F9),$S9="",$T9=""),"",ROUND($S9*(1+$T9)*INDEX('eGRID2020 Subregion'!$I$7:$I$36,MATCH($F9,RegionGEN,0))*GramsToMT,4)) ->  | AG9: =IF(OR(ISBLANK($F9),$S9="",$T9=""),"",ROUND($S9*(1+$T9)*INDEX('eGRID2020 Subregion'!$E$7:$E$36,MATCH($F9,RegionGEN,0))*GramsToMT,1)) ->  | AH9: =IF(OR(ISBLANK($F9),$S9="",$T9=""),"",$S9*(1+$T9)*INDEX('eGRID2020 Subregion'!$F$7:$F$33,MATCH($F9,RegionGEN,0))*GramsToMT) ->  | AI9: =IF(OR(ISBLANK($F9),$S9="",$T9=""),"",$S9*(1+$T9)*INDEX('eGRID2020 Subregion'!$G$7:$G$33,MATCH($F9,RegionGEN,0))*GramsToMT) ->  | AJ9: =IF(ISBLANK($F9),"",ROUND(AG9*References!$B$28+AH9*References!$B$29+'General Calculator'!AI9*References!$B$30,1)) ->  | AS9: =IF(OR($W9="",$AM9="",$W9=0),"", $AM9/$W9) ->  | AZ9: =IF(OR($AX9="",$AY9=""),"",$AX9+$AY9) ->  | BC9: =IF(OR($R9="",$L9="",$M9="",$S9="",$T9=""),"",($R9*$L9*GalTokWh)-($S9*$M9*(1+$T9))) ->  | BD9: =IF(OR($BB9="",$BC9=""),"",$BB9+$BC9) -> 
G10: =IF(OR(ISBLANK($B10),ISBLANK($C10)),"",INDEX('TRU Ops & Costs'!$D$4:$D$74,MATCH($B10&$C10,'TRU Ops & Costs'!$P$4:$P$74,0))/0.7457) ->  | H10: =IF(OR(ISBLANK($B10),ISBLANK($C10)),"",INDEX('TRU Ops & Costs'!$E$4:$E$74,MATCH($B10&$C10,'TRU Ops & Costs'!$P$4:$P$74,0))) ->  | I10: =IF(OR(ISBLANK($B10),ISBLANK($C10)),"",INDEX('TRU Ops & Costs'!$F$4:$F$74,MATCH($B10&$C10,'TRU Ops & Costs'!$P$4:$P$74,0))) ->  | J10: =IF(OR(ISBLANK($B10),ISBLANK($C10)),"",INDEX('TRU Ops & Costs'!$G$4:$G$74,MATCH($B10&$C10,'TRU Ops & Costs'!$P$4:$P$74,0))) ->  | L10: =IF(ISBLANK($F10),"",INDEX('Diesel Fuel Prices'!$D$5:$D$31,MATCH($F10,'Diesel Fuel Prices'!$B$5:$B$31,0))*References!$B$38/References!$B$37) ->  | M10: =IF(ISBLANK($F10),"",VLOOKUP($F10,'Electricity Prices'!$B$4:$F$32,5,FALSE)*References!$B$38/References!$B$37) ->  | N10: =IF(OR(ISBLANK($B10),ISBLANK($C10)),"",INDEX('TRU Ops & Costs'!$I$4:$I$74,MATCH($B10&$C10,'TRU Ops & Costs'!$P$4:$P$74,0))) ->  | O10: =IF(OR(ISBLANK($B10),ISBLANK($C10)),"",IF(E10="Yard",INDEX('TRU Ops & Costs'!$J$4:$J$74,MATCH($B10&$C10,'TRU Ops & Costs'!$P$4:$P$74,0)),INDEX('TRU Ops & Costs'!$K$4:$K$74,MATCH($B10&$C10,'TRU Ops & Costs'!$P$4:$P$74,0)))) ->  | P10: =IF(OR(ISBLANK($B10),ISBLANK($C10)),"",$K10*INDEX('TRU Ops & Costs'!$M$4:$M$74,MATCH($B10&$C10,'TRU Ops & Costs'!$P$4:$P$74,0))*-INDEX('TRU Ops & Costs'!$L$4:$L$74,MATCH($B10&$C10,'TRU Ops & Costs'!$P$4:$P$74,0))) ->  | T10: =IF(ISBLANK($F10),"",INDEX('eGRID2020 Subregion'!$J$7:$J$36,MATCH($F10,RegionGEN,0))) ->  | V10: =IF(OR(ISBLANK($B10),ISBLANK($C10),$R10=""),"",ROUND($R10*INDEX('Diesel TRU Emission Factors'!$D$6:$D$76,MATCH($B10&$C10,'Diesel TRU Emission Factors'!$R$6:$R$77,0))*GramsToMT,4)) ->  | W10: =IF(OR(ISBLANK($B10),ISBLANK($C10),$R10=""),"",ROUND($R10*INDEX('Diesel TRU Emission Factors'!$E$6:$E$76,MATCH($B10&$C10,'Diesel TRU Emission Factors'!$R$6:$R$77,0))*GramsToMT,4)) ->  | X10: =IF(OR(ISBLANK($B10),ISBLANK($C10),$R10=""),"",ROUND($R10*INDEX('Diesel TRU Emission Factors'!$H$6:$H$76,MATCH($B10&$C10,'Diesel TRU Emission Factors'!$R$6:$R$77,0))*GramsToMT,4)) ->  | Y10: =IF(OR(ISBLANK($B10),ISBLANK($C10),$R10=""),"",ROUND($R10*INDEX('Diesel TRU Emission Factors'!$F$6:$F$76,MATCH($B10&$C10,'Diesel TRU Emission Factors'!$R$6:$R$77,0))*GramsToMT,1)) ->  | Z10: =IF(OR(ISBLANK($B10),ISBLANK($C10),$R10=""),"",$R10*INDEX('Diesel TRU Emission Factors'!$G$6:$G$76,MATCH($B10&$C10,'Diesel TRU Emission Factors'!$R$6:$R$77,0))*GramsToMT) ->  | AA10: =IF(ISBLANK(F10),"",R10*GalTokWh*'Diesel TRU Emission Factors'!$P$4/1000000) ->  | AB10: =IF(ISBLANK($F10),"",ROUND(Y10*References!$B$28+Z10*References!$B$29+'General Calculator'!AA10*References!$B$30,1)) ->  | AD10: =IF(OR(ISBLANK($F10),$S10="",$T10=""),"",ROUND($S10*(1+$T10)*INDEX('eGRID2020 Subregion'!$C$7:$C$36,MATCH($F10,RegionGEN,0))*GramsToMT,4)) ->  | AE10: =IF(OR(ISBLANK($F10),$S10="",$T10=""),"",ROUND($S10*(1+$T10)*INDEX('eGRID2020 Subregion'!$D$7:$D$36,MATCH($F10,RegionGEN,0))*GramsToMT,4)) ->  | AF10: =IF(OR(ISBLANK($F10),$S10="",$T10=""),"",ROUND($S10*(1+$T10)*INDEX('eGRID2020 Subregion'!$I$7:$I$36,MATCH($F10,RegionGEN,0))*GramsToMT,4)) ->  | AG10: =IF(OR(ISBLANK($F10),$S10="",$T10=""),"",ROUND($S10*(1+$T10)*INDEX('eGRID2020 Subregion'!$E$7:$E$36,MATCH($F10,RegionGEN,0))*GramsToMT,1)) ->  | AH10: =IF(OR(ISBLANK($F10),$S10="",$T10=""),"",$S10*(1+$T10)*INDEX('eGRID2020 Subregion'!$F$7:$F$33,MATCH($F10,RegionGEN,0))*GramsToMT) ->  | AI10: =IF(OR(ISBLANK($F10),$S10="",$T10=""),"",$S10*(1+$T10)*INDEX('eGRID2020 Subregion'!$G$7:$G$33,MATCH($F10,RegionGEN,0))*GramsToMT) ->  | AJ10: =IF(ISBLANK($F10),"",ROUND(AG10*References!$B$28+AH10*References!$B$29+'General Calculator'!AI10*References!$B$30,1)) ->  | AS10: =IF(OR(W10="",AM10="",W10=0),"", AM10/W10) -> 
G11: =IF(OR(ISBLANK($B11),ISBLANK($C11)),"",INDEX('TRU Ops & Costs'!$D$4:$D$74,MATCH($B11&$C11,'TRU Ops & Costs'!$P$4:$P$74,0))/0.7457) ->  | H11: =IF(OR(ISBLANK($B11),ISBLANK($C11)),"",INDEX('TRU Ops & Costs'!$E$4:$E$74,MATCH($B11&$C11,'TRU Ops & Costs'!$P$4:$P$74,0))) ->  | I11: =IF(OR(ISBLANK($B11),ISBLANK($C11)),"",INDEX('TRU Ops & Costs'!$F$4:$F$74,MATCH($B11&$C11,'TRU Ops & Costs'!$P$4:$P$74,0))) ->  | J11: =IF(OR(ISBLANK($B11),ISBLANK($C11)),"",INDEX('TRU Ops & Costs'!$G$4:$G$74,MATCH($B11&$C11,'TRU Ops & Costs'!$P$4:$P$74,0))) ->  | L11: =IF(ISBLANK($F11),"",INDEX('Diesel Fuel Prices'!$D$5:$D$31,MATCH($F11,'Diesel Fuel Prices'!$B$5:$B$31,0))*References!$B$38/References!$B$37) ->  | M11: =IF(ISBLANK($F11),"",VLOOKUP($F11,'Electricity Prices'!$B$4:$F$32,5,FALSE)*References!$B$38/References!$B$37) ->  | N11: =IF(OR(ISBLANK($B11),ISBLANK($C11)),"",INDEX('TRU Ops & Costs'!$I$4:$I$74,MATCH($B11&$C11,'TRU Ops & Costs'!$P$4:$P$74,0))) ->  | O11: =IF(OR(ISBLANK($B11),ISBLANK($C11)),"",IF(E11="Yard",INDEX('TRU Ops & Costs'!$J$4:$J$74,MATCH($B11&$C11,'TRU Ops & Costs'!$P$4:$P$74,0)),INDEX('TRU Ops & Costs'!$K$4:$K$74,MATCH($B11&$C11,'TRU Ops & Costs'!$P$4:$P$74,0)))) ->  | P11: =IF(OR(ISBLANK($B11),ISBLANK($C11)),"",$K11*INDEX('TRU Ops & Costs'!$M$4:$M$74,MATCH($B11&$C11,'TRU Ops & Costs'!$P$4:$P$74,0))*-INDEX('TRU Ops & Costs'!$L$4:$L$74,MATCH($B11&$C11,'TRU Ops & Costs'!$P$4:$P$74,0))) ->  | T11: =IF(ISBLANK($F11),"",INDEX('eGRID2020 Subregion'!$J$7:$J$36,MATCH($F11,RegionGEN,0))) ->  | V11: =IF(OR(ISBLANK($B11),ISBLANK($C11),$R11=""),"",ROUND($R11*INDEX('Diesel TRU Emission Factors'!$D$6:$D$76,MATCH($B11&$C11,'Diesel TRU Emission Factors'!$R$6:$R$77,0))*GramsToMT,4)) ->  | W11: =IF(OR(ISBLANK($B11),ISBLANK($C11),$R11=""),"",ROUND($R11*INDEX('Diesel TRU Emission Factors'!$E$6:$E$76,MATCH($B11&$C11,'Diesel TRU Emission Factors'!$R$6:$R$77,0))*GramsToMT,4)) ->  | X11: =IF(OR(ISBLANK($B11),ISBLANK($C11),$R11=""),"",ROUND($R11*INDEX('Diesel TRU Emission Factors'!$H$6:$H$76,MATCH($B11&$C11,'Diesel TRU Emission Factors'!$R$6:$R$77,0))*GramsToMT,4)) ->  | Y11: =IF(OR(ISBLANK($B11),ISBLANK($C11),$R11=""),"",ROUND($R11*INDEX('Diesel TRU Emission Factors'!$F$6:$F$76,MATCH($B11&$C11,'Diesel TRU Emission Factors'!$R$6:$R$77,0))*GramsToMT,1)) ->  | Z11: =IF(OR(ISBLANK($B11),ISBLANK($C11),$R11=""),"",$R11*INDEX('Diesel TRU Emission Factors'!$G$6:$G$76,MATCH($B11&$C11,'Diesel TRU Emission Factors'!$R$6:$R$77,0))*GramsToMT) ->  | AA11: =IF(ISBLANK(F11),"",R11*GalTokWh*'Diesel TRU Emission Factors'!$P$4/1000000) ->  | AB11: =IF(ISBLANK($F11),"",ROUND(Y11*References!$B$28+Z11*References!$B$29+'General Calculator'!AA11*References!$B$30,1)) ->  | AD11: =IF(OR(ISBLANK($F11),$S11="",$T11=""),"",ROUND($S11*(1+$T11)*INDEX('eGRID2020 Subregion'!$C$7:$C$36,MATCH($F11,RegionGEN,0))*GramsToMT,4)) ->  | AE11: =IF(OR(ISBLANK($F11),$S11="",$T11=""),"",ROUND($S11*(1+$T11)*INDEX('eGRID2020 Subregion'!$D$7:$D$36,MATCH($F11,RegionGEN,0))*GramsToMT,4)) ->  | AF11: =IF(OR(ISBLANK($F11),$S11="",$T11=""),"",ROUND($S11*(1+$T11)*INDEX('eGRID2020 Subregion'!$I$7:$I$36,MATCH($F11,RegionGEN,0))*GramsToMT,4)) ->  | AG11: =IF(OR(ISBLANK($F11),$S11="",$T11=""),"",ROUND($S11*(1+$T11)*INDEX('eGRID2020 Subregion'!$E$7:$E$36,MATCH($F11,RegionGEN,0))*GramsToMT,1)) ->  | AH11: =IF(OR(ISBLANK($F11),$S11="",$T11=""),"",$S11*(1+$T11)*INDEX('eGRID2020 Subregion'!$F$7:$F$33,MATCH($F11,RegionGEN,0))*GramsToMT) ->  | AI11: =IF(OR(ISBLANK($F11),$S11="",$T11=""),"",$S11*(1+$T11)*INDEX('eGRID2020 Subregion'!$G$7:$G$33,MATCH($F11,RegionGEN,0))*GramsToMT) ->  | AJ11: =IF(ISBLANK($F11),"",ROUND(AG11*References!$B$28+AH11*References!$B$29+'General Calculator'!AI11*References!$B$30,1)) ->  | AS11: =IF(OR($W11="",$AM11="",$W11=0),"", $AM11/$W11) ->  | AZ11: =IF(OR($AX11="",$AY11=""),"",$AX11+$AY11) ->  | BC11: =IF(OR($R11="",$L11="",$M11="",$S11="",$T11=""),"",($R11*$L11*GalTokWh)-($S11*$M11*(1+$T11))) ->  | BD11: =IF(OR($BB11="",$BC11=""),"",$BB11+$BC11) -> 
G12: =IF(OR(ISBLANK($B12),ISBLANK($C12)),"",INDEX('TRU Ops & Costs'!$D$4:$D$74,MATCH($B12&$C12,'TRU Ops & Costs'!$P$4:$P$74,0))/0.7457) ->  | H12: =IF(OR(ISBLANK($B12),ISBLANK($C12)),"",INDEX('TRU Ops & Costs'!$E$4:$E$74,MATCH($B12&$C12,'TRU Ops & Costs'!$P$4:$P$74,0))) ->  | I12: =IF(OR(ISBLANK($B12),ISBLANK($C12)),"",INDEX('TRU Ops & Costs'!$F$4:$F$74,MATCH($B12&$C12,'TRU Ops & Costs'!$P$4:$P$74,0))) ->  | J12: =IF(OR(ISBLANK($B12),ISBLANK($C12)),"",INDEX('TRU Ops & Costs'!$G$4:$G$74,MATCH($B12&$C12,'TRU Ops & Costs'!$P$4:$P$74,0))) ->  | L12: =IF(ISBLANK($F12),"",INDEX('Diesel Fuel Prices'!$D$5:$D$31,MATCH($F12,'Diesel Fuel Prices'!$B$5:$B$31,0))*References!$B$38/References!$B$37) ->  | M12: =IF(ISBLANK($F12),"",VLOOKUP($F12,'Electricity Prices'!$B$4:$F$32,5,FALSE)*References!$B$38/References!$B$37) ->  | N12: =IF(OR(ISBLANK($B12),ISBLANK($C12)),"",INDEX('TRU Ops & Costs'!$I$4:$I$74,MATCH($B12&$C12,'TRU Ops & Costs'!$P$4:$P$74,0))) ->  | O12: =IF(OR(ISBLANK($B12),ISBLANK($C12)),"",IF(E12="Yard",INDEX('TRU Ops & Costs'!$J$4:$J$74,MATCH($B12&$C12,'TRU Ops & Costs'!$P$4:$P$74,0)),INDEX('TRU Ops & Costs'!$K$4:$K$74,MATCH($B12&$C12,'TRU Ops & Costs'!$P$4:$P$74,0)))) ->  | P12: =IF(OR(ISBLANK($B12),ISBLANK($C12)),"",$K12*INDEX('TRU Ops & Costs'!$M$4:$M$74,MATCH($B12&$C12,'TRU Ops & Costs'!$P$4:$P$74,0))*-INDEX('TRU Ops & Costs'!$L$4:$L$74,MATCH($B12&$C12,'TRU Ops & Costs'!$P$4:$P$74,0))) ->  | T12: =IF(ISBLANK($F12),"",INDEX('eGRID2020 Subregion'!$J$7:$J$36,MATCH($F12,RegionGEN,0))) ->  | V12: =IF(OR(ISBLANK($B12),ISBLANK($C12),$R12=""),"",ROUND($R12*INDEX('Diesel TRU Emission Factors'!$D$6:$D$76,MATCH($B12&$C12,'Diesel TRU Emission Factors'!$R$6:$R$77,0))*GramsToMT,4)) ->  | W12: =IF(OR(ISBLANK($B12),ISBLANK($C12),$R12=""),"",ROUND($R12*INDEX('Diesel TRU Emission Factors'!$E$6:$E$76,MATCH($B12&$C12,'Diesel TRU Emission Factors'!$R$6:$R$77,0))*GramsToMT,4)) ->  | X12: =IF(OR(ISBLANK($B12),ISBLANK($C12),$R12=""),"",ROUND($R12*INDEX('Diesel TRU Emission Factors'!$H$6:$H$76,MATCH($B12&$C12,'Diesel TRU Emission Factors'!$R$6:$R$77,0))*GramsToMT,4)) ->  | Y12: =IF(OR(ISBLANK($B12),ISBLANK($C12),$R12=""),"",ROUND($R12*INDEX('Diesel TRU Emission Factors'!$F$6:$F$76,MATCH($B12&$C12,'Diesel TRU Emission Factors'!$R$6:$R$77,0))*GramsToMT,1)) ->  | Z12: =IF(OR(ISBLANK($B12),ISBLANK($C12),$R12=""),"",$R12*INDEX('Diesel TRU Emission Factors'!$G$6:$G$76,MATCH($B12&$C12,'Diesel TRU Emission Factors'!$R$6:$R$77,0))*GramsToMT) ->  | AA12: =IF(ISBLANK(F12),"",R12*GalTokWh*'Diesel TRU Emission Factors'!$P$4/1000000) ->  | AB12: =IF(ISBLANK($F12),"",ROUND(Y12*References!$B$28+Z12*References!$B$29+'General Calculator'!AA12*References!$B$30,1)) ->  | AD12: =IF(OR(ISBLANK($F12),$S12="",$T12=""),"",ROUND($S12*(1+$T12)*INDEX('eGRID2020 Subregion'!$C$7:$C$36,MATCH($F12,RegionGEN,0))*GramsToMT,4)) ->  | AE12: =IF(OR(ISBLANK($F12),$S12="",$T12=""),"",ROUND($S12*(1+$T12)*INDEX('eGRID2020 Subregion'!$D$7:$D$36,MATCH($F12,RegionGEN,0))*GramsToMT,4)) ->  | AF12: =IF(OR(ISBLANK($F12),$S12="",$T12=""),"",ROUND($S12*(1+$T12)*INDEX('eGRID2020 Subregion'!$I$7:$I$36,MATCH($F12,RegionGEN,0))*GramsToMT,4)) ->  | AG12: =IF(OR(ISBLANK($F12),$S12="",$T12=""),"",ROUND($S12*(1+$T12)*INDEX('eGRID2020 Subregion'!$E$7:$E$36,MATCH($F12,RegionGEN,0))*GramsToMT,1)) ->  | AH12: =IF(OR(ISBLANK($F12),$S12="",$T12=""),"",$S12*(1+$T12)*INDEX('eGRID2020 Subregion'!$F$7:$F$33,MATCH($F12,RegionGEN,0))*GramsToMT) ->  | AI12: =IF(OR(ISBLANK($F12),$S12="",$T12=""),"",$S12*(1+$T12)*INDEX('eGRID2020 Subregion'!$G$7:$G$33,MATCH($F12,RegionGEN,0))*GramsToMT) ->  | AJ12: =IF(ISBLANK($F12),"",ROUND(AG12*References!$B$28+AH12*References!$B$29+'General Calculator'!AI12*References!$B$30,1)) ->  | AS12: =IF(OR(W12="",AM12="",W12=0),"", AM12/W12) -> 
G13: =IF(OR(ISBLANK($B13),ISBLANK($C13)),"",INDEX('TRU Ops & Costs'!$D$4:$D$74,MATCH($B13&$C13,'TRU Ops & Costs'!$P$4:$P$74,0))/0.7457) ->  | H13: =IF(OR(ISBLANK($B13),ISBLANK($C13)),"",INDEX('TRU Ops & Costs'!$E$4:$E$74,MATCH($B13&$C13,'TRU Ops & Costs'!$P$4:$P$74,0))) ->  | I13: =IF(OR(ISBLANK($B13),ISBLANK($C13)),"",INDEX('TRU Ops & Costs'!$F$4:$F$74,MATCH($B13&$C13,'TRU Ops & Costs'!$P$4:$P$74,0))) ->  | J13: =IF(OR(ISBLANK($B13),ISBLANK($C13)),"",INDEX('TRU Ops & Costs'!$G$4:$G$74,MATCH($B13&$C13,'TRU Ops & Costs'!$P$4:$P$74,0))) ->  | L13: =IF(ISBLANK($F13),"",INDEX('Diesel Fuel Prices'!$D$5:$D$31,MATCH($F13,'Diesel Fuel Prices'!$B$5:$B$31,0))*References!$B$38/References!$B$37) ->  | M13: =IF(ISBLANK($F13),"",VLOOKUP($F13,'Electricity Prices'!$B$4:$F$32,5,FALSE)*References!$B$38/References!$B$37) ->  | N13: =IF(OR(ISBLANK($B13),ISBLANK($C13)),"",INDEX('TRU Ops & Costs'!$I$4:$I$74,MATCH($B13&$C13,'TRU Ops & Costs'!$P$4:$P$74,0))) ->  | O13: =IF(OR(ISBLANK($B13),ISBLANK($C13)),"",IF(E13="Yard",INDEX('TRU Ops & Costs'!$J$4:$J$74,MATCH($B13&$C13,'TRU Ops & Costs'!$P$4:$P$74,0)),INDEX('TRU Ops & Costs'!$K$4:$K$74,MATCH($B13&$C13,'TRU Ops & Costs'!$P$4:$P$74,0)))) ->  | P13: =IF(OR(ISBLANK($B13),ISBLANK($C13)),"",$K13*INDEX('TRU Ops & Costs'!$M$4:$M$74,MATCH($B13&$C13,'TRU Ops & Costs'!$P$4:$P$74,0))*-INDEX('TRU Ops & Costs'!$L$4:$L$74,MATCH($B13&$C13,'TRU Ops & Costs'!$P$4:$P$74,0))) ->  | T13: =IF(ISBLANK($F13),"",INDEX('eGRID2020 Subregion'!$J$7:$J$36,MATCH($F13,RegionGEN,0))) ->  | V13: =IF(OR(ISBLANK($B13),ISBLANK($C13),$R13=""),"",ROUND($R13*INDEX('Diesel TRU Emission Factors'!$D$6:$D$76,MATCH($B13&$C13,'Diesel TRU Emission Factors'!$R$6:$R$77,0))*GramsToMT,4)) ->  | W13: =IF(OR(ISBLANK($B13),ISBLANK($C13),$R13=""),"",ROUND($R13*INDEX('Diesel TRU Emission Factors'!$E$6:$E$76,MATCH($B13&$C13,'Diesel TRU Emission Factors'!$R$6:$R$77,0))*GramsToMT,4)) ->  | X13: =IF(OR(ISBLANK($B13),ISBLANK($C13),$R13=""),"",ROUND($R13*INDEX('Diesel TRU Emission Factors'!$H$6:$H$76,MATCH($B13&$C13,'Diesel TRU Emission Factors'!$R$6:$R$77,0))*GramsToMT,4)) ->  | Y13: =IF(OR(ISBLANK($B13),ISBLANK($C13),$R13=""),"",ROUND($R13*INDEX('Diesel TRU Emission Factors'!$F$6:$F$76,MATCH($B13&$C13,'Diesel TRU Emission Factors'!$R$6:$R$77,0))*GramsToMT,1)) ->  | Z13: =IF(OR(ISBLANK($B13),ISBLANK($C13),$R13=""),"",$R13*INDEX('Diesel TRU Emission Factors'!$G$6:$G$76,MATCH($B13&$C13,'Diesel TRU Emission Factors'!$R$6:$R$77,0))*GramsToMT) ->  | AA13: =IF(ISBLANK(F13),"",R13*GalTokWh*'Diesel TRU Emission Factors'!$P$4/1000000) ->  | AB13: =IF(ISBLANK($F13),"",ROUND(Y13*References!$B$28+Z13*References!$B$29+'General Calculator'!AA13*References!$B$30,1)) ->  | AD13: =IF(OR(ISBLANK($F13),$S13="",$T13=""),"",ROUND($S13*(1+$T13)*INDEX('eGRID2020 Subregion'!$C$7:$C$36,MATCH($F13,RegionGEN,0))*GramsToMT,4)) ->  | AE13: =IF(OR(ISBLANK($F13),$S13="",$T13=""),"",ROUND($S13*(1+$T13)*INDEX('eGRID2020 Subregion'!$D$7:$D$36,MATCH($F13,RegionGEN,0))*GramsToMT,4)) ->  | AF13: =IF(OR(ISBLANK($F13),$S13="",$T13=""),"",ROUND($S13*(1+$T13)*INDEX('eGRID2020 Subregion'!$I$7:$I$36,MATCH($F13,RegionGEN,0))*GramsToMT,4)) ->  | AG13: =IF(OR(ISBLANK($F13),$S13="",$T13=""),"",ROUND($S13*(1+$T13)*INDEX('eGRID2020 Subregion'!$E$7:$E$36,MATCH($F13,RegionGEN,0))*GramsToMT,1)) ->  | AH13: =IF(OR(ISBLANK($F13),$S13="",$T13=""),"",$S13*(1+$T13)*INDEX('eGRID2020 Subregion'!$F$7:$F$33,MATCH($F13,RegionGEN,0))*GramsToMT) ->  | AI13: =IF(OR(ISBLANK($F13),$S13="",$T13=""),"",$S13*(1+$T13)*INDEX('eGRID2020 Subregion'!$G$7:$G$33,MATCH($F13,RegionGEN,0))*GramsToMT) ->  | AJ13: =IF(ISBLANK($F13),"",ROUND(AG13*References!$B$28+AH13*References!$B$29+'General Calculator'!AI13*References!$B$30,1)) ->  | AS13: =IF(OR($W13="",$AM13="",$W13=0),"", $AM13/$W13) ->  | AZ13: =IF(OR($AX13="",$AY13=""),"",$AX13+$AY13) ->  | BC13: =IF(OR($R13="",$L13="",$M13="",$S13="",$T13=""),"",($R13*$L13*GalTokWh)-($S13*$M13*(1+$T13))) ->  | BD13: =IF(OR($BB13="",$BC13=""),"",$BB13+$BC13) -> 
G14: =IF(OR(ISBLANK($B14),ISBLANK($C14)),"",INDEX('TRU Ops & Costs'!$D$4:$D$74,MATCH($B14&$C14,'TRU Ops & Costs'!$P$4:$P$74,0))/0.7457) ->  | H14: =IF(OR(ISBLANK($B14),ISBLANK($C14)),"",INDEX('TRU Ops & Costs'!$E$4:$E$74,MATCH($B14&$C14,'TRU Ops & Costs'!$P$4:$P$74,0))) ->  | I14: =IF(OR(ISBLANK($B14),ISBLANK($C14)),"",INDEX('TRU Ops & Costs'!$F$4:$F$74,MATCH($B14&$C14,'TRU Ops & Costs'!$P$4:$P$74,0))) ->  | J14: =IF(OR(ISBLANK($B14),ISBLANK($C14)),"",INDEX('TRU Ops & Costs'!$G$4:$G$74,MATCH($B14&$C14,'TRU Ops & Costs'!$P$4:$P$74,0))) ->  | L14: =IF(ISBLANK($F14),"",INDEX('Diesel Fuel Prices'!$D$5:$D$31,MATCH($F14,'Diesel Fuel Prices'!$B$5:$B$31,0))*References!$B$38/References!$B$37) ->  | M14: =IF(ISBLANK($F14),"",VLOOKUP($F14,'Electricity Prices'!$B$4:$F$32,5,FALSE)*References!$B$38/References!$B$37) ->  | N14: =IF(OR(ISBLANK($B14),ISBLANK($C14)),"",INDEX('TRU Ops & Costs'!$I$4:$I$74,MATCH($B14&$C14,'TRU Ops & Costs'!$P$4:$P$74,0))) ->  | O14: =IF(OR(ISBLANK($B14),ISBLANK($C14)),"",IF(E14="Yard",INDEX('TRU Ops & Costs'!$J$4:$J$74,MATCH($B14&$C14,'TRU Ops & Costs'!$P$4:$P$74,0)),INDEX('TRU Ops & Costs'!$K$4:$K$74,MATCH($B14&$C14,'TRU Ops & Costs'!$P$4:$P$74,0)))) ->  | P14: =IF(OR(ISBLANK($B14),ISBLANK($C14)),"",$K14*INDEX('TRU Ops & Costs'!$M$4:$M$74,MATCH($B14&$C14,'TRU Ops & Costs'!$P$4:$P$74,0))*-INDEX('TRU Ops & Costs'!$L$4:$L$74,MATCH($B14&$C14,'TRU Ops & Costs'!$P$4:$P$74,0))) ->  | T14: =IF(ISBLANK($F14),"",INDEX('eGRID2020 Subregion'!$J$7:$J$36,MATCH($F14,RegionGEN,0))) ->  | V14: =IF(OR(ISBLANK($B14),ISBLANK($C14),$R14=""),"",ROUND($R14*INDEX('Diesel TRU Emission Factors'!$D$6:$D$76,MATCH($B14&$C14,'Diesel TRU Emission Factors'!$R$6:$R$77,0))*GramsToMT,4)) ->  | W14: =IF(OR(ISBLANK($B14),ISBLANK($C14),$R14=""),"",ROUND($R14*INDEX('Diesel TRU Emission Factors'!$E$6:$E$76,MATCH($B14&$C14,'Diesel TRU Emission Factors'!$R$6:$R$77,0))*GramsToMT,4)) ->  | X14: =IF(OR(ISBLANK($B14),ISBLANK($C14),$R14=""),"",ROUND($R14*INDEX('Diesel TRU Emission Factors'!$H$6:$H$76,MATCH($B14&$C14,'Diesel TRU Emission Factors'!$R$6:$R$77,0))*GramsToMT,4)) ->  | Y14: =IF(OR(ISBLANK($B14),ISBLANK($C14),$R14=""),"",ROUND($R14*INDEX('Diesel TRU Emission Factors'!$F$6:$F$76,MATCH($B14&$C14,'Diesel TRU Emission Factors'!$R$6:$R$77,0))*GramsToMT,1)) ->  | Z14: =IF(OR(ISBLANK($B14),ISBLANK($C14),$R14=""),"",$R14*INDEX('Diesel TRU Emission Factors'!$G$6:$G$76,MATCH($B14&$C14,'Diesel TRU Emission Factors'!$R$6:$R$77,0))*GramsToMT) ->  | AA14: =IF(ISBLANK(F14),"",R14*GalTokWh*'Diesel TRU Emission Factors'!$P$4/1000000) ->  | AB14: =IF(ISBLANK($F14),"",ROUND(Y14*References!$B$28+Z14*References!$B$29+'General Calculator'!AA14*References!$B$30,1)) ->  | AD14: =IF(OR(ISBLANK($F14),$S14="",$T14=""),"",ROUND($S14*(1+$T14)*INDEX('eGRID2020 Subregion'!$C$7:$C$36,MATCH($F14,RegionGEN,0))*GramsToMT,4)) ->  | AE14: =IF(OR(ISBLANK($F14),$S14="",$T14=""),"",ROUND($S14*(1+$T14)*INDEX('eGRID2020 Subregion'!$D$7:$D$36,MATCH($F14,RegionGEN,0))*GramsToMT,4)) ->  | AF14: =IF(OR(ISBLANK($F14),$S14="",$T14=""),"",ROUND($S14*(1+$T14)*INDEX('eGRID2020 Subregion'!$I$7:$I$36,MATCH($F14,RegionGEN,0))*GramsToMT,4)) ->  | AG14: =IF(OR(ISBLANK($F14),$S14="",$T14=""),"",ROUND($S14*(1+$T14)*INDEX('eGRID2020 Subregion'!$E$7:$E$36,MATCH($F14,RegionGEN,0))*GramsToMT,1)) ->  | AH14: =IF(OR(ISBLANK($F14),$S14="",$T14=""),"",$S14*(1+$T14)*INDEX('eGRID2020 Subregion'!$F$7:$F$33,MATCH($F14,RegionGEN,0))*GramsToMT) ->  | AI14: =IF(OR(ISBLANK($F14),$S14="",$T14=""),"",$S14*(1+$T14)*INDEX('eGRID2020 Subregion'!$G$7:$G$33,MATCH($F14,RegionGEN,0))*GramsToMT) ->  | AJ14: =IF(ISBLANK($F14),"",ROUND(AG14*References!$B$28+AH14*References!$B$29+'General Calculator'!AI14*References!$B$30,1)) ->  | AS14: =IF(OR(W14="",AM14="",W14=0),"", AM14/W14) -> 
G15: =IF(OR(ISBLANK($B15),ISBLANK($C15)),"",INDEX('TRU Ops & Costs'!$D$4:$D$74,MATCH($B15&$C15,'TRU Ops & Costs'!$P$4:$P$74,0))/0.7457) ->  | H15: =IF(OR(ISBLANK($B15),ISBLANK($C15)),"",INDEX('TRU Ops & Costs'!$E$4:$E$74,MATCH($B15&$C15,'TRU Ops & Costs'!$P$4:$P$74,0))) ->  | I15: =IF(OR(ISBLANK($B15),ISBLANK($C15)),"",INDEX('TRU Ops & Costs'!$F$4:$F$74,MATCH($B15&$C15,'TRU Ops & Costs'!$P$4:$P$74,0))) ->  | J15: =IF(OR(ISBLANK($B15),ISBLANK($C15)),"",INDEX('TRU Ops & Costs'!$G$4:$G$74,MATCH($B15&$C15,'TRU Ops & Costs'!$P$4:$P$74,0))) ->  | L15: =IF(ISBLANK($F15),"",INDEX('Diesel Fuel Prices'!$D$5:$D$31,MATCH($F15,'Diesel Fuel Prices'!$B$5:$B$31,0))*References!$B$38/References!$B$37) ->  | M15: =IF(ISBLANK($F15),"",VLOOKUP($F15,'Electricity Prices'!$B$4:$F$32,5,FALSE)*References!$B$38/References!$B$37) ->  | N15: =IF(OR(ISBLANK($B15),ISBLANK($C15)),"",INDEX('TRU Ops & Costs'!$I$4:$I$74,MATCH($B15&$C15,'TRU Ops & Costs'!$P$4:$P$74,0))) ->  | O15: =IF(OR(ISBLANK($B15),ISBLANK($C15)),"",IF(E15="Yard",INDEX('TRU Ops & Costs'!$J$4:$J$74,MATCH($B15&$C15,'TRU Ops & Costs'!$P$4:$P$74,0)),INDEX('TRU Ops & Costs'!$K$4:$K$74,MATCH($B15&$C15,'TRU Ops & Costs'!$P$4:$P$74,0)))) ->  | P15: =IF(OR(ISBLANK($B15),ISBLANK($C15)),"",$K15*INDEX('TRU Ops & Costs'!$M$4:$M$74,MATCH($B15&$C15,'TRU Ops & Costs'!$P$4:$P$74,0))*-INDEX('TRU Ops & Costs'!$L$4:$L$74,MATCH($B15&$C15,'TRU Ops & Costs'!$P$4:$P$74,0))) ->  | T15: =IF(ISBLANK($F15),"",INDEX('eGRID2020 Subregion'!$J$7:$J$36,MATCH($F15,RegionGEN,0))) ->  | V15: =IF(OR(ISBLANK($B15),ISBLANK($C15),$R15=""),"",ROUND($R15*INDEX('Diesel TRU Emission Factors'!$D$6:$D$76,MATCH($B15&$C15,'Diesel TRU Emission Factors'!$R$6:$R$77,0))*GramsToMT,4)) ->  | W15: =IF(OR(ISBLANK($B15),ISBLANK($C15),$R15=""),"",ROUND($R15*INDEX('Diesel TRU Emission Factors'!$E$6:$E$76,MATCH($B15&$C15,'Diesel TRU Emission Factors'!$R$6:$R$77,0))*GramsToMT,4)) ->  | X15: =IF(OR(ISBLANK($B15),ISBLANK($C15),$R15=""),"",ROUND($R15*INDEX('Diesel TRU Emission Factors'!$H$6:$H$76,MATCH($B15&$C15,'Diesel TRU Emission Factors'!$R$6:$R$77,0))*GramsToMT,4)) ->  | Y15: =IF(OR(ISBLANK($B15),ISBLANK($C15),$R15=""),"",ROUND($R15*INDEX('Diesel TRU Emission Factors'!$F$6:$F$76,MATCH($B15&$C15,'Diesel TRU Emission Factors'!$R$6:$R$77,0))*GramsToMT,1)) ->  | Z15: =IF(OR(ISBLANK($B15),ISBLANK($C15),$R15=""),"",$R15*INDEX('Diesel TRU Emission Factors'!$G$6:$G$76,MATCH($B15&$C15,'Diesel TRU Emission Factors'!$R$6:$R$77,0))*GramsToMT) ->  | AA15: =IF(ISBLANK(F15),"",R15*GalTokWh*'Diesel TRU Emission Factors'!$P$4/1000000) ->  | AB15: =IF(ISBLANK($F15),"",ROUND(Y15*References!$B$28+Z15*References!$B$29+'General Calculator'!AA15*References!$B$30,1)) ->  | AD15: =IF(OR(ISBLANK($F15),$S15="",$T15=""),"",ROUND($S15*(1+$T15)*INDEX('eGRID2020 Subregion'!$C$7:$C$36,MATCH($F15,RegionGEN,0))*GramsToMT,4)) ->  | AE15: =IF(OR(ISBLANK($F15),$S15="",$T15=""),"",ROUND($S15*(1+$T15)*INDEX('eGRID2020 Subregion'!$D$7:$D$36,MATCH($F15,RegionGEN,0))*GramsToMT,4)) ->  | AF15: =IF(OR(ISBLANK($F15),$S15="",$T15=""),"",ROUND($S15*(1+$T15)*INDEX('eGRID2020 Subregion'!$I$7:$I$36,MATCH($F15,RegionGEN,0))*GramsToMT,4)) ->  | AG15: =IF(OR(ISBLANK($F15),$S15="",$T15=""),"",ROUND($S15*(1+$T15)*INDEX('eGRID2020 Subregion'!$E$7:$E$36,MATCH($F15,RegionGEN,0))*GramsToMT,1)) ->  | AH15: =IF(OR(ISBLANK($F15),$S15="",$T15=""),"",$S15*(1+$T15)*INDEX('eGRID2020 Subregion'!$F$7:$F$33,MATCH($F15,RegionGEN,0))*GramsToMT) ->  | AI15: =IF(OR(ISBLANK($F15),$S15="",$T15=""),"",$S15*(1+$T15)*INDEX('eGRID2020 Subregion'!$G$7:$G$33,MATCH($F15,RegionGEN,0))*GramsToMT) ->  | AJ15: =IF(ISBLANK($F15),"",ROUND(AG15*References!$B$28+AH15*References!$B$29+'General Calculator'!AI15*References!$B$30,1)) ->  | AS15: =IF(OR($W15="",$AM15="",$W15=0),"", $AM15/$W15) ->  | AZ15: =IF(OR($AX15="",$AY15=""),"",$AX15+$AY15) ->  | BC15: =IF(OR($R15="",$L15="",$M15="",$S15="",$T15=""),"",($R15*$L15*GalTokWh)-($S15*$M15*(1+$T15))) ->  | BD15: =IF(OR($BB15="",$BC15=""),"",$BB15+$BC15) -> 
G16: =IF(OR(ISBLANK($B16),ISBLANK($C16)),"",INDEX('TRU Ops & Costs'!$D$4:$D$74,MATCH($B16&$C16,'TRU Ops & Costs'!$P$4:$P$74,0))/0.7457) ->  | H16: =IF(OR(ISBLANK($B16),ISBLANK($C16)),"",INDEX('TRU Ops & Costs'!$E$4:$E$74,MATCH($B16&$C16,'TRU Ops & Costs'!$P$4:$P$74,0))) ->  | I16: =IF(OR(ISBLANK($B16),ISBLANK($C16)),"",INDEX('TRU Ops & Costs'!$F$4:$F$74,MATCH($B16&$C16,'TRU Ops & Costs'!$P$4:$P$74,0))) ->  | J16: =IF(OR(ISBLANK($B16),ISBLANK($C16)),"",INDEX('TRU Ops & Costs'!$G$4:$G$74,MATCH($B16&$C16,'TRU Ops & Costs'!$P$4:$P$74,0))) ->  | L16: =IF(ISBLANK($F16),"",INDEX('Diesel Fuel Prices'!$D$5:$D$31,MATCH($F16,'Diesel Fuel Prices'!$B$5:$B$31,0))*References!$B$38/References!$B$37) ->  | M16: =IF(ISBLANK($F16),"",VLOOKUP($F16,'Electricity Prices'!$B$4:$F$32,5,FALSE)*References!$B$38/References!$B$37) ->  | N16: =IF(OR(ISBLANK($B16),ISBLANK($C16)),"",INDEX('TRU Ops & Costs'!$I$4:$I$74,MATCH($B16&$C16,'TRU Ops & Costs'!$P$4:$P$74,0))) ->  | O16: =IF(OR(ISBLANK($B16),ISBLANK($C16)),"",IF(E16="Yard",INDEX('TRU Ops & Costs'!$J$4:$J$74,MATCH($B16&$C16,'TRU Ops & Costs'!$P$4:$P$74,0)),INDEX('TRU Ops & Costs'!$K$4:$K$74,MATCH($B16&$C16,'TRU Ops & Costs'!$P$4:$P$74,0)))) ->  | P16: =IF(OR(ISBLANK($B16),ISBLANK($C16)),"",$K16*INDEX('TRU Ops & Costs'!$M$4:$M$74,MATCH($B16&$C16,'TRU Ops & Costs'!$P$4:$P$74,0))*-INDEX('TRU Ops & Costs'!$L$4:$L$74,MATCH($B16&$C16,'TRU Ops & Costs'!$P$4:$P$74,0))) ->  | T16: =IF(ISBLANK($F16),"",INDEX('eGRID2020 Subregion'!$J$7:$J$36,MATCH($F16,RegionGEN,0))) ->  | V16: =IF(OR(ISBLANK($B16),ISBLANK($C16),$R16=""),"",ROUND($R16*INDEX('Diesel TRU Emission Factors'!$D$6:$D$76,MATCH($B16&$C16,'Diesel TRU Emission Factors'!$R$6:$R$77,0))*GramsToMT,4)) ->  | W16: =IF(OR(ISBLANK($B16),ISBLANK($C16),$R16=""),"",ROUND($R16*INDEX('Diesel TRU Emission Factors'!$E$6:$E$76,MATCH($B16&$C16,'Diesel TRU Emission Factors'!$R$6:$R$77,0))*GramsToMT,4)) ->  | X16: =IF(OR(ISBLANK($B16),ISBLANK($C16),$R16=""),"",ROUND($R16*INDEX('Diesel TRU Emission Factors'!$H$6:$H$76,MATCH($B16&$C16,'Diesel TRU Emission Factors'!$R$6:$R$77,0))*GramsToMT,4)) ->  | Y16: =IF(OR(ISBLANK($B16),ISBLANK($C16),$R16=""),"",ROUND($R16*INDEX('Diesel TRU Emission Factors'!$F$6:$F$76,MATCH($B16&$C16,'Diesel TRU Emission Factors'!$R$6:$R$77,0))*GramsToMT,1)) ->  | Z16: =IF(OR(ISBLANK($B16),ISBLANK($C16),$R16=""),"",$R16*INDEX('Diesel TRU Emission Factors'!$G$6:$G$76,MATCH($B16&$C16,'Diesel TRU Emission Factors'!$R$6:$R$77,0))*GramsToMT) ->  | AA16: =IF(ISBLANK(F16),"",R16*GalTokWh*'Diesel TRU Emission Factors'!$P$4/1000000) ->  | AB16: =IF(ISBLANK($F16),"",ROUND(Y16*References!$B$28+Z16*References!$B$29+'General Calculator'!AA16*References!$B$30,1)) ->  | AD16: =IF(OR(ISBLANK($F16),$S16="",$T16=""),"",ROUND($S16*(1+$T16)*INDEX('eGRID2020 Subregion'!$C$7:$C$36,MATCH($F16,RegionGEN,0))*GramsToMT,4)) ->  | AE16: =IF(OR(ISBLANK($F16),$S16="",$T16=""),"",ROUND($S16*(1+$T16)*INDEX('eGRID2020 Subregion'!$D$7:$D$36,MATCH($F16,RegionGEN,0))*GramsToMT,4)) ->  | AF16: =IF(OR(ISBLANK($F16),$S16="",$T16=""),"",ROUND($S16*(1+$T16)*INDEX('eGRID2020 Subregion'!$I$7:$I$36,MATCH($F16,RegionGEN,0))*GramsToMT,4)) ->  | AG16: =IF(OR(ISBLANK($F16),$S16="",$T16=""),"",ROUND($S16*(1+$T16)*INDEX('eGRID2020 Subregion'!$E$7:$E$36,MATCH($F16,RegionGEN,0))*GramsToMT,1)) ->  | AH16: =IF(OR(ISBLANK($F16),$S16="",$T16=""),"",$S16*(1+$T16)*INDEX('eGRID2020 Subregion'!$F$7:$F$33,MATCH($F16,RegionGEN,0))*GramsToMT) ->  | AI16: =IF(OR(ISBLANK($F16),$S16="",$T16=""),"",$S16*(1+$T16)*INDEX('eGRID2020 Subregion'!$G$7:$G$33,MATCH($F16,RegionGEN,0))*GramsToMT) ->  | AJ16: =IF(ISBLANK($F16),"",ROUND(AG16*References!$B$28+AH16*References!$B$29+'General Calculator'!AI16*References!$B$30,1)) ->  | AS16: =IF(OR(W16="",AM16="",W16=0),"", AM16/W16) -> 
G17: =IF(OR(ISBLANK($B17),ISBLANK($C17)),"",INDEX('TRU Ops & Costs'!$D$4:$D$74,MATCH($B17&$C17,'TRU Ops & Costs'!$P$4:$P$74,0))/0.7457) ->  | H17: =IF(OR(ISBLANK($B17),ISBLANK($C17)),"",INDEX('TRU Ops & Costs'!$E$4:$E$74,MATCH($B17&$C17,'TRU Ops & Costs'!$P$4:$P$74,0))) ->  | I17: =IF(OR(ISBLANK($B17),ISBLANK($C17)),"",INDEX('TRU Ops & Costs'!$F$4:$F$74,MATCH($B17&$C17,'TRU Ops & Costs'!$P$4:$P$74,0))) ->  | J17: =IF(OR(ISBLANK($B17),ISBLANK($C17)),"",INDEX('TRU Ops & Costs'!$G$4:$G$74,MATCH($B17&$C17,'TRU Ops & Costs'!$P$4:$P$74,0))) ->  | L17: =IF(ISBLANK($F17),"",INDEX('Diesel Fuel Prices'!$D$5:$D$31,MATCH($F17,'Diesel Fuel Prices'!$B$5:$B$31,0))*References!$B$38/References!$B$37) ->  | M17: =IF(ISBLANK($F17),"",VLOOKUP($F17,'Electricity Prices'!$B$4:$F$32,5,FALSE)*References!$B$38/References!$B$37) ->  | N17: =IF(OR(ISBLANK($B17),ISBLANK($C17)),"",INDEX('TRU Ops & Costs'!$I$4:$I$74,MATCH($B17&$C17,'TRU Ops & Costs'!$P$4:$P$74,0))) ->  | O17: =IF(OR(ISBLANK($B17),ISBLANK($C17)),"",IF(E17="Yard",INDEX('TRU Ops & Costs'!$J$4:$J$74,MATCH($B17&$C17,'TRU Ops & Costs'!$P$4:$P$74,0)),INDEX('TRU Ops & Costs'!$K$4:$K$74,MATCH($B17&$C17,'TRU Ops & Costs'!$P$4:$P$74,0)))) ->  | P17: =IF(OR(ISBLANK($B17),ISBLANK($C17)),"",$K17*INDEX('TRU Ops & Costs'!$M$4:$M$74,MATCH($B17&$C17,'TRU Ops & Costs'!$P$4:$P$74,0))*-INDEX('TRU Ops & Costs'!$L$4:$L$74,MATCH($B17&$C17,'TRU Ops & Costs'!$P$4:$P$74,0))) ->  | T17: =IF(ISBLANK($F17),"",INDEX('eGRID2020 Subregion'!$J$7:$J$36,MATCH($F17,RegionGEN,0))) ->  | V17: =IF(OR(ISBLANK($B17),ISBLANK($C17),$R17=""),"",ROUND($R17*INDEX('Diesel TRU Emission Factors'!$D$6:$D$76,MATCH($B17&$C17,'Diesel TRU Emission Factors'!$R$6:$R$77,0))*GramsToMT,4)) ->  | W17: =IF(OR(ISBLANK($B17),ISBLANK($C17),$R17=""),"",ROUND($R17*INDEX('Diesel TRU Emission Factors'!$E$6:$E$76,MATCH($B17&$C17,'Diesel TRU Emission Factors'!$R$6:$R$77,0))*GramsToMT,4)) ->  | X17: =IF(OR(ISBLANK($B17),ISBLANK($C17),$R17=""),"",ROUND($R17*INDEX('Diesel TRU Emission Factors'!$H$6:$H$76,MATCH($B17&$C17,'Diesel TRU Emission Factors'!$R$6:$R$77,0))*GramsToMT,4)) ->  | Y17: =IF(OR(ISBLANK($B17),ISBLANK($C17),$R17=""),"",ROUND($R17*INDEX('Diesel TRU Emission Factors'!$F$6:$F$76,MATCH($B17&$C17,'Diesel TRU Emission Factors'!$R$6:$R$77,0))*GramsToMT,1)) ->  | Z17: =IF(OR(ISBLANK($B17),ISBLANK($C17),$R17=""),"",$R17*INDEX('Diesel TRU Emission Factors'!$G$6:$G$76,MATCH($B17&$C17,'Diesel TRU Emission Factors'!$R$6:$R$77,0))*GramsToMT) ->  | AA17: =IF(ISBLANK(F17),"",R17*GalTokWh*'Diesel TRU Emission Factors'!$P$4/1000000) ->  | AB17: =IF(ISBLANK($F17),"",ROUND(Y17*References!$B$28+Z17*References!$B$29+'General Calculator'!AA17*References!$B$30,1)) ->  | AD17: =IF(OR(ISBLANK($F17),$S17="",$T17=""),"",ROUND($S17*(1+$T17)*INDEX('eGRID2020 Subregion'!$C$7:$C$36,MATCH($F17,RegionGEN,0))*GramsToMT,4)) ->  | AE17: =IF(OR(ISBLANK($F17),$S17="",$T17=""),"",ROUND($S17*(1+$T17)*INDEX('eGRID2020 Subregion'!$D$7:$D$36,MATCH($F17,RegionGEN,0))*GramsToMT,4)) ->  | AF17: =IF(OR(ISBLANK($F17),$S17="",$T17=""),"",ROUND($S17*(1+$T17)*INDEX('eGRID2020 Subregion'!$I$7:$I$36,MATCH($F17,RegionGEN,0))*GramsToMT,4)) ->  | AG17: =IF(OR(ISBLANK($F17),$S17="",$T17=""),"",ROUND($S17*(1+$T17)*INDEX('eGRID2020 Subregion'!$E$7:$E$36,MATCH($F17,RegionGEN,0))*GramsToMT,1)) ->  | AH17: =IF(OR(ISBLANK($F17),$S17="",$T17=""),"",$S17*(1+$T17)*INDEX('eGRID2020 Subregion'!$F$7:$F$33,MATCH($F17,RegionGEN,0))*GramsToMT) ->  | AI17: =IF(OR(ISBLANK($F17),$S17="",$T17=""),"",$S17*(1+$T17)*INDEX('eGRID2020 Subregion'!$G$7:$G$33,MATCH($F17,RegionGEN,0))*GramsToMT) ->  | AJ17: =IF(ISBLANK($F17),"",ROUND(AG17*References!$B$28+AH17*References!$B$29+'General Calculator'!AI17*References!$B$30,1)) ->  | AS17: =IF(OR($W17="",$AM17="",$W17=0),"", $AM17/$W17) ->  | AZ17: =IF(OR($AX17="",$AY17=""),"",$AX17+$AY17) ->  | BC17: =IF(OR($R17="",$L17="",$M17="",$S17="",$T17=""),"",($R17*$L17*GalTokWh)-($S17*$M17*(1+$T17))) ->  | BD17: =IF(OR($BB17="",$BC17=""),"",$BB17+$BC17) -> 
G18: =IF(OR(ISBLANK($B18),ISBLANK($C18)),"",INDEX('TRU Ops & Costs'!$D$4:$D$74,MATCH($B18&$C18,'TRU Ops & Costs'!$P$4:$P$74,0))/0.7457) ->  | H18: =IF(OR(ISBLANK($B18),ISBLANK($C18)),"",INDEX('TRU Ops & Costs'!$E$4:$E$74,MATCH($B18&$C18,'TRU Ops & Costs'!$P$4:$P$74,0))) ->  | I18: =IF(OR(ISBLANK($B18),ISBLANK($C18)),"",INDEX('TRU Ops & Costs'!$F$4:$F$74,MATCH($B18&$C18,'TRU Ops & Costs'!$P$4:$P$74,0))) ->  | J18: =IF(OR(ISBLANK($B18),ISBLANK($C18)),"",INDEX('TRU Ops & Costs'!$G$4:$G$74,MATCH($B18&$C18,'TRU Ops & Costs'!$P$4:$P$74,0))) ->  | L18: =IF(ISBLANK($F18),"",INDEX('Diesel Fuel Prices'!$D$5:$D$31,MATCH($F18,'Diesel Fuel Prices'!$B$5:$B$31,0))*References!$B$38/References!$B$37) ->  | M18: =IF(ISBLANK($F18),"",VLOOKUP($F18,'Electricity Prices'!$B$4:$F$32,5,FALSE)*References!$B$38/References!$B$37) ->  | N18: =IF(OR(ISBLANK($B18),ISBLANK($C18)),"",INDEX('TRU Ops & Costs'!$I$4:$I$74,MATCH($B18&$C18,'TRU Ops & Costs'!$P$4:$P$74,0))) ->  | O18: =IF(OR(ISBLANK($B18),ISBLANK($C18)),"",IF(E18="Yard",INDEX('TRU Ops & Costs'!$J$4:$J$74,MATCH($B18&$C18,'TRU Ops & Costs'!$P$4:$P$74,0)),INDEX('TRU Ops & Costs'!$K$4:$K$74,MATCH($B18&$C18,'TRU Ops & Costs'!$P$4:$P$74,0)))) ->  | P18: =IF(OR(ISBLANK($B18),ISBLANK($C18)),"",$K18*INDEX('TRU Ops & Costs'!$M$4:$M$74,MATCH($B18&$C18,'TRU Ops & Costs'!$P$4:$P$74,0))*-INDEX('TRU Ops & Costs'!$L$4:$L$74,MATCH($B18&$C18,'TRU Ops & Costs'!$P$4:$P$74,0))) ->  | T18: =IF(ISBLANK($F18),"",INDEX('eGRID2020 Subregion'!$J$7:$J$36,MATCH($F18,RegionGEN,0))) ->  | V18: =IF(OR(ISBLANK($B18),ISBLANK($C18),$R18=""),"",ROUND($R18*INDEX('Diesel TRU Emission Factors'!$D$6:$D$76,MATCH($B18&$C18,'Diesel TRU Emission Factors'!$R$6:$R$77,0))*GramsToMT,4)) ->  | W18: =IF(OR(ISBLANK($B18),ISBLANK($C18),$R18=""),"",ROUND($R18*INDEX('Diesel TRU Emission Factors'!$E$6:$E$76,MATCH($B18&$C18,'Diesel TRU Emission Factors'!$R$6:$R$77,0))*GramsToMT,4)) ->  | X18: =IF(OR(ISBLANK($B18),ISBLANK($C18),$R18=""),"",ROUND($R18*INDEX('Diesel TRU Emission Factors'!$H$6:$H$76,MATCH($B18&$C18,'Diesel TRU Emission Factors'!$R$6:$R$77,0))*GramsToMT,4)) ->  | Y18: =IF(OR(ISBLANK($B18),ISBLANK($C18),$R18=""),"",ROUND($R18*INDEX('Diesel TRU Emission Factors'!$F$6:$F$76,MATCH($B18&$C18,'Diesel TRU Emission Factors'!$R$6:$R$77,0))*GramsToMT,1)) ->  | Z18: =IF(OR(ISBLANK($B18),ISBLANK($C18),$R18=""),"",$R18*INDEX('Diesel TRU Emission Factors'!$G$6:$G$76,MATCH($B18&$C18,'Diesel TRU Emission Factors'!$R$6:$R$77,0))*GramsToMT) ->  | AA18: =IF(ISBLANK(F18),"",R18*GalTokWh*'Diesel TRU Emission Factors'!$P$4/1000000) ->  | AB18: =IF(ISBLANK($F18),"",ROUND(Y18*References!$B$28+Z18*References!$B$29+'General Calculator'!AA18*References!$B$30,1)) ->  | AD18: =IF(OR(ISBLANK($F18),$S18="",$T18=""),"",ROUND($S18*(1+$T18)*INDEX('eGRID2020 Subregion'!$C$7:$C$36,MATCH($F18,RegionGEN,0))*GramsToMT,4)) ->  | AE18: =IF(OR(ISBLANK($F18),$S18="",$T18=""),"",ROUND($S18*(1+$T18)*INDEX('eGRID2020 Subregion'!$D$7:$D$36,MATCH($F18,RegionGEN,0))*GramsToMT,4)) ->  | AF18: =IF(OR(ISBLANK($F18),$S18="",$T18=""),"",ROUND($S18*(1+$T18)*INDEX('eGRID2020 Subregion'!$I$7:$I$36,MATCH($F18,RegionGEN,0))*GramsToMT,4)) ->  | AG18: =IF(OR(ISBLANK($F18),$S18="",$T18=""),"",ROUND($S18*(1+$T18)*INDEX('eGRID2020 Subregion'!$E$7:$E$36,MATCH($F18,RegionGEN,0))*GramsToMT,1)) ->  | AH18: =IF(OR(ISBLANK($F18),$S18="",$T18=""),"",$S18*(1+$T18)*INDEX('eGRID2020 Subregion'!$F$7:$F$33,MATCH($F18,RegionGEN,0))*GramsToMT) ->  | AI18: =IF(OR(ISBLANK($F18),$S18="",$T18=""),"",$S18*(1+$T18)*INDEX('eGRID2020 Subregion'!$G$7:$G$33,MATCH($F18,RegionGEN,0))*GramsToMT) ->  | AJ18: =IF(ISBLANK($F18),"",ROUND(AG18*References!$B$28+AH18*References!$B$29+'General Calculator'!AI18*References!$B$30,1)) ->  | AS18: =IF(OR(W18="",AM18="",W18=0),"", AM18/W18) -> 
G19: =IF(OR(ISBLANK($B19),ISBLANK($C19)),"",INDEX('TRU Ops & Costs'!$D$4:$D$74,MATCH($B19&$C19,'TRU Ops & Costs'!$P$4:$P$74,0))/0.7457) ->  | H19: =IF(OR(ISBLANK($B19),ISBLANK($C19)),"",INDEX('TRU Ops & Costs'!$E$4:$E$74,MATCH($B19&$C19,'TRU Ops & Costs'!$P$4:$P$74,0))) ->  | I19: =IF(OR(ISBLANK($B19),ISBLANK($C19)),"",INDEX('TRU Ops & Costs'!$F$4:$F$74,MATCH($B19&$C19,'TRU Ops & Costs'!$P$4:$P$74,0))) ->  | J19: =IF(OR(ISBLANK($B19),ISBLANK($C19)),"",INDEX('TRU Ops & Costs'!$G$4:$G$74,MATCH($B19&$C19,'TRU Ops & Costs'!$P$4:$P$74,0))) ->  | L19: =IF(ISBLANK($F19),"",INDEX('Diesel Fuel Prices'!$D$5:$D$31,MATCH($F19,'Diesel Fuel Prices'!$B$5:$B$31,0))*References!$B$38/References!$B$37) ->  | M19: =IF(ISBLANK($F19),"",VLOOKUP($F19,'Electricity Prices'!$B$4:$F$32,5,FALSE)*References!$B$38/References!$B$37) ->  | N19: =IF(OR(ISBLANK($B19),ISBLANK($C19)),"",INDEX('TRU Ops & Costs'!$I$4:$I$74,MATCH($B19&$C19,'TRU Ops & Costs'!$P$4:$P$74,0))) ->  | O19: =IF(OR(ISBLANK($B19),ISBLANK($C19)),"",IF(E19="Yard",INDEX('TRU Ops & Costs'!$J$4:$J$74,MATCH($B19&$C19,'TRU Ops & Costs'!$P$4:$P$74,0)),INDEX('TRU Ops & Costs'!$K$4:$K$74,MATCH($B19&$C19,'TRU Ops & Costs'!$P$4:$P$74,0)))) ->  | P19: =IF(OR(ISBLANK($B19),ISBLANK($C19)),"",$K19*INDEX('TRU Ops & Costs'!$M$4:$M$74,MATCH($B19&$C19,'TRU Ops & Costs'!$P$4:$P$74,0))*-INDEX('TRU Ops & Costs'!$L$4:$L$74,MATCH($B19&$C19,'TRU Ops & Costs'!$P$4:$P$74,0))) ->  | T19: =IF(ISBLANK($F19),"",INDEX('eGRID2020 Subregion'!$J$7:$J$36,MATCH($F19,RegionGEN,0))) ->  | V19: =IF(OR(ISBLANK($B19),ISBLANK($C19),$R19=""),"",ROUND($R19*INDEX('Diesel TRU Emission Factors'!$D$6:$D$76,MATCH($B19&$C19,'Diesel TRU Emission Factors'!$R$6:$R$77,0))*GramsToMT,4)) ->  | W19: =IF(OR(ISBLANK($B19),ISBLANK($C19),$R19=""),"",ROUND($R19*INDEX('Diesel TRU Emission Factors'!$E$6:$E$76,MATCH($B19&$C19,'Diesel TRU Emission Factors'!$R$6:$R$77,0))*GramsToMT,4)) ->  | X19: =IF(OR(ISBLANK($B19),ISBLANK($C19),$R19=""),"",ROUND($R19*INDEX('Diesel TRU Emission Factors'!$H$6:$H$76,MATCH($B19&$C19,'Diesel TRU Emission Factors'!$R$6:$R$77,0))*GramsToMT,4)) ->  | Y19: =IF(OR(ISBLANK($B19),ISBLANK($C19),$R19=""),"",ROUND($R19*INDEX('Diesel TRU Emission Factors'!$F$6:$F$76,MATCH($B19&$C19,'Diesel TRU Emission Factors'!$R$6:$R$77,0))*GramsToMT,1)) ->  | Z19: =IF(OR(ISBLANK($B19),ISBLANK($C19),$R19=""),"",$R19*INDEX('Diesel TRU Emission Factors'!$G$6:$G$76,MATCH($B19&$C19,'Diesel TRU Emission Factors'!$R$6:$R$77,0))*GramsToMT) ->  | AA19: =IF(ISBLANK(F19),"",R19*GalTokWh*'Diesel TRU Emission Factors'!$P$4/1000000) ->  | AB19: =IF(ISBLANK($F19),"",ROUND(Y19*References!$B$28+Z19*References!$B$29+'General Calculator'!AA19*References!$B$30,1)) ->  | AD19: =IF(OR(ISBLANK($F19),$S19="",$T19=""),"",ROUND($S19*(1+$T19)*INDEX('eGRID2020 Subregion'!$C$7:$C$36,MATCH($F19,RegionGEN,0))*GramsToMT,4)) ->  | AE19: =IF(OR(ISBLANK($F19),$S19="",$T19=""),"",ROUND($S19*(1+$T19)*INDEX('eGRID2020 Subregion'!$D$7:$D$36,MATCH($F19,RegionGEN,0))*GramsToMT,4)) ->  | AF19: =IF(OR(ISBLANK($F19),$S19="",$T19=""),"",ROUND($S19*(1+$T19)*INDEX('eGRID2020 Subregion'!$I$7:$I$36,MATCH($F19,RegionGEN,0))*GramsToMT,4)) ->  | AG19: =IF(OR(ISBLANK($F19),$S19="",$T19=""),"",ROUND($S19*(1+$T19)*INDEX('eGRID2020 Subregion'!$E$7:$E$36,MATCH($F19,RegionGEN,0))*GramsToMT,1)) ->  | AH19: =IF(OR(ISBLANK($F19),$S19="",$T19=""),"",$S19*(1+$T19)*INDEX('eGRID2020 Subregion'!$F$7:$F$33,MATCH($F19,RegionGEN,0))*GramsToMT) ->  | AI19: =IF(OR(ISBLANK($F19),$S19="",$T19=""),"",$S19*(1+$T19)*INDEX('eGRID2020 Subregion'!$G$7:$G$33,MATCH($F19,RegionGEN,0))*GramsToMT) ->  | AJ19: =IF(ISBLANK($F19),"",ROUND(AG19*References!$B$28+AH19*References!$B$29+'General Calculator'!AI19*References!$B$30,1)) ->  | AS19: =IF(OR($W19="",$AM19="",$W19=0),"", $AM19/$W19) ->  | AZ19: =IF(OR($AX19="",$AY19=""),"",$AX19+$AY19) ->  | BC19: =IF(OR($R19="",$L19="",$M19="",$S19="",$T19=""),"",($R19*$L19*GalTokWh)-($S19*$M19*(1+$T19))) ->  | BD19: =IF(OR($BB19="",$BC19=""),"",$BB19+$BC19) -> 
G20: =IF(OR(ISBLANK($B20),ISBLANK($C20)),"",INDEX('TRU Ops & Costs'!$D$4:$D$74,MATCH($B20&$C20,'TRU Ops & Costs'!$P$4:$P$74,0))/0.7457) ->  | H20: =IF(OR(ISBLANK($B20),ISBLANK($C20)),"",INDEX('TRU Ops & Costs'!$E$4:$E$74,MATCH($B20&$C20,'TRU Ops & Costs'!$P$4:$P$74,0))) ->  | I20: =IF(OR(ISBLANK($B20),ISBLANK($C20)),"",INDEX('TRU Ops & Costs'!$F$4:$F$74,MATCH($B20&$C20,'TRU Ops & Costs'!$P$4:$P$74,0))) ->  | J20: =IF(OR(ISBLANK($B20),ISBLANK($C20)),"",INDEX('TRU Ops & Costs'!$G$4:$G$74,MATCH($B20&$C20,'TRU Ops & Costs'!$P$4:$P$74,0))) ->  | L20: =IF(ISBLANK($F20),"",INDEX('Diesel Fuel Prices'!$D$5:$D$31,MATCH($F20,'Diesel Fuel Prices'!$B$5:$B$31,0))*References!$B$38/References!$B$37) ->  | M20: =IF(ISBLANK($F20),"",VLOOKUP($F20,'Electricity Prices'!$B$4:$F$32,5,FALSE)*References!$B$38/References!$B$37) ->  | N20: =IF(OR(ISBLANK($B20),ISBLANK($C20)),"",INDEX('TRU Ops & Costs'!$I$4:$I$74,MATCH($B20&$C20,'TRU Ops & Costs'!$P$4:$P$74,0))) ->  | O20: =IF(OR(ISBLANK($B20),ISBLANK($C20)),"",IF(E20="Yard",INDEX('TRU Ops & Costs'!$J$4:$J$74,MATCH($B20&$C20,'TRU Ops & Costs'!$P$4:$P$74,0)),INDEX('TRU Ops & Costs'!$K$4:$K$74,MATCH($B20&$C20,'TRU Ops & Costs'!$P$4:$P$74,0)))) ->  | P20: =IF(OR(ISBLANK($B20),ISBLANK($C20)),"",$K20*INDEX('TRU Ops & Costs'!$M$4:$M$74,MATCH($B20&$C20,'TRU Ops & Costs'!$P$4:$P$74,0))*-INDEX('TRU Ops & Costs'!$L$4:$L$74,MATCH($B20&$C20,'TRU Ops & Costs'!$P$4:$P$74,0))) ->  | T20: =IF(ISBLANK($F20),"",INDEX('eGRID2020 Subregion'!$J$7:$J$36,MATCH($F20,RegionGEN,0))) ->  | V20: =IF(OR(ISBLANK($B20),ISBLANK($C20),$R20=""),"",ROUND($R20*INDEX('Diesel TRU Emission Factors'!$D$6:$D$76,MATCH($B20&$C20,'Diesel TRU Emission Factors'!$R$6:$R$77,0))*GramsToMT,4)) ->  | W20: =IF(OR(ISBLANK($B20),ISBLANK($C20),$R20=""),"",ROUND($R20*INDEX('Diesel TRU Emission Factors'!$E$6:$E$76,MATCH($B20&$C20,'Diesel TRU Emission Factors'!$R$6:$R$77,0))*GramsToMT,4)) ->  | X20: =IF(OR(ISBLANK($B20),ISBLANK($C20),$R20=""),"",ROUND($R20*INDEX('Diesel TRU Emission Factors'!$H$6:$H$76,MATCH($B20&$C20,'Diesel TRU Emission Factors'!$R$6:$R$77,0))*GramsToMT,4)) ->  | Y20: =IF(OR(ISBLANK($B20),ISBLANK($C20),$R20=""),"",ROUND($R20*INDEX('Diesel TRU Emission Factors'!$F$6:$F$76,MATCH($B20&$C20,'Diesel TRU Emission Factors'!$R$6:$R$77,0))*GramsToMT,1)) ->  | Z20: =IF(OR(ISBLANK($B20),ISBLANK($C20),$R20=""),"",$R20*INDEX('Diesel TRU Emission Factors'!$G$6:$G$76,MATCH($B20&$C20,'Diesel TRU Emission Factors'!$R$6:$R$77,0))*GramsToMT) ->  | AA20: =IF(ISBLANK(F20),"",R20*GalTokWh*'Diesel TRU Emission Factors'!$P$4/1000000) ->  | AB20: =IF(ISBLANK($F20),"",ROUND(Y20*References!$B$28+Z20*References!$B$29+'General Calculator'!AA20*References!$B$30,1)) ->  | AD20: =IF(OR(ISBLANK($F20),$S20="",$T20=""),"",ROUND($S20*(1+$T20)*INDEX('eGRID2020 Subregion'!$C$7:$C$36,MATCH($F20,RegionGEN,0))*GramsToMT,4)) ->  | AE20: =IF(OR(ISBLANK($F20),$S20="",$T20=""),"",ROUND($S20*(1+$T20)*INDEX('eGRID2020 Subregion'!$D$7:$D$36,MATCH($F20,RegionGEN,0))*GramsToMT,4)) ->  | AF20: =IF(OR(ISBLANK($F20),$S20="",$T20=""),"",ROUND($S20*(1+$T20)*INDEX('eGRID2020 Subregion'!$I$7:$I$36,MATCH($F20,RegionGEN,0))*GramsToMT,4)) ->  | AG20: =IF(OR(ISBLANK($F20),$S20="",$T20=""),"",ROUND($S20*(1+$T20)*INDEX('eGRID2020 Subregion'!$E$7:$E$36,MATCH($F20,RegionGEN,0))*GramsToMT,1)) ->  | AH20: =IF(OR(ISBLANK($F20),$S20="",$T20=""),"",$S20*(1+$T20)*INDEX('eGRID2020 Subregion'!$F$7:$F$33,MATCH($F20,RegionGEN,0))*GramsToMT) ->  | AI20: =IF(OR(ISBLANK($F20),$S20="",$T20=""),"",$S20*(1+$T20)*INDEX('eGRID2020 Subregion'!$G$7:$G$33,MATCH($F20,RegionGEN,0))*GramsToMT) ->  | AJ20: =IF(ISBLANK($F20),"",ROUND(AG20*References!$B$28+AH20*References!$B$29+'General Calculator'!AI20*References!$B$30,1)) ->  | AS20: =IF(OR(W20="",AM20="",W20=0),"", AM20/W20) -> 
G21: =IF(OR(ISBLANK($B21),ISBLANK($C21)),"",INDEX('TRU Ops & Costs'!$D$4:$D$74,MATCH($B21&$C21,'TRU Ops & Costs'!$P$4:$P$74,0))/0.7457) ->  | H21: =IF(OR(ISBLANK($B21),ISBLANK($C21)),"",INDEX('TRU Ops & Costs'!$E$4:$E$74,MATCH($B21&$C21,'TRU Ops & Costs'!$P$4:$P$74,0))) ->  | I21: =IF(OR(ISBLANK($B21),ISBLANK($C21)),"",INDEX('TRU Ops & Costs'!$F$4:$F$74,MATCH($B21&$C21,'TRU Ops & Costs'!$P$4:$P$74,0))) ->  | J21: =IF(OR(ISBLANK($B21),ISBLANK($C21)),"",INDEX('TRU Ops & Costs'!$G$4:$G$74,MATCH($B21&$C21,'TRU Ops & Costs'!$P$4:$P$74,0))) ->  | L21: =IF(ISBLANK($F21),"",INDEX('Diesel Fuel Prices'!$D$5:$D$31,MATCH($F21,'Diesel Fuel Prices'!$B$5:$B$31,0))*References!$B$38/References!$B$37) ->  | M21: =IF(ISBLANK($F21),"",VLOOKUP($F21,'Electricity Prices'!$B$4:$F$32,5,FALSE)*References!$B$38/References!$B$37) ->  | N21: =IF(OR(ISBLANK($B21),ISBLANK($C21)),"",INDEX('TRU Ops & Costs'!$I$4:$I$74,MATCH($B21&$C21,'TRU Ops & Costs'!$P$4:$P$74,0))) ->  | O21: =IF(OR(ISBLANK($B21),ISBLANK($C21)),"",IF(E21="Yard",INDEX('TRU Ops & Costs'!$J$4:$J$74,MATCH($B21&$C21,'TRU Ops & Costs'!$P$4:$P$74,0)),INDEX('TRU Ops & Costs'!$K$4:$K$74,MATCH($B21&$C21,'TRU Ops & Costs'!$P$4:$P$74,0)))) ->  | P21: =IF(OR(ISBLANK($B21),ISBLANK($C21)),"",$K21*INDEX('TRU Ops & Costs'!$M$4:$M$74,MATCH($B21&$C21,'TRU Ops & Costs'!$P$4:$P$74,0))*-INDEX('TRU Ops & Costs'!$L$4:$L$74,MATCH($B21&$C21,'TRU Ops & Costs'!$P$4:$P$74,0))) ->  | T21: =IF(ISBLANK($F21),"",INDEX('eGRID2020 Subregion'!$J$7:$J$36,MATCH($F21,RegionGEN,0))) ->  | V21: =IF(OR(ISBLANK($B21),ISBLANK($C21),$R21=""),"",ROUND($R21*INDEX('Diesel TRU Emission Factors'!$D$6:$D$76,MATCH($B21&$C21,'Diesel TRU Emission Factors'!$R$6:$R$77,0))*GramsToMT,4)) ->  | W21: =IF(OR(ISBLANK($B21),ISBLANK($C21),$R21=""),"",ROUND($R21*INDEX('Diesel TRU Emission Factors'!$E$6:$E$76,MATCH($B21&$C21,'Diesel TRU Emission Factors'!$R$6:$R$77,0))*GramsToMT,4)) ->  | X21: =IF(OR(ISBLANK($B21),ISBLANK($C21),$R21=""),"",ROUND($R21*INDEX('Diesel TRU Emission Factors'!$H$6:$H$76,MATCH($B21&$C21,'Diesel TRU Emission Factors'!$R$6:$R$77,0))*GramsToMT,4)) ->  | Y21: =IF(OR(ISBLANK($B21),ISBLANK($C21),$R21=""),"",ROUND($R21*INDEX('Diesel TRU Emission Factors'!$F$6:$F$76,MATCH($B21&$C21,'Diesel TRU Emission Factors'!$R$6:$R$77,0))*GramsToMT,1)) ->  | Z21: =IF(OR(ISBLANK($B21),ISBLANK($C21),$R21=""),"",$R21*INDEX('Diesel TRU Emission Factors'!$G$6:$G$76,MATCH($B21&$C21,'Diesel TRU Emission Factors'!$R$6:$R$77,0))*GramsToMT) ->  | AA21: =IF(ISBLANK(F21),"",R21*GalTokWh*'Diesel TRU Emission Factors'!$P$4/1000000) ->  | AB21: =IF(ISBLANK($F21),"",ROUND(Y21*References!$B$28+Z21*References!$B$29+'General Calculator'!AA21*References!$B$30,1)) ->  | AD21: =IF(OR(ISBLANK($F21),$S21="",$T21=""),"",ROUND($S21*(1+$T21)*INDEX('eGRID2020 Subregion'!$C$7:$C$36,MATCH($F21,RegionGEN,0))*GramsToMT,4)) ->  | AE21: =IF(OR(ISBLANK($F21),$S21="",$T21=""),"",ROUND($S21*(1+$T21)*INDEX('eGRID2020 Subregion'!$D$7:$D$36,MATCH($F21,RegionGEN,0))*GramsToMT,4)) ->  | AF21: =IF(OR(ISBLANK($F21),$S21="",$T21=""),"",ROUND($S21*(1+$T21)*INDEX('eGRID2020 Subregion'!$I$7:$I$36,MATCH($F21,RegionGEN,0))*GramsToMT,4)) ->  | AG21: =IF(OR(ISBLANK($F21),$S21="",$T21=""),"",ROUND($S21*(1+$T21)*INDEX('eGRID2020 Subregion'!$E$7:$E$36,MATCH($F21,RegionGEN,0))*GramsToMT,1)) ->  | AH21: =IF(OR(ISBLANK($F21),$S21="",$T21=""),"",$S21*(1+$T21)*INDEX('eGRID2020 Subregion'!$F$7:$F$33,MATCH($F21,RegionGEN,0))*GramsToMT) ->  | AI21: =IF(OR(ISBLANK($F21),$S21="",$T21=""),"",$S21*(1+$T21)*INDEX('eGRID2020 Subregion'!$G$7:$G$33,MATCH($F21,RegionGEN,0))*GramsToMT) ->  | AJ21: =IF(ISBLANK($F21),"",ROUND(AG21*References!$B$28+AH21*References!$B$29+'General Calculator'!AI21*References!$B$30,1)) ->  | AS21: =IF(OR($W21="",$AM21="",$W21=0),"", $AM21/$W21) ->  | AZ21: =IF(OR($AX21="",$AY21=""),"",$AX21+$AY21) ->  | BC21: =IF(OR($R21="",$L21="",$M21="",$S21="",$T21=""),"",($R21*$L21*GalTokWh)-($S21*$M21*(1+$T21))) ->  | BD21: =IF(OR($BB21="",$BC21=""),"",$BB21+$BC21) -> 
G22: =IF(OR(ISBLANK($B22),ISBLANK($C22)),"",INDEX('TRU Ops & Costs'!$D$4:$D$74,MATCH($B22&$C22,'TRU Ops & Costs'!$P$4:$P$74,0))/0.7457) ->  | H22: =IF(OR(ISBLANK($B22),ISBLANK($C22)),"",INDEX('TRU Ops & Costs'!$E$4:$E$74,MATCH($B22&$C22,'TRU Ops & Costs'!$P$4:$P$74,0))) ->  | I22: =IF(OR(ISBLANK($B22),ISBLANK($C22)),"",INDEX('TRU Ops & Costs'!$F$4:$F$74,MATCH($B22&$C22,'TRU Ops & Costs'!$P$4:$P$74,0))) ->  | J22: =IF(OR(ISBLANK($B22),ISBLANK($C22)),"",INDEX('TRU Ops & Costs'!$G$4:$G$74,MATCH($B22&$C22,'TRU Ops & Costs'!$P$4:$P$74,0))) ->  | L22: =IF(ISBLANK($F22),"",INDEX('Diesel Fuel Prices'!$D$5:$D$31,MATCH($F22,'Diesel Fuel Prices'!$B$5:$B$31,0))*References!$B$38/References!$B$37) ->  | M22: =IF(ISBLANK($F22),"",VLOOKUP($F22,'Electricity Prices'!$B$4:$F$32,5,FALSE)*References!$B$38/References!$B$37) ->  | N22: =IF(OR(ISBLANK($B22),ISBLANK($C22)),"",INDEX('TRU Ops & Costs'!$I$4:$I$74,MATCH($B22&$C22,'TRU Ops & Costs'!$P$4:$P$74,0))) ->  | O22: =IF(OR(ISBLANK($B22),ISBLANK($C22)),"",IF(E22="Yard",INDEX('TRU Ops & Costs'!$J$4:$J$74,MATCH($B22&$C22,'TRU Ops & Costs'!$P$4:$P$74,0)),INDEX('TRU Ops & Costs'!$K$4:$K$74,MATCH($B22&$C22,'TRU Ops & Costs'!$P$4:$P$74,0)))) ->  | P22: =IF(OR(ISBLANK($B22),ISBLANK($C22)),"",$K22*INDEX('TRU Ops & Costs'!$M$4:$M$74,MATCH($B22&$C22,'TRU Ops & Costs'!$P$4:$P$74,0))*-INDEX('TRU Ops & Costs'!$L$4:$L$74,MATCH($B22&$C22,'TRU Ops & Costs'!$P$4:$P$74,0))) ->  | T22: =IF(ISBLANK($F22),"",INDEX('eGRID2020 Subregion'!$J$7:$J$36,MATCH($F22,RegionGEN,0))) ->  | V22: =IF(OR(ISBLANK($B22),ISBLANK($C22),$R22=""),"",ROUND($R22*INDEX('Diesel TRU Emission Factors'!$D$6:$D$76,MATCH($B22&$C22,'Diesel TRU Emission Factors'!$R$6:$R$77,0))*GramsToMT,4)) ->  | W22: =IF(OR(ISBLANK($B22),ISBLANK($C22),$R22=""),"",ROUND($R22*INDEX('Diesel TRU Emission Factors'!$E$6:$E$76,MATCH($B22&$C22,'Diesel TRU Emission Factors'!$R$6:$R$77,0))*GramsToMT,4)) ->  | X22: =IF(OR(ISBLANK($B22),ISBLANK($C22),$R22=""),"",ROUND($R22*INDEX('Diesel TRU Emission Factors'!$H$6:$H$76,MATCH($B22&$C22,'Diesel TRU Emission Factors'!$R$6:$R$77,0))*GramsToMT,4)) ->  | Y22: =IF(OR(ISBLANK($B22),ISBLANK($C22),$R22=""),"",ROUND($R22*INDEX('Diesel TRU Emission Factors'!$F$6:$F$76,MATCH($B22&$C22,'Diesel TRU Emission Factors'!$R$6:$R$77,0))*GramsToMT,1)) ->  | Z22: =IF(OR(ISBLANK($B22),ISBLANK($C22),$R22=""),"",$R22*INDEX('Diesel TRU Emission Factors'!$G$6:$G$76,MATCH($B22&$C22,'Diesel TRU Emission Factors'!$R$6:$R$77,0))*GramsToMT) ->  | AA22: =IF(ISBLANK(F22),"",R22*GalTokWh*'Diesel TRU Emission Factors'!$P$4/1000000) ->  | AB22: =IF(ISBLANK($F22),"",ROUND(Y22*References!$B$28+Z22*References!$B$29+'General Calculator'!AA22*References!$B$30,1)) ->  | AD22: =IF(OR(ISBLANK($F22),$S22="",$T22=""),"",ROUND($S22*(1+$T22)*INDEX('eGRID2020 Subregion'!$C$7:$C$36,MATCH($F22,RegionGEN,0))*GramsToMT,4)) ->  | AE22: =IF(OR(ISBLANK($F22),$S22="",$T22=""),"",ROUND($S22*(1+$T22)*INDEX('eGRID2020 Subregion'!$D$7:$D$36,MATCH($F22,RegionGEN,0))*GramsToMT,4)) ->  | AF22: =IF(OR(ISBLANK($F22),$S22="",$T22=""),"",ROUND($S22*(1+$T22)*INDEX('eGRID2020 Subregion'!$I$7:$I$36,MATCH($F22,RegionGEN,0))*GramsToMT,4)) ->  | AG22: =IF(OR(ISBLANK($F22),$S22="",$T22=""),"",ROUND($S22*(1+$T22)*INDEX('eGRID2020 Subregion'!$E$7:$E$36,MATCH($F22,RegionGEN,0))*GramsToMT,1)) ->  | AH22: =IF(OR(ISBLANK($F22),$S22="",$T22=""),"",$S22*(1+$T22)*INDEX('eGRID2020 Subregion'!$F$7:$F$33,MATCH($F22,RegionGEN,0))*GramsToMT) ->  | AI22: =IF(OR(ISBLANK($F22),$S22="",$T22=""),"",$S22*(1+$T22)*INDEX('eGRID2020 Subregion'!$G$7:$G$33,MATCH($F22,RegionGEN,0))*GramsToMT) ->  | AJ22: =IF(ISBLANK($F22),"",ROUND(AG22*References!$B$28+AH22*References!$B$29+'General Calculator'!AI22*References!$B$30,1)) ->  | AS22: =IF(OR(W22="",AM22="",W22=0),"", AM22/W22) -> 
G23: =IF(OR(ISBLANK($B23),ISBLANK($C23)),"",INDEX('TRU Ops & Costs'!$D$4:$D$74,MATCH($B23&$C23,'TRU Ops & Costs'!$P$4:$P$74,0))/0.7457) ->  | H23: =IF(OR(ISBLANK($B23),ISBLANK($C23)),"",INDEX('TRU Ops & Costs'!$E$4:$E$74,MATCH($B23&$C23,'TRU Ops & Costs'!$P$4:$P$74,0))) ->  | I23: =IF(OR(ISBLANK($B23),ISBLANK($C23)),"",INDEX('TRU Ops & Costs'!$F$4:$F$74,MATCH($B23&$C23,'TRU Ops & Costs'!$P$4:$P$74,0))) ->  | J23: =IF(OR(ISBLANK($B23),ISBLANK($C23)),"",INDEX('TRU Ops & Costs'!$G$4:$G$74,MATCH($B23&$C23,'TRU Ops & Costs'!$P$4:$P$74,0))) ->  | L23: =IF(ISBLANK($F23),"",INDEX('Diesel Fuel Prices'!$D$5:$D$31,MATCH($F23,'Diesel Fuel Prices'!$B$5:$B$31,0))*References!$B$38/References!$B$37) ->  | M23: =IF(ISBLANK($F23),"",VLOOKUP($F23,'Electricity Prices'!$B$4:$F$32,5,FALSE)*References!$B$38/References!$B$37) ->  | N23: =IF(OR(ISBLANK($B23),ISBLANK($C23)),"",INDEX('TRU Ops & Costs'!$I$4:$I$74,MATCH($B23&$C23,'TRU Ops & Costs'!$P$4:$P$74,0))) ->  | O23: =IF(OR(ISBLANK($B23),ISBLANK($C23)),"",IF(E23="Yard",INDEX('TRU Ops & Costs'!$J$4:$J$74,MATCH($B23&$C23,'TRU Ops & Costs'!$P$4:$P$74,0)),INDEX('TRU Ops & Costs'!$K$4:$K$74,MATCH($B23&$C23,'TRU Ops & Costs'!$P$4:$P$74,0)))) ->  | P23: =IF(OR(ISBLANK($B23),ISBLANK($C23)),"",$K23*INDEX('TRU Ops & Costs'!$M$4:$M$74,MATCH($B23&$C23,'TRU Ops & Costs'!$P$4:$P$74,0))*-INDEX('TRU Ops & Costs'!$L$4:$L$74,MATCH($B23&$C23,'TRU Ops & Costs'!$P$4:$P$74,0))) ->  | T23: =IF(ISBLANK($F23),"",INDEX('eGRID2020 Subregion'!$J$7:$J$36,MATCH($F23,RegionGEN,0))) ->  | V23: =IF(OR(ISBLANK($B23),ISBLANK($C23),$R23=""),"",ROUND($R23*INDEX('Diesel TRU Emission Factors'!$D$6:$D$76,MATCH($B23&$C23,'Diesel TRU Emission Factors'!$R$6:$R$77,0))*GramsToMT,4)) ->  | W23: =IF(OR(ISBLANK($B23),ISBLANK($C23),$R23=""),"",ROUND($R23*INDEX('Diesel TRU Emission Factors'!$E$6:$E$76,MATCH($B23&$C23,'Diesel TRU Emission Factors'!$R$6:$R$77,0))*GramsToMT,4)) ->  | X23: =IF(OR(ISBLANK($B23),ISBLANK($C23),$R23=""),"",ROUND($R23*INDEX('Diesel TRU Emission Factors'!$H$6:$H$76,MATCH($B23&$C23,'Diesel TRU Emission Factors'!$R$6:$R$77,0))*GramsToMT,4)) ->  | Y23: =IF(OR(ISBLANK($B23),ISBLANK($C23),$R23=""),"",ROUND($R23*INDEX('Diesel TRU Emission Factors'!$F$6:$F$76,MATCH($B23&$C23,'Diesel TRU Emission Factors'!$R$6:$R$77,0))*GramsToMT,1)) ->  | Z23: =IF(OR(ISBLANK($B23),ISBLANK($C23),$R23=""),"",$R23*INDEX('Diesel TRU Emission Factors'!$G$6:$G$76,MATCH($B23&$C23,'Diesel TRU Emission Factors'!$R$6:$R$77,0))*GramsToMT) ->  | AA23: =IF(ISBLANK(F23),"",R23*GalTokWh*'Diesel TRU Emission Factors'!$P$4/1000000) ->  | AB23: =IF(ISBLANK($F23),"",ROUND(Y23*References!$B$28+Z23*References!$B$29+'General Calculator'!AA23*References!$B$30,1)) ->  | AD23: =IF(OR(ISBLANK($F23),$S23="",$T23=""),"",ROUND($S23*(1+$T23)*INDEX('eGRID2020 Subregion'!$C$7:$C$36,MATCH($F23,RegionGEN,0))*GramsToMT,4)) ->  | AE23: =IF(OR(ISBLANK($F23),$S23="",$T23=""),"",ROUND($S23*(1+$T23)*INDEX('eGRID2020 Subregion'!$D$7:$D$36,MATCH($F23,RegionGEN,0))*GramsToMT,4)) ->  | AF23: =IF(OR(ISBLANK($F23),$S23="",$T23=""),"",ROUND($S23*(1+$T23)*INDEX('eGRID2020 Subregion'!$I$7:$I$36,MATCH($F23,RegionGEN,0))*GramsToMT,4)) ->  | AG23: =IF(OR(ISBLANK($F23),$S23="",$T23=""),"",ROUND($S23*(1+$T23)*INDEX('eGRID2020 Subregion'!$E$7:$E$36,MATCH($F23,RegionGEN,0))*GramsToMT,1)) ->  | AH23: =IF(OR(ISBLANK($F23),$S23="",$T23=""),"",$S23*(1+$T23)*INDEX('eGRID2020 Subregion'!$F$7:$F$33,MATCH($F23,RegionGEN,0))*GramsToMT) ->  | AI23: =IF(OR(ISBLANK($F23),$S23="",$T23=""),"",$S23*(1+$T23)*INDEX('eGRID2020 Subregion'!$G$7:$G$33,MATCH($F23,RegionGEN,0))*GramsToMT) ->  | AJ23: =IF(ISBLANK($F23),"",ROUND(AG23*References!$B$28+AH23*References!$B$29+'General Calculator'!AI23*References!$B$30,1)) ->  | AS23: =IF(OR($W23="",$AM23="",$W23=0),"", $AM23/$W23) ->  | AZ23: =IF(OR($AX23="",$AY23=""),"",$AX23+$AY23) ->  | BC23: =IF(OR($R23="",$L23="",$M23="",$S23="",$T23=""),"",($R23*$L23*GalTokWh)-($S23*$M23*(1+$T23))) ->  | BD23: =IF(OR($BB23="",$BC23=""),"",$BB23+$BC23) -> 
G24: =IF(OR(ISBLANK($B24),ISBLANK($C24)),"",INDEX('TRU Ops & Costs'!$D$4:$D$74,MATCH($B24&$C24,'TRU Ops & Costs'!$P$4:$P$74,0))/0.7457) ->  | H24: =IF(OR(ISBLANK($B24),ISBLANK($C24)),"",INDEX('TRU Ops & Costs'!$E$4:$E$74,MATCH($B24&$C24,'TRU Ops & Costs'!$P$4:$P$74,0))) ->  | I24: =IF(OR(ISBLANK($B24),ISBLANK($C24)),"",INDEX('TRU Ops & Costs'!$F$4:$F$74,MATCH($B24&$C24,'TRU Ops & Costs'!$P$4:$P$74,0))) ->  | J24: =IF(OR(ISBLANK($B24),ISBLANK($C24)),"",INDEX('TRU Ops & Costs'!$G$4:$G$74,MATCH($B24&$C24,'TRU Ops & Costs'!$P$4:$P$74,0))) ->  | L24: =IF(ISBLANK($F24),"",INDEX('Diesel Fuel Prices'!$D$5:$D$31,MATCH($F24,'Diesel Fuel Prices'!$B$5:$B$31,0))*References!$B$38/References!$B$37) ->  | M24: =IF(ISBLANK($F24),"",VLOOKUP($F24,'Electricity Prices'!$B$4:$F$32,5,FALSE)*References!$B$38/References!$B$37) ->  | N24: =IF(OR(ISBLANK($B24),ISBLANK($C24)),"",INDEX('TRU Ops & Costs'!$I$4:$I$74,MATCH($B24&$C24,'TRU Ops & Costs'!$P$4:$P$74,0))) ->  | O24: =IF(OR(ISBLANK($B24),ISBLANK($C24)),"",IF(E24="Yard",INDEX('TRU Ops & Costs'!$J$4:$J$74,MATCH($B24&$C24,'TRU Ops & Costs'!$P$4:$P$74,0)),INDEX('TRU Ops & Costs'!$K$4:$K$74,MATCH($B24&$C24,'TRU Ops & Costs'!$P$4:$P$74,0)))) ->  | P24: =IF(OR(ISBLANK($B24),ISBLANK($C24)),"",$K24*INDEX('TRU Ops & Costs'!$M$4:$M$74,MATCH($B24&$C24,'TRU Ops & Costs'!$P$4:$P$74,0))*-INDEX('TRU Ops & Costs'!$L$4:$L$74,MATCH($B24&$C24,'TRU Ops & Costs'!$P$4:$P$74,0))) ->  | T24: =IF(ISBLANK($F24),"",INDEX('eGRID2020 Subregion'!$J$7:$J$36,MATCH($F24,RegionGEN,0))) ->  | V24: =IF(OR(ISBLANK($B24),ISBLANK($C24),$R24=""),"",ROUND($R24*INDEX('Diesel TRU Emission Factors'!$D$6:$D$76,MATCH($B24&$C24,'Diesel TRU Emission Factors'!$R$6:$R$77,0))*GramsToMT,4)) ->  | W24: =IF(OR(ISBLANK($B24),ISBLANK($C24),$R24=""),"",ROUND($R24*INDEX('Diesel TRU Emission Factors'!$E$6:$E$76,MATCH($B24&$C24,'Diesel TRU Emission Factors'!$R$6:$R$77,0))*GramsToMT,4)) ->  | X24: =IF(OR(ISBLANK($B24),ISBLANK($C24),$R24=""),"",ROUND($R24*INDEX('Diesel TRU Emission Factors'!$H$6:$H$76,MATCH($B24&$C24,'Diesel TRU Emission Factors'!$R$6:$R$77,0))*GramsToMT,4)) ->  | Y24: =IF(OR(ISBLANK($B24),ISBLANK($C24),$R24=""),"",ROUND($R24*INDEX('Diesel TRU Emission Factors'!$F$6:$F$76,MATCH($B24&$C24,'Diesel TRU Emission Factors'!$R$6:$R$77,0))*GramsToMT,1)) ->  | Z24: =IF(OR(ISBLANK($B24),ISBLANK($C24),$R24=""),"",$R24*INDEX('Diesel TRU Emission Factors'!$G$6:$G$76,MATCH($B24&$C24,'Diesel TRU Emission Factors'!$R$6:$R$77,0))*GramsToMT) ->  | AA24: =IF(ISBLANK(F24),"",R24*GalTokWh*'Diesel TRU Emission Factors'!$P$4/1000000) ->  | AB24: =IF(ISBLANK($F24),"",ROUND(Y24*References!$B$28+Z24*References!$B$29+'General Calculator'!AA24*References!$B$30,1)) ->  | AD24: =IF(OR(ISBLANK($F24),$S24="",$T24=""),"",ROUND($S24*(1+$T24)*INDEX('eGRID2020 Subregion'!$C$7:$C$36,MATCH($F24,RegionGEN,0))*GramsToMT,4)) ->  | AE24: =IF(OR(ISBLANK($F24),$S24="",$T24=""),"",ROUND($S24*(1+$T24)*INDEX('eGRID2020 Subregion'!$D$7:$D$36,MATCH($F24,RegionGEN,0))*GramsToMT,4)) ->  | AF24: =IF(OR(ISBLANK($F24),$S24="",$T24=""),"",ROUND($S24*(1+$T24)*INDEX('eGRID2020 Subregion'!$I$7:$I$36,MATCH($F24,RegionGEN,0))*GramsToMT,4)) ->  | AG24: =IF(OR(ISBLANK($F24),$S24="",$T24=""),"",ROUND($S24*(1+$T24)*INDEX('eGRID2020 Subregion'!$E$7:$E$36,MATCH($F24,RegionGEN,0))*GramsToMT,1)) ->  | AH24: =IF(OR(ISBLANK($F24),$S24="",$T24=""),"",$S24*(1+$T24)*INDEX('eGRID2020 Subregion'!$F$7:$F$33,MATCH($F24,RegionGEN,0))*GramsToMT) ->  | AI24: =IF(OR(ISBLANK($F24),$S24="",$T24=""),"",$S24*(1+$T24)*INDEX('eGRID2020 Subregion'!$G$7:$G$33,MATCH($F24,RegionGEN,0))*GramsToMT) ->  | AJ24: =IF(ISBLANK($F24),"",ROUND(AG24*References!$B$28+AH24*References!$B$29+'General Calculator'!AI24*References!$B$30,1)) ->  | AS24: =IF(OR(W24="",AM24="",W24=0),"", AM24/W24) -> 
G25: =IF(OR(ISBLANK($B25),ISBLANK($C25)),"",INDEX('TRU Ops & Costs'!$D$4:$D$74,MATCH($B25&$C25,'TRU Ops & Costs'!$P$4:$P$74,0))/0.7457) ->  | H25: =IF(OR(ISBLANK($B25),ISBLANK($C25)),"",INDEX('TRU Ops & Costs'!$E$4:$E$74,MATCH($B25&$C25,'TRU Ops & Costs'!$P$4:$P$74,0))) ->  | I25: =IF(OR(ISBLANK($B25),ISBLANK($C25)),"",INDEX('TRU Ops & Costs'!$F$4:$F$74,MATCH($B25&$C25,'TRU Ops & Costs'!$P$4:$P$74,0))) ->  | J25: =IF(OR(ISBLANK($B25),ISBLANK($C25)),"",INDEX('TRU Ops & Costs'!$G$4:$G$74,MATCH($B25&$C25,'TRU Ops & Costs'!$P$4:$P$74,0))) ->  | L25: =IF(ISBLANK($F25),"",INDEX('Diesel Fuel Prices'!$D$5:$D$31,MATCH($F25,'Diesel Fuel Prices'!$B$5:$B$31,0))*References!$B$38/References!$B$37) ->  | M25: =IF(ISBLANK($F25),"",VLOOKUP($F25,'Electricity Prices'!$B$4:$F$32,5,FALSE)*References!$B$38/References!$B$37) ->  | N25: =IF(OR(ISBLANK($B25),ISBLANK($C25)),"",INDEX('TRU Ops & Costs'!$I$4:$I$74,MATCH($B25&$C25,'TRU Ops & Costs'!$P$4:$P$74,0))) ->  | O25: =IF(OR(ISBLANK($B25),ISBLANK($C25)),"",IF(E25="Yard",INDEX('TRU Ops & Costs'!$J$4:$J$74,MATCH($B25&$C25,'TRU Ops & Costs'!$P$4:$P$74,0)),INDEX('TRU Ops & Costs'!$K$4:$K$74,MATCH($B25&$C25,'TRU Ops & Costs'!$P$4:$P$74,0)))) ->  | P25: =IF(OR(ISBLANK($B25),ISBLANK($C25)),"",$K25*INDEX('TRU Ops & Costs'!$M$4:$M$74,MATCH($B25&$C25,'TRU Ops & Costs'!$P$4:$P$74,0))*-INDEX('TRU Ops & Costs'!$L$4:$L$74,MATCH($B25&$C25,'TRU Ops & Costs'!$P$4:$P$74,0))) ->  | T25: =IF(ISBLANK($F25),"",INDEX('eGRID2020 Subregion'!$J$7:$J$36,MATCH($F25,RegionGEN,0))) ->  | V25: =IF(OR(ISBLANK($B25),ISBLANK($C25),$R25=""),"",ROUND($R25*INDEX('Diesel TRU Emission Factors'!$D$6:$D$76,MATCH($B25&$C25,'Diesel TRU Emission Factors'!$R$6:$R$77,0))*GramsToMT,4)) ->  | W25: =IF(OR(ISBLANK($B25),ISBLANK($C25),$R25=""),"",ROUND($R25*INDEX('Diesel TRU Emission Factors'!$E$6:$E$76,MATCH($B25&$C25,'Diesel TRU Emission Factors'!$R$6:$R$77,0))*GramsToMT,4)) ->  | X25: =IF(OR(ISBLANK($B25),ISBLANK($C25),$R25=""),"",ROUND($R25*INDEX('Diesel TRU Emission Factors'!$H$6:$H$76,MATCH($B25&$C25,'Diesel TRU Emission Factors'!$R$6:$R$77,0))*GramsToMT,4)) ->  | Y25: =IF(OR(ISBLANK($B25),ISBLANK($C25),$R25=""),"",ROUND($R25*INDEX('Diesel TRU Emission Factors'!$F$6:$F$76,MATCH($B25&$C25,'Diesel TRU Emission Factors'!$R$6:$R$77,0))*GramsToMT,1)) ->  | Z25: =IF(OR(ISBLANK($B25),ISBLANK($C25),$R25=""),"",$R25*INDEX('Diesel TRU Emission Factors'!$G$6:$G$76,MATCH($B25&$C25,'Diesel TRU Emission Factors'!$R$6:$R$77,0))*GramsToMT) ->  | AA25: =IF(ISBLANK(F25),"",R25*GalTokWh*'Diesel TRU Emission Factors'!$P$4/1000000) ->  | AB25: =IF(ISBLANK($F25),"",ROUND(Y25*References!$B$28+Z25*References!$B$29+'General Calculator'!AA25*References!$B$30,1)) ->  | AD25: =IF(OR(ISBLANK($F25),$S25="",$T25=""),"",ROUND($S25*(1+$T25)*INDEX('eGRID2020 Subregion'!$C$7:$C$36,MATCH($F25,RegionGEN,0))*GramsToMT,4)) ->  | AE25: =IF(OR(ISBLANK($F25),$S25="",$T25=""),"",ROUND($S25*(1+$T25)*INDEX('eGRID2020 Subregion'!$D$7:$D$36,MATCH($F25,RegionGEN,0))*GramsToMT,4)) ->  | AF25: =IF(OR(ISBLANK($F25),$S25="",$T25=""),"",ROUND($S25*(1+$T25)*INDEX('eGRID2020 Subregion'!$I$7:$I$36,MATCH($F25,RegionGEN,0))*GramsToMT,4)) ->  | AG25: =IF(OR(ISBLANK($F25),$S25="",$T25=""),"",ROUND($S25*(1+$T25)*INDEX('eGRID2020 Subregion'!$E$7:$E$36,MATCH($F25,RegionGEN,0))*GramsToMT,1)) ->  | AH25: =IF(OR(ISBLANK($F25),$S25="",$T25=""),"",$S25*(1+$T25)*INDEX('eGRID2020 Subregion'!$F$7:$F$33,MATCH($F25,RegionGEN,0))*GramsToMT) ->  | AI25: =IF(OR(ISBLANK($F25),$S25="",$T25=""),"",$S25*(1+$T25)*INDEX('eGRID2020 Subregion'!$G$7:$G$33,MATCH($F25,RegionGEN,0))*GramsToMT) ->  | AJ25: =IF(ISBLANK($F25),"",ROUND(AG25*References!$B$28+AH25*References!$B$29+'General Calculator'!AI25*References!$B$30,1)) ->  | AS25: =IF(OR($W25="",$AM25="",$W25=0),"", $AM25/$W25) ->  | AZ25: =IF(OR($AX25="",$AY25=""),"",$AX25+$AY25) ->  | BC25: =IF(OR($R25="",$L25="",$M25="",$S25="",$T25=""),"",($R25*$L25*GalTokWh)-($S25*$M25*(1+$T25))) ->  | BD25: =IF(OR($BB25="",$BC25=""),"",$BB25+$BC25) -> 
G26: =IF(OR(ISBLANK($B26),ISBLANK($C26)),"",INDEX('TRU Ops & Costs'!$D$4:$D$74,MATCH($B26&$C26,'TRU Ops & Costs'!$P$4:$P$74,0))/0.7457) ->  | H26: =IF(OR(ISBLANK($B26),ISBLANK($C26)),"",INDEX('TRU Ops & Costs'!$E$4:$E$74,MATCH($B26&$C26,'TRU Ops & Costs'!$P$4:$P$74,0))) ->  | I26: =IF(OR(ISBLANK($B26),ISBLANK($C26)),"",INDEX('TRU Ops & Costs'!$F$4:$F$74,MATCH($B26&$C26,'TRU Ops & Costs'!$P$4:$P$74,0))) ->  | J26: =IF(OR(ISBLANK($B26),ISBLANK($C26)),"",INDEX('TRU Ops & Costs'!$G$4:$G$74,MATCH($B26&$C26,'TRU Ops & Costs'!$P$4:$P$74,0))) ->  | L26: =IF(ISBLANK($F26),"",INDEX('Diesel Fuel Prices'!$D$5:$D$31,MATCH($F26,'Diesel Fuel Prices'!$B$5:$B$31,0))*References!$B$38/References!$B$37) ->  | M26: =IF(ISBLANK($F26),"",VLOOKUP($F26,'Electricity Prices'!$B$4:$F$32,5,FALSE)*References!$B$38/References!$B$37) ->  | N26: =IF(OR(ISBLANK($B26),ISBLANK($C26)),"",INDEX('TRU Ops & Costs'!$I$4:$I$74,MATCH($B26&$C26,'TRU Ops & Costs'!$P$4:$P$74,0))) ->  | O26: =IF(OR(ISBLANK($B26),ISBLANK($C26)),"",IF(E26="Yard",INDEX('TRU Ops & Costs'!$J$4:$J$74,MATCH($B26&$C26,'TRU Ops & Costs'!$P$4:$P$74,0)),INDEX('TRU Ops & Costs'!$K$4:$K$74,MATCH($B26&$C26,'TRU Ops & Costs'!$P$4:$P$74,0)))) ->  | P26: =IF(OR(ISBLANK($B26),ISBLANK($C26)),"",$K26*INDEX('TRU Ops & Costs'!$M$4:$M$74,MATCH($B26&$C26,'TRU Ops & Costs'!$P$4:$P$74,0))*-INDEX('TRU Ops & Costs'!$L$4:$L$74,MATCH($B26&$C26,'TRU Ops & Costs'!$P$4:$P$74,0))) ->  | T26: =IF(ISBLANK($F26),"",INDEX('eGRID2020 Subregion'!$J$7:$J$36,MATCH($F26,RegionGEN,0))) ->  | V26: =IF(OR(ISBLANK($B26),ISBLANK($C26),$R26=""),"",ROUND($R26*INDEX('Diesel TRU Emission Factors'!$D$6:$D$76,MATCH($B26&$C26,'Diesel TRU Emission Factors'!$R$6:$R$77,0))*GramsToMT,4)) ->  | W26: =IF(OR(ISBLANK($B26),ISBLANK($C26),$R26=""),"",ROUND($R26*INDEX('Diesel TRU Emission Factors'!$E$6:$E$76,MATCH($B26&$C26,'Diesel TRU Emission Factors'!$R$6:$R$77,0))*GramsToMT,4)) ->  | X26: =IF(OR(ISBLANK($B26),ISBLANK($C26),$R26=""),"",ROUND($R26*INDEX('Diesel TRU Emission Factors'!$H$6:$H$76,MATCH($B26&$C26,'Diesel TRU Emission Factors'!$R$6:$R$77,0))*GramsToMT,4)) ->  | Y26: =IF(OR(ISBLANK($B26),ISBLANK($C26),$R26=""),"",ROUND($R26*INDEX('Diesel TRU Emission Factors'!$F$6:$F$76,MATCH($B26&$C26,'Diesel TRU Emission Factors'!$R$6:$R$77,0))*GramsToMT,1)) ->  | Z26: =IF(OR(ISBLANK($B26),ISBLANK($C26),$R26=""),"",$R26*INDEX('Diesel TRU Emission Factors'!$G$6:$G$76,MATCH($B26&$C26,'Diesel TRU Emission Factors'!$R$6:$R$77,0))*GramsToMT) ->  | AA26: =IF(ISBLANK(F26),"",R26*GalTokWh*'Diesel TRU Emission Factors'!$P$4/1000000) ->  | AB26: =IF(ISBLANK($F26),"",ROUND(Y26*References!$B$28+Z26*References!$B$29+'General Calculator'!AA26*References!$B$30,1)) ->  | AD26: =IF(OR(ISBLANK($F26),$S26="",$T26=""),"",ROUND($S26*(1+$T26)*INDEX('eGRID2020 Subregion'!$C$7:$C$36,MATCH($F26,RegionGEN,0))*GramsToMT,4)) ->  | AE26: =IF(OR(ISBLANK($F26),$S26="",$T26=""),"",ROUND($S26*(1+$T26)*INDEX('eGRID2020 Subregion'!$D$7:$D$36,MATCH($F26,RegionGEN,0))*GramsToMT,4)) ->  | AF26: =IF(OR(ISBLANK($F26),$S26="",$T26=""),"",ROUND($S26*(1+$T26)*INDEX('eGRID2020 Subregion'!$I$7:$I$36,MATCH($F26,RegionGEN,0))*GramsToMT,4)) ->  | AG26: =IF(OR(ISBLANK($F26),$S26="",$T26=""),"",ROUND($S26*(1+$T26)*INDEX('eGRID2020 Subregion'!$E$7:$E$36,MATCH($F26,RegionGEN,0))*GramsToMT,1)) ->  | AH26: =IF(OR(ISBLANK($F26),$S26="",$T26=""),"",$S26*(1+$T26)*INDEX('eGRID2020 Subregion'!$F$7:$F$33,MATCH($F26,RegionGEN,0))*GramsToMT) ->  | AI26: =IF(OR(ISBLANK($F26),$S26="",$T26=""),"",$S26*(1+$T26)*INDEX('eGRID2020 Subregion'!$G$7:$G$33,MATCH($F26,RegionGEN,0))*GramsToMT) ->  | AJ26: =IF(ISBLANK($F26),"",ROUND(AG26*References!$B$28+AH26*References!$B$29+'General Calculator'!AI26*References!$B$30,1)) ->  | AS26: =IF(OR(W26="",AM26="",W26=0),"", AM26/W26) -> 
G27: =IF(OR(ISBLANK($B27),ISBLANK($C27)),"",INDEX('TRU Ops & Costs'!$D$4:$D$74,MATCH($B27&$C27,'TRU Ops & Costs'!$P$4:$P$74,0))/0.7457) ->  | H27: =IF(OR(ISBLANK($B27),ISBLANK($C27)),"",INDEX('TRU Ops & Costs'!$E$4:$E$74,MATCH($B27&$C27,'TRU Ops & Costs'!$P$4:$P$74,0))) ->  | I27: =IF(OR(ISBLANK($B27),ISBLANK($C27)),"",INDEX('TRU Ops & Costs'!$F$4:$F$74,MATCH($B27&$C27,'TRU Ops & Costs'!$P$4:$P$74,0))) ->  | J27: =IF(OR(ISBLANK($B27),ISBLANK($C27)),"",INDEX('TRU Ops & Costs'!$G$4:$G$74,MATCH($B27&$C27,'TRU Ops & Costs'!$P$4:$P$74,0))) ->  | L27: =IF(ISBLANK($F27),"",INDEX('Diesel Fuel Prices'!$D$5:$D$31,MATCH($F27,'Diesel Fuel Prices'!$B$5:$B$31,0))*References!$B$38/References!$B$37) ->  | M27: =IF(ISBLANK($F27),"",VLOOKUP($F27,'Electricity Prices'!$B$4:$F$32,5,FALSE)*References!$B$38/References!$B$37) ->  | N27: =IF(OR(ISBLANK($B27),ISBLANK($C27)),"",INDEX('TRU Ops & Costs'!$I$4:$I$74,MATCH($B27&$C27,'TRU Ops & Costs'!$P$4:$P$74,0))) ->  | O27: =IF(OR(ISBLANK($B27),ISBLANK($C27)),"",IF(E27="Yard",INDEX('TRU Ops & Costs'!$J$4:$J$74,MATCH($B27&$C27,'TRU Ops & Costs'!$P$4:$P$74,0)),INDEX('TRU Ops & Costs'!$K$4:$K$74,MATCH($B27&$C27,'TRU Ops & Costs'!$P$4:$P$74,0)))) ->  | P27: =IF(OR(ISBLANK($B27),ISBLANK($C27)),"",$K27*INDEX('TRU Ops & Costs'!$M$4:$M$74,MATCH($B27&$C27,'TRU Ops & Costs'!$P$4:$P$74,0))*-INDEX('TRU Ops & Costs'!$L$4:$L$74,MATCH($B27&$C27,'TRU Ops & Costs'!$P$4:$P$74,0))) ->  | T27: =IF(ISBLANK($F27),"",INDEX('eGRID2020 Subregion'!$J$7:$J$36,MATCH($F27,RegionGEN,0))) ->  | V27: =IF(OR(ISBLANK($B27),ISBLANK($C27),$R27=""),"",ROUND($R27*INDEX('Diesel TRU Emission Factors'!$D$6:$D$76,MATCH($B27&$C27,'Diesel TRU Emission Factors'!$R$6:$R$77,0))*GramsToMT,4)) ->  | W27: =IF(OR(ISBLANK($B27),ISBLANK($C27),$R27=""),"",ROUND($R27*INDEX('Diesel TRU Emission Factors'!$E$6:$E$76,MATCH($B27&$C27,'Diesel TRU Emission Factors'!$R$6:$R$77,0))*GramsToMT,4)) ->  | X27: =IF(OR(ISBLANK($B27),ISBLANK($C27),$R27=""),"",ROUND($R27*INDEX('Diesel TRU Emission Factors'!$H$6:$H$76,MATCH($B27&$C27,'Diesel TRU Emission Factors'!$R$6:$R$77,0))*GramsToMT,4)) ->  | Y27: =IF(OR(ISBLANK($B27),ISBLANK($C27),$R27=""),"",ROUND($R27*INDEX('Diesel TRU Emission Factors'!$F$6:$F$76,MATCH($B27&$C27,'Diesel TRU Emission Factors'!$R$6:$R$77,0))*GramsToMT,1)) ->  | Z27: =IF(OR(ISBLANK($B27),ISBLANK($C27),$R27=""),"",$R27*INDEX('Diesel TRU Emission Factors'!$G$6:$G$76,MATCH($B27&$C27,'Diesel TRU Emission Factors'!$R$6:$R$77,0))*GramsToMT) ->  | AA27: =IF(ISBLANK(F27),"",R27*GalTokWh*'Diesel TRU Emission Factors'!$P$4/1000000) ->  | AB27: =IF(ISBLANK($F27),"",ROUND(Y27*References!$B$28+Z27*References!$B$29+'General Calculator'!AA27*References!$B$30,1)) ->  | AD27: =IF(OR(ISBLANK($F27),$S27="",$T27=""),"",ROUND($S27*(1+$T27)*INDEX('eGRID2020 Subregion'!$C$7:$C$36,MATCH($F27,RegionGEN,0))*GramsToMT,4)) ->  | AE27: =IF(OR(ISBLANK($F27),$S27="",$T27=""),"",ROUND($S27*(1+$T27)*INDEX('eGRID2020 Subregion'!$D$7:$D$36,MATCH($F27,RegionGEN,0))*GramsToMT,4)) ->  | AF27: =IF(OR(ISBLANK($F27),$S27="",$T27=""),"",ROUND($S27*(1+$T27)*INDEX('eGRID2020 Subregion'!$I$7:$I$36,MATCH($F27,RegionGEN,0))*GramsToMT,4)) ->  | AG27: =IF(OR(ISBLANK($F27),$S27="",$T27=""),"",ROUND($S27*(1+$T27)*INDEX('eGRID2020 Subregion'!$E$7:$E$36,MATCH($F27,RegionGEN,0))*GramsToMT,1)) ->  | AH27: =IF(OR(ISBLANK($F27),$S27="",$T27=""),"",$S27*(1+$T27)*INDEX('eGRID2020 Subregion'!$F$7:$F$33,MATCH($F27,RegionGEN,0))*GramsToMT) ->  | AI27: =IF(OR(ISBLANK($F27),$S27="",$T27=""),"",$S27*(1+$T27)*INDEX('eGRID2020 Subregion'!$G$7:$G$33,MATCH($F27,RegionGEN,0))*GramsToMT) ->  | AJ27: =IF(ISBLANK($F27),"",ROUND(AG27*References!$B$28+AH27*References!$B$29+'General Calculator'!AI27*References!$B$30,1)) ->  | AS27: =IF(OR($W27="",$AM27="",$W27=0),"", $AM27/$W27) ->  | AZ27: =IF(OR($AX27="",$AY27=""),"",$AX27+$AY27) ->  | BC27: =IF(OR($R27="",$L27="",$M27="",$S27="",$T27=""),"",($R27*$L27*GalTokWh)-($S27*$M27*(1+$T27))) ->  | BD27: =IF(OR($BB27="",$BC27=""),"",$BB27+$BC27) -> 
G28: =IF(OR(ISBLANK($B28),ISBLANK($C28)),"",INDEX('TRU Ops & Costs'!$D$4:$D$74,MATCH($B28&$C28,'TRU Ops & Costs'!$P$4:$P$74,0))/0.7457) ->  | H28: =IF(OR(ISBLANK($B28),ISBLANK($C28)),"",INDEX('TRU Ops & Costs'!$E$4:$E$74,MATCH($B28&$C28,'TRU Ops & Costs'!$P$4:$P$74,0))) ->  | I28: =IF(OR(ISBLANK($B28),ISBLANK($C28)),"",INDEX('TRU Ops & Costs'!$F$4:$F$74,MATCH($B28&$C28,'TRU Ops & Costs'!$P$4:$P$74,0))) ->  | J28: =IF(OR(ISBLANK($B28),ISBLANK($C28)),"",INDEX('TRU Ops & Costs'!$G$4:$G$74,MATCH($B28&$C28,'TRU Ops & Costs'!$P$4:$P$74,0))) ->  | L28: =IF(ISBLANK($F28),"",INDEX('Diesel Fuel Prices'!$D$5:$D$31,MATCH($F28,'Diesel Fuel Prices'!$B$5:$B$31,0))*References!$B$38/References!$B$37) ->  | M28: =IF(ISBLANK($F28),"",VLOOKUP($F28,'Electricity Prices'!$B$4:$F$32,5,FALSE)*References!$B$38/References!$B$37) ->  | N28: =IF(OR(ISBLANK($B28),ISBLANK($C28)),"",INDEX('TRU Ops & Costs'!$I$4:$I$74,MATCH($B28&$C28,'TRU Ops & Costs'!$P$4:$P$74,0))) ->  | O28: =IF(OR(ISBLANK($B28),ISBLANK($C28)),"",IF(E28="Yard",INDEX('TRU Ops & Costs'!$J$4:$J$74,MATCH($B28&$C28,'TRU Ops & Costs'!$P$4:$P$74,0)),INDEX('TRU Ops & Costs'!$K$4:$K$74,MATCH($B28&$C28,'TRU Ops & Costs'!$P$4:$P$74,0)))) ->  | P28: =IF(OR(ISBLANK($B28),ISBLANK($C28)),"",$K28*INDEX('TRU Ops & Costs'!$M$4:$M$74,MATCH($B28&$C28,'TRU Ops & Costs'!$P$4:$P$74,0))*-INDEX('TRU Ops & Costs'!$L$4:$L$74,MATCH($B28&$C28,'TRU Ops & Costs'!$P$4:$P$74,0))) ->  | T28: =IF(ISBLANK($F28),"",INDEX('eGRID2020 Subregion'!$J$7:$J$36,MATCH($F28,RegionGEN,0))) ->  | V28: =IF(OR(ISBLANK($B28),ISBLANK($C28),$R28=""),"",ROUND($R28*INDEX('Diesel TRU Emission Factors'!$D$6:$D$76,MATCH($B28&$C28,'Diesel TRU Emission Factors'!$R$6:$R$77,0))*GramsToMT,4)) ->  | W28: =IF(OR(ISBLANK($B28),ISBLANK($C28),$R28=""),"",ROUND($R28*INDEX('Diesel TRU Emission Factors'!$E$6:$E$76,MATCH($B28&$C28,'Diesel TRU Emission Factors'!$R$6:$R$77,0))*GramsToMT,4)) ->  | X28: =IF(OR(ISBLANK($B28),ISBLANK($C28),$R28=""),"",ROUND($R28*INDEX('Diesel TRU Emission Factors'!$H$6:$H$76,MATCH($B28&$C28,'Diesel TRU Emission Factors'!$R$6:$R$77,0))*GramsToMT,4)) ->  | Y28: =IF(OR(ISBLANK($B28),ISBLANK($C28),$R28=""),"",ROUND($R28*INDEX('Diesel TRU Emission Factors'!$F$6:$F$76,MATCH($B28&$C28,'Diesel TRU Emission Factors'!$R$6:$R$77,0))*GramsToMT,1)) ->  | Z28: =IF(OR(ISBLANK($B28),ISBLANK($C28),$R28=""),"",$R28*INDEX('Diesel TRU Emission Factors'!$G$6:$G$76,MATCH($B28&$C28,'Diesel TRU Emission Factors'!$R$6:$R$77,0))*GramsToMT) ->  | AA28: =IF(ISBLANK(F28),"",R28*GalTokWh*'Diesel TRU Emission Factors'!$P$4/1000000) ->  | AB28: =IF(ISBLANK($F28),"",ROUND(Y28*References!$B$28+Z28*References!$B$29+'General Calculator'!AA28*References!$B$30,1)) ->  | AD28: =IF(OR(ISBLANK($F28),$S28="",$T28=""),"",ROUND($S28*(1+$T28)*INDEX('eGRID2020 Subregion'!$C$7:$C$36,MATCH($F28,RegionGEN,0))*GramsToMT,4)) ->  | AE28: =IF(OR(ISBLANK($F28),$S28="",$T28=""),"",ROUND($S28*(1+$T28)*INDEX('eGRID2020 Subregion'!$D$7:$D$36,MATCH($F28,RegionGEN,0))*GramsToMT,4)) ->  | AF28: =IF(OR(ISBLANK($F28),$S28="",$T28=""),"",ROUND($S28*(1+$T28)*INDEX('eGRID2020 Subregion'!$I$7:$I$36,MATCH($F28,RegionGEN,0))*GramsToMT,4)) ->  | AG28: =IF(OR(ISBLANK($F28),$S28="",$T28=""),"",ROUND($S28*(1+$T28)*INDEX('eGRID2020 Subregion'!$E$7:$E$36,MATCH($F28,RegionGEN,0))*GramsToMT,1)) ->  | AH28: =IF(OR(ISBLANK($F28),$S28="",$T28=""),"",$S28*(1+$T28)*INDEX('eGRID2020 Subregion'!$F$7:$F$33,MATCH($F28,RegionGEN,0))*GramsToMT) ->  | AI28: =IF(OR(ISBLANK($F28),$S28="",$T28=""),"",$S28*(1+$T28)*INDEX('eGRID2020 Subregion'!$G$7:$G$33,MATCH($F28,RegionGEN,0))*GramsToMT) ->  | AJ28: =IF(ISBLANK($F28),"",ROUND(AG28*References!$B$28+AH28*References!$B$29+'General Calculator'!AI28*References!$B$30,1)) ->  | AS28: =IF(OR(W28="",AM28="",W28=0),"", AM28/W28) -> 
G29: =IF(OR(ISBLANK($B29),ISBLANK($C29)),"",INDEX('TRU Ops & Costs'!$D$4:$D$74,MATCH($B29&$C29,'TRU Ops & Costs'!$P$4:$P$74,0))/0.7457) ->  | H29: =IF(OR(ISBLANK($B29),ISBLANK($C29)),"",INDEX('TRU Ops & Costs'!$E$4:$E$74,MATCH($B29&$C29,'TRU Ops & Costs'!$P$4:$P$74,0))) ->  | I29: =IF(OR(ISBLANK($B29),ISBLANK($C29)),"",INDEX('TRU Ops & Costs'!$F$4:$F$74,MATCH($B29&$C29,'TRU Ops & Costs'!$P$4:$P$74,0))) ->  | J29: =IF(OR(ISBLANK($B29),ISBLANK($C29)),"",INDEX('TRU Ops & Costs'!$G$4:$G$74,MATCH($B29&$C29,'TRU Ops & Costs'!$P$4:$P$74,0))) ->  | L29: =IF(ISBLANK($F29),"",INDEX('Diesel Fuel Prices'!$D$5:$D$31,MATCH($F29,'Diesel Fuel Prices'!$B$5:$B$31,0))*References!$B$38/References!$B$37) ->  | M29: =IF(ISBLANK($F29),"",VLOOKUP($F29,'Electricity Prices'!$B$4:$F$32,5,FALSE)*References!$B$38/References!$B$37) ->  | N29: =IF(OR(ISBLANK($B29),ISBLANK($C29)),"",INDEX('TRU Ops & Costs'!$I$4:$I$74,MATCH($B29&$C29,'TRU Ops & Costs'!$P$4:$P$74,0))) ->  | O29: =IF(OR(ISBLANK($B29),ISBLANK($C29)),"",IF(E29="Yard",INDEX('TRU Ops & Costs'!$J$4:$J$74,MATCH($B29&$C29,'TRU Ops & Costs'!$P$4:$P$74,0)),INDEX('TRU Ops & Costs'!$K$4:$K$74,MATCH($B29&$C29,'TRU Ops & Costs'!$P$4:$P$74,0)))) ->  | P29: =IF(OR(ISBLANK($B29),ISBLANK($C29)),"",$K29*INDEX('TRU Ops & Costs'!$M$4:$M$74,MATCH($B29&$C29,'TRU Ops & Costs'!$P$4:$P$74,0))*-INDEX('TRU Ops & Costs'!$L$4:$L$74,MATCH($B29&$C29,'TRU Ops & Costs'!$P$4:$P$74,0))) ->  | T29: =IF(ISBLANK($F29),"",INDEX('eGRID2020 Subregion'!$J$7:$J$36,MATCH($F29,RegionGEN,0))) ->  | V29: =IF(OR(ISBLANK($B29),ISBLANK($C29),$R29=""),"",ROUND($R29*INDEX('Diesel TRU Emission Factors'!$D$6:$D$76,MATCH($B29&$C29,'Diesel TRU Emission Factors'!$R$6:$R$77,0))*GramsToMT,4)) ->  | W29: =IF(OR(ISBLANK($B29),ISBLANK($C29),$R29=""),"",ROUND($R29*INDEX('Diesel TRU Emission Factors'!$E$6:$E$76,MATCH($B29&$C29,'Diesel TRU Emission Factors'!$R$6:$R$77,0))*GramsToMT,4)) ->  | X29: =IF(OR(ISBLANK($B29),ISBLANK($C29),$R29=""),"",ROUND($R29*INDEX('Diesel TRU Emission Factors'!$H$6:$H$76,MATCH($B29&$C29,'Diesel TRU Emission Factors'!$R$6:$R$77,0))*GramsToMT,4)) ->  | Y29: =IF(OR(ISBLANK($B29),ISBLANK($C29),$R29=""),"",ROUND($R29*INDEX('Diesel TRU Emission Factors'!$F$6:$F$76,MATCH($B29&$C29,'Diesel TRU Emission Factors'!$R$6:$R$77,0))*GramsToMT,1)) ->  | Z29: =IF(OR(ISBLANK($B29),ISBLANK($C29),$R29=""),"",$R29*INDEX('Diesel TRU Emission Factors'!$G$6:$G$76,MATCH($B29&$C29,'Diesel TRU Emission Factors'!$R$6:$R$77,0))*GramsToMT) ->  | AA29: =IF(ISBLANK(F29),"",R29*GalTokWh*'Diesel TRU Emission Factors'!$P$4/1000000) ->  | AB29: =IF(ISBLANK($F29),"",ROUND(Y29*References!$B$28+Z29*References!$B$29+'General Calculator'!AA29*References!$B$30,1)) ->  | AD29: =IF(OR(ISBLANK($F29),$S29="",$T29=""),"",ROUND($S29*(1+$T29)*INDEX('eGRID2020 Subregion'!$C$7:$C$36,MATCH($F29,RegionGEN,0))*GramsToMT,4)) ->  | AE29: =IF(OR(ISBLANK($F29),$S29="",$T29=""),"",ROUND($S29*(1+$T29)*INDEX('eGRID2020 Subregion'!$D$7:$D$36,MATCH($F29,RegionGEN,0))*GramsToMT,4)) ->  | AF29: =IF(OR(ISBLANK($F29),$S29="",$T29=""),"",ROUND($S29*(1+$T29)*INDEX('eGRID2020 Subregion'!$I$7:$I$36,MATCH($F29,RegionGEN,0))*GramsToMT,4)) ->  | AG29: =IF(OR(ISBLANK($F29),$S29="",$T29=""),"",ROUND($S29*(1+$T29)*INDEX('eGRID2020 Subregion'!$E$7:$E$36,MATCH($F29,RegionGEN,0))*GramsToMT,1)) ->  | AH29: =IF(OR(ISBLANK($F29),$S29="",$T29=""),"",$S29*(1+$T29)*INDEX('eGRID2020 Subregion'!$F$7:$F$33,MATCH($F29,RegionGEN,0))*GramsToMT) ->  | AI29: =IF(OR(ISBLANK($F29),$S29="",$T29=""),"",$S29*(1+$T29)*INDEX('eGRID2020 Subregion'!$G$7:$G$33,MATCH($F29,RegionGEN,0))*GramsToMT) ->  | AJ29: =IF(ISBLANK($F29),"",ROUND(AG29*References!$B$28+AH29*References!$B$29+'General Calculator'!AI29*References!$B$30,1)) ->  | AS29: =IF(OR($W29="",$AM29="",$W29=0),"", $AM29/$W29) ->  | AZ29: =IF(OR($AX29="",$AY29=""),"",$AX29+$AY29) ->  | BC29: =IF(OR($R29="",$L29="",$M29="",$S29="",$T29=""),"",($R29*$L29*GalTokWh)-($S29*$M29*(1+$T29))) ->  | BD29: =IF(OR($BB29="",$BC29=""),"",$BB29+$BC29) -> 
G30: =IF(OR(ISBLANK($B30),ISBLANK($C30)),"",INDEX('TRU Ops & Costs'!$D$4:$D$74,MATCH($B30&$C30,'TRU Ops & Costs'!$P$4:$P$74,0))/0.7457) ->  | H30: =IF(OR(ISBLANK($B30),ISBLANK($C30)),"",INDEX('TRU Ops & Costs'!$E$4:$E$74,MATCH($B30&$C30,'TRU Ops & Costs'!$P$4:$P$74,0))) ->  | I30: =IF(OR(ISBLANK($B30),ISBLANK($C30)),"",INDEX('TRU Ops & Costs'!$F$4:$F$74,MATCH($B30&$C30,'TRU Ops & Costs'!$P$4:$P$74,0))) ->  | J30: =IF(OR(ISBLANK($B30),ISBLANK($C30)),"",INDEX('TRU Ops & Costs'!$G$4:$G$74,MATCH($B30&$C30,'TRU Ops & Costs'!$P$4:$P$74,0))) ->  | L30: =IF(ISBLANK($F30),"",INDEX('Diesel Fuel Prices'!$D$5:$D$31,MATCH($F30,'Diesel Fuel Prices'!$B$5:$B$31,0))*References!$B$38/References!$B$37) ->  | M30: =IF(ISBLANK($F30),"",VLOOKUP($F30,'Electricity Prices'!$B$4:$F$32,5,FALSE)*References!$B$38/References!$B$37) ->  | N30: =IF(OR(ISBLANK($B30),ISBLANK($C30)),"",INDEX('TRU Ops & Costs'!$I$4:$I$74,MATCH($B30&$C30,'TRU Ops & Costs'!$P$4:$P$74,0))) ->  | O30: =IF(OR(ISBLANK($B30),ISBLANK($C30)),"",IF(E30="Yard",INDEX('TRU Ops & Costs'!$J$4:$J$74,MATCH($B30&$C30,'TRU Ops & Costs'!$P$4:$P$74,0)),INDEX('TRU Ops & Costs'!$K$4:$K$74,MATCH($B30&$C30,'TRU Ops & Costs'!$P$4:$P$74,0)))) ->  | P30: =IF(OR(ISBLANK($B30),ISBLANK($C30)),"",$K30*INDEX('TRU Ops & Costs'!$M$4:$M$74,MATCH($B30&$C30,'TRU Ops & Costs'!$P$4:$P$74,0))*-INDEX('TRU Ops & Costs'!$L$4:$L$74,MATCH($B30&$C30,'TRU Ops & Costs'!$P$4:$P$74,0))) ->  | T30: =IF(ISBLANK($F30),"",INDEX('eGRID2020 Subregion'!$J$7:$J$36,MATCH($F30,RegionGEN,0))) ->  | V30: =IF(OR(ISBLANK($B30),ISBLANK($C30),$R30=""),"",ROUND($R30*INDEX('Diesel TRU Emission Factors'!$D$6:$D$76,MATCH($B30&$C30,'Diesel TRU Emission Factors'!$R$6:$R$77,0))*GramsToMT,4)) ->  | W30: =IF(OR(ISBLANK($B30),ISBLANK($C30),$R30=""),"",ROUND($R30*INDEX('Diesel TRU Emission Factors'!$E$6:$E$76,MATCH($B30&$C30,'Diesel TRU Emission Factors'!$R$6:$R$77,0))*GramsToMT,4)) ->  | X30: =IF(OR(ISBLANK($B30),ISBLANK($C30),$R30=""),"",ROUND($R30*INDEX('Diesel TRU Emission Factors'!$H$6:$H$76,MATCH($B30&$C30,'Diesel TRU Emission Factors'!$R$6:$R$77,0))*GramsToMT,4)) ->  | Y30: =IF(OR(ISBLANK($B30),ISBLANK($C30),$R30=""),"",ROUND($R30*INDEX('Diesel TRU Emission Factors'!$F$6:$F$76,MATCH($B30&$C30,'Diesel TRU Emission Factors'!$R$6:$R$77,0))*GramsToMT,1)) ->  | Z30: =IF(OR(ISBLANK($B30),ISBLANK($C30),$R30=""),"",$R30*INDEX('Diesel TRU Emission Factors'!$G$6:$G$76,MATCH($B30&$C30,'Diesel TRU Emission Factors'!$R$6:$R$77,0))*GramsToMT) ->  | AA30: =IF(ISBLANK(F30),"",R30*GalTokWh*'Diesel TRU Emission Factors'!$P$4/1000000) ->  | AB30: =IF(ISBLANK($F30),"",ROUND(Y30*References!$B$28+Z30*References!$B$29+'General Calculator'!AA30*References!$B$30,1)) ->  | AD30: =IF(OR(ISBLANK($F30),$S30="",$T30=""),"",ROUND($S30*(1+$T30)*INDEX('eGRID2020 Subregion'!$C$7:$C$36,MATCH($F30,RegionGEN,0))*GramsToMT,4)) ->  | AE30: =IF(OR(ISBLANK($F30),$S30="",$T30=""),"",ROUND($S30*(1+$T30)*INDEX('eGRID2020 Subregion'!$D$7:$D$36,MATCH($F30,RegionGEN,0))*GramsToMT,4)) ->  | AF30: =IF(OR(ISBLANK($F30),$S30="",$T30=""),"",ROUND($S30*(1+$T30)*INDEX('eGRID2020 Subregion'!$I$7:$I$36,MATCH($F30,RegionGEN,0))*GramsToMT,4)) ->  | AG30: =IF(OR(ISBLANK($F30),$S30="",$T30=""),"",ROUND($S30*(1+$T30)*INDEX('eGRID2020 Subregion'!$E$7:$E$36,MATCH($F30,RegionGEN,0))*GramsToMT,1)) ->  | AH30: =IF(OR(ISBLANK($F30),$S30="",$T30=""),"",$S30*(1+$T30)*INDEX('eGRID2020 Subregion'!$F$7:$F$33,MATCH($F30,RegionGEN,0))*GramsToMT) ->  | AI30: =IF(OR(ISBLANK($F30),$S30="",$T30=""),"",$S30*(1+$T30)*INDEX('eGRID2020 Subregion'!$G$7:$G$33,MATCH($F30,RegionGEN,0))*GramsToMT) ->  | AJ30: =IF(ISBLANK($F30),"",ROUND(AG30*References!$B$28+AH30*References!$B$29+'General Calculator'!AI30*References!$B$30,1)) ->  | AS30: =IF(OR(W30="",AM30="",W30=0),"", AM30/W30) -> 
G31: =IF(OR(ISBLANK($B31),ISBLANK($C31)),"",INDEX('TRU Ops & Costs'!$D$4:$D$74,MATCH($B31&$C31,'TRU Ops & Costs'!$P$4:$P$74,0))/0.7457) ->  | H31: =IF(OR(ISBLANK($B31),ISBLANK($C31)),"",INDEX('TRU Ops & Costs'!$E$4:$E$74,MATCH($B31&$C31,'TRU Ops & Costs'!$P$4:$P$74,0))) ->  | I31: =IF(OR(ISBLANK($B31),ISBLANK($C31)),"",INDEX('TRU Ops & Costs'!$F$4:$F$74,MATCH($B31&$C31,'TRU Ops & Costs'!$P$4:$P$74,0))) ->  | J31: =IF(OR(ISBLANK($B31),ISBLANK($C31)),"",INDEX('TRU Ops & Costs'!$G$4:$G$74,MATCH($B31&$C31,'TRU Ops & Costs'!$P$4:$P$74,0))) ->  | L31: =IF(ISBLANK($F31),"",INDEX('Diesel Fuel Prices'!$D$5:$D$31,MATCH($F31,'Diesel Fuel Prices'!$B$5:$B$31,0))*References!$B$38/References!$B$37) ->  | M31: =IF(ISBLANK($F31),"",VLOOKUP($F31,'Electricity Prices'!$B$4:$F$32,5,FALSE)*References!$B$38/References!$B$37) ->  | N31: =IF(OR(ISBLANK($B31),ISBLANK($C31)),"",INDEX('TRU Ops & Costs'!$I$4:$I$74,MATCH($B31&$C31,'TRU Ops & Costs'!$P$4:$P$74,0))) ->  | O31: =IF(OR(ISBLANK($B31),ISBLANK($C31)),"",IF(E31="Yard",INDEX('TRU Ops & Costs'!$J$4:$J$74,MATCH($B31&$C31,'TRU Ops & Costs'!$P$4:$P$74,0)),INDEX('TRU Ops & Costs'!$K$4:$K$74,MATCH($B31&$C31,'TRU Ops & Costs'!$P$4:$P$74,0)))) ->  | P31: =IF(OR(ISBLANK($B31),ISBLANK($C31)),"",$K31*INDEX('TRU Ops & Costs'!$M$4:$M$74,MATCH($B31&$C31,'TRU Ops & Costs'!$P$4:$P$74,0))*-INDEX('TRU Ops & Costs'!$L$4:$L$74,MATCH($B31&$C31,'TRU Ops & Costs'!$P$4:$P$74,0))) ->  | T31: =IF(ISBLANK($F31),"",INDEX('eGRID2020 Subregion'!$J$7:$J$36,MATCH($F31,RegionGEN,0))) ->  | V31: =IF(OR(ISBLANK($B31),ISBLANK($C31),$R31=""),"",ROUND($R31*INDEX('Diesel TRU Emission Factors'!$D$6:$D$76,MATCH($B31&$C31,'Diesel TRU Emission Factors'!$R$6:$R$77,0))*GramsToMT,4)) ->  | W31: =IF(OR(ISBLANK($B31),ISBLANK($C31),$R31=""),"",ROUND($R31*INDEX('Diesel TRU Emission Factors'!$E$6:$E$76,MATCH($B31&$C31,'Diesel TRU Emission Factors'!$R$6:$R$77,0))*GramsToMT,4)) ->  | X31: =IF(OR(ISBLANK($B31),ISBLANK($C31),$R31=""),"",ROUND($R31*INDEX('Diesel TRU Emission Factors'!$H$6:$H$76,MATCH($B31&$C31,'Diesel TRU Emission Factors'!$R$6:$R$77,0))*GramsToMT,4)) ->  | Y31: =IF(OR(ISBLANK($B31),ISBLANK($C31),$R31=""),"",ROUND($R31*INDEX('Diesel TRU Emission Factors'!$F$6:$F$76,MATCH($B31&$C31,'Diesel TRU Emission Factors'!$R$6:$R$77,0))*GramsToMT,1)) ->  | Z31: =IF(OR(ISBLANK($B31),ISBLANK($C31),$R31=""),"",$R31*INDEX('Diesel TRU Emission Factors'!$G$6:$G$76,MATCH($B31&$C31,'Diesel TRU Emission Factors'!$R$6:$R$77,0))*GramsToMT) ->  | AA31: =IF(ISBLANK(F31),"",R31*GalTokWh*'Diesel TRU Emission Factors'!$P$4/1000000) ->  | AB31: =IF(ISBLANK($F31),"",ROUND(Y31*References!$B$28+Z31*References!$B$29+'General Calculator'!AA31*References!$B$30,1)) ->  | AD31: =IF(OR(ISBLANK($F31),$S31="",$T31=""),"",ROUND($S31*(1+$T31)*INDEX('eGRID2020 Subregion'!$C$7:$C$36,MATCH($F31,RegionGEN,0))*GramsToMT,4)) ->  | AE31: =IF(OR(ISBLANK($F31),$S31="",$T31=""),"",ROUND($S31*(1+$T31)*INDEX('eGRID2020 Subregion'!$D$7:$D$36,MATCH($F31,RegionGEN,0))*GramsToMT,4)) ->  | AF31: =IF(OR(ISBLANK($F31),$S31="",$T31=""),"",ROUND($S31*(1+$T31)*INDEX('eGRID2020 Subregion'!$I$7:$I$36,MATCH($F31,RegionGEN,0))*GramsToMT,4)) ->  | AG31: =IF(OR(ISBLANK($F31),$S31="",$T31=""),"",ROUND($S31*(1+$T31)*INDEX('eGRID2020 Subregion'!$E$7:$E$36,MATCH($F31,RegionGEN,0))*GramsToMT,1)) ->  | AH31: =IF(OR(ISBLANK($F31),$S31="",$T31=""),"",$S31*(1+$T31)*INDEX('eGRID2020 Subregion'!$F$7:$F$33,MATCH($F31,RegionGEN,0))*GramsToMT) ->  | AI31: =IF(OR(ISBLANK($F31),$S31="",$T31=""),"",$S31*(1+$T31)*INDEX('eGRID2020 Subregion'!$G$7:$G$33,MATCH($F31,RegionGEN,0))*GramsToMT) ->  | AJ31: =IF(ISBLANK($F31),"",ROUND(AG31*References!$B$28+AH31*References!$B$29+'General Calculator'!AI31*References!$B$30,1)) ->  | AS31: =IF(OR($W31="",$AM31="",$W31=0),"", $AM31/$W31) ->  | AZ31: =IF(OR($AX31="",$AY31=""),"",$AX31+$AY31) ->  | BC31: =IF(OR($R31="",$L31="",$M31="",$S31="",$T31=""),"",($R31*$L31*GalTokWh)-($S31*$M31*(1+$T31))) ->  | BD31: =IF(OR($BB31="",$BC31=""),"",$BB31+$BC31) -> 
G32: =IF(OR(ISBLANK($B32),ISBLANK($C32)),"",INDEX('TRU Ops & Costs'!$D$4:$D$74,MATCH($B32&$C32,'TRU Ops & Costs'!$P$4:$P$74,0))/0.7457) ->  | H32: =IF(OR(ISBLANK($B32),ISBLANK($C32)),"",INDEX('TRU Ops & Costs'!$E$4:$E$74,MATCH($B32&$C32,'TRU Ops & Costs'!$P$4:$P$74,0))) ->  | I32: =IF(OR(ISBLANK($B32),ISBLANK($C32)),"",INDEX('TRU Ops & Costs'!$F$4:$F$74,MATCH($B32&$C32,'TRU Ops & Costs'!$P$4:$P$74,0))) ->  | J32: =IF(OR(ISBLANK($B32),ISBLANK($C32)),"",INDEX('TRU Ops & Costs'!$G$4:$G$74,MATCH($B32&$C32,'TRU Ops & Costs'!$P$4:$P$74,0))) ->  | L32: =IF(ISBLANK($F32),"",INDEX('Diesel Fuel Prices'!$D$5:$D$31,MATCH($F32,'Diesel Fuel Prices'!$B$5:$B$31,0))*References!$B$38/References!$B$37) ->  | M32: =IF(ISBLANK($F32),"",VLOOKUP($F32,'Electricity Prices'!$B$4:$F$32,5,FALSE)*References!$B$38/References!$B$37) ->  | N32: =IF(OR(ISBLANK($B32),ISBLANK($C32)),"",INDEX('TRU Ops & Costs'!$I$4:$I$74,MATCH($B32&$C32,'TRU Ops & Costs'!$P$4:$P$74,0))) ->  | O32: =IF(OR(ISBLANK($B32),ISBLANK($C32)),"",IF(E32="Yard",INDEX('TRU Ops & Costs'!$J$4:$J$74,MATCH($B32&$C32,'TRU Ops & Costs'!$P$4:$P$74,0)),INDEX('TRU Ops & Costs'!$K$4:$K$74,MATCH($B32&$C32,'TRU Ops & Costs'!$P$4:$P$74,0)))) ->  | P32: =IF(OR(ISBLANK($B32),ISBLANK($C32)),"",$K32*INDEX('TRU Ops & Costs'!$M$4:$M$74,MATCH($B32&$C32,'TRU Ops & Costs'!$P$4:$P$74,0))*-INDEX('TRU Ops & Costs'!$L$4:$L$74,MATCH($B32&$C32,'TRU Ops & Costs'!$P$4:$P$74,0))) ->  | T32: =IF(ISBLANK($F32),"",INDEX('eGRID2020 Subregion'!$J$7:$J$36,MATCH($F32,RegionGEN,0))) ->  | V32: =IF(OR(ISBLANK($B32),ISBLANK($C32),$R32=""),"",ROUND($R32*INDEX('Diesel TRU Emission Factors'!$D$6:$D$76,MATCH($B32&$C32,'Diesel TRU Emission Factors'!$R$6:$R$77,0))*GramsToMT,4)) ->  | W32: =IF(OR(ISBLANK($B32),ISBLANK($C32),$R32=""),"",ROUND($R32*INDEX('Diesel TRU Emission Factors'!$E$6:$E$76,MATCH($B32&$C32,'Diesel TRU Emission Factors'!$R$6:$R$77,0))*GramsToMT,4)) ->  | X32: =IF(OR(ISBLANK($B32),ISBLANK($C32),$R32=""),"",ROUND($R32*INDEX('Diesel TRU Emission Factors'!$H$6:$H$76,MATCH($B32&$C32,'Diesel TRU Emission Factors'!$R$6:$R$77,0))*GramsToMT,4)) ->  | Y32: =IF(OR(ISBLANK($B32),ISBLANK($C32),$R32=""),"",ROUND($R32*INDEX('Diesel TRU Emission Factors'!$F$6:$F$76,MATCH($B32&$C32,'Diesel TRU Emission Factors'!$R$6:$R$77,0))*GramsToMT,1)) ->  | Z32: =IF(OR(ISBLANK($B32),ISBLANK($C32),$R32=""),"",$R32*INDEX('Diesel TRU Emission Factors'!$G$6:$G$76,MATCH($B32&$C32,'Diesel TRU Emission Factors'!$R$6:$R$77,0))*GramsToMT) ->  | AA32: =IF(ISBLANK(F32),"",R32*GalTokWh*'Diesel TRU Emission Factors'!$P$4/1000000) ->  | AB32: =IF(ISBLANK($F32),"",ROUND(Y32*References!$B$28+Z32*References!$B$29+'General Calculator'!AA32*References!$B$30,1)) ->  | AD32: =IF(OR(ISBLANK($F32),$S32="",$T32=""),"",ROUND($S32*(1+$T32)*INDEX('eGRID2020 Subregion'!$C$7:$C$36,MATCH($F32,RegionGEN,0))*GramsToMT,4)) ->  | AE32: =IF(OR(ISBLANK($F32),$S32="",$T32=""),"",ROUND($S32*(1+$T32)*INDEX('eGRID2020 Subregion'!$D$7:$D$36,MATCH($F32,RegionGEN,0))*GramsToMT,4)) ->  | AF32: =IF(OR(ISBLANK($F32),$S32="",$T32=""),"",ROUND($S32*(1+$T32)*INDEX('eGRID2020 Subregion'!$I$7:$I$36,MATCH($F32,RegionGEN,0))*GramsToMT,4)) ->  | AG32: =IF(OR(ISBLANK($F32),$S32="",$T32=""),"",ROUND($S32*(1+$T32)*INDEX('eGRID2020 Subregion'!$E$7:$E$36,MATCH($F32,RegionGEN,0))*GramsToMT,1)) ->  | AH32: =IF(OR(ISBLANK($F32),$S32="",$T32=""),"",$S32*(1+$T32)*INDEX('eGRID2020 Subregion'!$F$7:$F$33,MATCH($F32,RegionGEN,0))*GramsToMT) ->  | AI32: =IF(OR(ISBLANK($F32),$S32="",$T32=""),"",$S32*(1+$T32)*INDEX('eGRID2020 Subregion'!$G$7:$G$33,MATCH($F32,RegionGEN,0))*GramsToMT) ->  | AJ32: =IF(ISBLANK($F32),"",ROUND(AG32*References!$B$28+AH32*References!$B$29+'General Calculator'!AI32*References!$B$30,1)) ->  | AS32: =IF(OR(W32="",AM32="",W32=0),"", AM32/W32) -> 
G33: =IF(OR(ISBLANK($B33),ISBLANK($C33)),"",INDEX('TRU Ops & Costs'!$D$4:$D$74,MATCH($B33&$C33,'TRU Ops & Costs'!$P$4:$P$74,0))/0.7457) ->  | H33: =IF(OR(ISBLANK($B33),ISBLANK($C33)),"",INDEX('TRU Ops & Costs'!$E$4:$E$74,MATCH($B33&$C33,'TRU Ops & Costs'!$P$4:$P$74,0))) ->  | I33: =IF(OR(ISBLANK($B33),ISBLANK($C33)),"",INDEX('TRU Ops & Costs'!$F$4:$F$74,MATCH($B33&$C33,'TRU Ops & Costs'!$P$4:$P$74,0))) ->  | J33: =IF(OR(ISBLANK($B33),ISBLANK($C33)),"",INDEX('TRU Ops & Costs'!$G$4:$G$74,MATCH($B33&$C33,'TRU Ops & Costs'!$P$4:$P$74,0))) ->  | L33: =IF(ISBLANK($F33),"",INDEX('Diesel Fuel Prices'!$D$5:$D$31,MATCH($F33,'Diesel Fuel Prices'!$B$5:$B$31,0))*References!$B$38/References!$B$37) ->  | M33: =IF(ISBLANK($F33),"",VLOOKUP($F33,'Electricity Prices'!$B$4:$F$32,5,FALSE)*References!$B$38/References!$B$37) ->  | N33: =IF(OR(ISBLANK($B33),ISBLANK($C33)),"",INDEX('TRU Ops & Costs'!$I$4:$I$74,MATCH($B33&$C33,'TRU Ops & Costs'!$P$4:$P$74,0))) ->  | O33: =IF(OR(ISBLANK($B33),ISBLANK($C33)),"",IF(E33="Yard",INDEX('TRU Ops & Costs'!$J$4:$J$74,MATCH($B33&$C33,'TRU Ops & Costs'!$P$4:$P$74,0)),INDEX('TRU Ops & Costs'!$K$4:$K$74,MATCH($B33&$C33,'TRU Ops & Costs'!$P$4:$P$74,0)))) ->  | P33: =IF(OR(ISBLANK($B33),ISBLANK($C33)),"",$K33*INDEX('TRU Ops & Costs'!$M$4:$M$74,MATCH($B33&$C33,'TRU Ops & Costs'!$P$4:$P$74,0))*-INDEX('TRU Ops & Costs'!$L$4:$L$74,MATCH($B33&$C33,'TRU Ops & Costs'!$P$4:$P$74,0))) ->  | T33: =IF(ISBLANK($F33),"",INDEX('eGRID2020 Subregion'!$J$7:$J$36,MATCH($F33,RegionGEN,0))) ->  | V33: =IF(OR(ISBLANK($B33),ISBLANK($C33),$R33=""),"",ROUND($R33*INDEX('Diesel TRU Emission Factors'!$D$6:$D$76,MATCH($B33&$C33,'Diesel TRU Emission Factors'!$R$6:$R$77,0))*GramsToMT,4)) ->  | W33: =IF(OR(ISBLANK($B33),ISBLANK($C33),$R33=""),"",ROUND($R33*INDEX('Diesel TRU Emission Factors'!$E$6:$E$76,MATCH($B33&$C33,'Diesel TRU Emission Factors'!$R$6:$R$77,0))*GramsToMT,4)) ->  | X33: =IF(OR(ISBLANK($B33),ISBLANK($C33),$R33=""),"",ROUND($R33*INDEX('Diesel TRU Emission Factors'!$H$6:$H$76,MATCH($B33&$C33,'Diesel TRU Emission Factors'!$R$6:$R$77,0))*GramsToMT,4)) ->  | Y33: =IF(OR(ISBLANK($B33),ISBLANK($C33),$R33=""),"",ROUND($R33*INDEX('Diesel TRU Emission Factors'!$F$6:$F$76,MATCH($B33&$C33,'Diesel TRU Emission Factors'!$R$6:$R$77,0))*GramsToMT,1)) ->  | Z33: =IF(OR(ISBLANK($B33),ISBLANK($C33),$R33=""),"",$R33*INDEX('Diesel TRU Emission Factors'!$G$6:$G$76,MATCH($B33&$C33,'Diesel TRU Emission Factors'!$R$6:$R$77,0))*GramsToMT) ->  | AA33: =IF(ISBLANK(F33),"",R33*GalTokWh*'Diesel TRU Emission Factors'!$P$4/1000000) ->  | AB33: =IF(ISBLANK($F33),"",ROUND(Y33*References!$B$28+Z33*References!$B$29+'General Calculator'!AA33*References!$B$30,1)) ->  | AD33: =IF(OR(ISBLANK($F33),$S33="",$T33=""),"",ROUND($S33*(1+$T33)*INDEX('eGRID2020 Subregion'!$C$7:$C$36,MATCH($F33,RegionGEN,0))*GramsToMT,4)) ->  | AE33: =IF(OR(ISBLANK($F33),$S33="",$T33=""),"",ROUND($S33*(1+$T33)*INDEX('eGRID2020 Subregion'!$D$7:$D$36,MATCH($F33,RegionGEN,0))*GramsToMT,4)) ->  | AF33: =IF(OR(ISBLANK($F33),$S33="",$T33=""),"",ROUND($S33*(1+$T33)*INDEX('eGRID2020 Subregion'!$I$7:$I$36,MATCH($F33,RegionGEN,0))*GramsToMT,4)) ->  | AG33: =IF(OR(ISBLANK($F33),$S33="",$T33=""),"",ROUND($S33*(1+$T33)*INDEX('eGRID2020 Subregion'!$E$7:$E$36,MATCH($F33,RegionGEN,0))*GramsToMT,1)) ->  | AH33: =IF(OR(ISBLANK($F33),$S33="",$T33=""),"",$S33*(1+$T33)*INDEX('eGRID2020 Subregion'!$F$7:$F$33,MATCH($F33,RegionGEN,0))*GramsToMT) ->  | AI33: =IF(OR(ISBLANK($F33),$S33="",$T33=""),"",$S33*(1+$T33)*INDEX('eGRID2020 Subregion'!$G$7:$G$33,MATCH($F33,RegionGEN,0))*GramsToMT) ->  | AJ33: =IF(ISBLANK($F33),"",ROUND(AG33*References!$B$28+AH33*References!$B$29+'General Calculator'!AI33*References!$B$30,1)) ->  | AS33: =IF(OR($W33="",$AM33="",$W33=0),"", $AM33/$W33) ->  | AZ33: =IF(OR($AX33="",$AY33=""),"",$AX33+$AY33) ->  | BC33: =IF(OR($R33="",$L33="",$M33="",$S33="",$T33=""),"",($R33*$L33*GalTokWh)-($S33*$M33*(1+$T33))) ->  | BD33: =IF(OR($BB33="",$BC33=""),"",$BB33+$BC33) -> 
G34: =IF(OR(ISBLANK($B34),ISBLANK($C34)),"",INDEX('TRU Ops & Costs'!$D$4:$D$74,MATCH($B34&$C34,'TRU Ops & Costs'!$P$4:$P$74,0))/0.7457) ->  | H34: =IF(OR(ISBLANK($B34),ISBLANK($C34)),"",INDEX('TRU Ops & Costs'!$E$4:$E$74,MATCH($B34&$C34,'TRU Ops & Costs'!$P$4:$P$74,0))) ->  | I34: =IF(OR(ISBLANK($B34),ISBLANK($C34)),"",INDEX('TRU Ops & Costs'!$F$4:$F$74,MATCH($B34&$C34,'TRU Ops & Costs'!$P$4:$P$74,0))) ->  | J34: =IF(OR(ISBLANK($B34),ISBLANK($C34)),"",INDEX('TRU Ops & Costs'!$G$4:$G$74,MATCH($B34&$C34,'TRU Ops & Costs'!$P$4:$P$74,0))) ->  | L34: =IF(ISBLANK($F34),"",INDEX('Diesel Fuel Prices'!$D$5:$D$31,MATCH($F34,'Diesel Fuel Prices'!$B$5:$B$31,0))*References!$B$38/References!$B$37) ->  | M34: =IF(ISBLANK($F34),"",VLOOKUP($F34,'Electricity Prices'!$B$4:$F$32,5,FALSE)*References!$B$38/References!$B$37) ->  | N34: =IF(OR(ISBLANK($B34),ISBLANK($C34)),"",INDEX('TRU Ops & Costs'!$I$4:$I$74,MATCH($B34&$C34,'TRU Ops & Costs'!$P$4:$P$74,0))) ->  | O34: =IF(OR(ISBLANK($B34),ISBLANK($C34)),"",IF(E34="Yard",INDEX('TRU Ops & Costs'!$J$4:$J$74,MATCH($B34&$C34,'TRU Ops & Costs'!$P$4:$P$74,0)),INDEX('TRU Ops & Costs'!$K$4:$K$74,MATCH($B34&$C34,'TRU Ops & Costs'!$P$4:$P$74,0)))) ->  | P34: =IF(OR(ISBLANK($B34),ISBLANK($C34)),"",$K34*INDEX('TRU Ops & Costs'!$M$4:$M$74,MATCH($B34&$C34,'TRU Ops & Costs'!$P$4:$P$74,0))*-INDEX('TRU Ops & Costs'!$L$4:$L$74,MATCH($B34&$C34,'TRU Ops & Costs'!$P$4:$P$74,0))) ->  | T34: =IF(ISBLANK($F34),"",INDEX('eGRID2020 Subregion'!$J$7:$J$36,MATCH($F34,RegionGEN,0))) ->  | V34: =IF(OR(ISBLANK($B34),ISBLANK($C34),$R34=""),"",ROUND($R34*INDEX('Diesel TRU Emission Factors'!$D$6:$D$76,MATCH($B34&$C34,'Diesel TRU Emission Factors'!$R$6:$R$77,0))*GramsToMT,4)) ->  | W34: =IF(OR(ISBLANK($B34),ISBLANK($C34),$R34=""),"",ROUND($R34*INDEX('Diesel TRU Emission Factors'!$E$6:$E$76,MATCH($B34&$C34,'Diesel TRU Emission Factors'!$R$6:$R$77,0))*GramsToMT,4)) ->  | X34: =IF(OR(ISBLANK($B34),ISBLANK($C34),$R34=""),"",ROUND($R34*INDEX('Diesel TRU Emission Factors'!$H$6:$H$76,MATCH($B34&$C34,'Diesel TRU Emission Factors'!$R$6:$R$77,0))*GramsToMT,4)) ->  | Y34: =IF(OR(ISBLANK($B34),ISBLANK($C34),$R34=""),"",ROUND($R34*INDEX('Diesel TRU Emission Factors'!$F$6:$F$76,MATCH($B34&$C34,'Diesel TRU Emission Factors'!$R$6:$R$77,0))*GramsToMT,1)) ->  | Z34: =IF(OR(ISBLANK($B34),ISBLANK($C34),$R34=""),"",$R34*INDEX('Diesel TRU Emission Factors'!$G$6:$G$76,MATCH($B34&$C34,'Diesel TRU Emission Factors'!$R$6:$R$77,0))*GramsToMT) ->  | AA34: =IF(ISBLANK(F34),"",R34*GalTokWh*'Diesel TRU Emission Factors'!$P$4/1000000) ->  | AB34: =IF(ISBLANK($F34),"",ROUND(Y34*References!$B$28+Z34*References!$B$29+'General Calculator'!AA34*References!$B$30,1)) ->  | AD34: =IF(OR(ISBLANK($F34),$S34="",$T34=""),"",ROUND($S34*(1+$T34)*INDEX('eGRID2020 Subregion'!$C$7:$C$36,MATCH($F34,RegionGEN,0))*GramsToMT,4)) ->  | AE34: =IF(OR(ISBLANK($F34),$S34="",$T34=""),"",ROUND($S34*(1+$T34)*INDEX('eGRID2020 Subregion'!$D$7:$D$36,MATCH($F34,RegionGEN,0))*GramsToMT,4)) ->  | AF34: =IF(OR(ISBLANK($F34),$S34="",$T34=""),"",ROUND($S34*(1+$T34)*INDEX('eGRID2020 Subregion'!$I$7:$I$36,MATCH($F34,RegionGEN,0))*GramsToMT,4)) ->  | AG34: =IF(OR(ISBLANK($F34),$S34="",$T34=""),"",ROUND($S34*(1+$T34)*INDEX('eGRID2020 Subregion'!$E$7:$E$36,MATCH($F34,RegionGEN,0))*GramsToMT,1)) ->  | AH34: =IF(OR(ISBLANK($F34),$S34="",$T34=""),"",$S34*(1+$T34)*INDEX('eGRID2020 Subregion'!$F$7:$F$33,MATCH($F34,RegionGEN,0))*GramsToMT) ->  | AI34: =IF(OR(ISBLANK($F34),$S34="",$T34=""),"",$S34*(1+$T34)*INDEX('eGRID2020 Subregion'!$G$7:$G$33,MATCH($F34,RegionGEN,0))*GramsToMT) ->  | AJ34: =IF(ISBLANK($F34),"",ROUND(AG34*References!$B$28+AH34*References!$B$29+'General Calculator'!AI34*References!$B$30,1)) ->  | AS34: =IF(OR(W34="",AM34="",W34=0),"", AM34/W34) -> 
G35: =IF(OR(ISBLANK($B35),ISBLANK($C35)),"",INDEX('TRU Ops & Costs'!$D$4:$D$74,MATCH($B35&$C35,'TRU Ops & Costs'!$P$4:$P$74,0))/0.7457) ->  | H35: =IF(OR(ISBLANK($B35),ISBLANK($C35)),"",INDEX('TRU Ops & Costs'!$E$4:$E$74,MATCH($B35&$C35,'TRU Ops & Costs'!$P$4:$P$74,0))) ->  | I35: =IF(OR(ISBLANK($B35),ISBLANK($C35)),"",INDEX('TRU Ops & Costs'!$F$4:$F$74,MATCH($B35&$C35,'TRU Ops & Costs'!$P$4:$P$74,0))) ->  | J35: =IF(OR(ISBLANK($B35),ISBLANK($C35)),"",INDEX('TRU Ops & Costs'!$G$4:$G$74,MATCH($B35&$C35,'TRU Ops & Costs'!$P$4:$P$74,0))) ->  | L35: =IF(ISBLANK($F35),"",INDEX('Diesel Fuel Prices'!$D$5:$D$31,MATCH($F35,'Diesel Fuel Prices'!$B$5:$B$31,0))*References!$B$38/References!$B$37) ->  | M35: =IF(ISBLANK($F35),"",VLOOKUP($F35,'Electricity Prices'!$B$4:$F$32,5,FALSE)*References!$B$38/References!$B$37) ->  | N35: =IF(OR(ISBLANK($B35),ISBLANK($C35)),"",INDEX('TRU Ops & Costs'!$I$4:$I$74,MATCH($B35&$C35,'TRU Ops & Costs'!$P$4:$P$74,0))) ->  | O35: =IF(OR(ISBLANK($B35),ISBLANK($C35)),"",IF(E35="Yard",INDEX('TRU Ops & Costs'!$J$4:$J$74,MATCH($B35&$C35,'TRU Ops & Costs'!$P$4:$P$74,0)),INDEX('TRU Ops & Costs'!$K$4:$K$74,MATCH($B35&$C35,'TRU Ops & Costs'!$P$4:$P$74,0)))) ->  | P35: =IF(OR(ISBLANK($B35),ISBLANK($C35)),"",$K35*INDEX('TRU Ops & Costs'!$M$4:$M$74,MATCH($B35&$C35,'TRU Ops & Costs'!$P$4:$P$74,0))*-INDEX('TRU Ops & Costs'!$L$4:$L$74,MATCH($B35&$C35,'TRU Ops & Costs'!$P$4:$P$74,0))) ->  | T35: =IF(ISBLANK($F35),"",INDEX('eGRID2020 Subregion'!$J$7:$J$36,MATCH($F35,RegionGEN,0))) ->  | V35: =IF(OR(ISBLANK($B35),ISBLANK($C35),$R35=""),"",ROUND($R35*INDEX('Diesel TRU Emission Factors'!$D$6:$D$76,MATCH($B35&$C35,'Diesel TRU Emission Factors'!$R$6:$R$77,0))*GramsToMT,4)) ->  | W35: =IF(OR(ISBLANK($B35),ISBLANK($C35),$R35=""),"",ROUND($R35*INDEX('Diesel TRU Emission Factors'!$E$6:$E$76,MATCH($B35&$C35,'Diesel TRU Emission Factors'!$R$6:$R$77,0))*GramsToMT,4)) ->  | X35: =IF(OR(ISBLANK($B35),ISBLANK($C35),$R35=""),"",ROUND($R35*INDEX('Diesel TRU Emission Factors'!$H$6:$H$76,MATCH($B35&$C35,'Diesel TRU Emission Factors'!$R$6:$R$77,0))*GramsToMT,4)) ->  | Y35: =IF(OR(ISBLANK($B35),ISBLANK($C35),$R35=""),"",ROUND($R35*INDEX('Diesel TRU Emission Factors'!$F$6:$F$76,MATCH($B35&$C35,'Diesel TRU Emission Factors'!$R$6:$R$77,0))*GramsToMT,1)) ->  | Z35: =IF(OR(ISBLANK($B35),ISBLANK($C35),$R35=""),"",$R35*INDEX('Diesel TRU Emission Factors'!$G$6:$G$76,MATCH($B35&$C35,'Diesel TRU Emission Factors'!$R$6:$R$77,0))*GramsToMT) ->  | AA35: =IF(ISBLANK(F35),"",R35*GalTokWh*'Diesel TRU Emission Factors'!$P$4/1000000) ->  | AB35: =IF(ISBLANK($F35),"",ROUND(Y35*References!$B$28+Z35*References!$B$29+'General Calculator'!AA35*References!$B$30,1)) ->  | AD35: =IF(OR(ISBLANK($F35),$S35="",$T35=""),"",ROUND($S35*(1+$T35)*INDEX('eGRID2020 Subregion'!$C$7:$C$36,MATCH($F35,RegionGEN,0))*GramsToMT,4)) ->  | AE35: =IF(OR(ISBLANK($F35),$S35="",$T35=""),"",ROUND($S35*(1+$T35)*INDEX('eGRID2020 Subregion'!$D$7:$D$36,MATCH($F35,RegionGEN,0))*GramsToMT,4)) ->  | AF35: =IF(OR(ISBLANK($F35),$S35="",$T35=""),"",ROUND($S35*(1+$T35)*INDEX('eGRID2020 Subregion'!$I$7:$I$36,MATCH($F35,RegionGEN,0))*GramsToMT,4)) ->  | AG35: =IF(OR(ISBLANK($F35),$S35="",$T35=""),"",ROUND($S35*(1+$T35)*INDEX('eGRID2020 Subregion'!$E$7:$E$36,MATCH($F35,RegionGEN,0))*GramsToMT,1)) ->  | AH35: =IF(OR(ISBLANK($F35),$S35="",$T35=""),"",$S35*(1+$T35)*INDEX('eGRID2020 Subregion'!$F$7:$F$33,MATCH($F35,RegionGEN,0))*GramsToMT) ->  | AI35: =IF(OR(ISBLANK($F35),$S35="",$T35=""),"",$S35*(1+$T35)*INDEX('eGRID2020 Subregion'!$G$7:$G$33,MATCH($F35,RegionGEN,0))*GramsToMT) ->  | AJ35: =IF(ISBLANK($F35),"",ROUND(AG35*References!$B$28+AH35*References!$B$29+'General Calculator'!AI35*References!$B$30,1)) ->  | AS35: =IF(OR($W35="",$AM35="",$W35=0),"", $AM35/$W35) ->  | AZ35: =IF(OR($AX35="",$AY35=""),"",$AX35+$AY35) ->  | BC35: =IF(OR($R35="",$L35="",$M35="",$S35="",$T35=""),"",($R35*$L35*GalTokWh)-($S35*$M35*(1+$T35))) ->  | BD35: =IF(OR($BB35="",$BC35=""),"",$BB35+$BC35) -> 
G36: =IF(OR(ISBLANK($B36),ISBLANK($C36)),"",INDEX('TRU Ops & Costs'!$D$4:$D$74,MATCH($B36&$C36,'TRU Ops & Costs'!$P$4:$P$74,0))/0.7457) ->  | H36: =IF(OR(ISBLANK($B36),ISBLANK($C36)),"",INDEX('TRU Ops & Costs'!$E$4:$E$74,MATCH($B36&$C36,'TRU Ops & Costs'!$P$4:$P$74,0))) ->  | I36: =IF(OR(ISBLANK($B36),ISBLANK($C36)),"",INDEX('TRU Ops & Costs'!$F$4:$F$74,MATCH($B36&$C36,'TRU Ops & Costs'!$P$4:$P$74,0))) ->  | J36: =IF(OR(ISBLANK($B36),ISBLANK($C36)),"",INDEX('TRU Ops & Costs'!$G$4:$G$74,MATCH($B36&$C36,'TRU Ops & Costs'!$P$4:$P$74,0))) ->  | L36: =IF(ISBLANK($F36),"",INDEX('Diesel Fuel Prices'!$D$5:$D$31,MATCH($F36,'Diesel Fuel Prices'!$B$5:$B$31,0))*References!$B$38/References!$B$37) ->  | M36: =IF(ISBLANK($F36),"",VLOOKUP($F36,'Electricity Prices'!$B$4:$F$32,5,FALSE)*References!$B$38/References!$B$37) ->  | N36: =IF(OR(ISBLANK($B36),ISBLANK($C36)),"",INDEX('TRU Ops & Costs'!$I$4:$I$74,MATCH($B36&$C36,'TRU Ops & Costs'!$P$4:$P$74,0))) ->  | O36: =IF(OR(ISBLANK($B36),ISBLANK($C36)),"",IF(E36="Yard",INDEX('TRU Ops & Costs'!$J$4:$J$74,MATCH($B36&$C36,'TRU Ops & Costs'!$P$4:$P$74,0)),INDEX('TRU Ops & Costs'!$K$4:$K$74,MATCH($B36&$C36,'TRU Ops & Costs'!$P$4:$P$74,0)))) ->  | P36: =IF(OR(ISBLANK($B36),ISBLANK($C36)),"",$K36*INDEX('TRU Ops & Costs'!$M$4:$M$74,MATCH($B36&$C36,'TRU Ops & Costs'!$P$4:$P$74,0))*-INDEX('TRU Ops & Costs'!$L$4:$L$74,MATCH($B36&$C36,'TRU Ops & Costs'!$P$4:$P$74,0))) ->  | T36: =IF(ISBLANK($F36),"",INDEX('eGRID2020 Subregion'!$J$7:$J$36,MATCH($F36,RegionGEN,0))) ->  | V36: =IF(OR(ISBLANK($B36),ISBLANK($C36),$R36=""),"",ROUND($R36*INDEX('Diesel TRU Emission Factors'!$D$6:$D$76,MATCH($B36&$C36,'Diesel TRU Emission Factors'!$R$6:$R$77,0))*GramsToMT,4)) ->  | W36: =IF(OR(ISBLANK($B36),ISBLANK($C36),$R36=""),"",ROUND($R36*INDEX('Diesel TRU Emission Factors'!$E$6:$E$76,MATCH($B36&$C36,'Diesel TRU Emission Factors'!$R$6:$R$77,0))*GramsToMT,4)) ->  | X36: =IF(OR(ISBLANK($B36),ISBLANK($C36),$R36=""),"",ROUND($R36*INDEX('Diesel TRU Emission Factors'!$H$6:$H$76,MATCH($B36&$C36,'Diesel TRU Emission Factors'!$R$6:$R$77,0))*GramsToMT,4)) ->  | Y36: =IF(OR(ISBLANK($B36),ISBLANK($C36),$R36=""),"",ROUND($R36*INDEX('Diesel TRU Emission Factors'!$F$6:$F$76,MATCH($B36&$C36,'Diesel TRU Emission Factors'!$R$6:$R$77,0))*GramsToMT,1)) ->  | Z36: =IF(OR(ISBLANK($B36),ISBLANK($C36),$R36=""),"",$R36*INDEX('Diesel TRU Emission Factors'!$G$6:$G$76,MATCH($B36&$C36,'Diesel TRU Emission Factors'!$R$6:$R$77,0))*GramsToMT) ->  | AA36: =IF(ISBLANK(F36),"",R36*GalTokWh*'Diesel TRU Emission Factors'!$P$4/1000000) ->  | AB36: =IF(ISBLANK($F36),"",ROUND(Y36*References!$B$28+Z36*References!$B$29+'General Calculator'!AA36*References!$B$30,1)) ->  | AD36: =IF(OR(ISBLANK($F36),$S36="",$T36=""),"",ROUND($S36*(1+$T36)*INDEX('eGRID2020 Subregion'!$C$7:$C$36,MATCH($F36,RegionGEN,0))*GramsToMT,4)) ->  | AE36: =IF(OR(ISBLANK($F36),$S36="",$T36=""),"",ROUND($S36*(1+$T36)*INDEX('eGRID2020 Subregion'!$D$7:$D$36,MATCH($F36,RegionGEN,0))*GramsToMT,4)) ->  | AF36: =IF(OR(ISBLANK($F36),$S36="",$T36=""),"",ROUND($S36*(1+$T36)*INDEX('eGRID2020 Subregion'!$I$7:$I$36,MATCH($F36,RegionGEN,0))*GramsToMT,4)) ->  | AG36: =IF(OR(ISBLANK($F36),$S36="",$T36=""),"",ROUND($S36*(1+$T36)*INDEX('eGRID2020 Subregion'!$E$7:$E$36,MATCH($F36,RegionGEN,0))*GramsToMT,1)) ->  | AH36: =IF(OR(ISBLANK($F36),$S36="",$T36=""),"",$S36*(1+$T36)*INDEX('eGRID2020 Subregion'!$F$7:$F$33,MATCH($F36,RegionGEN,0))*GramsToMT) ->  | AI36: =IF(OR(ISBLANK($F36),$S36="",$T36=""),"",$S36*(1+$T36)*INDEX('eGRID2020 Subregion'!$G$7:$G$33,MATCH($F36,RegionGEN,0))*GramsToMT) ->  | AJ36: =IF(ISBLANK($F36),"",ROUND(AG36*References!$B$28+AH36*References!$B$29+'General Calculator'!AI36*References!$B$30,1)) ->  | AS36: =IF(OR(W36="",AM36="",W36=0),"", AM36/W36) -> 
G37: =IF(OR(ISBLANK($B37),ISBLANK($C37)),"",INDEX('TRU Ops & Costs'!$D$4:$D$74,MATCH($B37&$C37,'TRU Ops & Costs'!$P$4:$P$74,0))/0.7457) ->  | H37: =IF(OR(ISBLANK($B37),ISBLANK($C37)),"",INDEX('TRU Ops & Costs'!$E$4:$E$74,MATCH($B37&$C37,'TRU Ops & Costs'!$P$4:$P$74,0))) ->  | I37: =IF(OR(ISBLANK($B37),ISBLANK($C37)),"",INDEX('TRU Ops & Costs'!$F$4:$F$74,MATCH($B37&$C37,'TRU Ops & Costs'!$P$4:$P$74,0))) ->  | J37: =IF(OR(ISBLANK($B37),ISBLANK($C37)),"",INDEX('TRU Ops & Costs'!$G$4:$G$74,MATCH($B37&$C37,'TRU Ops & Costs'!$P$4:$P$74,0))) ->  | L37: =IF(ISBLANK($F37),"",INDEX('Diesel Fuel Prices'!$D$5:$D$31,MATCH($F37,'Diesel Fuel Prices'!$B$5:$B$31,0))*References!$B$38/References!$B$37) ->  | M37: =IF(ISBLANK($F37),"",VLOOKUP($F37,'Electricity Prices'!$B$4:$F$32,5,FALSE)*References!$B$38/References!$B$37) ->  | N37: =IF(OR(ISBLANK($B37),ISBLANK($C37)),"",INDEX('TRU Ops & Costs'!$I$4:$I$74,MATCH($B37&$C37,'TRU Ops & Costs'!$P$4:$P$74,0))) ->  | O37: =IF(OR(ISBLANK($B37),ISBLANK($C37)),"",IF(E37="Yard",INDEX('TRU Ops & Costs'!$J$4:$J$74,MATCH($B37&$C37,'TRU Ops & Costs'!$P$4:$P$74,0)),INDEX('TRU Ops & Costs'!$K$4:$K$74,MATCH($B37&$C37,'TRU Ops & Costs'!$P$4:$P$74,0)))) ->  | P37: =IF(OR(ISBLANK($B37),ISBLANK($C37)),"",$K37*INDEX('TRU Ops & Costs'!$M$4:$M$74,MATCH($B37&$C37,'TRU Ops & Costs'!$P$4:$P$74,0))*-INDEX('TRU Ops & Costs'!$L$4:$L$74,MATCH($B37&$C37,'TRU Ops & Costs'!$P$4:$P$74,0))) ->  | T37: =IF(ISBLANK($F37),"",INDEX('eGRID2020 Subregion'!$J$7:$J$36,MATCH($F37,RegionGEN,0))) ->  | V37: =IF(OR(ISBLANK($B37),ISBLANK($C37),$R37=""),"",ROUND($R37*INDEX('Diesel TRU Emission Factors'!$D$6:$D$76,MATCH($B37&$C37,'Diesel TRU Emission Factors'!$R$6:$R$77,0))*GramsToMT,4)) ->  | W37: =IF(OR(ISBLANK($B37),ISBLANK($C37),$R37=""),"",ROUND($R37*INDEX('Diesel TRU Emission Factors'!$E$6:$E$76,MATCH($B37&$C37,'Diesel TRU Emission Factors'!$R$6:$R$77,0))*GramsToMT,4)) ->  | X37: =IF(OR(ISBLANK($B37),ISBLANK($C37),$R37=""),"",ROUND($R37*INDEX('Diesel TRU Emission Factors'!$H$6:$H$76,MATCH($B37&$C37,'Diesel TRU Emission Factors'!$R$6:$R$77,0))*GramsToMT,4)) ->  | Y37: =IF(OR(ISBLANK($B37),ISBLANK($C37),$R37=""),"",ROUND($R37*INDEX('Diesel TRU Emission Factors'!$F$6:$F$76,MATCH($B37&$C37,'Diesel TRU Emission Factors'!$R$6:$R$77,0))*GramsToMT,1)) ->  | Z37: =IF(OR(ISBLANK($B37),ISBLANK($C37),$R37=""),"",$R37*INDEX('Diesel TRU Emission Factors'!$G$6:$G$76,MATCH($B37&$C37,'Diesel TRU Emission Factors'!$R$6:$R$77,0))*GramsToMT) ->  | AA37: =IF(ISBLANK(F37),"",R37*GalTokWh*'Diesel TRU Emission Factors'!$P$4/1000000) ->  | AB37: =IF(ISBLANK($F37),"",ROUND(Y37*References!$B$28+Z37*References!$B$29+'General Calculator'!AA37*References!$B$30,1)) ->  | AD37: =IF(OR(ISBLANK($F37),$S37="",$T37=""),"",ROUND($S37*(1+$T37)*INDEX('eGRID2020 Subregion'!$C$7:$C$36,MATCH($F37,RegionGEN,0))*GramsToMT,4)) ->  | AE37: =IF(OR(ISBLANK($F37),$S37="",$T37=""),"",ROUND($S37*(1+$T37)*INDEX('eGRID2020 Subregion'!$D$7:$D$36,MATCH($F37,RegionGEN,0))*GramsToMT,4)) ->  | AF37: =IF(OR(ISBLANK($F37),$S37="",$T37=""),"",ROUND($S37*(1+$T37)*INDEX('eGRID2020 Subregion'!$I$7:$I$36,MATCH($F37,RegionGEN,0))*GramsToMT,4)) ->  | AG37: =IF(OR(ISBLANK($F37),$S37="",$T37=""),"",ROUND($S37*(1+$T37)*INDEX('eGRID2020 Subregion'!$E$7:$E$36,MATCH($F37,RegionGEN,0))*GramsToMT,1)) ->  | AH37: =IF(OR(ISBLANK($F37),$S37="",$T37=""),"",$S37*(1+$T37)*INDEX('eGRID2020 Subregion'!$F$7:$F$33,MATCH($F37,RegionGEN,0))*GramsToMT) ->  | AI37: =IF(OR(ISBLANK($F37),$S37="",$T37=""),"",$S37*(1+$T37)*INDEX('eGRID2020 Subregion'!$G$7:$G$33,MATCH($F37,RegionGEN,0))*GramsToMT) ->  | AJ37: =IF(ISBLANK($F37),"",ROUND(AG37*References!$B$28+AH37*References!$B$29+'General Calculator'!AI37*References!$B$30,1)) ->  | AS37: =IF(OR($W37="",$AM37="",$W37=0),"", $AM37/$W37) ->  | AZ37: =IF(OR($AX37="",$AY37=""),"",$AX37+$AY37) ->  | BC37: =IF(OR($R37="",$L37="",$M37="",$S37="",$T37=""),"",($R37*$L37*GalTokWh)-($S37*$M37*(1+$T37))) ->  | BD37: =IF(OR($BB37="",$BC37=""),"",$BB37+$BC37) -> 
G38: =IF(OR(ISBLANK($B38),ISBLANK($C38)),"",INDEX('TRU Ops & Costs'!$D$4:$D$74,MATCH($B38&$C38,'TRU Ops & Costs'!$P$4:$P$74,0))/0.7457) ->  | H38: =IF(OR(ISBLANK($B38),ISBLANK($C38)),"",INDEX('TRU Ops & Costs'!$E$4:$E$74,MATCH($B38&$C38,'TRU Ops & Costs'!$P$4:$P$74,0))) ->  | I38: =IF(OR(ISBLANK($B38),ISBLANK($C38)),"",INDEX('TRU Ops & Costs'!$F$4:$F$74,MATCH($B38&$C38,'TRU Ops & Costs'!$P$4:$P$74,0))) ->  | J38: =IF(OR(ISBLANK($B38),ISBLANK($C38)),"",INDEX('TRU Ops & Costs'!$G$4:$G$74,MATCH($B38&$C38,'TRU Ops & Costs'!$P$4:$P$74,0))) ->  | L38: =IF(ISBLANK($F38),"",INDEX('Diesel Fuel Prices'!$D$5:$D$31,MATCH($F38,'Diesel Fuel Prices'!$B$5:$B$31,0))*References!$B$38/References!$B$37) ->  | M38: =IF(ISBLANK($F38),"",VLOOKUP($F38,'Electricity Prices'!$B$4:$F$32,5,FALSE)*References!$B$38/References!$B$37) ->  | N38: =IF(OR(ISBLANK($B38),ISBLANK($C38)),"",INDEX('TRU Ops & Costs'!$I$4:$I$74,MATCH($B38&$C38,'TRU Ops & Costs'!$P$4:$P$74,0))) ->  | O38: =IF(OR(ISBLANK($B38),ISBLANK($C38)),"",IF(E38="Yard",INDEX('TRU Ops & Costs'!$J$4:$J$74,MATCH($B38&$C38,'TRU Ops & Costs'!$P$4:$P$74,0)),INDEX('TRU Ops & Costs'!$K$4:$K$74,MATCH($B38&$C38,'TRU Ops & Costs'!$P$4:$P$74,0)))) ->  | P38: =IF(OR(ISBLANK($B38),ISBLANK($C38)),"",$K38*INDEX('TRU Ops & Costs'!$M$4:$M$74,MATCH($B38&$C38,'TRU Ops & Costs'!$P$4:$P$74,0))*-INDEX('TRU Ops & Costs'!$L$4:$L$74,MATCH($B38&$C38,'TRU Ops & Costs'!$P$4:$P$74,0))) ->  | T38: =IF(ISBLANK($F38),"",INDEX('eGRID2020 Subregion'!$J$7:$J$36,MATCH($F38,RegionGEN,0))) ->  | V38: =IF(OR(ISBLANK($B38),ISBLANK($C38),$R38=""),"",ROUND($R38*INDEX('Diesel TRU Emission Factors'!$D$6:$D$76,MATCH($B38&$C38,'Diesel TRU Emission Factors'!$R$6:$R$77,0))*GramsToMT,4)) ->  | W38: =IF(OR(ISBLANK($B38),ISBLANK($C38),$R38=""),"",ROUND($R38*INDEX('Diesel TRU Emission Factors'!$E$6:$E$76,MATCH($B38&$C38,'Diesel TRU Emission Factors'!$R$6:$R$77,0))*GramsToMT,4)) ->  | X38: =IF(OR(ISBLANK($B38),ISBLANK($C38),$R38=""),"",ROUND($R38*INDEX('Diesel TRU Emission Factors'!$H$6:$H$76,MATCH($B38&$C38,'Diesel TRU Emission Factors'!$R$6:$R$77,0))*GramsToMT,4)) ->  | Y38: =IF(OR(ISBLANK($B38),ISBLANK($C38),$R38=""),"",ROUND($R38*INDEX('Diesel TRU Emission Factors'!$F$6:$F$76,MATCH($B38&$C38,'Diesel TRU Emission Factors'!$R$6:$R$77,0))*GramsToMT,1)) ->  | Z38: =IF(OR(ISBLANK($B38),ISBLANK($C38),$R38=""),"",$R38*INDEX('Diesel TRU Emission Factors'!$G$6:$G$76,MATCH($B38&$C38,'Diesel TRU Emission Factors'!$R$6:$R$77,0))*GramsToMT) ->  | AA38: =IF(ISBLANK(F38),"",R38*GalTokWh*'Diesel TRU Emission Factors'!$P$4/1000000) ->  | AB38: =IF(ISBLANK($F38),"",ROUND(Y38*References!$B$28+Z38*References!$B$29+'General Calculator'!AA38*References!$B$30,1)) ->  | AD38: =IF(OR(ISBLANK($F38),$S38="",$T38=""),"",ROUND($S38*(1+$T38)*INDEX('eGRID2020 Subregion'!$C$7:$C$36,MATCH($F38,RegionGEN,0))*GramsToMT,4)) ->  | AE38: =IF(OR(ISBLANK($F38),$S38="",$T38=""),"",ROUND($S38*(1+$T38)*INDEX('eGRID2020 Subregion'!$D$7:$D$36,MATCH($F38,RegionGEN,0))*GramsToMT,4)) ->  | AF38: =IF(OR(ISBLANK($F38),$S38="",$T38=""),"",ROUND($S38*(1+$T38)*INDEX('eGRID2020 Subregion'!$I$7:$I$36,MATCH($F38,RegionGEN,0))*GramsToMT,4)) ->  | AG38: =IF(OR(ISBLANK($F38),$S38="",$T38=""),"",ROUND($S38*(1+$T38)*INDEX('eGRID2020 Subregion'!$E$7:$E$36,MATCH($F38,RegionGEN,0))*GramsToMT,1)) ->  | AH38: =IF(OR(ISBLANK($F38),$S38="",$T38=""),"",$S38*(1+$T38)*INDEX('eGRID2020 Subregion'!$F$7:$F$33,MATCH($F38,RegionGEN,0))*GramsToMT) ->  | AI38: =IF(OR(ISBLANK($F38),$S38="",$T38=""),"",$S38*(1+$T38)*INDEX('eGRID2020 Subregion'!$G$7:$G$33,MATCH($F38,RegionGEN,0))*GramsToMT) ->  | AJ38: =IF(ISBLANK($F38),"",ROUND(AG38*References!$B$28+AH38*References!$B$29+'General Calculator'!AI38*References!$B$30,1)) ->  | AS38: =IF(OR(W38="",AM38="",W38=0),"", AM38/W38) -> 
G39: =IF(OR(ISBLANK($B39),ISBLANK($C39)),"",INDEX('TRU Ops & Costs'!$D$4:$D$74,MATCH($B39&$C39,'TRU Ops & Costs'!$P$4:$P$74,0))/0.7457) ->  | H39: =IF(OR(ISBLANK($B39),ISBLANK($C39)),"",INDEX('TRU Ops & Costs'!$E$4:$E$74,MATCH($B39&$C39,'TRU Ops & Costs'!$P$4:$P$74,0))) ->  | I39: =IF(OR(ISBLANK($B39),ISBLANK($C39)),"",INDEX('TRU Ops & Costs'!$F$4:$F$74,MATCH($B39&$C39,'TRU Ops & Costs'!$P$4:$P$74,0))) ->  | J39: =IF(OR(ISBLANK($B39),ISBLANK($C39)),"",INDEX('TRU Ops & Costs'!$G$4:$G$74,MATCH($B39&$C39,'TRU Ops & Costs'!$P$4:$P$74,0))) ->  | L39: =IF(ISBLANK($F39),"",INDEX('Diesel Fuel Prices'!$D$5:$D$31,MATCH($F39,'Diesel Fuel Prices'!$B$5:$B$31,0))*References!$B$38/References!$B$37) ->  | M39: =IF(ISBLANK($F39),"",VLOOKUP($F39,'Electricity Prices'!$B$4:$F$32,5,FALSE)*References!$B$38/References!$B$37) ->  | N39: =IF(OR(ISBLANK($B39),ISBLANK($C39)),"",INDEX('TRU Ops & Costs'!$I$4:$I$74,MATCH($B39&$C39,'TRU Ops & Costs'!$P$4:$P$74,0))) ->  | O39: =IF(OR(ISBLANK($B39),ISBLANK($C39)),"",IF(E39="Yard",INDEX('TRU Ops & Costs'!$J$4:$J$74,MATCH($B39&$C39,'TRU Ops & Costs'!$P$4:$P$74,0)),INDEX('TRU Ops & Costs'!$K$4:$K$74,MATCH($B39&$C39,'TRU Ops & Costs'!$P$4:$P$74,0)))) ->  | P39: =IF(OR(ISBLANK($B39),ISBLANK($C39)),"",$K39*INDEX('TRU Ops & Costs'!$M$4:$M$74,MATCH($B39&$C39,'TRU Ops & Costs'!$P$4:$P$74,0))*-INDEX('TRU Ops & Costs'!$L$4:$L$74,MATCH($B39&$C39,'TRU Ops & Costs'!$P$4:$P$74,0))) ->  | T39: =IF(ISBLANK($F39),"",INDEX('eGRID2020 Subregion'!$J$7:$J$36,MATCH($F39,RegionGEN,0))) ->  | V39: =IF(OR(ISBLANK($B39),ISBLANK($C39),$R39=""),"",ROUND($R39*INDEX('Diesel TRU Emission Factors'!$D$6:$D$76,MATCH($B39&$C39,'Diesel TRU Emission Factors'!$R$6:$R$77,0))*GramsToMT,4)) ->  | W39: =IF(OR(ISBLANK($B39),ISBLANK($C39),$R39=""),"",ROUND($R39*INDEX('Diesel TRU Emission Factors'!$E$6:$E$76,MATCH($B39&$C39,'Diesel TRU Emission Factors'!$R$6:$R$77,0))*GramsToMT,4)) ->  | X39: =IF(OR(ISBLANK($B39),ISBLANK($C39),$R39=""),"",ROUND($R39*INDEX('Diesel TRU Emission Factors'!$H$6:$H$76,MATCH($B39&$C39,'Diesel TRU Emission Factors'!$R$6:$R$77,0))*GramsToMT,4)) ->  | Y39: =IF(OR(ISBLANK($B39),ISBLANK($C39),$R39=""),"",ROUND($R39*INDEX('Diesel TRU Emission Factors'!$F$6:$F$76,MATCH($B39&$C39,'Diesel TRU Emission Factors'!$R$6:$R$77,0))*GramsToMT,1)) ->  | Z39: =IF(OR(ISBLANK($B39),ISBLANK($C39),$R39=""),"",$R39*INDEX('Diesel TRU Emission Factors'!$G$6:$G$76,MATCH($B39&$C39,'Diesel TRU Emission Factors'!$R$6:$R$77,0))*GramsToMT) ->  | AA39: =IF(ISBLANK(F39),"",R39*GalTokWh*'Diesel TRU Emission Factors'!$P$4/1000000) ->  | AB39: =IF(ISBLANK($F39),"",ROUND(Y39*References!$B$28+Z39*References!$B$29+'General Calculator'!AA39*References!$B$30,1)) ->  | AD39: =IF(OR(ISBLANK($F39),$S39="",$T39=""),"",ROUND($S39*(1+$T39)*INDEX('eGRID2020 Subregion'!$C$7:$C$36,MATCH($F39,RegionGEN,0))*GramsToMT,4)) ->  | AE39: =IF(OR(ISBLANK($F39),$S39="",$T39=""),"",ROUND($S39*(1+$T39)*INDEX('eGRID2020 Subregion'!$D$7:$D$36,MATCH($F39,RegionGEN,0))*GramsToMT,4)) ->  | AF39: =IF(OR(ISBLANK($F39),$S39="",$T39=""),"",ROUND($S39*(1+$T39)*INDEX('eGRID2020 Subregion'!$I$7:$I$36,MATCH($F39,RegionGEN,0))*GramsToMT,4)) ->  | AG39: =IF(OR(ISBLANK($F39),$S39="",$T39=""),"",ROUND($S39*(1+$T39)*INDEX('eGRID2020 Subregion'!$E$7:$E$36,MATCH($F39,RegionGEN,0))*GramsToMT,1)) ->  | AH39: =IF(OR(ISBLANK($F39),$S39="",$T39=""),"",$S39*(1+$T39)*INDEX('eGRID2020 Subregion'!$F$7:$F$33,MATCH($F39,RegionGEN,0))*GramsToMT) ->  | AI39: =IF(OR(ISBLANK($F39),$S39="",$T39=""),"",$S39*(1+$T39)*INDEX('eGRID2020 Subregion'!$G$7:$G$33,MATCH($F39,RegionGEN,0))*GramsToMT) ->  | AJ39: =IF(ISBLANK($F39),"",ROUND(AG39*References!$B$28+AH39*References!$B$29+'General Calculator'!AI39*References!$B$30,1)) ->  | AS39: =IF(OR($W39="",$AM39="",$W39=0),"", $AM39/$W39) ->  | AZ39: =IF(OR($AX39="",$AY39=""),"",$AX39+$AY39) ->  | BC39: =IF(OR($R39="",$L39="",$M39="",$S39="",$T39=""),"",($R39*$L39*GalTokWh)-($S39*$M39*(1+$T39))) ->  | BD39: =IF(OR($BB39="",$BC39=""),"",$BB39+$BC39) -> 
G40: =IF(OR(ISBLANK($B40),ISBLANK($C40)),"",INDEX('TRU Ops & Costs'!$D$4:$D$74,MATCH($B40&$C40,'TRU Ops & Costs'!$P$4:$P$74,0))/0.7457) ->  | H40: =IF(OR(ISBLANK($B40),ISBLANK($C40)),"",INDEX('TRU Ops & Costs'!$E$4:$E$74,MATCH($B40&$C40,'TRU Ops & Costs'!$P$4:$P$74,0))) ->  | I40: =IF(OR(ISBLANK($B40),ISBLANK($C40)),"",INDEX('TRU Ops & Costs'!$F$4:$F$74,MATCH($B40&$C40,'TRU Ops & Costs'!$P$4:$P$74,0))) ->  | J40: =IF(OR(ISBLANK($B40),ISBLANK($C40)),"",INDEX('TRU Ops & Costs'!$G$4:$G$74,MATCH($B40&$C40,'TRU Ops & Costs'!$P$4:$P$74,0))) ->  | L40: =IF(ISBLANK($F40),"",INDEX('Diesel Fuel Prices'!$D$5:$D$31,MATCH($F40,'Diesel Fuel Prices'!$B$5:$B$31,0))*References!$B$38/References!$B$37) ->  | M40: =IF(ISBLANK($F40),"",VLOOKUP($F40,'Electricity Prices'!$B$4:$F$32,5,FALSE)*References!$B$38/References!$B$37) ->  | N40: =IF(OR(ISBLANK($B40),ISBLANK($C40)),"",INDEX('TRU Ops & Costs'!$I$4:$I$74,MATCH($B40&$C40,'TRU Ops & Costs'!$P$4:$P$74,0))) ->  | O40: =IF(OR(ISBLANK($B40),ISBLANK($C40)),"",IF(E40="Yard",INDEX('TRU Ops & Costs'!$J$4:$J$74,MATCH($B40&$C40,'TRU Ops & Costs'!$P$4:$P$74,0)),INDEX('TRU Ops & Costs'!$K$4:$K$74,MATCH($B40&$C40,'TRU Ops & Costs'!$P$4:$P$74,0)))) ->  | P40: =IF(OR(ISBLANK($B40),ISBLANK($C40)),"",$K40*INDEX('TRU Ops & Costs'!$M$4:$M$74,MATCH($B40&$C40,'TRU Ops & Costs'!$P$4:$P$74,0))*-INDEX('TRU Ops & Costs'!$L$4:$L$74,MATCH($B40&$C40,'TRU Ops & Costs'!$P$4:$P$74,0))) ->  | T40: =IF(ISBLANK($F40),"",INDEX('eGRID2020 Subregion'!$J$7:$J$36,MATCH($F40,RegionGEN,0))) ->  | V40: =IF(OR(ISBLANK($B40),ISBLANK($C40),$R40=""),"",ROUND($R40*INDEX('Diesel TRU Emission Factors'!$D$6:$D$76,MATCH($B40&$C40,'Diesel TRU Emission Factors'!$R$6:$R$77,0))*GramsToMT,4)) ->  | W40: =IF(OR(ISBLANK($B40),ISBLANK($C40),$R40=""),"",ROUND($R40*INDEX('Diesel TRU Emission Factors'!$E$6:$E$76,MATCH($B40&$C40,'Diesel TRU Emission Factors'!$R$6:$R$77,0))*GramsToMT,4)) ->  | X40: =IF(OR(ISBLANK($B40),ISBLANK($C40),$R40=""),"",ROUND($R40*INDEX('Diesel TRU Emission Factors'!$H$6:$H$76,MATCH($B40&$C40,'Diesel TRU Emission Factors'!$R$6:$R$77,0))*GramsToMT,4)) ->  | Y40: =IF(OR(ISBLANK($B40),ISBLANK($C40),$R40=""),"",ROUND($R40*INDEX('Diesel TRU Emission Factors'!$F$6:$F$76,MATCH($B40&$C40,'Diesel TRU Emission Factors'!$R$6:$R$77,0))*GramsToMT,1)) ->  | Z40: =IF(OR(ISBLANK($B40),ISBLANK($C40),$R40=""),"",$R40*INDEX('Diesel TRU Emission Factors'!$G$6:$G$76,MATCH($B40&$C40,'Diesel TRU Emission Factors'!$R$6:$R$77,0))*GramsToMT) ->  | AA40: =IF(ISBLANK(F40),"",R40*GalTokWh*'Diesel TRU Emission Factors'!$P$4/1000000) ->  | AB40: =IF(ISBLANK($F40),"",ROUND(Y40*References!$B$28+Z40*References!$B$29+'General Calculator'!AA40*References!$B$30,1)) ->  | AD40: =IF(OR(ISBLANK($F40),$S40="",$T40=""),"",ROUND($S40*(1+$T40)*INDEX('eGRID2020 Subregion'!$C$7:$C$36,MATCH($F40,RegionGEN,0))*GramsToMT,4)) ->  | AE40: =IF(OR(ISBLANK($F40),$S40="",$T40=""),"",ROUND($S40*(1+$T40)*INDEX('eGRID2020 Subregion'!$D$7:$D$36,MATCH($F40,RegionGEN,0))*GramsToMT,4)) ->  | AF40: =IF(OR(ISBLANK($F40),$S40="",$T40=""),"",ROUND($S40*(1+$T40)*INDEX('eGRID2020 Subregion'!$I$7:$I$36,MATCH($F40,RegionGEN,0))*GramsToMT,4)) ->  | AG40: =IF(OR(ISBLANK($F40),$S40="",$T40=""),"",ROUND($S40*(1+$T40)*INDEX('eGRID2020 Subregion'!$E$7:$E$36,MATCH($F40,RegionGEN,0))*GramsToMT,1)) ->  | AH40: =IF(OR(ISBLANK($F40),$S40="",$T40=""),"",$S40*(1+$T40)*INDEX('eGRID2020 Subregion'!$F$7:$F$33,MATCH($F40,RegionGEN,0))*GramsToMT) ->  | AI40: =IF(OR(ISBLANK($F40),$S40="",$T40=""),"",$S40*(1+$T40)*INDEX('eGRID2020 Subregion'!$G$7:$G$33,MATCH($F40,RegionGEN,0))*GramsToMT) ->  | AJ40: =IF(ISBLANK($F40),"",ROUND(AG40*References!$B$28+AH40*References!$B$29+'General Calculator'!AI40*References!$B$30,1)) ->  | AS40: =IF(OR(W40="",AM40="",W40=0),"", AM40/W40) -> 
R41: =SUMIF(R5:R40, "<>#N/A") -> 0 | S41: =SUMIF(S5:S40, "<>#N/A") -> 0 | V41: =SUMIF(V5:V40, "<>#N/A") -> 0.0000 | W41: =SUMIF(W5:W40, "<>#N/A") -> 0.0000 | X41: 0.0000 | Y41: 0.0 | Z41: 0.0 | AA41: 0.0 | AB41: 0.0 | AD41: =SUMIF(AD5:AD40, "<>#N/A") -> 0.0000 | AE41: =SUMIF(AE5:AE40, "<>#N/A") -> 0.0000 | AF41: =SUMIF(AF5:AF40, "<>#N/A") -> 0.0000 | AG41: =SUMIF(AG5:AG40, "<>#N/A") -> 0.0 | AH41: =SUMIF(AH5:AH40, "<>#N/A") -> 0.0 | AI41: 0.0 | AJ41: =SUMIF(AJ5:AJ40, "<>#N/A") -> 0.0 | AL41: =SUMIF(AL5:AL40, "<>#N/A") -> 0.0000 | AM41: =SUMIF(AM5:AM40, "<>#N/A") -> 0.0000 | AN41: =SUMIF(AN5:AN40, "<>#N/A") -> 0.0000 | AO41: =SUMIF(AO5:AO40, "<>#N/A") -> 0.0 | AP41: =SUMIF(AP5:AP40, "<>#N/A") -> 0.0 | AR41: =IF(OR(V41="",AL41="",V41=0),"", AL41/V41) ->  | AS41: =IF(OR(W41="",AM41="",W41=0),"", AM41/W41) ->  | AT41: =IF(OR(X41="",AN41="",X41=0),"", AN41/X41) ->  | AU41: =IF(OR(AB41="",AO41="",AB41=0),"", AO41/AB41) ->  | AV41: =IF(OR(AB41="",AP41="",AB41=0),"", AP41/AB41) ->  | AX41: =SUMIF(AX5:AX40, "<>#N/A") -> $0 | AY41: =SUMIF(AY5:AY40, "<>#N/A") -> $0 | AZ41: $0 | BB41: =SUMIF(BB5:BB40, "<>#N/A") -> $0 | BC41: =SUMIF(BC5:BC40, "<>#N/A") -> $0 | BD41: =SUMIF(BD5:BD40, "<>#N/A") -> $0

Sheet Detailed Calculator
A1: Emissions Calculator: Transport Refrigeration Unit (TRU) - Detailed Calculator | AH1: Annual Emissions Results - Diesel TRU vs. eTRU | BJ1: Incremental Costs/Savings - Diesel TRU vs. eTRU
A2: =IF(COUNTIF($F$5:$F$40,"USER DEFINED*")>0,"To input user-defined eGRID emissions rates, enter your own values at the bottom of the ""eGRID2020 Subregion"" tab. Then select ""USER DEFINED"" eGRID region in this column (at the bottom of the drop-down list).","") ->  | AH2: Diesel TRU Emissions (MT) | AP2: eTRU Emissions (MT) | AX2: Difference (MT) | BD2: Percent Difference | BJ2: Incremental Costs | BN2: Operational Savings
A3: User Type | B3: TRU Type | C3: Model Year | D3: Number of TRUs | E3: Plug Location | F3: eGRID Subregion | G3: TRU Power Rating (hp or kW) | J3: Average TRU Load Factor | L3: Total Annual Operating Hours per TRU | N3: Percent of Annual Operating Hours Stationary with Plug-in Access | O3: Annual Engine Hours Stationary with Plug-in Access per TRU | Q3: eTRU-to-Plug Ratio | S3: Average Regional Diesel Fuel Price ($/gal) | U3: Average Regional Electricity Price ($/kWh) | W3: Incremental Capital Cost per eTRU ($) | Y3: Electric Infrastructure Capital Cost per eTRU ($) | AA3: Annual Maintenance Savings per eTRU ($) | AD3: Annual Diesel TRU Energy Consumption Displaced (kWh) | AE3: Annual eTRU Energy Consumption (kWh) | AF3: GGL (%) | AH3: NOx | AI3: SO2 | AJ3: PM2.5 | AK3: CO2 | AL3: CH4 | AM3: N2O | AN3: CO2e | AP3: NOx | AQ3: SO2 | AR3: PM2.5 | AS3: CO2 | AT3: CH4 | AU3: N2O | AV3: CO2e | AX3: NOx | AY3: SO2 | AZ3: PM2.5 | BA3: CO2 | BB3: CO2e | BD3: NOx | BE3: SO2 | BF3: PM2.5 | BG3: CO2 | BH3: CO2e | BJ3: Total eTRU Capital Cost ($) | BK3: Total Electric Infrastructure Cost ($) | BL3: Total Capital Cost ($) | BN3: Annual eTRU Maintenance Savings ($) | BO3: Annual eTRU Operating Savings ($) | BP3: Total eTRU Savings ($)
A4: Dropdown | B4: Dropdown | C4: Dropdown | D4: Numeric Input | E4: Dropdown | F4: Dropdown | G4: Unit | H4: Default | I4: Numeric Input | J4: Default | K4: Numeric Input | L4: Default | M4: Numeric Input | N4: Default | O4: Default | P4: Numeric Input | Q4: Default | R4: Numeric Input | S4: Default | T4: Numeric Input | U4: Default | V4: Numeric Input | W4: Default | X4: Numeric Input | Y4: Default | Z4: Numeric Input | AA4: Default | AB4: Numeric Input | AD4: Output | AE4: Output | AF4: Output | AH4: Output | AI4: Output | AJ4: Output | AK4: Output | AL4: Output | AM4: Output | AN4: Output | AP4: Output | AQ4: Output | AR4: Output | AS4: Output | AT4: Output | AU4: Output | AV4: Output | AX4: Output | AY4: Output | AZ4: Output | BA4: Output | BB4: Output | BD4: Output | BE4: Output | BF4: Output | BG4: Output | BH4: Output | BJ4: Output | BK4: Output | BL4: Output | BN4: Output | BO4: Output | BP4: Output
G5: hp | H5: =IF(OR(ISBLANK($B5),ISBLANK($C5)),"",ROUND(INDEX('TRU Ops & Costs'!$D$4:$D$74,MATCH($B5&$C5,'TRU Ops & Costs'!$P$4:$P$74,0))/IF($G5="hp",0.7457,1),0)) ->  | J5: =IF(OR(ISBLANK($B5),ISBLANK($C5)),"",INDEX('TRU Ops & Costs'!$E$4:$E$74,MATCH($B5&$C5,'TRU Ops & Costs'!$P$4:$P$74,0))) ->  | L5: =IF(OR(ISBLANK($B5),ISBLANK($C5)),"",INDEX('TRU Ops & Costs'!$F$4:$F$74,MATCH($B5&$C5,'TRU Ops & Costs'!$P$4:$P$74,0))) ->  | N5: =IF(OR(ISBLANK($B5),ISBLANK($C5)),"",INDEX('TRU Ops & Costs'!$G$4:$G$74,MATCH($B5&$C5,'TRU Ops & Costs'!$P$4:$P$74,0))) ->  | O5: =IF(OR(AND($L5="",ISBLANK($M5)),$N5=""),"",IF(ISBLANK($M5),$L5,$M5)*$N5) ->  | Q5: =IF(OR(ISBLANK($B5),ISBLANK($C5)),"",1) ->  | S5: =IF(ISBLANK($F5),"",IFERROR(INDEX('Diesel Fuel Prices'!$D$5:$D$31,MATCH($F5,'Diesel Fuel Prices'!$B$5:$B$31,0)),INDEX('Diesel Fuel Prices'!$D$5:$D$31,MATCH("U.S. Average",'Diesel Fuel Prices'!$B$5:$B$31,0)))*References!$B$38/References!$B$37) ->  | U5: =IF(ISBLANK($F5),"",IFERROR(INDEX('Electricity Prices'!$F$4:$F$31,MATCH($F5,'Electricity Prices'!$B$4:$B$31,0)),INDEX('Electricity Prices'!$F$4:$F$31,MATCH("All U.S.",'Electricity Prices'!$B$4:$B$31,0)))*References!$B$38/References!$B$37) ->  | W5: =IF(OR(ISBLANK($B5),ISBLANK($C5)),"",INDEX('TRU Ops & Costs'!$I$4:$I$74,MATCH($B5&$C5,'TRU Ops & Costs'!$P$4:$P$74,0))) ->  | Y5: =IFERROR(IF(AND(ISBLANK(Q5),ISBLANK(R5)),"",IF(OR(ISBLANK($B5),ISBLANK($C5)),"",(IF(E5="Yard",INDEX('TRU Ops & Costs'!$J$4:$J$74,MATCH($B5&$C5,'TRU Ops & Costs'!$P$4:$P$74,0)),INDEX('TRU Ops & Costs'!$K$4:$K$74,MATCH($B5&$C5,'TRU Ops & Costs'!$P$4:$P$74,0)))))/(IF(ISBLANK(R5),Q5,R5))),"") ->  | AA5: =IF(OR(ISBLANK($B5),ISBLANK($C5),AND($O5="",ISBLANK($P5))),"",IF(ISBLANK($P5),$O5,$P5)*INDEX('TRU Ops & Costs'!$M$4:$M$74,MATCH($B5&$C5,'TRU Ops & Costs'!$P$4:$P$74,0))*-INDEX('TRU Ops & Costs'!$L$4:$L$74,MATCH($B5&$C5,'TRU Ops & Costs'!$P$4:$P$74,0))) ->  | AD5: =IF(OR(ISBLANK($D5),AND($H5="",ISBLANK($I5)),AND($J5="",ISBLANK($K5)),AND($O5="",ISBLANK($P5))),"",$D5*ROUND(IF(ISBLANK($I5),$H5,$I5)*IF($G5="hp",0.7457,1),0)*IF(ISBLANK($K5),$J5,$K5)*IF(ISBLANK($P5),$O5,$P5)) ->  | AE5: =IF(OR(ISBLANK($D5),AND($H5="",ISBLANK($I5)),AND($J5="",ISBLANK($K5)),AND($O5="",ISBLANK($P5))),"",AD5/EfficiencyImprovement) ->  | AF5: =IF(ISBLANK($F5),"",INDEX('eGRID2020 Subregion'!$J$7:$J$35,MATCH($F5,RegionUSER,0))) ->  | AH5: =IF(OR(ISBLANK($B5),ISBLANK($C5),$AD5=""),"",ROUND($AD5*INDEX('Diesel TRU Emission Factors'!$D$6:$D$76,MATCH($B5&$C5,'Diesel TRU Emission Factors'!$R$6:$R$77,0))*GramsToMT,4)) ->  | AI5: =IF(OR(ISBLANK($B5),ISBLANK($C5),$AD5=""),"",ROUND($AD5*INDEX('Diesel TRU Emission Factors'!$E$6:$E$76,MATCH($B5&$C5,'Diesel TRU Emission Factors'!$R$6:$R$77,0))*GramsToMT,4)) ->  | AJ5: =IF(OR(ISBLANK($B5),ISBLANK($C5),$AD5=""),"",ROUND($AD5*INDEX('Diesel TRU Emission Factors'!$H$6:$H$76,MATCH($B5&$C5,'Diesel TRU Emission Factors'!$R$6:$R$77,0))*GramsToMT,4)) ->  | AK5: =IF(OR(ISBLANK($B5),ISBLANK($C5),$AD5=""),"",ROUND($AD5*INDEX('Diesel TRU Emission Factors'!$F$6:$F$76,MATCH($B5&$C5,'Diesel TRU Emission Factors'!$R$6:$R$77,0))*GramsToMT,1)) ->  | AL5: =IF(OR(ISBLANK($B5),ISBLANK($C5),$AD5=""),"",$AD5*INDEX('Diesel TRU Emission Factors'!$G$6:$G$76,MATCH($B5&$C5,'Diesel TRU Emission Factors'!$R$6:$R$77,0))*GramsToMT) ->  | AM5: =IF(ISBLANK(F5),"",AD5*GalTokWh*'Diesel TRU Emission Factors'!$P$4/1000000) ->  | AN5: =IF(ISBLANK($F5),"",ROUND(AK5*References!$B$28+AL5*References!$B$29+AM5*References!$B$30,1)) ->  | AP5: =IF(OR(ISBLANK($F5),$AE5="",$AF5=""),"",ROUND($AE5*(1+$AF5)*INDEX('eGRID2020 Subregion'!$C$7:$C$36,MATCH($F5,RegionUSER,0))*GramsToMT,4)) ->  | AQ5: =IF(OR(ISBLANK($F5),$AE5="",$AF5=""),"",ROUND($AE5*(1+$AF5)*INDEX('eGRID2020 Subregion'!$D$7:$D$36,MATCH($F5,RegionUSER,0))*GramsToMT,4)) ->  | AR5: =IF(OR(ISBLANK($F5),$AE5="",$AF5=""),"",ROUND($AE5*(1+$AF5)*INDEX('eGRID2020 Subregion'!$I$7:$I$36,MATCH($F5,RegionUSER,0))*GramsToMT,4)) ->  | AS5: =IF(OR(ISBLANK($F5),$AE5="",$AF5=""),"",ROUND($AE5*(1+$AF5)*INDEX('eGRID2020 Subregion'!$E$7:$E$36,MATCH($F5,RegionUSER,0))*GramsToMT,1)) ->  | AT5: =IF(OR(ISBLANK($F5),$AE5="",$AF5=""),"",$AE5*(1+$AF5)*INDEX('eGRID2020 Subregion'!$F$7:$F$35,MATCH($F5,RegionUSER,0))*GramsToMT) ->  | AU5: =IF(OR(ISBLANK($F5),$AE5="",$AF5=""),"",$AE5*(1+$AF5)*INDEX('eGRID2020 Subregion'!$G$7:$G$35,MATCH($F5,RegionUSER,0))*GramsToMT) ->  | AV5: =IF(ISBLANK($F5),"",ROUND(AS5*References!$B$28+AT5*References!$B$29+AU5*References!$B$30,1)) ->  | AX5: =IF(OR(AH5="",AP5=""),"",ROUND(AP5-AH5,4)) ->  | AY5: =IF(OR(AI5="",AQ5=""),"",ROUND(AQ5-AI5,4)) ->  | AZ5: =IF(OR(AJ5="",AR5=""),"",ROUND(AR5-AJ5,4)) ->  | BA5: =IF(OR(AK5="",AS5=""),"",ROUND(AS5-AK5,1)) ->  | BB5: =IF(OR(AN5="",AV5=""),"",ROUND(AV5-AN5,1)) ->  | BD5: =IF(OR(AH5="",AX5="",AH5=0),"",ROUND(AX5/AH5,2)) ->  | BE5: =IF(OR(AI5="",AY5="",AI5=0),"", AY5/AI5) ->  | BF5: =IF(OR(AJ5="",AZ5="",AJ5=0),"",ROUND(AZ5/AJ5,2)) ->  | BG5: =IF(OR(AK5="",BA5="",AK5=0),"",ROUND(BA5/AK5,2)) ->  | BH5: =IF(OR(AN5="",BB5="",AN5=0),"",ROUND(BB5/AN5,2)) ->  | BJ5: =IF(OR(ISBLANK($D5),AND($W5="",ISBLANK($X5))),"",$D5*IF(ISBLANK($X5),$W5,$X5)) ->  | BK5: =IF(OR(ISBLANK($D5),AND($Y5="",ISBLANK($Z5))),"",$D5*IF(ISBLANK($Z5),$Y5,$Z5)) ->  | BL5: =IF(OR($BJ5="",$BK5=""),"",$BJ5+$BK5) ->  | BN5: =IF(OR(ISBLANK($D5),AND($AA5="",ISBLANK($AB5))),"",$D5*IF(ISBLANK($AB5),$AA5,$AB5)) ->  | BO5: =IF(OR($AD5="",$AF5="",AND($S5="",ISBLANK($T5)),AND($U5="",ISBLANK($V5))),"",($AD5*(IF(ISBLANK($T5),$S5,$T5)*GalTokWh))-($AE5*IF(ISBLANK($V5),$U5,$V5)*(1+$AF5))) ->  | BP5: =IF(OR($BN5="",$BO5=""),"",$BN5+$BO5) -> 
H6: =IF(OR(ISBLANK($B6),ISBLANK($C6)),"",ROUND(INDEX('TRU Ops & Costs'!$D$4:$D$74,MATCH($B6&$C6,'TRU Ops & Costs'!$P$4:$P$74,0))/IF($G6="hp",0.7457,1),0)) ->  | J6: =IF(OR(ISBLANK($B6),ISBLANK($C6)),"",INDEX('TRU Ops & Costs'!$E$4:$E$74,MATCH($B6&$C6,'TRU Ops & Costs'!$P$4:$P$74,0))) ->  | L6: =IF(OR(ISBLANK($B6),ISBLANK($C6)),"",INDEX('TRU Ops & Costs'!$F$4:$F$74,MATCH($B6&$C6,'TRU Ops & Costs'!$P$4:$P$74,0))) ->  | N6: =IF(OR(ISBLANK($B6),ISBLANK($C6)),"",INDEX('TRU Ops & Costs'!$G$4:$G$74,MATCH($B6&$C6,'TRU Ops & Costs'!$P$4:$P$74,0))) ->  | Q6: =IF(OR(ISBLANK($B6),ISBLANK($C6)),"",1) ->  | S6: =IF(ISBLANK($F6),"",IFERROR(INDEX('Diesel Fuel Prices'!$D$5:$D$31,MATCH($F6,'Diesel Fuel Prices'!$B$5:$B$31,0)),INDEX('Diesel Fuel Prices'!$D$5:$D$31,MATCH("U.S. Average",'Diesel Fuel Prices'!$B$5:$B$31,0)))*References!$B$38/References!$B$37) ->  | U6: =IF(ISBLANK($F6),"",IFERROR(INDEX('Electricity Prices'!$F$4:$F$31,MATCH($F6,'Electricity Prices'!$B$4:$B$31,0)),INDEX('Electricity Prices'!$F$4:$F$31,MATCH("All U.S.",'Electricity Prices'!$B$4:$B$31,0)))*References!$B$38/References!$B$37) ->  | W6: =IF(OR(ISBLANK($B6),ISBLANK($C6)),"",INDEX('TRU Ops & Costs'!$I$4:$I$74,MATCH($B6&$C6,'TRU Ops & Costs'!$P$4:$P$74,0))) ->  | Y6: =IFERROR(IF(AND(ISBLANK(Q6),ISBLANK(R6)),"",IF(OR(ISBLANK($B6),ISBLANK($C6)),"",(IF(E6="Yard",INDEX('TRU Ops & Costs'!$J$4:$J$74,MATCH($B6&$C6,'TRU Ops & Costs'!$P$4:$P$74,0)),INDEX('TRU Ops & Costs'!$K$4:$K$74,MATCH($B6&$C6,'TRU Ops & Costs'!$P$4:$P$74,0)))))/(IF(ISBLANK(R6),Q6,R6))),"") ->  | AA6: =IF(OR(ISBLANK($B6),ISBLANK($C6),AND($O6="",ISBLANK($P6))),"",IF(ISBLANK($P6),$O6,$P6)*INDEX('TRU Ops & Costs'!$M$4:$M$74,MATCH($B6&$C6,'TRU Ops & Costs'!$P$4:$P$74,0))*-INDEX('TRU Ops & Costs'!$L$4:$L$74,MATCH($B6&$C6,'TRU Ops & Costs'!$P$4:$P$74,0))) ->  | AF6: =IF(ISBLANK($F6),"",INDEX('eGRID2020 Subregion'!$J$7:$J$35,MATCH($F6,RegionUSER,0))) ->  | AH6: =IF(OR(ISBLANK($B6),ISBLANK($C6),$AD6=""),"",ROUND($AD6*INDEX('Diesel TRU Emission Factors'!$D$6:$D$76,MATCH($B6&$C6,'Diesel TRU Emission Factors'!$R$6:$R$77,0))*GramsToMT,4)) ->  | AI6: =IF(OR(ISBLANK($B6),ISBLANK($C6),$AD6=""),"",ROUND($AD6*INDEX('Diesel TRU Emission Factors'!$E$6:$E$76,MATCH($B6&$C6,'Diesel TRU Emission Factors'!$R$6:$R$77,0))*GramsToMT,4)) ->  | AJ6: =IF(OR(ISBLANK($B6),ISBLANK($C6),$AD6=""),"",ROUND($AD6*INDEX('Diesel TRU Emission Factors'!$H$6:$H$76,MATCH($B6&$C6,'Diesel TRU Emission Factors'!$R$6:$R$77,0))*GramsToMT,4)) ->  | AK6: =IF(OR(ISBLANK($B6),ISBLANK($C6),$AD6=""),"",ROUND($AD6*INDEX('Diesel TRU Emission Factors'!$F$6:$F$76,MATCH($B6&$C6,'Diesel TRU Emission Factors'!$R$6:$R$77,0))*GramsToMT,1)) ->  | AL6: =IF(OR(ISBLANK($B6),ISBLANK($C6),$AD6=""),"",$AD6*INDEX('Diesel TRU Emission Factors'!$G$6:$G$76,MATCH($B6&$C6,'Diesel TRU Emission Factors'!$R$6:$R$77,0))*GramsToMT) ->  | AM6: =IF(ISBLANK(F6),"",AD6*GalTokWh*'Diesel TRU Emission Factors'!$P$4/1000000) ->  | AN6: =IF(ISBLANK($F6),"",ROUND(AK6*References!$B$28+AL6*References!$B$29+AM6*References!$B$30,1)) ->  | AP6: =IF(OR(ISBLANK($F6),$AE6="",$AF6=""),"",ROUND($AE6*(1+$AF6)*INDEX('eGRID2020 Subregion'!$C$7:$C$36,MATCH($F6,RegionUSER,0))*GramsToMT,4)) ->  | AQ6: =IF(OR(ISBLANK($F6),$AE6="",$AF6=""),"",ROUND($AE6*(1+$AF6)*INDEX('eGRID2020 Subregion'!$D$7:$D$36,MATCH($F6,RegionUSER,0))*GramsToMT,4)) ->  | AR6: =IF(OR(ISBLANK($F6),$AE6="",$AF6=""),"",ROUND($AE6*(1+$AF6)*INDEX('eGRID2020 Subregion'!$I$7:$I$36,MATCH($F6,RegionUSER,0))*GramsToMT,4)) ->  | AS6: =IF(OR(ISBLANK($F6),$AE6="",$AF6=""),"",ROUND($AE6*(1+$AF6)*INDEX('eGRID2020 Subregion'!$E$7:$E$36,MATCH($F6,RegionUSER,0))*GramsToMT,1)) ->  | AT6: =IF(OR(ISBLANK($F6),$AE6="",$AF6=""),"",$AE6*(1+$AF6)*INDEX('eGRID2020 Subregion'!$F$7:$F$35,MATCH($F6,RegionUSER,0))*GramsToMT) ->  | AU6: =IF(OR(ISBLANK($F6),$AE6="",$AF6=""),"",$AE6*(1+$AF6)*INDEX('eGRID2020 Subregion'!$G$7:$G$35,MATCH($F6,RegionUSER,0))*GramsToMT) ->  | AV6: =IF(ISBLANK($F6),"",ROUND(AS6*References!$B$28+AT6*References!$B$29+AU6*References!$B$30,1)) ->  | BL6: =IF(OR($BJ6="",$BK6=""),"",$BJ6+$BK6) ->  | BO6: =IF(OR($AD6="",$AF6="",AND($S6="",ISBLANK($T6)),AND($U6="",ISBLANK($V6))),"",($AD6*(IF(ISBLANK($T6),$S6,$T6)*GalTokWh))-($AE6*IF(ISBLANK($V6),$U6,$V6)*(1+$AF6))) ->  | BP6: =IF(OR($BN6="",$BO6=""),"",$BN6+$BO6) -> 
H7: =IF(OR(ISBLANK($B7),ISBLANK($C7)),"",ROUND(INDEX('TRU Ops & Costs'!$D$4:$D$74,MATCH($B7&$C7,'TRU Ops & Costs'!$P$4:$P$74,0))/IF($G7="hp",0.7457,1),0)) ->  | J7: =IF(OR(ISBLANK($B7),ISBLANK($C7)),"",INDEX('TRU Ops & Costs'!$E$4:$E$74,MATCH($B7&$C7,'TRU Ops & Costs'!$P$4:$P$74,0))) ->  | L7: =IF(OR(ISBLANK($B7),ISBLANK($C7)),"",INDEX('TRU Ops & Costs'!$F$4:$F$74,MATCH($B7&$C7,'TRU Ops & Costs'!$P$4:$P$74,0))) ->  | N7: =IF(OR(ISBLANK($B7),ISBLANK($C7)),"",INDEX('TRU Ops & Costs'!$G$4:$G$74,MATCH($B7&$C7,'TRU Ops & Costs'!$P$4:$P$74,0))) ->  | S7: =IF(ISBLANK($F7),"",IFERROR(INDEX('Diesel Fuel Prices'!$D$5:$D$31,MATCH($F7,'Diesel Fuel Prices'!$B$5:$B$31,0)),INDEX('Diesel Fuel Prices'!$D$5:$D$31,MATCH("U.S. Average",'Diesel Fuel Prices'!$B$5:$B$31,0)))*References!$B$38/References!$B$37) ->  | U7: =IF(ISBLANK($F7),"",IFERROR(INDEX('Electricity Prices'!$F$4:$F$31,MATCH($F7,'Electricity Prices'!$B$4:$B$31,0)),INDEX('Electricity Prices'!$F$4:$F$31,MATCH("All U.S.",'Electricity Prices'!$B$4:$B$31,0)))*References!$B$38/References!$B$37) ->  | W7: =IF(OR(ISBLANK($B7),ISBLANK($C7)),"",INDEX('TRU Ops & Costs'!$I$4:$I$74,MATCH($B7&$C7,'TRU Ops & Costs'!$P$4:$P$74,0))) ->  | Y7: =IFERROR(IF(AND(ISBLANK(Q7),ISBLANK(R7)),"",IF(OR(ISBLANK($B7),ISBLANK($C7)),"",(IF(E7="Yard",INDEX('TRU Ops & Costs'!$J$4:$J$74,MATCH($B7&$C7,'TRU Ops & Costs'!$P$4:$P$74,0)),INDEX('TRU Ops & Costs'!$K$4:$K$74,MATCH($B7&$C7,'TRU Ops & Costs'!$P$4:$P$74,0)))))/(IF(ISBLANK(R7),Q7,R7))),"") ->  | AA7: =IF(OR(ISBLANK($B7),ISBLANK($C7),AND($O7="",ISBLANK($P7))),"",IF(ISBLANK($P7),$O7,$P7)*INDEX('TRU Ops & Costs'!$M$4:$M$74,MATCH($B7&$C7,'TRU Ops & Costs'!$P$4:$P$74,0))*-INDEX('TRU Ops & Costs'!$L$4:$L$74,MATCH($B7&$C7,'TRU Ops & Costs'!$P$4:$P$74,0))) ->  | AF7: =IF(ISBLANK($F7),"",INDEX('eGRID2020 Subregion'!$J$7:$J$35,MATCH($F7,RegionUSER,0))) ->  | AH7: =IF(OR(ISBLANK($B7),ISBLANK($C7),$AD7=""),"",ROUND($AD7*INDEX('Diesel TRU Emission Factors'!$D$6:$D$76,MATCH($B7&$C7,'Diesel TRU Emission Factors'!$R$6:$R$77,0))*GramsToMT,4)) ->  | AI7: =IF(OR(ISBLANK($B7),ISBLANK($C7),$AD7=""),"",ROUND($AD7*INDEX('Diesel TRU Emission Factors'!$E$6:$E$76,MATCH($B7&$C7,'Diesel TRU Emission Factors'!$R$6:$R$77,0))*GramsToMT,4)) ->  | AJ7: =IF(OR(ISBLANK($B7),ISBLANK($C7),$AD7=""),"",ROUND($AD7*INDEX('Diesel TRU Emission Factors'!$H$6:$H$76,MATCH($B7&$C7,'Diesel TRU Emission Factors'!$R$6:$R$77,0))*GramsToMT,4)) ->  | AK7: =IF(OR(ISBLANK($B7),ISBLANK($C7),$AD7=""),"",ROUND($AD7*INDEX('Diesel TRU Emission Factors'!$F$6:$F$76,MATCH($B7&$C7,'Diesel TRU Emission Factors'!$R$6:$R$77,0))*GramsToMT,1)) ->  | AL7: =IF(OR(ISBLANK($B7),ISBLANK($C7),$AD7=""),"",$AD7*INDEX('Diesel TRU Emission Factors'!$G$6:$G$76,MATCH($B7&$C7,'Diesel TRU Emission Factors'!$R$6:$R$77,0))*GramsToMT) ->  | AM7: =IF(ISBLANK(F7),"",AD7*GalTokWh*'Diesel TRU Emission Factors'!$P$4/1000000) ->  | AN7: =IF(ISBLANK($F7),"",ROUND(AK7*References!$B$28+AL7*References!$B$29+AM7*References!$B$30,1)) ->  | AP7: =IF(OR(ISBLANK($F7),$AE7="",$AF7=""),"",ROUND($AE7*(1+$AF7)*INDEX('eGRID2020 Subregion'!$C$7:$C$36,MATCH($F7,RegionUSER,0))*GramsToMT,4)) ->  | AQ7: =IF(OR(ISBLANK($F7),$AE7="",$AF7=""),"",ROUND($AE7*(1+$AF7)*INDEX('eGRID2020 Subregion'!$D$7:$D$36,MATCH($F7,RegionUSER,0))*GramsToMT,4)) ->  | AR7: =IF(OR(ISBLANK($F7),$AE7="",$AF7=""),"",ROUND($AE7*(1+$AF7)*INDEX('eGRID2020 Subregion'!$I$7:$I$36,MATCH($F7,RegionUSER,0))*GramsToMT,4)) ->  | AS7: =IF(OR(ISBLANK($F7),$AE7="",$AF7=""),"",ROUND($AE7*(1+$AF7)*INDEX('eGRID2020 Subregion'!$E$7:$E$36,MATCH($F7,RegionUSER,0))*GramsToMT,1)) ->  | AT7: =IF(OR(ISBLANK($F7),$AE7="",$AF7=""),"",$AE7*(1+$AF7)*INDEX('eGRID2020 Subregion'!$F$7:$F$35,MATCH($F7,RegionUSER,0))*GramsToMT) ->  | AU7: =IF(OR(ISBLANK($F7),$AE7="",$AF7=""),"",$AE7*(1+$AF7)*INDEX('eGRID2020 Subregion'!$G$7:$G$35,MATCH($F7,RegionUSER,0))*GramsToMT) ->  | AV7: =IF(ISBLANK($F7),"",ROUND(AS7*References!$B$28+AT7*References!$B$29+AU7*References!$B$30,1)) ->  | BE7: =IF(OR(AI7="",AY7="",AI7=0),"", AY7/AI7) ->  | BL7: =IF(OR($BJ7="",$BK7=""),"",$BJ7+$BK7) ->  | BO7: =IF(OR($AD7="",$AF7="",AND($S7="",ISBLANK($T7)),AND($U7="",ISBLANK($V7))),"",($AD7*(IF(ISBLANK($T7),$S7,$T7)*GalTokWh))-($AE7*IF(ISBLANK($V7),$U7,$V7)*(1+$AF7))) ->  | BP7: =IF(OR($BN7="",$BO7=""),"",$BN7+$BO7) -> 
G8: hp | H8: =IF(OR(ISBLANK($B8),ISBLANK($C8)),"",ROUND(INDEX('TRU Ops & Costs'!$D$4:$D$74,MATCH($B8&$C8,'TRU Ops & Costs'!$P$4:$P$74,0))/IF($G8="hp",0.7457,1),0)) ->  | J8: =IF(OR(ISBLANK($B8),ISBLANK($C8)),"",INDEX('TRU Ops & Costs'!$E$4:$E$74,MATCH($B8&$C8,'TRU Ops & Costs'!$P$4:$P$74,0))) ->  | L8: =IF(OR(ISBLANK($B8),ISBLANK($C8)),"",INDEX('TRU Ops & Costs'!$F$4:$F$74,MATCH($B8&$C8,'TRU Ops & Costs'!$P$4:$P$74,0))) ->  | N8: =IF(OR(ISBLANK($B8),ISBLANK($C8)),"",INDEX('TRU Ops & Costs'!$G$4:$G$74,MATCH($B8&$C8,'TRU Ops & Costs'!$P$4:$P$74,0))) ->  | S8: =IF(ISBLANK($F8),"",IFERROR(INDEX('Diesel Fuel Prices'!$D$5:$D$31,MATCH($F8,'Diesel Fuel Prices'!$B$5:$B$31,0)),INDEX('Diesel Fuel Prices'!$D$5:$D$31,MATCH("U.S. Average",'Diesel Fuel Prices'!$B$5:$B$31,0)))*References!$B$38/References!$B$37) ->  | U8: =IF(ISBLANK($F8),"",IFERROR(INDEX('Electricity Prices'!$F$4:$F$31,MATCH($F8,'Electricity Prices'!$B$4:$B$31,0)),INDEX('Electricity Prices'!$F$4:$F$31,MATCH("All U.S.",'Electricity Prices'!$B$4:$B$31,0)))*References!$B$38/References!$B$37) ->  | W8: =IF(OR(ISBLANK($B8),ISBLANK($C8)),"",INDEX('TRU Ops & Costs'!$I$4:$I$74,MATCH($B8&$C8,'TRU Ops & Costs'!$P$4:$P$74,0))) ->  | Y8: =IFERROR(IF(AND(ISBLANK(Q8),ISBLANK(R8)),"",IF(OR(ISBLANK($B8),ISBLANK($C8)),"",(IF(E8="Yard",INDEX('TRU Ops & Costs'!$J$4:$J$74,MATCH($B8&$C8,'TRU Ops & Costs'!$P$4:$P$74,0)),INDEX('TRU Ops & Costs'!$K$4:$K$74,MATCH($B8&$C8,'TRU Ops & Costs'!$P$4:$P$74,0)))))/(IF(ISBLANK(R8),Q8,R8))),"") ->  | AA8: =IF(OR(ISBLANK($B8),ISBLANK($C8),AND($O8="",ISBLANK($P8))),"",IF(ISBLANK($P8),$O8,$P8)*INDEX('TRU Ops & Costs'!$M$4:$M$74,MATCH($B8&$C8,'TRU Ops & Costs'!$P$4:$P$74,0))*-INDEX('TRU Ops & Costs'!$L$4:$L$74,MATCH($B8&$C8,'TRU Ops & Costs'!$P$4:$P$74,0))) ->  | AF8: =IF(ISBLANK($F8),"",INDEX('eGRID2020 Subregion'!$J$7:$J$35,MATCH($F8,RegionUSER,0))) ->  | AH8: =IF(OR(ISBLANK($B8),ISBLANK($C8),$AD8=""),"",ROUND($AD8*INDEX('Diesel TRU Emission Factors'!$D$6:$D$76,MATCH($B8&$C8,'Diesel TRU Emission Factors'!$R$6:$R$77,0))*GramsToMT,4)) ->  | AI8: =IF(OR(ISBLANK($B8),ISBLANK($C8),$AD8=""),"",ROUND($AD8*INDEX('Diesel TRU Emission Factors'!$E$6:$E$76,MATCH($B8&$C8,'Diesel TRU Emission Factors'!$R$6:$R$77,0))*GramsToMT,4)) ->  | AJ8: =IF(OR(ISBLANK($B8),ISBLANK($C8),$AD8=""),"",ROUND($AD8*INDEX('Diesel TRU Emission Factors'!$H$6:$H$76,MATCH($B8&$C8,'Diesel TRU Emission Factors'!$R$6:$R$77,0))*GramsToMT,4)) ->  | AK8: =IF(OR(ISBLANK($B8),ISBLANK($C8),$AD8=""),"",ROUND($AD8*INDEX('Diesel TRU Emission Factors'!$F$6:$F$76,MATCH($B8&$C8,'Diesel TRU Emission Factors'!$R$6:$R$77,0))*GramsToMT,1)) ->  | AL8: =IF(OR(ISBLANK($B8),ISBLANK($C8),$AD8=""),"",$AD8*INDEX('Diesel TRU Emission Factors'!$G$6:$G$76,MATCH($B8&$C8,'Diesel TRU Emission Factors'!$R$6:$R$77,0))*GramsToMT) ->  | AM8: =IF(ISBLANK(F8),"",AD8*GalTokWh*'Diesel TRU Emission Factors'!$P$4/1000000) ->  | AN8: =IF(ISBLANK($F8),"",ROUND(AK8*References!$B$28+AL8*References!$B$29+AM8*References!$B$30,1)) ->  | AP8: =IF(OR(ISBLANK($F8),$AE8="",$AF8=""),"",ROUND($AE8*(1+$AF8)*INDEX('eGRID2020 Subregion'!$C$7:$C$36,MATCH($F8,RegionUSER,0))*GramsToMT,4)) ->  | AQ8: =IF(OR(ISBLANK($F8),$AE8="",$AF8=""),"",ROUND($AE8*(1+$AF8)*INDEX('eGRID2020 Subregion'!$D$7:$D$36,MATCH($F8,RegionUSER,0))*GramsToMT,4)) ->  | AR8: =IF(OR(ISBLANK($F8),$AE8="",$AF8=""),"",ROUND($AE8*(1+$AF8)*INDEX('eGRID2020 Subregion'!$I$7:$I$36,MATCH($F8,RegionUSER,0))*GramsToMT,4)) ->  | AS8: =IF(OR(ISBLANK($F8),$AE8="",$AF8=""),"",ROUND($AE8*(1+$AF8)*INDEX('eGRID2020 Subregion'!$E$7:$E$36,MATCH($F8,RegionUSER,0))*GramsToMT,1)) ->  | AT8: =IF(OR(ISBLANK($F8),$AE8="",$AF8=""),"",$AE8*(1+$AF8)*INDEX('eGRID2020 Subregion'!$F$7:$F$35,MATCH($F8,RegionUSER,0))*GramsToMT) ->  | AU8: =IF(OR(ISBLANK($F8),$AE8="",$AF8=""),"",$AE8*(1+$AF8)*INDEX('eGRID2020 Subregion'!$G$7:$G$35,MATCH($F8,RegionUSER,0))*GramsToMT) ->  | AV8: =IF(ISBLANK($F8),"",ROUND(AS8*References!$B$28+AT8*References!$B$29+AU8*References!$B$30,1)) -> 
G9: hp | H9: =IF(OR(ISBLANK($B9),ISBLANK($C9)),"",ROUND(INDEX('TRU Ops & Costs'!$D$4:$D$74,MATCH($B9&$C9,'TRU Ops & Costs'!$P$4:$P$74,0))/IF($G9="hp",0.7457,1),0)) ->  | J9: =IF(OR(ISBLANK($B9),ISBLANK($C9)),"",INDEX('TRU Ops & Costs'!$E$4:$E$74,MATCH($B9&$C9,'TRU Ops & Costs'!$P$4:$P$74,0))) ->  | L9: =IF(OR(ISBLANK($B9),ISBLANK($C9)),"",INDEX('TRU Ops & Costs'!$F$4:$F$74,MATCH($B9&$C9,'TRU Ops & Costs'!$P$4:$P$74,0))) ->  | N9: =IF(OR(ISBLANK($B9),ISBLANK($C9)),"",INDEX('TRU Ops & Costs'!$G$4:$G$74,MATCH($B9&$C9,'TRU Ops & Costs'!$P$4:$P$74,0))) ->  | S9: =IF(ISBLANK($F9),"",IFERROR(INDEX('Diesel Fuel Prices'!$D$5:$D$31,MATCH($F9,'Diesel Fuel Prices'!$B$5:$B$31,0)),INDEX('Diesel Fuel Prices'!$D$5:$D$31,MATCH("U.S. Average",'Diesel Fuel Prices'!$B$5:$B$31,0)))*References!$B$38/References!$B$37) ->  | U9: =IF(ISBLANK($F9),"",IFERROR(INDEX('Electricity Prices'!$F$4:$F$31,MATCH($F9,'Electricity Prices'!$B$4:$B$31,0)),INDEX('Electricity Prices'!$F$4:$F$31,MATCH("All U.S.",'Electricity Prices'!$B$4:$B$31,0)))*References!$B$38/References!$B$37) ->  | W9: =IF(OR(ISBLANK($B9),ISBLANK($C9)),"",INDEX('TRU Ops & Costs'!$I$4:$I$74,MATCH($B9&$C9,'TRU Ops & Costs'!$P$4:$P$74,0))) ->  | Y9: =IFERROR(IF(AND(ISBLANK(Q9),ISBLANK(R9)),"",IF(OR(ISBLANK($B9),ISBLANK($C9)),"",(IF(E9="Yard",INDEX('TRU Ops & Costs'!$J$4:$J$74,MATCH($B9&$C9,'TRU Ops & Costs'!$P$4:$P$74,0)),INDEX('TRU Ops & Costs'!$K$4:$K$74,MATCH($B9&$C9,'TRU Ops & Costs'!$P$4:$P$74,0)))))/(IF(ISBLANK(R9),Q9,R9))),"") ->  | AA9: =IF(OR(ISBLANK($B9),ISBLANK($C9),AND($O9="",ISBLANK($P9))),"",IF(ISBLANK($P9),$O9,$P9)*INDEX('TRU Ops & Costs'!$M$4:$M$74,MATCH($B9&$C9,'TRU Ops & Costs'!$P$4:$P$74,0))*-INDEX('TRU Ops & Costs'!$L$4:$L$74,MATCH($B9&$C9,'TRU Ops & Costs'!$P$4:$P$74,0))) ->  | AF9: =IF(ISBLANK($F9),"",INDEX('eGRID2020 Subregion'!$J$7:$J$35,MATCH($F9,RegionUSER,0))) ->  | AH9: =IF(OR(ISBLANK($B9),ISBLANK($C9),$AD9=""),"",ROUND($AD9*INDEX('Diesel TRU Emission Factors'!$D$6:$D$76,MATCH($B9&$C9,'Diesel TRU Emission Factors'!$R$6:$R$77,0))*GramsToMT,4)) ->  | AI9: =IF(OR(ISBLANK($B9),ISBLANK($C9),$AD9=""),"",ROUND($AD9*INDEX('Diesel TRU Emission Factors'!$E$6:$E$76,MATCH($B9&$C9,'Diesel TRU Emission Factors'!$R$6:$R$77,0))*GramsToMT,4)) ->  | AJ9: =IF(OR(ISBLANK($B9),ISBLANK($C9),$AD9=""),"",ROUND($AD9*INDEX('Diesel TRU Emission Factors'!$H$6:$H$76,MATCH($B9&$C9,'Diesel TRU Emission Factors'!$R$6:$R$77,0))*GramsToMT,4)) ->  | AK9: =IF(OR(ISBLANK($B9),ISBLANK($C9),$AD9=""),"",ROUND($AD9*INDEX('Diesel TRU Emission Factors'!$F$6:$F$76,MATCH($B9&$C9,'Diesel TRU Emission Factors'!$R$6:$R$77,0))*GramsToMT,1)) ->  | AL9: =IF(OR(ISBLANK($B9),ISBLANK($C9),$AD9=""),"",$AD9*INDEX('Diesel TRU Emission Factors'!$G$6:$G$76,MATCH($B9&$C9,'Diesel TRU Emission Factors'!$R$6:$R$77,0))*GramsToMT) ->  | AM9: =IF(ISBLANK(F9),"",AD9*GalTokWh*'Diesel TRU Emission Factors'!$P$4/1000000) ->  | AN9: =IF(ISBLANK($F9),"",ROUND(AK9*References!$B$28+AL9*References!$B$29+AM9*References!$B$30,1)) ->  | AP9: =IF(OR(ISBLANK($F9),$AE9="",$AF9=""),"",ROUND($AE9*(1+$AF9)*INDEX('eGRID2020 Subregion'!$C$7:$C$36,MATCH($F9,RegionUSER,0))*GramsToMT,4)) ->  | AQ9: =IF(OR(ISBLANK($F9),$AE9="",$AF9=""),"",ROUND($AE9*(1+$AF9)*INDEX('eGRID2020 Subregion'!$D$7:$D$36,MATCH($F9,RegionUSER,0))*GramsToMT,4)) ->  | AR9: =IF(OR(ISBLANK($F9),$AE9="",$AF9=""),"",ROUND($AE9*(1+$AF9)*INDEX('eGRID2020 Subregion'!$I$7:$I$36,MATCH($F9,RegionUSER,0))*GramsToMT,4)) ->  | AS9: =IF(OR(ISBLANK($F9),$AE9="",$AF9=""),"",ROUND($AE9*(1+$AF9)*INDEX('eGRID2020 Subregion'!$E$7:$E$36,MATCH($F9,RegionUSER,0))*GramsToMT,1)) ->  | AT9: =IF(OR(ISBLANK($F9),$AE9="",$AF9=""),"",$AE9*(1+$AF9)*INDEX('eGRID2020 Subregion'!$F$7:$F$35,MATCH($F9,RegionUSER,0))*GramsToMT) ->  | AU9: =IF(OR(ISBLANK($F9),$AE9="",$AF9=""),"",$AE9*(1+$AF9)*INDEX('eGRID2020 Subregion'!$G$7:$G$35,MATCH($F9,RegionUSER,0))*GramsToMT) ->  | AV9: =IF(ISBLANK($F9),"",ROUND(AS9*References!$B$28+AT9*References!$B$29+AU9*References!$B$30,1)) ->  | BL9: =IF(OR($BJ9="",$BK9=""),"",$BJ9+$BK9) ->  | BO9: =IF(OR($AD9="",$AF9="",AND($S9="",ISBLANK($T9)),AND($U9="",ISBLANK($V9))),"",($AD9*(IF(ISBLANK($T9),$S9,$T9)*GalTokWh))-($AE9*IF(ISBLANK($V9),$U9,$V9)*(1+$AF9))) ->  | BP9: =IF(OR($BN9="",$BO9=""),"",$BN9+$BO9) -> 
G10: hp | H10: =IF(OR(ISBLANK($B10),ISBLANK($C10)),"",ROUND(INDEX('TRU Ops & Costs'!$D$4:$D$74,MATCH($B10&$C10,'TRU Ops & Costs'!$P$4:$P$74,0))/IF($G10="hp",0.7457,1),0)) ->  | J10: =IF(OR(ISBLANK($B10),ISBLANK($C10)),"",INDEX('TRU Ops & Costs'!$E$4:$E$74,MATCH($B10&$C10,'TRU Ops & Costs'!$P$4:$P$74,0))) ->  | L10: =IF(OR(ISBLANK($B10),ISBLANK($C10)),"",INDEX('TRU Ops & Costs'!$F$4:$F$74,MATCH($B10&$C10,'TRU Ops & Costs'!$P$4:$P$74,0))) ->  | N10: =IF(OR(ISBLANK($B10),ISBLANK($C10)),"",INDEX('TRU Ops & Costs'!$G$4:$G$74,MATCH($B10&$C10,'TRU Ops & Costs'!$P$4:$P$74,0))) ->  | S10: =IF(ISBLANK($F10),"",IFERROR(INDEX('Diesel Fuel Prices'!$D$5:$D$31,MATCH($F10,'Diesel Fuel Prices'!$B$5:$B$31,0)),INDEX('Diesel Fuel Prices'!$D$5:$D$31,MATCH("U.S. Average",'Diesel Fuel Prices'!$B$5:$B$31,0)))*References!$B$38/References!$B$37) ->  | U10: =IF(ISBLANK($F10),"",IFERROR(INDEX('Electricity Prices'!$F$4:$F$31,MATCH($F10,'Electricity Prices'!$B$4:$B$31,0)),INDEX('Electricity Prices'!$F$4:$F$31,MATCH("All U.S.",'Electricity Prices'!$B$4:$B$31,0)))*References!$B$38/References!$B$37) ->  | W10: =IF(OR(ISBLANK($B10),ISBLANK($C10)),"",INDEX('TRU Ops & Costs'!$I$4:$I$74,MATCH($B10&$C10,'TRU Ops & Costs'!$P$4:$P$74,0))) ->  | Y10: =IFERROR(IF(AND(ISBLANK(Q10),ISBLANK(R10)),"",IF(OR(ISBLANK($B10),ISBLANK($C10)),"",(IF(E10="Yard",INDEX('TRU Ops & Costs'!$J$4:$J$74,MATCH($B10&$C10,'TRU Ops & Costs'!$P$4:$P$74,0)),INDEX('TRU Ops & Costs'!$K$4:$K$74,MATCH($B10&$C10,'TRU Ops & Costs'!$P$4:$P$74,0)))))/(IF(ISBLANK(R10),Q10,R10))),"") ->  | AA10: =IF(OR(ISBLANK($B10),ISBLANK($C10),AND($O10="",ISBLANK($P10))),"",IF(ISBLANK($P10),$O10,$P10)*INDEX('TRU Ops & Costs'!$M$4:$M$74,MATCH($B10&$C10,'TRU Ops & Costs'!$P$4:$P$74,0))*-INDEX('TRU Ops & Costs'!$L$4:$L$74,MATCH($B10&$C10,'TRU Ops & Costs'!$P$4:$P$74,0))) ->  | AF10: =IF(ISBLANK($F10),"",INDEX('eGRID2020 Subregion'!$J$7:$J$35,MATCH($F10,RegionUSER,0))) ->  | AH10: =IF(OR(ISBLANK($B10),ISBLANK($C10),$AD10=""),"",ROUND($AD10*INDEX('Diesel TRU Emission Factors'!$D$6:$D$76,MATCH($B10&$C10,'Diesel TRU Emission Factors'!$R$6:$R$77,0))*GramsToMT,4)) ->  | AI10: =IF(OR(ISBLANK($B10),ISBLANK($C10),$AD10=""),"",ROUND($AD10*INDEX('Diesel TRU Emission Factors'!$E$6:$E$76,MATCH($B10&$C10,'Diesel TRU Emission Factors'!$R$6:$R$77,0))*GramsToMT,4)) ->  | AJ10: =IF(OR(ISBLANK($B10),ISBLANK($C10),$AD10=""),"",ROUND($AD10*INDEX('Diesel TRU Emission Factors'!$H$6:$H$76,MATCH($B10&$C10,'Diesel TRU Emission Factors'!$R$6:$R$77,0))*GramsToMT,4)) ->  | AK10: =IF(OR(ISBLANK($B10),ISBLANK($C10),$AD10=""),"",ROUND($AD10*INDEX('Diesel TRU Emission Factors'!$F$6:$F$76,MATCH($B10&$C10,'Diesel TRU Emission Factors'!$R$6:$R$77,0))*GramsToMT,1)) ->  | AL10: =IF(OR(ISBLANK($B10),ISBLANK($C10),$AD10=""),"",$AD10*INDEX('Diesel TRU Emission Factors'!$G$6:$G$76,MATCH($B10&$C10,'Diesel TRU Emission Factors'!$R$6:$R$77,0))*GramsToMT) ->  | AM10: =IF(ISBLANK(F10),"",AD10*GalTokWh*'Diesel TRU Emission Factors'!$P$4/1000000) ->  | AN10: =IF(ISBLANK($F10),"",ROUND(AK10*References!$B$28+AL10*References!$B$29+AM10*References!$B$30,1)) ->  | AP10: =IF(OR(ISBLANK($F10),$AE10="",$AF10=""),"",ROUND($AE10*(1+$AF10)*INDEX('eGRID2020 Subregion'!$C$7:$C$36,MATCH($F10,RegionUSER,0))*GramsToMT,4)) ->  | AQ10: =IF(OR(ISBLANK($F10),$AE10="",$AF10=""),"",ROUND($AE10*(1+$AF10)*INDEX('eGRID2020 Subregion'!$D$7:$D$36,MATCH($F10,RegionUSER,0))*GramsToMT,4)) ->  | AR10: =IF(OR(ISBLANK($F10),$AE10="",$AF10=""),"",ROUND($AE10*(1+$AF10)*INDEX('eGRID2020 Subregion'!$I$7:$I$36,MATCH($F10,RegionUSER,0))*GramsToMT,4)) ->  | AS10: =IF(OR(ISBLANK($F10),$AE10="",$AF10=""),"",ROUND($AE10*(1+$AF10)*INDEX('eGRID2020 Subregion'!$E$7:$E$36,MATCH($F10,RegionUSER,0))*GramsToMT,1)) ->  | AT10: =IF(OR(ISBLANK($F10),$AE10="",$AF10=""),"",$AE10*(1+$AF10)*INDEX('eGRID2020 Subregion'!$F$7:$F$35,MATCH($F10,RegionUSER,0))*GramsToMT) ->  | AU10: =IF(OR(ISBLANK($F10),$AE10="",$AF10=""),"",$AE10*(1+$AF10)*INDEX('eGRID2020 Subregion'!$G$7:$G$35,MATCH($F10,RegionUSER,0))*GramsToMT) ->  | AV10: =IF(ISBLANK($F10),"",ROUND(AS10*References!$B$28+AT10*References!$B$29+AU10*References!$B$30,1)) -> 
G11: hp | H11: =IF(OR(ISBLANK($B11),ISBLANK($C11)),"",ROUND(INDEX('TRU Ops & Costs'!$D$4:$D$74,MATCH($B11&$C11,'TRU Ops & Costs'!$P$4:$P$74,0))/IF($G11="hp",0.7457,1),0)) ->  | J11: =IF(OR(ISBLANK($B11),ISBLANK($C11)),"",INDEX('TRU Ops & Costs'!$E$4:$E$74,MATCH($B11&$C11,'TRU Ops & Costs'!$P$4:$P$74,0))) ->  | L11: =IF(OR(ISBLANK($B11),ISBLANK($C11)),"",INDEX('TRU Ops & Costs'!$F$4:$F$74,MATCH($B11&$C11,'TRU Ops & Costs'!$P$4:$P$74,0))) ->  | N11: =IF(OR(ISBLANK($B11),ISBLANK($C11)),"",INDEX('TRU Ops & Costs'!$G$4:$G$74,MATCH($B11&$C11,'TRU Ops & Costs'!$P$4:$P$74,0))) ->  | S11: =IF(ISBLANK($F11),"",IFERROR(INDEX('Diesel Fuel Prices'!$D$5:$D$31,MATCH($F11,'Diesel Fuel Prices'!$B$5:$B$31,0)),INDEX('Diesel Fuel Prices'!$D$5:$D$31,MATCH("U.S. Average",'Diesel Fuel Prices'!$B$5:$B$31,0)))*References!$B$38/References!$B$37) ->  | U11: =IF(ISBLANK($F11),"",IFERROR(INDEX('Electricity Prices'!$F$4:$F$31,MATCH($F11,'Electricity Prices'!$B$4:$B$31,0)),INDEX('Electricity Prices'!$F$4:$F$31,MATCH("All U.S.",'Electricity Prices'!$B$4:$B$31,0)))*References!$B$38/References!$B$37) ->  | W11: =IF(OR(ISBLANK($B11),ISBLANK($C11)),"",INDEX('TRU Ops & Costs'!$I$4:$I$74,MATCH($B11&$C11,'TRU Ops & Costs'!$P$4:$P$74,0))) ->  | Y11: =IFERROR(IF(AND(ISBLANK(Q11),ISBLANK(R11)),"",IF(OR(ISBLANK($B11),ISBLANK($C11)),"",(IF(E11="Yard",INDEX('TRU Ops & Costs'!$J$4:$J$74,MATCH($B11&$C11,'TRU Ops & Costs'!$P$4:$P$74,0)),INDEX('TRU Ops & Costs'!$K$4:$K$74,MATCH($B11&$C11,'TRU Ops & Costs'!$P$4:$P$74,0)))))/(IF(ISBLANK(R11),Q11,R11))),"") ->  | AA11: =IF(OR(ISBLANK($B11),ISBLANK($C11),AND($O11="",ISBLANK($P11))),"",IF(ISBLANK($P11),$O11,$P11)*INDEX('TRU Ops & Costs'!$M$4:$M$74,MATCH($B11&$C11,'TRU Ops & Costs'!$P$4:$P$74,0))*-INDEX('TRU Ops & Costs'!$L$4:$L$74,MATCH($B11&$C11,'TRU Ops & Costs'!$P$4:$P$74,0))) ->  | AF11: =IF(ISBLANK($F11),"",INDEX('eGRID2020 Subregion'!$J$7:$J$35,MATCH($F11,RegionUSER,0))) ->  | AH11: =IF(OR(ISBLANK($B11),ISBLANK($C11),$AD11=""),"",ROUND($AD11*INDEX('Diesel TRU Emission Factors'!$D$6:$D$76,MATCH($B11&$C11,'Diesel TRU Emission Factors'!$R$6:$R$77,0))*GramsToMT,4)) ->  | AI11: =IF(OR(ISBLANK($B11),ISBLANK($C11),$AD11=""),"",ROUND($AD11*INDEX('Diesel TRU Emission Factors'!$E$6:$E$76,MATCH($B11&$C11,'Diesel TRU Emission Factors'!$R$6:$R$77,0))*GramsToMT,4)) ->  | AJ11: =IF(OR(ISBLANK($B11),ISBLANK($C11),$AD11=""),"",ROUND($AD11*INDEX('Diesel TRU Emission Factors'!$H$6:$H$76,MATCH($B11&$C11,'Diesel TRU Emission Factors'!$R$6:$R$77,0))*GramsToMT,4)) ->  | AK11: =IF(OR(ISBLANK($B11),ISBLANK($C11),$AD11=""),"",ROUND($AD11*INDEX('Diesel TRU Emission Factors'!$F$6:$F$76,MATCH($B11&$C11,'Diesel TRU Emission Factors'!$R$6:$R$77,0))*GramsToMT,1)) ->  | AL11: =IF(OR(ISBLANK($B11),ISBLANK($C11),$AD11=""),"",$AD11*INDEX('Diesel TRU Emission Factors'!$G$6:$G$76,MATCH($B11&$C11,'Diesel TRU Emission Factors'!$R$6:$R$77,0))*GramsToMT) ->  | AM11: =IF(ISBLANK(F11),"",AD11*GalTokWh*'Diesel TRU Emission Factors'!$P$4/1000000) ->  | AN11: =IF(ISBLANK($F11),"",ROUND(AK11*References!$B$28+AL11*References!$B$29+AM11*References!$B$30,1)) ->  | AP11: =IF(OR(ISBLANK($F11),$AE11="",$AF11=""),"",ROUND($AE11*(1+$AF11)*INDEX('eGRID2020 Subregion'!$C$7:$C$36,MATCH($F11,RegionUSER,0))*GramsToMT,4)) ->  | AQ11: =IF(OR(ISBLANK($F11),$AE11="",$AF11=""),"",ROUND($AE11*(1+$AF11)*INDEX('eGRID2020 Subregion'!$D$7:$D$36,MATCH($F11,RegionUSER,0))*GramsToMT,4)) ->  | AR11: =IF(OR(ISBLANK($F11),$AE11="",$AF11=""),"",ROUND($AE11*(1+$AF11)*INDEX('eGRID2020 Subregion'!$I$7:$I$36,MATCH($F11,RegionUSER,0))*GramsToMT,4)) ->  | AS11: =IF(OR(ISBLANK($F11),$AE11="",$AF11=""),"",ROUND($AE11*(1+$AF11)*INDEX('eGRID2020 Subregion'!$E$7:$E$36,MATCH($F11,RegionUSER,0))*GramsToMT,1)) ->  | AT11: =IF(OR(ISBLANK($F11),$AE11="",$AF11=""),"",$AE11*(1+$AF11)*INDEX('eGRID2020 Subregion'!$F$7:$F$35,MATCH($F11,RegionUSER,0))*GramsToMT) ->  | AU11: =IF(OR(ISBLANK($F11),$AE11="",$AF11=""),"",$AE11*(1+$AF11)*INDEX('eGRID2020 Subregion'!$G$7:$G$35,MATCH($F11,RegionUSER,0))*GramsToMT) ->  | AV11: =IF(ISBLANK($F11),"",ROUND(AS11*References!$B$28+AT11*References!$B$29+AU11*References!$B$30,1)) ->  | BL11: =IF(OR($BJ11="",$BK11=""),"",$BJ11+$BK11) ->  | BO11: =IF(OR($AD11="",$AF11="",AND($S11="",ISBLANK($T11)),AND($U11="",ISBLANK($V11))),"",($AD11*(IF(ISBLANK($T11),$S11,$T11)*GalTokWh))-($AE11*IF(ISBLANK($V11),$U11,$V11)*(1+$AF11))) ->  | BP11: =IF(OR($BN11="",$BO11=""),"",$BN11+$BO11) -> 
G12: hp | H12: =IF(OR(ISBLANK($B12),ISBLANK($C12)),"",ROUND(INDEX('TRU Ops & Costs'!$D$4:$D$74,MATCH($B12&$C12,'TRU Ops & Costs'!$P$4:$P$74,0))/IF($G12="hp",0.7457,1),0)) ->  | J12: =IF(OR(ISBLANK($B12),ISBLANK($C12)),"",INDEX('TRU Ops & Costs'!$E$4:$E$74,MATCH($B12&$C12,'TRU Ops & Costs'!$P$4:$P$74,0))) ->  | L12: =IF(OR(ISBLANK($B12),ISBLANK($C12)),"",INDEX('TRU Ops & Costs'!$F$4:$F$74,MATCH($B12&$C12,'TRU Ops & Costs'!$P$4:$P$74,0))) ->  | N12: =IF(OR(ISBLANK($B12),ISBLANK($C12)),"",INDEX('TRU Ops & Costs'!$G$4:$G$74,MATCH($B12&$C12,'TRU Ops & Costs'!$P$4:$P$74,0))) ->  | S12: =IF(ISBLANK($F12),"",IFERROR(INDEX('Diesel Fuel Prices'!$D$5:$D$31,MATCH($F12,'Diesel Fuel Prices'!$B$5:$B$31,0)),INDEX('Diesel Fuel Prices'!$D$5:$D$31,MATCH("U.S. Average",'Diesel Fuel Prices'!$B$5:$B$31,0)))*References!$B$38/References!$B$37) ->  | U12: =IF(ISBLANK($F12),"",IFERROR(INDEX('Electricity Prices'!$F$4:$F$31,MATCH($F12,'Electricity Prices'!$B$4:$B$31,0)),INDEX('Electricity Prices'!$F$4:$F$31,MATCH("All U.S.",'Electricity Prices'!$B$4:$B$31,0)))*References!$B$38/References!$B$37) ->  | W12: =IF(OR(ISBLANK($B12),ISBLANK($C12)),"",INDEX('TRU Ops & Costs'!$I$4:$I$74,MATCH($B12&$C12,'TRU Ops & Costs'!$P$4:$P$74,0))) ->  | Y12: =IFERROR(IF(AND(ISBLANK(Q12),ISBLANK(R12)),"",IF(OR(ISBLANK($B12),ISBLANK($C12)),"",(IF(E12="Yard",INDEX('TRU Ops & Costs'!$J$4:$J$74,MATCH($B12&$C12,'TRU Ops & Costs'!$P$4:$P$74,0)),INDEX('TRU Ops & Costs'!$K$4:$K$74,MATCH($B12&$C12,'TRU Ops & Costs'!$P$4:$P$74,0)))))/(IF(ISBLANK(R12),Q12,R12))),"") ->  | AA12: =IF(OR(ISBLANK($B12),ISBLANK($C12),AND($O12="",ISBLANK($P12))),"",IF(ISBLANK($P12),$O12,$P12)*INDEX('TRU Ops & Costs'!$M$4:$M$74,MATCH($B12&$C12,'TRU Ops & Costs'!$P$4:$P$74,0))*-INDEX('TRU Ops & Costs'!$L$4:$L$74,MATCH($B12&$C12,'TRU Ops & Costs'!$P$4:$P$74,0))) ->  | AF12: =IF(ISBLANK($F12),"",INDEX('eGRID2020 Subregion'!$J$7:$J$35,MATCH($F12,RegionUSER,0))) ->  | AH12: =IF(OR(ISBLANK($B12),ISBLANK($C12),$AD12=""),"",ROUND($AD12*INDEX('Diesel TRU Emission Factors'!$D$6:$D$76,MATCH($B12&$C12,'Diesel TRU Emission Factors'!$R$6:$R$77,0))*GramsToMT,4)) ->  | AI12: =IF(OR(ISBLANK($B12),ISBLANK($C12),$AD12=""),"",ROUND($AD12*INDEX('Diesel TRU Emission Factors'!$E$6:$E$76,MATCH($B12&$C12,'Diesel TRU Emission Factors'!$R$6:$R$77,0))*GramsToMT,4)) ->  | AJ12: =IF(OR(ISBLANK($B12),ISBLANK($C12),$AD12=""),"",ROUND($AD12*INDEX('Diesel TRU Emission Factors'!$H$6:$H$76,MATCH($B12&$C12,'Diesel TRU Emission Factors'!$R$6:$R$77,0))*GramsToMT,4)) ->  | AK12: =IF(OR(ISBLANK($B12),ISBLANK($C12),$AD12=""),"",ROUND($AD12*INDEX('Diesel TRU Emission Factors'!$F$6:$F$76,MATCH($B12&$C12,'Diesel TRU Emission Factors'!$R$6:$R$77,0))*GramsToMT,1)) ->  | AL12: =IF(OR(ISBLANK($B12),ISBLANK($C12),$AD12=""),"",$AD12*INDEX('Diesel TRU Emission Factors'!$G$6:$G$76,MATCH($B12&$C12,'Diesel TRU Emission Factors'!$R$6:$R$77,0))*GramsToMT) ->  | AM12: =IF(ISBLANK(F12),"",AD12*GalTokWh*'Diesel TRU Emission Factors'!$P$4/1000000) ->  | AN12: =IF(ISBLANK($F12),"",ROUND(AK12*References!$B$28+AL12*References!$B$29+AM12*References!$B$30,1)) ->  | AP12: =IF(OR(ISBLANK($F12),$AE12="",$AF12=""),"",ROUND($AE12*(1+$AF12)*INDEX('eGRID2020 Subregion'!$C$7:$C$36,MATCH($F12,RegionUSER,0))*GramsToMT,4)) ->  | AQ12: =IF(OR(ISBLANK($F12),$AE12="",$AF12=""),"",ROUND($AE12*(1+$AF12)*INDEX('eGRID2020 Subregion'!$D$7:$D$36,MATCH($F12,RegionUSER,0))*GramsToMT,4)) ->  | AR12: =IF(OR(ISBLANK($F12),$AE12="",$AF12=""),"",ROUND($AE12*(1+$AF12)*INDEX('eGRID2020 Subregion'!$I$7:$I$36,MATCH($F12,RegionUSER,0))*GramsToMT,4)) ->  | AS12: =IF(OR(ISBLANK($F12),$AE12="",$AF12=""),"",ROUND($AE12*(1+$AF12)*INDEX('eGRID2020 Subregion'!$E$7:$E$36,MATCH($F12,RegionUSER,0))*GramsToMT,1)) ->  | AT12: =IF(OR(ISBLANK($F12),$AE12="",$AF12=""),"",$AE12*(1+$AF12)*INDEX('eGRID2020 Subregion'!$F$7:$F$35,MATCH($F12,RegionUSER,0))*GramsToMT) ->  | AU12: =IF(OR(ISBLANK($F12),$AE12="",$AF12=""),"",$AE12*(1+$AF12)*INDEX('eGRID2020 Subregion'!$G$7:$G$35,MATCH($F12,RegionUSER,0))*GramsToMT) ->  | AV12: =IF(ISBLANK($F12),"",ROUND(AS12*References!$B$28+AT12*References!$B$29+AU12*References!$B$30,1)) -> 
G13: hp | H13: =IF(OR(ISBLANK($B13),ISBLANK($C13)),"",ROUND(INDEX('TRU Ops & Costs'!$D$4:$D$74,MATCH($B13&$C13,'TRU Ops & Costs'!$P$4:$P$74,0))/IF($G13="hp",0.7457,1),0)) ->  | J13: =IF(OR(ISBLANK($B13),ISBLANK($C13)),"",INDEX('TRU Ops & Costs'!$E$4:$E$74,MATCH($B13&$C13,'TRU Ops & Costs'!$P$4:$P$74,0))) ->  | L13: =IF(OR(ISBLANK($B13),ISBLANK($C13)),"",INDEX('TRU Ops & Costs'!$F$4:$F$74,MATCH($B13&$C13,'TRU Ops & Costs'!$P$4:$P$74,0))) ->  | N13: =IF(OR(ISBLANK($B13),ISBLANK($C13)),"",INDEX('TRU Ops & Costs'!$G$4:$G$74,MATCH($B13&$C13,'TRU Ops & Costs'!$P$4:$P$74,0))) ->  | S13: =IF(ISBLANK($F13),"",IFERROR(INDEX('Diesel Fuel Prices'!$D$5:$D$31,MATCH($F13,'Diesel Fuel Prices'!$B$5:$B$31,0)),INDEX('Diesel Fuel Prices'!$D$5:$D$31,MATCH("U.S. Average",'Diesel Fuel Prices'!$B$5:$B$31,0)))*References!$B$38/References!$B$37) ->  | U13: =IF(ISBLANK($F13),"",IFERROR(INDEX('Electricity Prices'!$F$4:$F$31,MATCH($F13,'Electricity Prices'!$B$4:$B$31,0)),INDEX('Electricity Prices'!$F$4:$F$31,MATCH("All U.S.",'Electricity Prices'!$B$4:$B$31,0)))*References!$B$38/References!$B$37) ->  | W13: =IF(OR(ISBLANK($B13),ISBLANK($C13)),"",INDEX('TRU Ops & Costs'!$I$4:$I$74,MATCH($B13&$C13,'TRU Ops & Costs'!$P$4:$P$74,0))) ->  | Y13: =IFERROR(IF(AND(ISBLANK(Q13),ISBLANK(R13)),"",IF(OR(ISBLANK($B13),ISBLANK($C13)),"",(IF(E13="Yard",INDEX('TRU Ops & Costs'!$J$4:$J$74,MATCH($B13&$C13,'TRU Ops & Costs'!$P$4:$P$74,0)),INDEX('TRU Ops & Costs'!$K$4:$K$74,MATCH($B13&$C13,'TRU Ops & Costs'!$P$4:$P$74,0)))))/(IF(ISBLANK(R13),Q13,R13))),"") ->  | AA13: =IF(OR(ISBLANK($B13),ISBLANK($C13),AND($O13="",ISBLANK($P13))),"",IF(ISBLANK($P13),$O13,$P13)*INDEX('TRU Ops & Costs'!$M$4:$M$74,MATCH($B13&$C13,'TRU Ops & Costs'!$P$4:$P$74,0))*-INDEX('TRU Ops & Costs'!$L$4:$L$74,MATCH($B13&$C13,'TRU Ops & Costs'!$P$4:$P$74,0))) ->  | AF13: =IF(ISBLANK($F13),"",INDEX('eGRID2020 Subregion'!$J$7:$J$35,MATCH($F13,RegionUSER,0))) ->  | AH13: =IF(OR(ISBLANK($B13),ISBLANK($C13),$AD13=""),"",ROUND($AD13*INDEX('Diesel TRU Emission Factors'!$D$6:$D$76,MATCH($B13&$C13,'Diesel TRU Emission Factors'!$R$6:$R$77,0))*GramsToMT,4)) ->  | AI13: =IF(OR(ISBLANK($B13),ISBLANK($C13),$AD13=""),"",ROUND($AD13*INDEX('Diesel TRU Emission Factors'!$E$6:$E$76,MATCH($B13&$C13,'Diesel TRU Emission Factors'!$R$6:$R$77,0))*GramsToMT,4)) ->  | AJ13: =IF(OR(ISBLANK($B13),ISBLANK($C13),$AD13=""),"",ROUND($AD13*INDEX('Diesel TRU Emission Factors'!$H$6:$H$76,MATCH($B13&$C13,'Diesel TRU Emission Factors'!$R$6:$R$77,0))*GramsToMT,4)) ->  | AK13: =IF(OR(ISBLANK($B13),ISBLANK($C13),$AD13=""),"",ROUND($AD13*INDEX('Diesel TRU Emission Factors'!$F$6:$F$76,MATCH($B13&$C13,'Diesel TRU Emission Factors'!$R$6:$R$77,0))*GramsToMT,1)) ->  | AL13: =IF(OR(ISBLANK($B13),ISBLANK($C13),$AD13=""),"",$AD13*INDEX('Diesel TRU Emission Factors'!$G$6:$G$76,MATCH($B13&$C13,'Diesel TRU Emission Factors'!$R$6:$R$77,0))*GramsToMT) ->  | AM13: =IF(ISBLANK(F13),"",AD13*GalTokWh*'Diesel TRU Emission Factors'!$P$4/1000000) ->  | AN13: =IF(ISBLANK($F13),"",ROUND(AK13*References!$B$28+AL13*References!$B$29+AM13*References!$B$30,1)) ->  | AP13: =IF(OR(ISBLANK($F13),$AE13="",$AF13=""),"",ROUND($AE13*(1+$AF13)*INDEX('eGRID2020 Subregion'!$C$7:$C$36,MATCH($F13,RegionUSER,0))*GramsToMT,4)) ->  | AQ13: =IF(OR(ISBLANK($F13),$AE13="",$AF13=""),"",ROUND($AE13*(1+$AF13)*INDEX('eGRID2020 Subregion'!$D$7:$D$36,MATCH($F13,RegionUSER,0))*GramsToMT,4)) ->  | AR13: =IF(OR(ISBLANK($F13),$AE13="",$AF13=""),"",ROUND($AE13*(1+$AF13)*INDEX('eGRID2020 Subregion'!$I$7:$I$36,MATCH($F13,RegionUSER,0))*GramsToMT,4)) ->  | AS13: =IF(OR(ISBLANK($F13),$AE13="",$AF13=""),"",ROUND($AE13*(1+$AF13)*INDEX('eGRID2020 Subregion'!$E$7:$E$36,MATCH($F13,RegionUSER,0))*GramsToMT,1)) ->  | AT13: =IF(OR(ISBLANK($F13),$AE13="",$AF13=""),"",$AE13*(1+$AF13)*INDEX('eGRID2020 Subregion'!$F$7:$F$35,MATCH($F13,RegionUSER,0))*GramsToMT) ->  | AU13: =IF(OR(ISBLANK($F13),$AE13="",$AF13=""),"",$AE13*(1+$AF13)*INDEX('eGRID2020 Subregion'!$G$7:$G$35,MATCH($F13,RegionUSER,0))*GramsToMT) ->  | AV13: =IF(ISBLANK($F13),"",ROUND(AS13*References!$B$28+AT13*References!$B$29+AU13*References!$B$30,1)) ->  | BL13: =IF(OR($BJ13="",$BK13=""),"",$BJ13+$BK13) ->  | BO13: =IF(OR($AD13="",$AF13="",AND($S13="",ISBLANK($T13)),AND($U13="",ISBLANK($V13))),"",($AD13*(IF(ISBLANK($T13),$S13,$T13)*GalTokWh))-($AE13*IF(ISBLANK($V13),$U13,$V13)*(1+$AF13))) ->  | BP13: =IF(OR($BN13="",$BO13=""),"",$BN13+$BO13) -> 
G14: hp | H14: =IF(OR(ISBLANK($B14),ISBLANK($C14)),"",ROUND(INDEX('TRU Ops & Costs'!$D$4:$D$74,MATCH($B14&$C14,'TRU Ops & Costs'!$P$4:$P$74,0))/IF($G14="hp",0.7457,1),0)) ->  | J14: =IF(OR(ISBLANK($B14),ISBLANK($C14)),"",INDEX('TRU Ops & Costs'!$E$4:$E$74,MATCH($B14&$C14,'TRU Ops & Costs'!$P$4:$P$74,0))) ->  | L14: =IF(OR(ISBLANK($B14),ISBLANK($C14)),"",INDEX('TRU Ops & Costs'!$F$4:$F$74,MATCH($B14&$C14,'TRU Ops & Costs'!$P$4:$P$74,0))) ->  | N14: =IF(OR(ISBLANK($B14),ISBLANK($C14)),"",INDEX('TRU Ops & Costs'!$G$4:$G$74,MATCH($B14&$C14,'TRU Ops & Costs'!$P$4:$P$74,0))) ->  | S14: =IF(ISBLANK($F14),"",IFERROR(INDEX('Diesel Fuel Prices'!$D$5:$D$31,MATCH($F14,'Diesel Fuel Prices'!$B$5:$B$31,0)),INDEX('Diesel Fuel Prices'!$D$5:$D$31,MATCH("U.S. Average",'Diesel Fuel Prices'!$B$5:$B$31,0)))*References!$B$38/References!$B$37) ->  | U14: =IF(ISBLANK($F14),"",IFERROR(INDEX('Electricity Prices'!$F$4:$F$31,MATCH($F14,'Electricity Prices'!$B$4:$B$31,0)),INDEX('Electricity Prices'!$F$4:$F$31,MATCH("All U.S.",'Electricity Prices'!$B$4:$B$31,0)))*References!$B$38/References!$B$37) ->  | W14: =IF(OR(ISBLANK($B14),ISBLANK($C14)),"",INDEX('TRU Ops & Costs'!$I$4:$I$74,MATCH($B14&$C14,'TRU Ops & Costs'!$P$4:$P$74,0))) ->  | Y14: =IFERROR(IF(AND(ISBLANK(Q14),ISBLANK(R14)),"",IF(OR(ISBLANK($B14),ISBLANK($C14)),"",(IF(E14="Yard",INDEX('TRU Ops & Costs'!$J$4:$J$74,MATCH($B14&$C14,'TRU Ops & Costs'!$P$4:$P$74,0)),INDEX('TRU Ops & Costs'!$K$4:$K$74,MATCH($B14&$C14,'TRU Ops & Costs'!$P$4:$P$74,0)))))/(IF(ISBLANK(R14),Q14,R14))),"") ->  | AA14: =IF(OR(ISBLANK($B14),ISBLANK($C14),AND($O14="",ISBLANK($P14))),"",IF(ISBLANK($P14),$O14,$P14)*INDEX('TRU Ops & Costs'!$M$4:$M$74,MATCH($B14&$C14,'TRU Ops & Costs'!$P$4:$P$74,0))*-INDEX('TRU Ops & Costs'!$L$4:$L$74,MATCH($B14&$C14,'TRU Ops & Costs'!$P$4:$P$74,0))) ->  | AF14: =IF(ISBLANK($F14),"",INDEX('eGRID2020 Subregion'!$J$7:$J$35,MATCH($F14,RegionUSER,0))) ->  | AH14: =IF(OR(ISBLANK($B14),ISBLANK($C14),$AD14=""),"",ROUND($AD14*INDEX('Diesel TRU Emission Factors'!$D$6:$D$76,MATCH($B14&$C14,'Diesel TRU Emission Factors'!$R$6:$R$77,0))*GramsToMT,4)) ->  | AI14: =IF(OR(ISBLANK($B14),ISBLANK($C14),$AD14=""),"",ROUND($AD14*INDEX('Diesel TRU Emission Factors'!$E$6:$E$76,MATCH($B14&$C14,'Diesel TRU Emission Factors'!$R$6:$R$77,0))*GramsToMT,4)) ->  | AJ14: =IF(OR(ISBLANK($B14),ISBLANK($C14),$AD14=""),"",ROUND($AD14*INDEX('Diesel TRU Emission Factors'!$H$6:$H$76,MATCH($B14&$C14,'Diesel TRU Emission Factors'!$R$6:$R$77,0))*GramsToMT,4)) ->  | AK14: =IF(OR(ISBLANK($B14),ISBLANK($C14),$AD14=""),"",ROUND($AD14*INDEX('Diesel TRU Emission Factors'!$F$6:$F$76,MATCH($B14&$C14,'Diesel TRU Emission Factors'!$R$6:$R$77,0))*GramsToMT,1)) ->  | AL14: =IF(OR(ISBLANK($B14),ISBLANK($C14),$AD14=""),"",$AD14*INDEX('Diesel TRU Emission Factors'!$G$6:$G$76,MATCH($B14&$C14,'Diesel TRU Emission Factors'!$R$6:$R$77,0))*GramsToMT) ->  | AM14: =IF(ISBLANK(F14),"",AD14*GalTokWh*'Diesel TRU Emission Factors'!$P$4/1000000) ->  | AN14: =IF(ISBLANK($F14),"",ROUND(AK14*References!$B$28+AL14*References!$B$29+AM14*References!$B$30,1)) ->  | AP14: =IF(OR(ISBLANK($F14),$AE14="",$AF14=""),"",ROUND($AE14*(1+$AF14)*INDEX('eGRID2020 Subregion'!$C$7:$C$36,MATCH($F14,RegionUSER,0))*GramsToMT,4)) ->  | AQ14: =IF(OR(ISBLANK($F14),$AE14="",$AF14=""),"",ROUND($AE14*(1+$AF14)*INDEX('eGRID2020 Subregion'!$D$7:$D$36,MATCH($F14,RegionUSER,0))*GramsToMT,4)) ->  | AR14: =IF(OR(ISBLANK($F14),$AE14="",$AF14=""),"",ROUND($AE14*(1+$AF14)*INDEX('eGRID2020 Subregion'!$I$7:$I$36,MATCH($F14,RegionUSER,0))*GramsToMT,4)) ->  | AS14: =IF(OR(ISBLANK($F14),$AE14="",$AF14=""),"",ROUND($AE14*(1+$AF14)*INDEX('eGRID2020 Subregion'!$E$7:$E$36,MATCH($F14,RegionUSER,0))*GramsToMT,1)) ->  | AT14: =IF(OR(ISBLANK($F14),$AE14="",$AF14=""),"",$AE14*(1+$AF14)*INDEX('eGRID2020 Subregion'!$F$7:$F$35,MATCH($F14,RegionUSER,0))*GramsToMT) ->  | AU14: =IF(OR(ISBLANK($F14),$AE14="",$AF14=""),"",$AE14*(1+$AF14)*INDEX('eGRID2020 Subregion'!$G$7:$G$35,MATCH($F14,RegionUSER,0))*GramsToMT) ->  | AV14: =IF(ISBLANK($F14),"",ROUND(AS14*References!$B$28+AT14*References!$B$29+AU14*References!$B$30,1)) -> 
G15: hp | H15: =IF(OR(ISBLANK($B15),ISBLANK($C15)),"",ROUND(INDEX('TRU Ops & Costs'!$D$4:$D$74,MATCH($B15&$C15,'TRU Ops & Costs'!$P$4:$P$74,0))/IF($G15="hp",0.7457,1),0)) ->  | J15: =IF(OR(ISBLANK($B15),ISBLANK($C15)),"",INDEX('TRU Ops & Costs'!$E$4:$E$74,MATCH($B15&$C15,'TRU Ops & Costs'!$P$4:$P$74,0))) ->  | L15: =IF(OR(ISBLANK($B15),ISBLANK($C15)),"",INDEX('TRU Ops & Costs'!$F$4:$F$74,MATCH($B15&$C15,'TRU Ops & Costs'!$P$4:$P$74,0))) ->  | N15: =IF(OR(ISBLANK($B15),ISBLANK($C15)),"",INDEX('TRU Ops & Costs'!$G$4:$G$74,MATCH($B15&$C15,'TRU Ops & Costs'!$P$4:$P$74,0))) ->  | S15: =IF(ISBLANK($F15),"",IFERROR(INDEX('Diesel Fuel Prices'!$D$5:$D$31,MATCH($F15,'Diesel Fuel Prices'!$B$5:$B$31,0)),INDEX('Diesel Fuel Prices'!$D$5:$D$31,MATCH("U.S. Average",'Diesel Fuel Prices'!$B$5:$B$31,0)))*References!$B$38/References!$B$37) ->  | U15: =IF(ISBLANK($F15),"",IFERROR(INDEX('Electricity Prices'!$F$4:$F$31,MATCH($F15,'Electricity Prices'!$B$4:$B$31,0)),INDEX('Electricity Prices'!$F$4:$F$31,MATCH("All U.S.",'Electricity Prices'!$B$4:$B$31,0)))*References!$B$38/References!$B$37) ->  | W15: =IF(OR(ISBLANK($B15),ISBLANK($C15)),"",INDEX('TRU Ops & Costs'!$I$4:$I$74,MATCH($B15&$C15,'TRU Ops & Costs'!$P$4:$P$74,0))) ->  | Y15: =IFERROR(IF(AND(ISBLANK(Q15),ISBLANK(R15)),"",IF(OR(ISBLANK($B15),ISBLANK($C15)),"",(IF(E15="Yard",INDEX('TRU Ops & Costs'!$J$4:$J$74,MATCH($B15&$C15,'TRU Ops & Costs'!$P$4:$P$74,0)),INDEX('TRU Ops & Costs'!$K$4:$K$74,MATCH($B15&$C15,'TRU Ops & Costs'!$P$4:$P$74,0)))))/(IF(ISBLANK(R15),Q15,R15))),"") ->  | AA15: =IF(OR(ISBLANK($B15),ISBLANK($C15),AND($O15="",ISBLANK($P15))),"",IF(ISBLANK($P15),$O15,$P15)*INDEX('TRU Ops & Costs'!$M$4:$M$74,MATCH($B15&$C15,'TRU Ops & Costs'!$P$4:$P$74,0))*-INDEX('TRU Ops & Costs'!$L$4:$L$74,MATCH($B15&$C15,'TRU Ops & Costs'!$P$4:$P$74,0))) ->  | AF15: =IF(ISBLANK($F15),"",INDEX('eGRID2020 Subregion'!$J$7:$J$35,MATCH($F15,RegionUSER,0))) ->  | AH15: =IF(OR(ISBLANK($B15),ISBLANK($C15),$AD15=""),"",ROUND($AD15*INDEX('Diesel TRU Emission Factors'!$D$6:$D$76,MATCH($B15&$C15,'Diesel TRU Emission Factors'!$R$6:$R$77,0))*GramsToMT,4)) ->  | AI15: =IF(OR(ISBLANK($B15),ISBLANK($C15),$AD15=""),"",ROUND($AD15*INDEX('Diesel TRU Emission Factors'!$E$6:$E$76,MATCH($B15&$C15,'Diesel TRU Emission Factors'!$R$6:$R$77,0))*GramsToMT,4)) ->  | AJ15: =IF(OR(ISBLANK($B15),ISBLANK($C15),$AD15=""),"",ROUND($AD15*INDEX('Diesel TRU Emission Factors'!$H$6:$H$76,MATCH($B15&$C15,'Diesel TRU Emission Factors'!$R$6:$R$77,0))*GramsToMT,4)) ->  | AK15: =IF(OR(ISBLANK($B15),ISBLANK($C15),$AD15=""),"",ROUND($AD15*INDEX('Diesel TRU Emission Factors'!$F$6:$F$76,MATCH($B15&$C15,'Diesel TRU Emission Factors'!$R$6:$R$77,0))*GramsToMT,1)) ->  | AL15: =IF(OR(ISBLANK($B15),ISBLANK($C15),$AD15=""),"",$AD15*INDEX('Diesel TRU Emission Factors'!$G$6:$G$76,MATCH($B15&$C15,'Diesel TRU Emission Factors'!$R$6:$R$77,0))*GramsToMT) ->  | AM15: =IF(ISBLANK(F15),"",AD15*GalTokWh*'Diesel TRU Emission Factors'!$P$4/1000000) ->  | AN15: =IF(ISBLANK($F15),"",ROUND(AK15*References!$B$28+AL15*References!$B$29+AM15*References!$B$30,1)) ->  | AP15: =IF(OR(ISBLANK($F15),$AE15="",$AF15=""),"",ROUND($AE15*(1+$AF15)*INDEX('eGRID2020 Subregion'!$C$7:$C$36,MATCH($F15,RegionUSER,0))*GramsToMT,4)) ->  | AQ15: =IF(OR(ISBLANK($F15),$AE15="",$AF15=""),"",ROUND($AE15*(1+$AF15)*INDEX('eGRID2020 Subregion'!$D$7:$D$36,MATCH($F15,RegionUSER,0))*GramsToMT,4)) ->  | AR15: =IF(OR(ISBLANK($F15),$AE15="",$AF15=""),"",ROUND($AE15*(1+$AF15)*INDEX('eGRID2020 Subregion'!$I$7:$I$36,MATCH($F15,RegionUSER,0))*GramsToMT,4)) ->  | AS15: =IF(OR(ISBLANK($F15),$AE15="",$AF15=""),"",ROUND($AE15*(1+$AF15)*INDEX('eGRID2020 Subregion'!$E$7:$E$36,MATCH($F15,RegionUSER,0))*GramsToMT,1)) ->  | AT15: =IF(OR(ISBLANK($F15),$AE15="",$AF15=""),"",$AE15*(1+$AF15)*INDEX('eGRID2020 Subregion'!$F$7:$F$35,MATCH($F15,RegionUSER,0))*GramsToMT) ->  | AU15: =IF(OR(ISBLANK($F15),$AE15="",$AF15=""),"",$AE15*(1+$AF15)*INDEX('eGRID2020 Subregion'!$G$7:$G$35,MATCH($F15,RegionUSER,0))*GramsToMT) ->  | AV15: =IF(ISBLANK($F15),"",ROUND(AS15*References!$B$28+AT15*References!$B$29+AU15*References!$B$30,1)) ->  | BL15: =IF(OR($BJ15="",$BK15=""),"",$BJ15+$BK15) ->  | BO15: =IF(OR($AD15="",$AF15="",AND($S15="",ISBLANK($T15)),AND($U15="",ISBLANK($V15))),"",($AD15*(IF(ISBLANK($T15),$S15,$T15)*GalTokWh))-($AE15*IF(ISBLANK($V15),$U15,$V15)*(1+$AF15))) ->  | BP15: =IF(OR($BN15="",$BO15=""),"",$BN15+$BO15) -> 
G16: hp | H16: =IF(OR(ISBLANK($B16),ISBLANK($C16)),"",ROUND(INDEX('TRU Ops & Costs'!$D$4:$D$74,MATCH($B16&$C16,'TRU Ops & Costs'!$P$4:$P$74,0))/IF($G16="hp",0.7457,1),0)) ->  | J16: =IF(OR(ISBLANK($B16),ISBLANK($C16)),"",INDEX('TRU Ops & Costs'!$E$4:$E$74,MATCH($B16&$C16,'TRU Ops & Costs'!$P$4:$P$74,0))) ->  | L16: =IF(OR(ISBLANK($B16),ISBLANK($C16)),"",INDEX('TRU Ops & Costs'!$F$4:$F$74,MATCH($B16&$C16,'TRU Ops & Costs'!$P$4:$P$74,0))) ->  | N16: =IF(OR(ISBLANK($B16),ISBLANK($C16)),"",INDEX('TRU Ops & Costs'!$G$4:$G$74,MATCH($B16&$C16,'TRU Ops & Costs'!$P$4:$P$74,0))) ->  | S16: =IF(ISBLANK($F16),"",IFERROR(INDEX('Diesel Fuel Prices'!$D$5:$D$31,MATCH($F16,'Diesel Fuel Prices'!$B$5:$B$31,0)),INDEX('Diesel Fuel Prices'!$D$5:$D$31,MATCH("U.S. Average",'Diesel Fuel Prices'!$B$5:$B$31,0)))*References!$B$38/References!$B$37) ->  | U16: =IF(ISBLANK($F16),"",IFERROR(INDEX('Electricity Prices'!$F$4:$F$31,MATCH($F16,'Electricity Prices'!$B$4:$B$31,0)),INDEX('Electricity Prices'!$F$4:$F$31,MATCH("All U.S.",'Electricity Prices'!$B$4:$B$31,0)))*References!$B$38/References!$B$37) ->  | W16: =IF(OR(ISBLANK($B16),ISBLANK($C16)),"",INDEX('TRU Ops & Costs'!$I$4:$I$74,MATCH($B16&$C16,'TRU Ops & Costs'!$P$4:$P$74,0))) ->  | Y16: =IFERROR(IF(AND(ISBLANK(Q16),ISBLANK(R16)),"",IF(OR(ISBLANK($B16),ISBLANK($C16)),"",(IF(E16="Yard",INDEX('TRU Ops & Costs'!$J$4:$J$74,MATCH($B16&$C16,'TRU Ops & Costs'!$P$4:$P$74,0)),INDEX('TRU Ops & Costs'!$K$4:$K$74,MATCH($B16&$C16,'TRU Ops & Costs'!$P$4:$P$74,0)))))/(IF(ISBLANK(R16),Q16,R16))),"") ->  | AA16: =IF(OR(ISBLANK($B16),ISBLANK($C16),AND($O16="",ISBLANK($P16))),"",IF(ISBLANK($P16),$O16,$P16)*INDEX('TRU Ops & Costs'!$M$4:$M$74,MATCH($B16&$C16,'TRU Ops & Costs'!$P$4:$P$74,0))*-INDEX('TRU Ops & Costs'!$L$4:$L$74,MATCH($B16&$C16,'TRU Ops & Costs'!$P$4:$P$74,0))) ->  | AF16: =IF(ISBLANK($F16),"",INDEX('eGRID2020 Subregion'!$J$7:$J$35,MATCH($F16,RegionUSER,0))) ->  | AH16: =IF(OR(ISBLANK($B16),ISBLANK($C16),$AD16=""),"",ROUND($AD16*INDEX('Diesel TRU Emission Factors'!$D$6:$D$76,MATCH($B16&$C16,'Diesel TRU Emission Factors'!$R$6:$R$77,0))*GramsToMT,4)) ->  | AI16: =IF(OR(ISBLANK($B16),ISBLANK($C16),$AD16=""),"",ROUND($AD16*INDEX('Diesel TRU Emission Factors'!$E$6:$E$76,MATCH($B16&$C16,'Diesel TRU Emission Factors'!$R$6:$R$77,0))*GramsToMT,4)) ->  | AJ16: =IF(OR(ISBLANK($B16),ISBLANK($C16),$AD16=""),"",ROUND($AD16*INDEX('Diesel TRU Emission Factors'!$H$6:$H$76,MATCH($B16&$C16,'Diesel TRU Emission Factors'!$R$6:$R$77,0))*GramsToMT,4)) ->  | AK16: =IF(OR(ISBLANK($B16),ISBLANK($C16),$AD16=""),"",ROUND($AD16*INDEX('Diesel TRU Emission Factors'!$F$6:$F$76,MATCH($B16&$C16,'Diesel TRU Emission Factors'!$R$6:$R$77,0))*GramsToMT,1)) ->  | AL16: =IF(OR(ISBLANK($B16),ISBLANK($C16),$AD16=""),"",$AD16*INDEX('Diesel TRU Emission Factors'!$G$6:$G$76,MATCH($B16&$C16,'Diesel TRU Emission Factors'!$R$6:$R$77,0))*GramsToMT) ->  | AM16: =IF(ISBLANK(F16),"",AD16*GalTokWh*'Diesel TRU Emission Factors'!$P$4/1000000) ->  | AN16: =IF(ISBLANK($F16),"",ROUND(AK16*References!$B$28+AL16*References!$B$29+AM16*References!$B$30,1)) ->  | AP16: =IF(OR(ISBLANK($F16),$AE16="",$AF16=""),"",ROUND($AE16*(1+$AF16)*INDEX('eGRID2020 Subregion'!$C$7:$C$36,MATCH($F16,RegionUSER,0))*GramsToMT,4)) ->  | AQ16: =IF(OR(ISBLANK($F16),$AE16="",$AF16=""),"",ROUND($AE16*(1+$AF16)*INDEX('eGRID2020 Subregion'!$D$7:$D$36,MATCH($F16,RegionUSER,0))*GramsToMT,4)) ->  | AR16: =IF(OR(ISBLANK($F16),$AE16="",$AF16=""),"",ROUND($AE16*(1+$AF16)*INDEX('eGRID2020 Subregion'!$I$7:$I$36,MATCH($F16,RegionUSER,0))*GramsToMT,4)) ->  | AS16: =IF(OR(ISBLANK($F16),$AE16="",$AF16=""),"",ROUND($AE16*(1+$AF16)*INDEX('eGRID2020 Subregion'!$E$7:$E$36,MATCH($F16,RegionUSER,0))*GramsToMT,1)) ->  | AT16: =IF(OR(ISBLANK($F16),$AE16="",$AF16=""),"",$AE16*(1+$AF16)*INDEX('eGRID2020 Subregion'!$F$7:$F$35,MATCH($F16,RegionUSER,0))*GramsToMT) ->  | AU16: =IF(OR(ISBLANK($F16),$AE16="",$AF16=""),"",$AE16*(1+$AF16)*INDEX('eGRID2020 Subregion'!$G$7:$G$35,MATCH($F16,RegionUSER,0))*GramsToMT) ->  | AV16: =IF(ISBLANK($F16),"",ROUND(AS16*References!$B$28+AT16*References!$B$29+AU16*References!$B$30,1)) -> 
G17: hp | H17: =IF(OR(ISBLANK($B17),ISBLANK($C17)),"",ROUND(INDEX('TRU Ops & Costs'!$D$4:$D$74,MATCH($B17&$C17,'TRU Ops & Costs'!$P$4:$P$74,0))/IF($G17="hp",0.7457,1),0)) ->  | J17: =IF(OR(ISBLANK($B17),ISBLANK($C17)),"",INDEX('TRU Ops & Costs'!$E$4:$E$74,MATCH($B17&$C17,'TRU Ops & Costs'!$P$4:$P$74,0))) ->  | L17: =IF(OR(ISBLANK($B17),ISBLANK($C17)),"",INDEX('TRU Ops & Costs'!$F$4:$F$74,MATCH($B17&$C17,'TRU Ops & Costs'!$P$4:$P$74,0))) ->  | N17: =IF(OR(ISBLANK($B17),ISBLANK($C17)),"",INDEX('TRU Ops & Costs'!$G$4:$G$74,MATCH($B17&$C17,'TRU Ops & Costs'!$P$4:$P$74,0))) ->  | S17: =IF(ISBLANK($F17),"",IFERROR(INDEX('Diesel Fuel Prices'!$D$5:$D$31,MATCH($F17,'Diesel Fuel Prices'!$B$5:$B$31,0)),INDEX('Diesel Fuel Prices'!$D$5:$D$31,MATCH("U.S. Average",'Diesel Fuel Prices'!$B$5:$B$31,0)))*References!$B$38/References!$B$37) ->  | U17: =IF(ISBLANK($F17),"",IFERROR(INDEX('Electricity Prices'!$F$4:$F$31,MATCH($F17,'Electricity Prices'!$B$4:$B$31,0)),INDEX('Electricity Prices'!$F$4:$F$31,MATCH("All U.S.",'Electricity Prices'!$B$4:$B$31,0)))*References!$B$38/References!$B$37) ->  | W17: =IF(OR(ISBLANK($B17),ISBLANK($C17)),"",INDEX('TRU Ops & Costs'!$I$4:$I$74,MATCH($B17&$C17,'TRU Ops & Costs'!$P$4:$P$74,0))) ->  | Y17: =IFERROR(IF(AND(ISBLANK(Q17),ISBLANK(R17)),"",IF(OR(ISBLANK($B17),ISBLANK($C17)),"",(IF(E17="Yard",INDEX('TRU Ops & Costs'!$J$4:$J$74,MATCH($B17&$C17,'TRU Ops & Costs'!$P$4:$P$74,0)),INDEX('TRU Ops & Costs'!$K$4:$K$74,MATCH($B17&$C17,'TRU Ops & Costs'!$P$4:$P$74,0)))))/(IF(ISBLANK(R17),Q17,R17))),"") ->  | AA17: =IF(OR(ISBLANK($B17),ISBLANK($C17),AND($O17="",ISBLANK($P17))),"",IF(ISBLANK($P17),$O17,$P17)*INDEX('TRU Ops & Costs'!$M$4:$M$74,MATCH($B17&$C17,'TRU Ops & Costs'!$P$4:$P$74,0))*-INDEX('TRU Ops & Costs'!$L$4:$L$74,MATCH($B17&$C17,'TRU Ops & Costs'!$P$4:$P$74,0))) ->  | AF17: =IF(ISBLANK($F17),"",INDEX('eGRID2020 Subregion'!$J$7:$J$35,MATCH($F17,RegionUSER,0))) ->  | AH17: =IF(OR(ISBLANK($B17),ISBLANK($C17),$AD17=""),"",ROUND($AD17*INDEX('Diesel TRU Emission Factors'!$D$6:$D$76,MATCH($B17&$C17,'Diesel TRU Emission Factors'!$R$6:$R$77,0))*GramsToMT,4)) ->  | AI17: =IF(OR(ISBLANK($B17),ISBLANK($C17),$AD17=""),"",ROUND($AD17*INDEX('Diesel TRU Emission Factors'!$E$6:$E$76,MATCH($B17&$C17,'Diesel TRU Emission Factors'!$R$6:$R$77,0))*GramsToMT,4)) ->  | AJ17: =IF(OR(ISBLANK($B17),ISBLANK($C17),$AD17=""),"",ROUND($AD17*INDEX('Diesel TRU Emission Factors'!$H$6:$H$76,MATCH($B17&$C17,'Diesel TRU Emission Factors'!$R$6:$R$77,0))*GramsToMT,4)) ->  | AK17: =IF(OR(ISBLANK($B17),ISBLANK($C17),$AD17=""),"",ROUND($AD17*INDEX('Diesel TRU Emission Factors'!$F$6:$F$76,MATCH($B17&$C17,'Diesel TRU Emission Factors'!$R$6:$R$77,0))*GramsToMT,1)) ->  | AL17: =IF(OR(ISBLANK($B17),ISBLANK($C17),$AD17=""),"",$AD17*INDEX('Diesel TRU Emission Factors'!$G$6:$G$76,MATCH($B17&$C17,'Diesel TRU Emission Factors'!$R$6:$R$77,0))*GramsToMT) ->  | AM17: =IF(ISBLANK(F17),"",AD17*GalTokWh*'Diesel TRU Emission Factors'!$P$4/1000000) ->  | AN17: =IF(ISBLANK($F17),"",ROUND(AK17*References!$B$28+AL17*References!$B$29+AM17*References!$B$30,1)) ->  | AP17: =IF(OR(ISBLANK($F17),$AE17="",$AF17=""),"",ROUND($AE17*(1+$AF17)*INDEX('eGRID2020 Subregion'!$C$7:$C$36,MATCH($F17,RegionUSER,0))*GramsToMT,4)) ->  | AQ17: =IF(OR(ISBLANK($F17),$AE17="",$AF17=""),"",ROUND($AE17*(1+$AF17)*INDEX('eGRID2020 Subregion'!$D$7:$D$36,MATCH($F17,RegionUSER,0))*GramsToMT,4)) ->  | AR17: =IF(OR(ISBLANK($F17),$AE17="",$AF17=""),"",ROUND($AE17*(1+$AF17)*INDEX('eGRID2020 Subregion'!$I$7:$I$36,MATCH($F17,RegionUSER,0))*GramsToMT,4)) ->  | AS17: =IF(OR(ISBLANK($F17),$AE17="",$AF17=""),"",ROUND($AE17*(1+$AF17)*INDEX('eGRID2020 Subregion'!$E$7:$E$36,MATCH($F17,RegionUSER,0))*GramsToMT,1)) ->  | AT17: =IF(OR(ISBLANK($F17),$AE17="",$AF17=""),"",$AE17*(1+$AF17)*INDEX('eGRID2020 Subregion'!$F$7:$F$35,MATCH($F17,RegionUSER,0))*GramsToMT) ->  | AU17: =IF(OR(ISBLANK($F17),$AE17="",$AF17=""),"",$AE17*(1+$AF17)*INDEX('eGRID2020 Subregion'!$G$7:$G$35,MATCH($F17,RegionUSER,0))*GramsToMT) ->  | AV17: =IF(ISBLANK($F17),"",ROUND(AS17*References!$B$28+AT17*References!$B$29+AU17*References!$B$30,1)) ->  | BL17: =IF(OR($BJ17="",$BK17=""),"",$BJ17+$BK17) ->  | BO17: =IF(OR($AD17="",$AF17="",AND($S17="",ISBLANK($T17)),AND($U17="",ISBLANK($V17))),"",($AD17*(IF(ISBLANK($T17),$S17,$T17)*GalTokWh))-($AE17*IF(ISBLANK($V17),$U17,$V17)*(1+$AF17))) ->  | BP17: =IF(OR($BN17="",$BO17=""),"",$BN17+$BO17) -> 
G18: hp | H18: =IF(OR(ISBLANK($B18),ISBLANK($C18)),"",ROUND(INDEX('TRU Ops & Costs'!$D$4:$D$74,MATCH($B18&$C18,'TRU Ops & Costs'!$P$4:$P$74,0))/IF($G18="hp",0.7457,1),0)) ->  | J18: =IF(OR(ISBLANK($B18),ISBLANK($C18)),"",INDEX('TRU Ops & Costs'!$E$4:$E$74,MATCH($B18&$C18,'TRU Ops & Costs'!$P$4:$P$74,0))) ->  | L18: =IF(OR(ISBLANK($B18),ISBLANK($C18)),"",INDEX('TRU Ops & Costs'!$F$4:$F$74,MATCH($B18&$C18,'TRU Ops & Costs'!$P$4:$P$74,0))) ->  | N18: =IF(OR(ISBLANK($B18),ISBLANK($C18)),"",INDEX('TRU Ops & Costs'!$G$4:$G$74,MATCH($B18&$C18,'TRU Ops & Costs'!$P$4:$P$74,0))) ->  | S18: =IF(ISBLANK($F18),"",IFERROR(INDEX('Diesel Fuel Prices'!$D$5:$D$31,MATCH($F18,'Diesel Fuel Prices'!$B$5:$B$31,0)),INDEX('Diesel Fuel Prices'!$D$5:$D$31,MATCH("U.S. Average",'Diesel Fuel Prices'!$B$5:$B$31,0)))*References!$B$38/References!$B$37) ->  | U18: =IF(ISBLANK($F18),"",IFERROR(INDEX('Electricity Prices'!$F$4:$F$31,MATCH($F18,'Electricity Prices'!$B$4:$B$31,0)),INDEX('Electricity Prices'!$F$4:$F$31,MATCH("All U.S.",'Electricity Prices'!$B$4:$B$31,0)))*References!$B$38/References!$B$37) ->  | W18: =IF(OR(ISBLANK($B18),ISBLANK($C18)),"",INDEX('TRU Ops & Costs'!$I$4:$I$74,MATCH($B18&$C18,'TRU Ops & Costs'!$P$4:$P$74,0))) ->  | Y18: =IFERROR(IF(AND(ISBLANK(Q18),ISBLANK(R18)),"",IF(OR(ISBLANK($B18),ISBLANK($C18)),"",(IF(E18="Yard",INDEX('TRU Ops & Costs'!$J$4:$J$74,MATCH($B18&$C18,'TRU Ops & Costs'!$P$4:$P$74,0)),INDEX('TRU Ops & Costs'!$K$4:$K$74,MATCH($B18&$C18,'TRU Ops & Costs'!$P$4:$P$74,0)))))/(IF(ISBLANK(R18),Q18,R18))),"") ->  | AA18: =IF(OR(ISBLANK($B18),ISBLANK($C18),AND($O18="",ISBLANK($P18))),"",IF(ISBLANK($P18),$O18,$P18)*INDEX('TRU Ops & Costs'!$M$4:$M$74,MATCH($B18&$C18,'TRU Ops & Costs'!$P$4:$P$74,0))*-INDEX('TRU Ops & Costs'!$L$4:$L$74,MATCH($B18&$C18,'TRU Ops & Costs'!$P$4:$P$74,0))) ->  | AF18: =IF(ISBLANK($F18),"",INDEX('eGRID2020 Subregion'!$J$7:$J$35,MATCH($F18,RegionUSER,0))) ->  | AH18: =IF(OR(ISBLANK($B18),ISBLANK($C18),$AD18=""),"",ROUND($AD18*INDEX('Diesel TRU Emission Factors'!$D$6:$D$76,MATCH($B18&$C18,'Diesel TRU Emission Factors'!$R$6:$R$77,0))*GramsToMT,4)) ->  | AI18: =IF(OR(ISBLANK($B18),ISBLANK($C18),$AD18=""),"",ROUND($AD18*INDEX('Diesel TRU Emission Factors'!$E$6:$E$76,MATCH($B18&$C18,'Diesel TRU Emission Factors'!$R$6:$R$77,0))*GramsToMT,4)) ->  | AJ18: =IF(OR(ISBLANK($B18),ISBLANK($C18),$AD18=""),"",ROUND($AD18*INDEX('Diesel TRU Emission Factors'!$H$6:$H$76,MATCH($B18&$C18,'Diesel TRU Emission Factors'!$R$6:$R$77,0))*GramsToMT,4)) ->  | AK18: =IF(OR(ISBLANK($B18),ISBLANK($C18),$AD18=""),"",ROUND($AD18*INDEX('Diesel TRU Emission Factors'!$F$6:$F$76,MATCH($B18&$C18,'Diesel TRU Emission Factors'!$R$6:$R$77,0))*GramsToMT,1)) ->  | AL18: =IF(OR(ISBLANK($B18),ISBLANK($C18),$AD18=""),"",$AD18*INDEX('Diesel TRU Emission Factors'!$G$6:$G$76,MATCH($B18&$C18,'Diesel TRU Emission Factors'!$R$6:$R$77,0))*GramsToMT) ->  | AM18: =IF(ISBLANK(F18),"",AD18*GalTokWh*'Diesel TRU Emission Factors'!$P$4/1000000) ->  | AN18: =IF(ISBLANK($F18),"",ROUND(AK18*References!$B$28+AL18*References!$B$29+AM18*References!$B$30,1)) ->  | AP18: =IF(OR(ISBLANK($F18),$AE18="",$AF18=""),"",ROUND($AE18*(1+$AF18)*INDEX('eGRID2020 Subregion'!$C$7:$C$36,MATCH($F18,RegionUSER,0))*GramsToMT,4)) ->  | AQ18: =IF(OR(ISBLANK($F18),$AE18="",$AF18=""),"",ROUND($AE18*(1+$AF18)*INDEX('eGRID2020 Subregion'!$D$7:$D$36,MATCH($F18,RegionUSER,0))*GramsToMT,4)) ->  | AR18: =IF(OR(ISBLANK($F18),$AE18="",$AF18=""),"",ROUND($AE18*(1+$AF18)*INDEX('eGRID2020 Subregion'!$I$7:$I$36,MATCH($F18,RegionUSER,0))*GramsToMT,4)) ->  | AS18: =IF(OR(ISBLANK($F18),$AE18="",$AF18=""),"",ROUND($AE18*(1+$AF18)*INDEX('eGRID2020 Subregion'!$E$7:$E$36,MATCH($F18,RegionUSER,0))*GramsToMT,1)) ->  | AT18: =IF(OR(ISBLANK($F18),$AE18="",$AF18=""),"",$AE18*(1+$AF18)*INDEX('eGRID2020 Subregion'!$F$7:$F$35,MATCH($F18,RegionUSER,0))*GramsToMT) ->  | AU18: =IF(OR(ISBLANK($F18),$AE18="",$AF18=""),"",$AE18*(1+$AF18)*INDEX('eGRID2020 Subregion'!$G$7:$G$35,MATCH($F18,RegionUSER,0))*GramsToMT) ->  | AV18: =IF(ISBLANK($F18),"",ROUND(AS18*References!$B$28+AT18*References!$B$29+AU18*References!$B$30,1)) -> 
G19: hp | H19: =IF(OR(ISBLANK($B19),ISBLANK($C19)),"",ROUND(INDEX('TRU Ops & Costs'!$D$4:$D$74,MATCH($B19&$C19,'TRU Ops & Costs'!$P$4:$P$74,0))/IF($G19="hp",0.7457,1),0)) ->  | J19: =IF(OR(ISBLANK($B19),ISBLANK($C19)),"",INDEX('TRU Ops & Costs'!$E$4:$E$74,MATCH($B19&$C19,'TRU Ops & Costs'!$P$4:$P$74,0))) ->  | L19: =IF(OR(ISBLANK($B19),ISBLANK($C19)),"",INDEX('TRU Ops & Costs'!$F$4:$F$74,MATCH($B19&$C19,'TRU Ops & Costs'!$P$4:$P$74,0))) ->  | N19: =IF(OR(ISBLANK($B19),ISBLANK($C19)),"",INDEX('TRU Ops & Costs'!$G$4:$G$74,MATCH($B19&$C19,'TRU Ops & Costs'!$P$4:$P$74,0))) ->  | S19: =IF(ISBLANK($F19),"",IFERROR(INDEX('Diesel Fuel Prices'!$D$5:$D$31,MATCH($F19,'Diesel Fuel Prices'!$B$5:$B$31,0)),INDEX('Diesel Fuel Prices'!$D$5:$D$31,MATCH("U.S. Average",'Diesel Fuel Prices'!$B$5:$B$31,0)))*References!$B$38/References!$B$37) ->  | U19: =IF(ISBLANK($F19),"",IFERROR(INDEX('Electricity Prices'!$F$4:$F$31,MATCH($F19,'Electricity Prices'!$B$4:$B$31,0)),INDEX('Electricity Prices'!$F$4:$F$31,MATCH("All U.S.",'Electricity Prices'!$B$4:$B$31,0)))*References!$B$38/References!$B$37) ->  | W19: =IF(OR(ISBLANK($B19),ISBLANK($C19)),"",INDEX('TRU Ops & Costs'!$I$4:$I$74,MATCH($B19&$C19,'TRU Ops & Costs'!$P$4:$P$74,0))) ->  | Y19: =IFERROR(IF(AND(ISBLANK(Q19),ISBLANK(R19)),"",IF(OR(ISBLANK($B19),ISBLANK($C19)),"",(IF(E19="Yard",INDEX('TRU Ops & Costs'!$J$4:$J$74,MATCH($B19&$C19,'TRU Ops & Costs'!$P$4:$P$74,0)),INDEX('TRU Ops & Costs'!$K$4:$K$74,MATCH($B19&$C19,'TRU Ops & Costs'!$P$4:$P$74,0)))))/(IF(ISBLANK(R19),Q19,R19))),"") ->  | AA19: =IF(OR(ISBLANK($B19),ISBLANK($C19),AND($O19="",ISBLANK($P19))),"",IF(ISBLANK($P19),$O19,$P19)*INDEX('TRU Ops & Costs'!$M$4:$M$74,MATCH($B19&$C19,'TRU Ops & Costs'!$P$4:$P$74,0))*-INDEX('TRU Ops & Costs'!$L$4:$L$74,MATCH($B19&$C19,'TRU Ops & Costs'!$P$4:$P$74,0))) ->  | AF19: =IF(ISBLANK($F19),"",INDEX('eGRID2020 Subregion'!$J$7:$J$35,MATCH($F19,RegionUSER,0))) ->  | AH19: =IF(OR(ISBLANK($B19),ISBLANK($C19),$AD19=""),"",ROUND($AD19*INDEX('Diesel TRU Emission Factors'!$D$6:$D$76,MATCH($B19&$C19,'Diesel TRU Emission Factors'!$R$6:$R$77,0))*GramsToMT,4)) ->  | AI19: =IF(OR(ISBLANK($B19),ISBLANK($C19),$AD19=""),"",ROUND($AD19*INDEX('Diesel TRU Emission Factors'!$E$6:$E$76,MATCH($B19&$C19,'Diesel TRU Emission Factors'!$R$6:$R$77,0))*GramsToMT,4)) ->  | AJ19: =IF(OR(ISBLANK($B19),ISBLANK($C19),$AD19=""),"",ROUND($AD19*INDEX('Diesel TRU Emission Factors'!$H$6:$H$76,MATCH($B19&$C19,'Diesel TRU Emission Factors'!$R$6:$R$77,0))*GramsToMT,4)) ->  | AK19: =IF(OR(ISBLANK($B19),ISBLANK($C19),$AD19=""),"",ROUND($AD19*INDEX('Diesel TRU Emission Factors'!$F$6:$F$76,MATCH($B19&$C19,'Diesel TRU Emission Factors'!$R$6:$R$77,0))*GramsToMT,1)) ->  | AL19: =IF(OR(ISBLANK($B19),ISBLANK($C19),$AD19=""),"",$AD19*INDEX('Diesel TRU Emission Factors'!$G$6:$G$76,MATCH($B19&$C19,'Diesel TRU Emission Factors'!$R$6:$R$77,0))*GramsToMT) ->  | AM19: =IF(ISBLANK(F19),"",AD19*GalTokWh*'Diesel TRU Emission Factors'!$P$4/1000000) ->  | AN19: =IF(ISBLANK($F19),"",ROUND(AK19*References!$B$28+AL19*References!$B$29+AM19*References!$B$30,1)) ->  | AP19: =IF(OR(ISBLANK($F19),$AE19="",$AF19=""),"",ROUND($AE19*(1+$AF19)*INDEX('eGRID2020 Subregion'!$C$7:$C$36,MATCH($F19,RegionUSER,0))*GramsToMT,4)) ->  | AQ19: =IF(OR(ISBLANK($F19),$AE19="",$AF19=""),"",ROUND($AE19*(1+$AF19)*INDEX('eGRID2020 Subregion'!$D$7:$D$36,MATCH($F19,RegionUSER,0))*GramsToMT,4)) ->  | AR19: =IF(OR(ISBLANK($F19),$AE19="",$AF19=""),"",ROUND($AE19*(1+$AF19)*INDEX('eGRID2020 Subregion'!$I$7:$I$36,MATCH($F19,RegionUSER,0))*GramsToMT,4)) ->  | AS19: =IF(OR(ISBLANK($F19),$AE19="",$AF19=""),"",ROUND($AE19*(1+$AF19)*INDEX('eGRID2020 Subregion'!$E$7:$E$36,MATCH($F19,RegionUSER,0))*GramsToMT,1)) ->  | AT19: =IF(OR(ISBLANK($F19),$AE19="",$AF19=""),"",$AE19*(1+$AF19)*INDEX('eGRID2020 Subregion'!$F$7:$F$35,MATCH($F19,RegionUSER,0))*GramsToMT) ->  | AU19: =IF(OR(ISBLANK($F19),$AE19="",$AF19=""),"",$AE19*(1+$AF19)*INDEX('eGRID2020 Subregion'!$G$7:$G$35,MATCH($F19,RegionUSER,0))*GramsToMT) ->  | AV19: =IF(ISBLANK($F19),"",ROUND(AS19*References!$B$28+AT19*References!$B$29+AU19*References!$B$30,1)) ->  | BL19: =IF(OR($BJ19="",$BK19=""),"",$BJ19+$BK19) ->  | BO19: =IF(OR($AD19="",$AF19="",AND($S19="",ISBLANK($T19)),AND($U19="",ISBLANK($V19))),"",($AD19*(IF(ISBLANK($T19),$S19,$T19)*GalTokWh))-($AE19*IF(ISBLANK($V19),$U19,$V19)*(1+$AF19))) ->  | BP19: =IF(OR($BN19="",$BO19=""),"",$BN19+$BO19) -> 
G20: hp | H20: =IF(OR(ISBLANK($B20),ISBLANK($C20)),"",ROUND(INDEX('TRU Ops & Costs'!$D$4:$D$74,MATCH($B20&$C20,'TRU Ops & Costs'!$P$4:$P$74,0))/IF($G20="hp",0.7457,1),0)) ->  | J20: =IF(OR(ISBLANK($B20),ISBLANK($C20)),"",INDEX('TRU Ops & Costs'!$E$4:$E$74,MATCH($B20&$C20,'TRU Ops & Costs'!$P$4:$P$74,0))) ->  | L20: =IF(OR(ISBLANK($B20),ISBLANK($C20)),"",INDEX('TRU Ops & Costs'!$F$4:$F$74,MATCH($B20&$C20,'TRU Ops & Costs'!$P$4:$P$74,0))) ->  | N20: =IF(OR(ISBLANK($B20),ISBLANK($C20)),"",INDEX('TRU Ops & Costs'!$G$4:$G$74,MATCH($B20&$C20,'TRU Ops & Costs'!$P$4:$P$74,0))) ->  | S20: =IF(ISBLANK($F20),"",IFERROR(INDEX('Diesel Fuel Prices'!$D$5:$D$31,MATCH($F20,'Diesel Fuel Prices'!$B$5:$B$31,0)),INDEX('Diesel Fuel Prices'!$D$5:$D$31,MATCH("U.S. Average",'Diesel Fuel Prices'!$B$5:$B$31,0)))*References!$B$38/References!$B$37) ->  | U20: =IF(ISBLANK($F20),"",IFERROR(INDEX('Electricity Prices'!$F$4:$F$31,MATCH($F20,'Electricity Prices'!$B$4:$B$31,0)),INDEX('Electricity Prices'!$F$4:$F$31,MATCH("All U.S.",'Electricity Prices'!$B$4:$B$31,0)))*References!$B$38/References!$B$37) ->  | W20: =IF(OR(ISBLANK($B20),ISBLANK($C20)),"",INDEX('TRU Ops & Costs'!$I$4:$I$74,MATCH($B20&$C20,'TRU Ops & Costs'!$P$4:$P$74,0))) ->  | Y20: =IFERROR(IF(AND(ISBLANK(Q20),ISBLANK(R20)),"",IF(OR(ISBLANK($B20),ISBLANK($C20)),"",(IF(E20="Yard",INDEX('TRU Ops & Costs'!$J$4:$J$74,MATCH($B20&$C20,'TRU Ops & Costs'!$P$4:$P$74,0)),INDEX('TRU Ops & Costs'!$K$4:$K$74,MATCH($B20&$C20,'TRU Ops & Costs'!$P$4:$P$74,0)))))/(IF(ISBLANK(R20),Q20,R20))),"") ->  | AA20: =IF(OR(ISBLANK($B20),ISBLANK($C20),AND($O20="",ISBLANK($P20))),"",IF(ISBLANK($P20),$O20,$P20)*INDEX('TRU Ops & Costs'!$M$4:$M$74,MATCH($B20&$C20,'TRU Ops & Costs'!$P$4:$P$74,0))*-INDEX('TRU Ops & Costs'!$L$4:$L$74,MATCH($B20&$C20,'TRU Ops & Costs'!$P$4:$P$74,0))) ->  | AF20: =IF(ISBLANK($F20),"",INDEX('eGRID2020 Subregion'!$J$7:$J$35,MATCH($F20,RegionUSER,0))) ->  | AH20: =IF(OR(ISBLANK($B20),ISBLANK($C20),$AD20=""),"",ROUND($AD20*INDEX('Diesel TRU Emission Factors'!$D$6:$D$76,MATCH($B20&$C20,'Diesel TRU Emission Factors'!$R$6:$R$77,0))*GramsToMT,4)) ->  | AI20: =IF(OR(ISBLANK($B20),ISBLANK($C20),$AD20=""),"",ROUND($AD20*INDEX('Diesel TRU Emission Factors'!$E$6:$E$76,MATCH($B20&$C20,'Diesel TRU Emission Factors'!$R$6:$R$77,0))*GramsToMT,4)) ->  | AJ20: =IF(OR(ISBLANK($B20),ISBLANK($C20),$AD20=""),"",ROUND($AD20*INDEX('Diesel TRU Emission Factors'!$H$6:$H$76,MATCH($B20&$C20,'Diesel TRU Emission Factors'!$R$6:$R$77,0))*GramsToMT,4)) ->  | AK20: =IF(OR(ISBLANK($B20),ISBLANK($C20),$AD20=""),"",ROUND($AD20*INDEX('Diesel TRU Emission Factors'!$F$6:$F$76,MATCH($B20&$C20,'Diesel TRU Emission Factors'!$R$6:$R$77,0))*GramsToMT,1)) ->  | AL20: =IF(OR(ISBLANK($B20),ISBLANK($C20),$AD20=""),"",$AD20*INDEX('Diesel TRU Emission Factors'!$G$6:$G$76,MATCH($B20&$C20,'Diesel TRU Emission Factors'!$R$6:$R$77,0))*GramsToMT) ->  | AM20: =IF(ISBLANK(F20),"",AD20*GalTokWh*'Diesel TRU Emission Factors'!$P$4/1000000) ->  | AN20: =IF(ISBLANK($F20),"",ROUND(AK20*References!$B$28+AL20*References!$B$29+AM20*References!$B$30,1)) ->  | AP20: =IF(OR(ISBLANK($F20),$AE20="",$AF20=""),"",ROUND($AE20*(1+$AF20)*INDEX('eGRID2020 Subregion'!$C$7:$C$36,MATCH($F20,RegionUSER,0))*GramsToMT,4)) ->  | AQ20: =IF(OR(ISBLANK($F20),$AE20="",$AF20=""),"",ROUND($AE20*(1+$AF20)*INDEX('eGRID2020 Subregion'!$D$7:$D$36,MATCH($F20,RegionUSER,0))*GramsToMT,4)) ->  | AR20: =IF(OR(ISBLANK($F20),$AE20="",$AF20=""),"",ROUND($AE20*(1+$AF20)*INDEX('eGRID2020 Subregion'!$I$7:$I$36,MATCH($F20,RegionUSER,0))*GramsToMT,4)) ->  | AS20: =IF(OR(ISBLANK($F20),$AE20="",$AF20=""),"",ROUND($AE20*(1+$AF20)*INDEX('eGRID2020 Subregion'!$E$7:$E$36,MATCH($F20,RegionUSER,0))*GramsToMT,1)) ->  | AT20: =IF(OR(ISBLANK($F20),$AE20="",$AF20=""),"",$AE20*(1+$AF20)*INDEX('eGRID2020 Subregion'!$F$7:$F$35,MATCH($F20,RegionUSER,0))*GramsToMT) ->  | AU20: =IF(OR(ISBLANK($F20),$AE20="",$AF20=""),"",$AE20*(1+$AF20)*INDEX('eGRID2020 Subregion'!$G$7:$G$35,MATCH($F20,RegionUSER,0))*GramsToMT) ->  | AV20: =IF(ISBLANK($F20),"",ROUND(AS20*References!$B$28+AT20*References!$B$29+AU20*References!$B$30,1)) -> 
G21: hp | H21: =IF(OR(ISBLANK($B21),ISBLANK($C21)),"",ROUND(INDEX('TRU Ops & Costs'!$D$4:$D$74,MATCH($B21&$C21,'TRU Ops & Costs'!$P$4:$P$74,0))/IF($G21="hp",0.7457,1),0)) ->  | J21: =IF(OR(ISBLANK($B21),ISBLANK($C21)),"",INDEX('TRU Ops & Costs'!$E$4:$E$74,MATCH($B21&$C21,'TRU Ops & Costs'!$P$4:$P$74,0))) ->  | L21: =IF(OR(ISBLANK($B21),ISBLANK($C21)),"",INDEX('TRU Ops & Costs'!$F$4:$F$74,MATCH($B21&$C21,'TRU Ops & Costs'!$P$4:$P$74,0))) ->  | N21: =IF(OR(ISBLANK($B21),ISBLANK($C21)),"",INDEX('TRU Ops & Costs'!$G$4:$G$74,MATCH($B21&$C21,'TRU Ops & Costs'!$P$4:$P$74,0))) ->  | S21: =IF(ISBLANK($F21),"",IFERROR(INDEX('Diesel Fuel Prices'!$D$5:$D$31,MATCH($F21,'Diesel Fuel Prices'!$B$5:$B$31,0)),INDEX('Diesel Fuel Prices'!$D$5:$D$31,MATCH("U.S. Average",'Diesel Fuel Prices'!$B$5:$B$31,0)))*References!$B$38/References!$B$37) ->  | U21: =IF(ISBLANK($F21),"",IFERROR(INDEX('Electricity Prices'!$F$4:$F$31,MATCH($F21,'Electricity Prices'!$B$4:$B$31,0)),INDEX('Electricity Prices'!$F$4:$F$31,MATCH("All U.S.",'Electricity Prices'!$B$4:$B$31,0)))*References!$B$38/References!$B$37) ->  | W21: =IF(OR(ISBLANK($B21),ISBLANK($C21)),"",INDEX('TRU Ops & Costs'!$I$4:$I$74,MATCH($B21&$C21,'TRU Ops & Costs'!$P$4:$P$74,0))) ->  | Y21: =IFERROR(IF(AND(ISBLANK(Q21),ISBLANK(R21)),"",IF(OR(ISBLANK($B21),ISBLANK($C21)),"",(IF(E21="Yard",INDEX('TRU Ops & Costs'!$J$4:$J$74,MATCH($B21&$C21,'TRU Ops & Costs'!$P$4:$P$74,0)),INDEX('TRU Ops & Costs'!$K$4:$K$74,MATCH($B21&$C21,'TRU Ops & Costs'!$P$4:$P$74,0)))))/(IF(ISBLANK(R21),Q21,R21))),"") ->  | AA21: =IF(OR(ISBLANK($B21),ISBLANK($C21),AND($O21="",ISBLANK($P21))),"",IF(ISBLANK($P21),$O21,$P21)*INDEX('TRU Ops & Costs'!$M$4:$M$74,MATCH($B21&$C21,'TRU Ops & Costs'!$P$4:$P$74,0))*-INDEX('TRU Ops & Costs'!$L$4:$L$74,MATCH($B21&$C21,'TRU Ops & Costs'!$P$4:$P$74,0))) ->  | AF21: =IF(ISBLANK($F21),"",INDEX('eGRID2020 Subregion'!$J$7:$J$35,MATCH($F21,RegionUSER,0))) ->  | AH21: =IF(OR(ISBLANK($B21),ISBLANK($C21),$AD21=""),"",ROUND($AD21*INDEX('Diesel TRU Emission Factors'!$D$6:$D$76,MATCH($B21&$C21,'Diesel TRU Emission Factors'!$R$6:$R$77,0))*GramsToMT,4)) ->  | AI21: =IF(OR(ISBLANK($B21),ISBLANK($C21),$AD21=""),"",ROUND($AD21*INDEX('Diesel TRU Emission Factors'!$E$6:$E$76,MATCH($B21&$C21,'Diesel TRU Emission Factors'!$R$6:$R$77,0))*GramsToMT,4)) ->  | AJ21: =IF(OR(ISBLANK($B21),ISBLANK($C21),$AD21=""),"",ROUND($AD21*INDEX('Diesel TRU Emission Factors'!$H$6:$H$76,MATCH($B21&$C21,'Diesel TRU Emission Factors'!$R$6:$R$77,0))*GramsToMT,4)) ->  | AK21: =IF(OR(ISBLANK($B21),ISBLANK($C21),$AD21=""),"",ROUND($AD21*INDEX('Diesel TRU Emission Factors'!$F$6:$F$76,MATCH($B21&$C21,'Diesel TRU Emission Factors'!$R$6:$R$77,0))*GramsToMT,1)) ->  | AL21: =IF(OR(ISBLANK($B21),ISBLANK($C21),$AD21=""),"",$AD21*INDEX('Diesel TRU Emission Factors'!$G$6:$G$76,MATCH($B21&$C21,'Diesel TRU Emission Factors'!$R$6:$R$77,0))*GramsToMT) ->  | AM21: =IF(ISBLANK(F21),"",AD21*GalTokWh*'Diesel TRU Emission Factors'!$P$4/1000000) ->  | AN21: =IF(ISBLANK($F21),"",ROUND(AK21*References!$B$28+AL21*References!$B$29+AM21*References!$B$30,1)) ->  | AP21: =IF(OR(ISBLANK($F21),$AE21="",$AF21=""),"",ROUND($AE21*(1+$AF21)*INDEX('eGRID2020 Subregion'!$C$7:$C$36,MATCH($F21,RegionUSER,0))*GramsToMT,4)) ->  | AQ21: =IF(OR(ISBLANK($F21),$AE21="",$AF21=""),"",ROUND($AE21*(1+$AF21)*INDEX('eGRID2020 Subregion'!$D$7:$D$36,MATCH($F21,RegionUSER,0))*GramsToMT,4)) ->  | AR21: =IF(OR(ISBLANK($F21),$AE21="",$AF21=""),"",ROUND($AE21*(1+$AF21)*INDEX('eGRID2020 Subregion'!$I$7:$I$36,MATCH($F21,RegionUSER,0))*GramsToMT,4)) ->  | AS21: =IF(OR(ISBLANK($F21),$AE21="",$AF21=""),"",ROUND($AE21*(1+$AF21)*INDEX('eGRID2020 Subregion'!$E$7:$E$36,MATCH($F21,RegionUSER,0))*GramsToMT,1)) ->  | AT21: =IF(OR(ISBLANK($F21),$AE21="",$AF21=""),"",$AE21*(1+$AF21)*INDEX('eGRID2020 Subregion'!$F$7:$F$35,MATCH($F21,RegionUSER,0))*GramsToMT) ->  | AU21: =IF(OR(ISBLANK($F21),$AE21="",$AF21=""),"",$AE21*(1+$AF21)*INDEX('eGRID2020 Subregion'!$G$7:$G$35,MATCH($F21,RegionUSER,0))*GramsToMT) ->  | AV21: =IF(ISBLANK($F21),"",ROUND(AS21*References!$B$28+AT21*References!$B$29+AU21*References!$B$30,1)) ->  | BL21: =IF(OR($BJ21="",$BK21=""),"",$BJ21+$BK21) ->  | BO21: =IF(OR($AD21="",$AF21="",AND($S21="",ISBLANK($T21)),AND($U21="",ISBLANK($V21))),"",($AD21*(IF(ISBLANK($T21),$S21,$T21)*GalTokWh))-($AE21*IF(ISBLANK($V21),$U21,$V21)*(1+$AF21))) ->  | BP21: =IF(OR($BN21="",$BO21=""),"",$BN21+$BO21) -> 
G22: hp | H22: =IF(OR(ISBLANK($B22),ISBLANK($C22)),"",ROUND(INDEX('TRU Ops & Costs'!$D$4:$D$74,MATCH($B22&$C22,'TRU Ops & Costs'!$P$4:$P$74,0))/IF($G22="hp",0.7457,1),0)) ->  | J22: =IF(OR(ISBLANK($B22),ISBLANK($C22)),"",INDEX('TRU Ops & Costs'!$E$4:$E$74,MATCH($B22&$C22,'TRU Ops & Costs'!$P$4:$P$74,0))) ->  | L22: =IF(OR(ISBLANK($B22),ISBLANK($C22)),"",INDEX('TRU Ops & Costs'!$F$4:$F$74,MATCH($B22&$C22,'TRU Ops & Costs'!$P$4:$P$74,0))) ->  | N22: =IF(OR(ISBLANK($B22),ISBLANK($C22)),"",INDEX('TRU Ops & Costs'!$G$4:$G$74,MATCH($B22&$C22,'TRU Ops & Costs'!$P$4:$P$74,0))) ->  | S22: =IF(ISBLANK($F22),"",IFERROR(INDEX('Diesel Fuel Prices'!$D$5:$D$31,MATCH($F22,'Diesel Fuel Prices'!$B$5:$B$31,0)),INDEX('Diesel Fuel Prices'!$D$5:$D$31,MATCH("U.S. Average",'Diesel Fuel Prices'!$B$5:$B$31,0)))*References!$B$38/References!$B$37) ->  | U22: =IF(ISBLANK($F22),"",IFERROR(INDEX('Electricity Prices'!$F$4:$F$31,MATCH($F22,'Electricity Prices'!$B$4:$B$31,0)),INDEX('Electricity Prices'!$F$4:$F$31,MATCH("All U.S.",'Electricity Prices'!$B$4:$B$31,0)))*References!$B$38/References!$B$37) ->  | W22: =IF(OR(ISBLANK($B22),ISBLANK($C22)),"",INDEX('TRU Ops & Costs'!$I$4:$I$74,MATCH($B22&$C22,'TRU Ops & Costs'!$P$4:$P$74,0))) ->  | Y22: =IFERROR(IF(AND(ISBLANK(Q22),ISBLANK(R22)),"",IF(OR(ISBLANK($B22),ISBLANK($C22)),"",(IF(E22="Yard",INDEX('TRU Ops & Costs'!$J$4:$J$74,MATCH($B22&$C22,'TRU Ops & Costs'!$P$4:$P$74,0)),INDEX('TRU Ops & Costs'!$K$4:$K$74,MATCH($B22&$C22,'TRU Ops & Costs'!$P$4:$P$74,0)))))/(IF(ISBLANK(R22),Q22,R22))),"") ->  | AA22: =IF(OR(ISBLANK($B22),ISBLANK($C22),AND($O22="",ISBLANK($P22))),"",IF(ISBLANK($P22),$O22,$P22)*INDEX('TRU Ops & Costs'!$M$4:$M$74,MATCH($B22&$C22,'TRU Ops & Costs'!$P$4:$P$74,0))*-INDEX('TRU Ops & Costs'!$L$4:$L$74,MATCH($B22&$C22,'TRU Ops & Costs'!$P$4:$P$74,0))) ->  | AF22: =IF(ISBLANK($F22),"",INDEX('eGRID2020 Subregion'!$J$7:$J$35,MATCH($F22,RegionUSER,0))) ->  | AH22: =IF(OR(ISBLANK($B22),ISBLANK($C22),$AD22=""),"",ROUND($AD22*INDEX('Diesel TRU Emission Factors'!$D$6:$D$76,MATCH($B22&$C22,'Diesel TRU Emission Factors'!$R$6:$R$77,0))*GramsToMT,4)) ->  | AI22: =IF(OR(ISBLANK($B22),ISBLANK($C22),$AD22=""),"",ROUND($AD22*INDEX('Diesel TRU Emission Factors'!$E$6:$E$76,MATCH($B22&$C22,'Diesel TRU Emission Factors'!$R$6:$R$77,0))*GramsToMT,4)) ->  | AJ22: =IF(OR(ISBLANK($B22),ISBLANK($C22),$AD22=""),"",ROUND($AD22*INDEX('Diesel TRU Emission Factors'!$H$6:$H$76,MATCH($B22&$C22,'Diesel TRU Emission Factors'!$R$6:$R$77,0))*GramsToMT,4)) ->  | AK22: =IF(OR(ISBLANK($B22),ISBLANK($C22),$AD22=""),"",ROUND($AD22*INDEX('Diesel TRU Emission Factors'!$F$6:$F$76,MATCH($B22&$C22,'Diesel TRU Emission Factors'!$R$6:$R$77,0))*GramsToMT,1)) ->  | AL22: =IF(OR(ISBLANK($B22),ISBLANK($C22),$AD22=""),"",$AD22*INDEX('Diesel TRU Emission Factors'!$G$6:$G$76,MATCH($B22&$C22,'Diesel TRU Emission Factors'!$R$6:$R$77,0))*GramsToMT) ->  | AM22: =IF(ISBLANK(F22),"",AD22*GalTokWh*'Diesel TRU Emission Factors'!$P$4/1000000) ->  | AN22: =IF(ISBLANK($F22),"",ROUND(AK22*References!$B$28+AL22*References!$B$29+AM22*References!$B$30,1)) ->  | AP22: =IF(OR(ISBLANK($F22),$AE22="",$AF22=""),"",ROUND($AE22*(1+$AF22)*INDEX('eGRID2020 Subregion'!$C$7:$C$36,MATCH($F22,RegionUSER,0))*GramsToMT,4)) ->  | AQ22: =IF(OR(ISBLANK($F22),$AE22="",$AF22=""),"",ROUND($AE22*(1+$AF22)*INDEX('eGRID2020 Subregion'!$D$7:$D$36,MATCH($F22,RegionUSER,0))*GramsToMT,4)) ->  | AR22: =IF(OR(ISBLANK($F22),$AE22="",$AF22=""),"",ROUND($AE22*(1+$AF22)*INDEX('eGRID2020 Subregion'!$I$7:$I$36,MATCH($F22,RegionUSER,0))*GramsToMT,4)) ->  | AS22: =IF(OR(ISBLANK($F22),$AE22="",$AF22=""),"",ROUND($AE22*(1+$AF22)*INDEX('eGRID2020 Subregion'!$E$7:$E$36,MATCH($F22,RegionUSER,0))*GramsToMT,1)) ->  | AT22: =IF(OR(ISBLANK($F22),$AE22="",$AF22=""),"",$AE22*(1+$AF22)*INDEX('eGRID2020 Subregion'!$F$7:$F$35,MATCH($F22,RegionUSER,0))*GramsToMT) ->  | AU22: =IF(OR(ISBLANK($F22),$AE22="",$AF22=""),"",$AE22*(1+$AF22)*INDEX('eGRID2020 Subregion'!$G$7:$G$35,MATCH($F22,RegionUSER,0))*GramsToMT) ->  | AV22: =IF(ISBLANK($F22),"",ROUND(AS22*References!$B$28+AT22*References!$B$29+AU22*References!$B$30,1)) -> 
G23: hp | H23: =IF(OR(ISBLANK($B23),ISBLANK($C23)),"",ROUND(INDEX('TRU Ops & Costs'!$D$4:$D$74,MATCH($B23&$C23,'TRU Ops & Costs'!$P$4:$P$74,0))/IF($G23="hp",0.7457,1),0)) ->  | J23: =IF(OR(ISBLANK($B23),ISBLANK($C23)),"",INDEX('TRU Ops & Costs'!$E$4:$E$74,MATCH($B23&$C23,'TRU Ops & Costs'!$P$4:$P$74,0))) ->  | L23: =IF(OR(ISBLANK($B23),ISBLANK($C23)),"",INDEX('TRU Ops & Costs'!$F$4:$F$74,MATCH($B23&$C23,'TRU Ops & Costs'!$P$4:$P$74,0))) ->  | N23: =IF(OR(ISBLANK($B23),ISBLANK($C23)),"",INDEX('TRU Ops & Costs'!$G$4:$G$74,MATCH($B23&$C23,'TRU Ops & Costs'!$P$4:$P$74,0))) ->  | Q23: =IF(OR(ISBLANK($B23),ISBLANK($C23)),"",1) ->  | S23: =IF(ISBLANK($F23),"",IFERROR(INDEX('Diesel Fuel Prices'!$D$5:$D$31,MATCH($F23,'Diesel Fuel Prices'!$B$5:$B$31,0)),INDEX('Diesel Fuel Prices'!$D$5:$D$31,MATCH("U.S. Average",'Diesel Fuel Prices'!$B$5:$B$31,0)))*References!$B$38/References!$B$37) ->  | U23: =IF(ISBLANK($F23),"",IFERROR(INDEX('Electricity Prices'!$F$4:$F$31,MATCH($F23,'Electricity Prices'!$B$4:$B$31,0)),INDEX('Electricity Prices'!$F$4:$F$31,MATCH("All U.S.",'Electricity Prices'!$B$4:$B$31,0)))*References!$B$38/References!$B$37) ->  | W23: =IF(OR(ISBLANK($B23),ISBLANK($C23)),"",INDEX('TRU Ops & Costs'!$I$4:$I$74,MATCH($B23&$C23,'TRU Ops & Costs'!$P$4:$P$74,0))) ->  | Y23: =IFERROR(IF(AND(ISBLANK(Q23),ISBLANK(R23)),"",IF(OR(ISBLANK($B23),ISBLANK($C23)),"",(IF(E23="Yard",INDEX('TRU Ops & Costs'!$J$4:$J$74,MATCH($B23&$C23,'TRU Ops & Costs'!$P$4:$P$74,0)),INDEX('TRU Ops & Costs'!$K$4:$K$74,MATCH($B23&$C23,'TRU Ops & Costs'!$P$4:$P$74,0)))))/(IF(ISBLANK(R23),Q23,R23))),"") ->  | AA23: =IF(OR(ISBLANK($B23),ISBLANK($C23),AND($O23="",ISBLANK($P23))),"",IF(ISBLANK($P23),$O23,$P23)*INDEX('TRU Ops & Costs'!$M$4:$M$74,MATCH($B23&$C23,'TRU Ops & Costs'!$P$4:$P$74,0))*-INDEX('TRU Ops & Costs'!$L$4:$L$74,MATCH($B23&$C23,'TRU Ops & Costs'!$P$4:$P$74,0))) ->  | AF23: =IF(ISBLANK($F23),"",INDEX('eGRID2020 Subregion'!$J$7:$J$35,MATCH($F23,RegionUSER,0))) ->  | AH23: =IF(OR(ISBLANK($B23),ISBLANK($C23),$AD23=""),"",ROUND($AD23*INDEX('Diesel TRU Emission Factors'!$D$6:$D$76,MATCH($B23&$C23,'Diesel TRU Emission Factors'!$R$6:$R$77,0))*GramsToMT,4)) ->  | AI23: =IF(OR(ISBLANK($B23),ISBLANK($C23),$AD23=""),"",ROUND($AD23*INDEX('Diesel TRU Emission Factors'!$E$6:$E$76,MATCH($B23&$C23,'Diesel TRU Emission Factors'!$R$6:$R$77,0))*GramsToMT,4)) ->  | AJ23: =IF(OR(ISBLANK($B23),ISBLANK($C23),$AD23=""),"",ROUND($AD23*INDEX('Diesel TRU Emission Factors'!$H$6:$H$76,MATCH($B23&$C23,'Diesel TRU Emission Factors'!$R$6:$R$77,0))*GramsToMT,4)) ->  | AK23: =IF(OR(ISBLANK($B23),ISBLANK($C23),$AD23=""),"",ROUND($AD23*INDEX('Diesel TRU Emission Factors'!$F$6:$F$76,MATCH($B23&$C23,'Diesel TRU Emission Factors'!$R$6:$R$77,0))*GramsToMT,1)) ->  | AL23: =IF(OR(ISBLANK($B23),ISBLANK($C23),$AD23=""),"",$AD23*INDEX('Diesel TRU Emission Factors'!$G$6:$G$76,MATCH($B23&$C23,'Diesel TRU Emission Factors'!$R$6:$R$77,0))*GramsToMT) ->  | AM23: =IF(ISBLANK(F23),"",AD23*GalTokWh*'Diesel TRU Emission Factors'!$P$4/1000000) ->  | AN23: =IF(ISBLANK($F23),"",ROUND(AK23*References!$B$28+AL23*References!$B$29+AM23*References!$B$30,1)) ->  | AP23: =IF(OR(ISBLANK($F23),$AE23="",$AF23=""),"",ROUND($AE23*(1+$AF23)*INDEX('eGRID2020 Subregion'!$C$7:$C$36,MATCH($F23,RegionUSER,0))*GramsToMT,4)) ->  | AQ23: =IF(OR(ISBLANK($F23),$AE23="",$AF23=""),"",ROUND($AE23*(1+$AF23)*INDEX('eGRID2020 Subregion'!$D$7:$D$36,MATCH($F23,RegionUSER,0))*GramsToMT,4)) ->  | AR23: =IF(OR(ISBLANK($F23),$AE23="",$AF23=""),"",ROUND($AE23*(1+$AF23)*INDEX('eGRID2020 Subregion'!$I$7:$I$36,MATCH($F23,RegionUSER,0))*GramsToMT,4)) ->  | AS23: =IF(OR(ISBLANK($F23),$AE23="",$AF23=""),"",ROUND($AE23*(1+$AF23)*INDEX('eGRID2020 Subregion'!$E$7:$E$36,MATCH($F23,RegionUSER,0))*GramsToMT,1)) ->  | AT23: =IF(OR(ISBLANK($F23),$AE23="",$AF23=""),"",$AE23*(1+$AF23)*INDEX('eGRID2020 Subregion'!$F$7:$F$35,MATCH($F23,RegionUSER,0))*GramsToMT) ->  | AU23: =IF(OR(ISBLANK($F23),$AE23="",$AF23=""),"",$AE23*(1+$AF23)*INDEX('eGRID2020 Subregion'!$G$7:$G$35,MATCH($F23,RegionUSER,0))*GramsToMT) ->  | AV23: =IF(ISBLANK($F23),"",ROUND(AS23*References!$B$28+AT23*References!$B$29+AU23*References!$B$30,1)) ->  | BL23: =IF(OR($BJ23="",$BK23=""),"",$BJ23+$BK23) ->  | BO23: =IF(OR($AD23="",$AF23="",AND($S23="",ISBLANK($T23)),AND($U23="",ISBLANK($V23))),"",($AD23*(IF(ISBLANK($T23),$S23,$T23)*GalTokWh))-($AE23*IF(ISBLANK($V23),$U23,$V23)*(1+$AF23))) ->  | BP23: =IF(OR($BN23="",$BO23=""),"",$BN23+$BO23) -> 
G24: hp | H24: =IF(OR(ISBLANK($B24),ISBLANK($C24)),"",ROUND(INDEX('TRU Ops & Costs'!$D$4:$D$74,MATCH($B24&$C24,'TRU Ops & Costs'!$P$4:$P$74,0))/IF($G24="hp",0.7457,1),0)) ->  | J24: =IF(OR(ISBLANK($B24),ISBLANK($C24)),"",INDEX('TRU Ops & Costs'!$E$4:$E$74,MATCH($B24&$C24,'TRU Ops & Costs'!$P$4:$P$74,0))) ->  | L24: =IF(OR(ISBLANK($B24),ISBLANK($C24)),"",INDEX('TRU Ops & Costs'!$F$4:$F$74,MATCH($B24&$C24,'TRU Ops & Costs'!$P$4:$P$74,0))) ->  | N24: =IF(OR(ISBLANK($B24),ISBLANK($C24)),"",INDEX('TRU Ops & Costs'!$G$4:$G$74,MATCH($B24&$C24,'TRU Ops & Costs'!$P$4:$P$74,0))) ->  | S24: =IF(ISBLANK($F24),"",IFERROR(INDEX('Diesel Fuel Prices'!$D$5:$D$31,MATCH($F24,'Diesel Fuel Prices'!$B$5:$B$31,0)),INDEX('Diesel Fuel Prices'!$D$5:$D$31,MATCH("U.S. Average",'Diesel Fuel Prices'!$B$5:$B$31,0)))*References!$B$38/References!$B$37) ->  | U24: =IF(ISBLANK($F24),"",IFERROR(INDEX('Electricity Prices'!$F$4:$F$31,MATCH($F24,'Electricity Prices'!$B$4:$B$31,0)),INDEX('Electricity Prices'!$F$4:$F$31,MATCH("All U.S.",'Electricity Prices'!$B$4:$B$31,0)))*References!$B$38/References!$B$37) ->  | W24: =IF(OR(ISBLANK($B24),ISBLANK($C24)),"",INDEX('TRU Ops & Costs'!$I$4:$I$74,MATCH($B24&$C24,'TRU Ops & Costs'!$P$4:$P$74,0))) ->  | Y24: =IFERROR(IF(AND(ISBLANK(Q24),ISBLANK(R24)),"",IF(OR(ISBLANK($B24),ISBLANK($C24)),"",(IF(E24="Yard",INDEX('TRU Ops & Costs'!$J$4:$J$74,MATCH($B24&$C24,'TRU Ops & Costs'!$P$4:$P$74,0)),INDEX('TRU Ops & Costs'!$K$4:$K$74,MATCH($B24&$C24,'TRU Ops & Costs'!$P$4:$P$74,0)))))/(IF(ISBLANK(R24),Q24,R24))),"") ->  | AA24: =IF(OR(ISBLANK($B24),ISBLANK($C24),AND($O24="",ISBLANK($P24))),"",IF(ISBLANK($P24),$O24,$P24)*INDEX('TRU Ops & Costs'!$M$4:$M$74,MATCH($B24&$C24,'TRU Ops & Costs'!$P$4:$P$74,0))*-INDEX('TRU Ops & Costs'!$L$4:$L$74,MATCH($B24&$C24,'TRU Ops & Costs'!$P$4:$P$74,0))) ->  | AF24: =IF(ISBLANK($F24),"",INDEX('eGRID2020 Subregion'!$J$7:$J$35,MATCH($F24,RegionUSER,0))) ->  | AH24: =IF(OR(ISBLANK($B24),ISBLANK($C24),$AD24=""),"",ROUND($AD24*INDEX('Diesel TRU Emission Factors'!$D$6:$D$76,MATCH($B24&$C24,'Diesel TRU Emission Factors'!$R$6:$R$77,0))*GramsToMT,4)) ->  | AI24: =IF(OR(ISBLANK($B24),ISBLANK($C24),$AD24=""),"",ROUND($AD24*INDEX('Diesel TRU Emission Factors'!$E$6:$E$76,MATCH($B24&$C24,'Diesel TRU Emission Factors'!$R$6:$R$77,0))*GramsToMT,4)) ->  | AJ24: =IF(OR(ISBLANK($B24),ISBLANK($C24),$AD24=""),"",ROUND($AD24*INDEX('Diesel TRU Emission Factors'!$H$6:$H$76,MATCH($B24&$C24,'Diesel TRU Emission Factors'!$R$6:$R$77,0))*GramsToMT,4)) ->  | AK24: =IF(OR(ISBLANK($B24),ISBLANK($C24),$AD24=""),"",ROUND($AD24*INDEX('Diesel TRU Emission Factors'!$F$6:$F$76,MATCH($B24&$C24,'Diesel TRU Emission Factors'!$R$6:$R$77,0))*GramsToMT,1)) ->  | AL24: =IF(OR(ISBLANK($B24),ISBLANK($C24),$AD24=""),"",$AD24*INDEX('Diesel TRU Emission Factors'!$G$6:$G$76,MATCH($B24&$C24,'Diesel TRU Emission Factors'!$R$6:$R$77,0))*GramsToMT) ->  | AM24: =IF(ISBLANK(F24),"",AD24*GalTokWh*'Diesel TRU Emission Factors'!$P$4/1000000) ->  | AN24: =IF(ISBLANK($F24),"",ROUND(AK24*References!$B$28+AL24*References!$B$29+AM24*References!$B$30,1)) ->  | AP24: =IF(OR(ISBLANK($F24),$AE24="",$AF24=""),"",ROUND($AE24*(1+$AF24)*INDEX('eGRID2020 Subregion'!$C$7:$C$36,MATCH($F24,RegionUSER,0))*GramsToMT,4)) ->  | AQ24: =IF(OR(ISBLANK($F24),$AE24="",$AF24=""),"",ROUND($AE24*(1+$AF24)*INDEX('eGRID2020 Subregion'!$D$7:$D$36,MATCH($F24,RegionUSER,0))*GramsToMT,4)) ->  | AR24: =IF(OR(ISBLANK($F24),$AE24="",$AF24=""),"",ROUND($AE24*(1+$AF24)*INDEX('eGRID2020 Subregion'!$I$7:$I$36,MATCH($F24,RegionUSER,0))*GramsToMT,4)) ->  | AS24: =IF(OR(ISBLANK($F24),$AE24="",$AF24=""),"",ROUND($AE24*(1+$AF24)*INDEX('eGRID2020 Subregion'!$E$7:$E$36,MATCH($F24,RegionUSER,0))*GramsToMT,1)) ->  | AT24: =IF(OR(ISBLANK($F24),$AE24="",$AF24=""),"",$AE24*(1+$AF24)*INDEX('eGRID2020 Subregion'!$F$7:$F$35,MATCH($F24,RegionUSER,0))*GramsToMT) ->  | AU24: =IF(OR(ISBLANK($F24),$AE24="",$AF24=""),"",$AE24*(1+$AF24)*INDEX('eGRID2020 Subregion'!$G$7:$G$35,MATCH($F24,RegionUSER,0))*GramsToMT) ->  | AV24: =IF(ISBLANK($F24),"",ROUND(AS24*References!$B$28+AT24*References!$B$29+AU24*References!$B$30,1)) -> 
G25: hp | H25: =IF(OR(ISBLANK($B25),ISBLANK($C25)),"",ROUND(INDEX('TRU Ops & Costs'!$D$4:$D$74,MATCH($B25&$C25,'TRU Ops & Costs'!$P$4:$P$74,0))/IF($G25="hp",0.7457,1),0)) ->  | J25: =IF(OR(ISBLANK($B25),ISBLANK($C25)),"",INDEX('TRU Ops & Costs'!$E$4:$E$74,MATCH($B25&$C25,'TRU Ops & Costs'!$P$4:$P$74,0))) ->  | L25: =IF(OR(ISBLANK($B25),ISBLANK($C25)),"",INDEX('TRU Ops & Costs'!$F$4:$F$74,MATCH($B25&$C25,'TRU Ops & Costs'!$P$4:$P$74,0))) ->  | N25: =IF(OR(ISBLANK($B25),ISBLANK($C25)),"",INDEX('TRU Ops & Costs'!$G$4:$G$74,MATCH($B25&$C25,'TRU Ops & Costs'!$P$4:$P$74,0))) ->  | S25: =IF(ISBLANK($F25),"",IFERROR(INDEX('Diesel Fuel Prices'!$D$5:$D$31,MATCH($F25,'Diesel Fuel Prices'!$B$5:$B$31,0)),INDEX('Diesel Fuel Prices'!$D$5:$D$31,MATCH("U.S. Average",'Diesel Fuel Prices'!$B$5:$B$31,0)))*References!$B$38/References!$B$37) ->  | U25: =IF(ISBLANK($F25),"",IFERROR(INDEX('Electricity Prices'!$F$4:$F$31,MATCH($F25,'Electricity Prices'!$B$4:$B$31,0)),INDEX('Electricity Prices'!$F$4:$F$31,MATCH("All U.S.",'Electricity Prices'!$B$4:$B$31,0)))*References!$B$38/References!$B$37) ->  | W25: =IF(OR(ISBLANK($B25),ISBLANK($C25)),"",INDEX('TRU Ops & Costs'!$I$4:$I$74,MATCH($B25&$C25,'TRU Ops & Costs'!$P$4:$P$74,0))) ->  | Y25: =IFERROR(IF(AND(ISBLANK(Q25),ISBLANK(R25)),"",IF(OR(ISBLANK($B25),ISBLANK($C25)),"",(IF(E25="Yard",INDEX('TRU Ops & Costs'!$J$4:$J$74,MATCH($B25&$C25,'TRU Ops & Costs'!$P$4:$P$74,0)),INDEX('TRU Ops & Costs'!$K$4:$K$74,MATCH($B25&$C25,'TRU Ops & Costs'!$P$4:$P$74,0)))))/(IF(ISBLANK(R25),Q25,R25))),"") ->  | AA25: =IF(OR(ISBLANK($B25),ISBLANK($C25),AND($O25="",ISBLANK($P25))),"",IF(ISBLANK($P25),$O25,$P25)*INDEX('TRU Ops & Costs'!$M$4:$M$74,MATCH($B25&$C25,'TRU Ops & Costs'!$P$4:$P$74,0))*-INDEX('TRU Ops & Costs'!$L$4:$L$74,MATCH($B25&$C25,'TRU Ops & Costs'!$P$4:$P$74,0))) ->  | AF25: =IF(ISBLANK($F25),"",INDEX('eGRID2020 Subregion'!$J$7:$J$35,MATCH($F25,RegionUSER,0))) ->  | AH25: =IF(OR(ISBLANK($B25),ISBLANK($C25),$AD25=""),"",ROUND($AD25*INDEX('Diesel TRU Emission Factors'!$D$6:$D$76,MATCH($B25&$C25,'Diesel TRU Emission Factors'!$R$6:$R$77,0))*GramsToMT,4)) ->  | AI25: =IF(OR(ISBLANK($B25),ISBLANK($C25),$AD25=""),"",ROUND($AD25*INDEX('Diesel TRU Emission Factors'!$E$6:$E$76,MATCH($B25&$C25,'Diesel TRU Emission Factors'!$R$6:$R$77,0))*GramsToMT,4)) ->  | AJ25: =IF(OR(ISBLANK($B25),ISBLANK($C25),$AD25=""),"",ROUND($AD25*INDEX('Diesel TRU Emission Factors'!$H$6:$H$76,MATCH($B25&$C25,'Diesel TRU Emission Factors'!$R$6:$R$77,0))*GramsToMT,4)) ->  | AK25: =IF(OR(ISBLANK($B25),ISBLANK($C25),$AD25=""),"",ROUND($AD25*INDEX('Diesel TRU Emission Factors'!$F$6:$F$76,MATCH($B25&$C25,'Diesel TRU Emission Factors'!$R$6:$R$77,0))*GramsToMT,1)) ->  | AL25: =IF(OR(ISBLANK($B25),ISBLANK($C25),$AD25=""),"",$AD25*INDEX('Diesel TRU Emission Factors'!$G$6:$G$76,MATCH($B25&$C25,'Diesel TRU Emission Factors'!$R$6:$R$77,0))*GramsToMT) ->  | AM25: =IF(ISBLANK(F25),"",AD25*GalTokWh*'Diesel TRU Emission Factors'!$P$4/1000000) ->  | AN25: =IF(ISBLANK($F25),"",ROUND(AK25*References!$B$28+AL25*References!$B$29+AM25*References!$B$30,1)) ->  | AP25: =IF(OR(ISBLANK($F25),$AE25="",$AF25=""),"",ROUND($AE25*(1+$AF25)*INDEX('eGRID2020 Subregion'!$C$7:$C$36,MATCH($F25,RegionUSER,0))*GramsToMT,4)) ->  | AQ25: =IF(OR(ISBLANK($F25),$AE25="",$AF25=""),"",ROUND($AE25*(1+$AF25)*INDEX('eGRID2020 Subregion'!$D$7:$D$36,MATCH($F25,RegionUSER,0))*GramsToMT,4)) ->  | AR25: =IF(OR(ISBLANK($F25),$AE25="",$AF25=""),"",ROUND($AE25*(1+$AF25)*INDEX('eGRID2020 Subregion'!$I$7:$I$36,MATCH($F25,RegionUSER,0))*GramsToMT,4)) ->  | AS25: =IF(OR(ISBLANK($F25),$AE25="",$AF25=""),"",ROUND($AE25*(1+$AF25)*INDEX('eGRID2020 Subregion'!$E$7:$E$36,MATCH($F25,RegionUSER,0))*GramsToMT,1)) ->  | AT25: =IF(OR(ISBLANK($F25),$AE25="",$AF25=""),"",$AE25*(1+$AF25)*INDEX('eGRID2020 Subregion'!$F$7:$F$35,MATCH($F25,RegionUSER,0))*GramsToMT) ->  | AU25: =IF(OR(ISBLANK($F25),$AE25="",$AF25=""),"",$AE25*(1+$AF25)*INDEX('eGRID2020 Subregion'!$G$7:$G$35,MATCH($F25,RegionUSER,0))*GramsToMT) ->  | AV25: =IF(ISBLANK($F25),"",ROUND(AS25*References!$B$28+AT25*References!$B$29+AU25*References!$B$30,1)) ->  | BL25: =IF(OR($BJ25="",$BK25=""),"",$BJ25+$BK25) ->  | BO25: =IF(OR($AD25="",$AF25="",AND($S25="",ISBLANK($T25)),AND($U25="",ISBLANK($V25))),"",($AD25*(IF(ISBLANK($T25),$S25,$T25)*GalTokWh))-($AE25*IF(ISBLANK($V25),$U25,$V25)*(1+$AF25))) ->  | BP25: =IF(OR($BN25="",$BO25=""),"",$BN25+$BO25) -> 
G26: hp | H26: =IF(OR(ISBLANK($B26),ISBLANK($C26)),"",ROUND(INDEX('TRU Ops & Costs'!$D$4:$D$74,MATCH($B26&$C26,'TRU Ops & Costs'!$P$4:$P$74,0))/IF($G26="hp",0.7457,1),0)) ->  | J26: =IF(OR(ISBLANK($B26),ISBLANK($C26)),"",INDEX('TRU Ops & Costs'!$E$4:$E$74,MATCH($B26&$C26,'TRU Ops & Costs'!$P$4:$P$74,0))) ->  | L26: =IF(OR(ISBLANK($B26),ISBLANK($C26)),"",INDEX('TRU Ops & Costs'!$F$4:$F$74,MATCH($B26&$C26,'TRU Ops & Costs'!$P$4:$P$74,0))) ->  | N26: =IF(OR(ISBLANK($B26),ISBLANK($C26)),"",INDEX('TRU Ops & Costs'!$G$4:$G$74,MATCH($B26&$C26,'TRU Ops & Costs'!$P$4:$P$74,0))) ->  | S26: =IF(ISBLANK($F26),"",IFERROR(INDEX('Diesel Fuel Prices'!$D$5:$D$31,MATCH($F26,'Diesel Fuel Prices'!$B$5:$B$31,0)),INDEX('Diesel Fuel Prices'!$D$5:$D$31,MATCH("U.S. Average",'Diesel Fuel Prices'!$B$5:$B$31,0)))*References!$B$38/References!$B$37) ->  | U26: =IF(ISBLANK($F26),"",IFERROR(INDEX('Electricity Prices'!$F$4:$F$31,MATCH($F26,'Electricity Prices'!$B$4:$B$31,0)),INDEX('Electricity Prices'!$F$4:$F$31,MATCH("All U.S.",'Electricity Prices'!$B$4:$B$31,0)))*References!$B$38/References!$B$37) ->  | W26: =IF(OR(ISBLANK($B26),ISBLANK($C26)),"",INDEX('TRU Ops & Costs'!$I$4:$I$74,MATCH($B26&$C26,'TRU Ops & Costs'!$P$4:$P$74,0))) ->  | Y26: =IFERROR(IF(AND(ISBLANK(Q26),ISBLANK(R26)),"",IF(OR(ISBLANK($B26),ISBLANK($C26)),"",(IF(E26="Yard",INDEX('TRU Ops & Costs'!$J$4:$J$74,MATCH($B26&$C26,'TRU Ops & Costs'!$P$4:$P$74,0)),INDEX('TRU Ops & Costs'!$K$4:$K$74,MATCH($B26&$C26,'TRU Ops & Costs'!$P$4:$P$74,0)))))/(IF(ISBLANK(R26),Q26,R26))),"") ->  | AA26: =IF(OR(ISBLANK($B26),ISBLANK($C26),AND($O26="",ISBLANK($P26))),"",IF(ISBLANK($P26),$O26,$P26)*INDEX('TRU Ops & Costs'!$M$4:$M$74,MATCH($B26&$C26,'TRU Ops & Costs'!$P$4:$P$74,0))*-INDEX('TRU Ops & Costs'!$L$4:$L$74,MATCH($B26&$C26,'TRU Ops & Costs'!$P$4:$P$74,0))) ->  | AF26: =IF(ISBLANK($F26),"",INDEX('eGRID2020 Subregion'!$J$7:$J$35,MATCH($F26,RegionUSER,0))) ->  | AH26: =IF(OR(ISBLANK($B26),ISBLANK($C26),$AD26=""),"",ROUND($AD26*INDEX('Diesel TRU Emission Factors'!$D$6:$D$76,MATCH($B26&$C26,'Diesel TRU Emission Factors'!$R$6:$R$77,0))*GramsToMT,4)) ->  | AI26: =IF(OR(ISBLANK($B26),ISBLANK($C26),$AD26=""),"",ROUND($AD26*INDEX('Diesel TRU Emission Factors'!$E$6:$E$76,MATCH($B26&$C26,'Diesel TRU Emission Factors'!$R$6:$R$77,0))*GramsToMT,4)) ->  | AJ26: =IF(OR(ISBLANK($B26),ISBLANK($C26),$AD26=""),"",ROUND($AD26*INDEX('Diesel TRU Emission Factors'!$H$6:$H$76,MATCH($B26&$C26,'Diesel TRU Emission Factors'!$R$6:$R$77,0))*GramsToMT,4)) ->  | AK26: =IF(OR(ISBLANK($B26),ISBLANK($C26),$AD26=""),"",ROUND($AD26*INDEX('Diesel TRU Emission Factors'!$F$6:$F$76,MATCH($B26&$C26,'Diesel TRU Emission Factors'!$R$6:$R$77,0))*GramsToMT,1)) ->  | AL26: =IF(OR(ISBLANK($B26),ISBLANK($C26),$AD26=""),"",$AD26*INDEX('Diesel TRU Emission Factors'!$G$6:$G$76,MATCH($B26&$C26,'Diesel TRU Emission Factors'!$R$6:$R$77,0))*GramsToMT) ->  | AM26: =IF(ISBLANK(F26),"",AD26*GalTokWh*'Diesel TRU Emission Factors'!$P$4/1000000) ->  | AN26: =IF(ISBLANK($F26),"",ROUND(AK26*References!$B$28+AL26*References!$B$29+AM26*References!$B$30,1)) ->  | AP26: =IF(OR(ISBLANK($F26),$AE26="",$AF26=""),"",ROUND($AE26*(1+$AF26)*INDEX('eGRID2020 Subregion'!$C$7:$C$36,MATCH($F26,RegionUSER,0))*GramsToMT,4)) ->  | AQ26: =IF(OR(ISBLANK($F26),$AE26="",$AF26=""),"",ROUND($AE26*(1+$AF26)*INDEX('eGRID2020 Subregion'!$D$7:$D$36,MATCH($F26,RegionUSER,0))*GramsToMT,4)) ->  | AR26: =IF(OR(ISBLANK($F26),$AE26="",$AF26=""),"",ROUND($AE26*(1+$AF26)*INDEX('eGRID2020 Subregion'!$I$7:$I$36,MATCH($F26,RegionUSER,0))*GramsToMT,4)) ->  | AS26: =IF(OR(ISBLANK($F26),$AE26="",$AF26=""),"",ROUND($AE26*(1+$AF26)*INDEX('eGRID2020 Subregion'!$E$7:$E$36,MATCH($F26,RegionUSER,0))*GramsToMT,1)) ->  | AT26: =IF(OR(ISBLANK($F26),$AE26="",$AF26=""),"",$AE26*(1+$AF26)*INDEX('eGRID2020 Subregion'!$F$7:$F$35,MATCH($F26,RegionUSER,0))*GramsToMT) ->  | AU26: =IF(OR(ISBLANK($F26),$AE26="",$AF26=""),"",$AE26*(1+$AF26)*INDEX('eGRID2020 Subregion'!$G$7:$G$35,MATCH($F26,RegionUSER,0))*GramsToMT) ->  | AV26: =IF(ISBLANK($F26),"",ROUND(AS26*References!$B$28+AT26*References!$B$29+AU26*References!$B$30,1)) -> 
G27: hp | H27: =IF(OR(ISBLANK($B27),ISBLANK($C27)),"",ROUND(INDEX('TRU Ops & Costs'!$D$4:$D$74,MATCH($B27&$C27,'TRU Ops & Costs'!$P$4:$P$74,0))/IF($G27="hp",0.7457,1),0)) ->  | J27: =IF(OR(ISBLANK($B27),ISBLANK($C27)),"",INDEX('TRU Ops & Costs'!$E$4:$E$74,MATCH($B27&$C27,'TRU Ops & Costs'!$P$4:$P$74,0))) ->  | L27: =IF(OR(ISBLANK($B27),ISBLANK($C27)),"",INDEX('TRU Ops & Costs'!$F$4:$F$74,MATCH($B27&$C27,'TRU Ops & Costs'!$P$4:$P$74,0))) ->  | N27: =IF(OR(ISBLANK($B27),ISBLANK($C27)),"",INDEX('TRU Ops & Costs'!$G$4:$G$74,MATCH($B27&$C27,'TRU Ops & Costs'!$P$4:$P$74,0))) ->  | S27: =IF(ISBLANK($F27),"",IFERROR(INDEX('Diesel Fuel Prices'!$D$5:$D$31,MATCH($F27,'Diesel Fuel Prices'!$B$5:$B$31,0)),INDEX('Diesel Fuel Prices'!$D$5:$D$31,MATCH("U.S. Average",'Diesel Fuel Prices'!$B$5:$B$31,0)))*References!$B$38/References!$B$37) ->  | U27: =IF(ISBLANK($F27),"",IFERROR(INDEX('Electricity Prices'!$F$4:$F$31,MATCH($F27,'Electricity Prices'!$B$4:$B$31,0)),INDEX('Electricity Prices'!$F$4:$F$31,MATCH("All U.S.",'Electricity Prices'!$B$4:$B$31,0)))*References!$B$38/References!$B$37) ->  | W27: =IF(OR(ISBLANK($B27),ISBLANK($C27)),"",INDEX('TRU Ops & Costs'!$I$4:$I$74,MATCH($B27&$C27,'TRU Ops & Costs'!$P$4:$P$74,0))) ->  | Y27: =IFERROR(IF(AND(ISBLANK(Q27),ISBLANK(R27)),"",IF(OR(ISBLANK($B27),ISBLANK($C27)),"",(IF(E27="Yard",INDEX('TRU Ops & Costs'!$J$4:$J$74,MATCH($B27&$C27,'TRU Ops & Costs'!$P$4:$P$74,0)),INDEX('TRU Ops & Costs'!$K$4:$K$74,MATCH($B27&$C27,'TRU Ops & Costs'!$P$4:$P$74,0)))))/(IF(ISBLANK(R27),Q27,R27))),"") ->  | AA27: =IF(OR(ISBLANK($B27),ISBLANK($C27),AND($O27="",ISBLANK($P27))),"",IF(ISBLANK($P27),$O27,$P27)*INDEX('TRU Ops & Costs'!$M$4:$M$74,MATCH($B27&$C27,'TRU Ops & Costs'!$P$4:$P$74,0))*-INDEX('TRU Ops & Costs'!$L$4:$L$74,MATCH($B27&$C27,'TRU Ops & Costs'!$P$4:$P$74,0))) ->  | AF27: =IF(ISBLANK($F27),"",INDEX('eGRID2020 Subregion'!$J$7:$J$35,MATCH($F27,RegionUSER,0))) ->  | AH27: =IF(OR(ISBLANK($B27),ISBLANK($C27),$AD27=""),"",ROUND($AD27*INDEX('Diesel TRU Emission Factors'!$D$6:$D$76,MATCH($B27&$C27,'Diesel TRU Emission Factors'!$R$6:$R$77,0))*GramsToMT,4)) ->  | AI27: =IF(OR(ISBLANK($B27),ISBLANK($C27),$AD27=""),"",ROUND($AD27*INDEX('Diesel TRU Emission Factors'!$E$6:$E$76,MATCH($B27&$C27,'Diesel TRU Emission Factors'!$R$6:$R$77,0))*GramsToMT,4)) ->  | AJ27: =IF(OR(ISBLANK($B27),ISBLANK($C27),$AD27=""),"",ROUND($AD27*INDEX('Diesel TRU Emission Factors'!$H$6:$H$76,MATCH($B27&$C27,'Diesel TRU Emission Factors'!$R$6:$R$77,0))*GramsToMT,4)) ->  | AK27: =IF(OR(ISBLANK($B27),ISBLANK($C27),$AD27=""),"",ROUND($AD27*INDEX('Diesel TRU Emission Factors'!$F$6:$F$76,MATCH($B27&$C27,'Diesel TRU Emission Factors'!$R$6:$R$77,0))*GramsToMT,1)) ->  | AL27: =IF(OR(ISBLANK($B27),ISBLANK($C27),$AD27=""),"",$AD27*INDEX('Diesel TRU Emission Factors'!$G$6:$G$76,MATCH($B27&$C27,'Diesel TRU Emission Factors'!$R$6:$R$77,0))*GramsToMT) ->  | AM27: =IF(ISBLANK(F27),"",AD27*GalTokWh*'Diesel TRU Emission Factors'!$P$4/1000000) ->  | AN27: =IF(ISBLANK($F27),"",ROUND(AK27*References!$B$28+AL27*References!$B$29+AM27*References!$B$30,1)) ->  | AP27: =IF(OR(ISBLANK($F27),$AE27="",$AF27=""),"",ROUND($AE27*(1+$AF27)*INDEX('eGRID2020 Subregion'!$C$7:$C$36,MATCH($F27,RegionUSER,0))*GramsToMT,4)) ->  | AQ27: =IF(OR(ISBLANK($F27),$AE27="",$AF27=""),"",ROUND($AE27*(1+$AF27)*INDEX('eGRID2020 Subregion'!$D$7:$D$36,MATCH($F27,RegionUSER,0))*GramsToMT,4)) ->  | AR27: =IF(OR(ISBLANK($F27),$AE27="",$AF27=""),"",ROUND($AE27*(1+$AF27)*INDEX('eGRID2020 Subregion'!$I$7:$I$36,MATCH($F27,RegionUSER,0))*GramsToMT,4)) ->  | AS27: =IF(OR(ISBLANK($F27),$AE27="",$AF27=""),"",ROUND($AE27*(1+$AF27)*INDEX('eGRID2020 Subregion'!$E$7:$E$36,MATCH($F27,RegionUSER,0))*GramsToMT,1)) ->  | AT27: =IF(OR(ISBLANK($F27),$AE27="",$AF27=""),"",$AE27*(1+$AF27)*INDEX('eGRID2020 Subregion'!$F$7:$F$35,MATCH($F27,RegionUSER,0))*GramsToMT) ->  | AU27: =IF(OR(ISBLANK($F27),$AE27="",$AF27=""),"",$AE27*(1+$AF27)*INDEX('eGRID2020 Subregion'!$G$7:$G$35,MATCH($F27,RegionUSER,0))*GramsToMT) ->  | AV27: =IF(ISBLANK($F27),"",ROUND(AS27*References!$B$28+AT27*References!$B$29+AU27*References!$B$30,1)) ->  | BL27: =IF(OR($BJ27="",$BK27=""),"",$BJ27+$BK27) ->  | BO27: =IF(OR($AD27="",$AF27="",AND($S27="",ISBLANK($T27)),AND($U27="",ISBLANK($V27))),"",($AD27*(IF(ISBLANK($T27),$S27,$T27)*GalTokWh))-($AE27*IF(ISBLANK($V27),$U27,$V27)*(1+$AF27))) ->  | BP27: =IF(OR($BN27="",$BO27=""),"",$BN27+$BO27) -> 
G28: hp | H28: =IF(OR(ISBLANK($B28),ISBLANK($C28)),"",ROUND(INDEX('TRU Ops & Costs'!$D$4:$D$74,MATCH($B28&$C28,'TRU Ops & Costs'!$P$4:$P$74,0))/IF($G28="hp",0.7457,1),0)) ->  | J28: =IF(OR(ISBLANK($B28),ISBLANK($C28)),"",INDEX('TRU Ops & Costs'!$E$4:$E$74,MATCH($B28&$C28,'TRU Ops & Costs'!$P$4:$P$74,0))) ->  | L28: =IF(OR(ISBLANK($B28),ISBLANK($C28)),"",INDEX('TRU Ops & Costs'!$F$4:$F$74,MATCH($B28&$C28,'TRU Ops & Costs'!$P$4:$P$74,0))) ->  | N28: =IF(OR(ISBLANK($B28),ISBLANK($C28)),"",INDEX('TRU Ops & Costs'!$G$4:$G$74,MATCH($B28&$C28,'TRU Ops & Costs'!$P$4:$P$74,0))) ->  | S28: =IF(ISBLANK($F28),"",IFERROR(INDEX('Diesel Fuel Prices'!$D$5:$D$31,MATCH($F28,'Diesel Fuel Prices'!$B$5:$B$31,0)),INDEX('Diesel Fuel Prices'!$D$5:$D$31,MATCH("U.S. Average",'Diesel Fuel Prices'!$B$5:$B$31,0)))*References!$B$38/References!$B$37) ->  | U28: =IF(ISBLANK($F28),"",IFERROR(INDEX('Electricity Prices'!$F$4:$F$31,MATCH($F28,'Electricity Prices'!$B$4:$B$31,0)),INDEX('Electricity Prices'!$F$4:$F$31,MATCH("All U.S.",'Electricity Prices'!$B$4:$B$31,0)))*References!$B$38/References!$B$37) ->  | W28: =IF(OR(ISBLANK($B28),ISBLANK($C28)),"",INDEX('TRU Ops & Costs'!$I$4:$I$74,MATCH($B28&$C28,'TRU Ops & Costs'!$P$4:$P$74,0))) ->  | Y28: =IFERROR(IF(AND(ISBLANK(Q28),ISBLANK(R28)),"",IF(OR(ISBLANK($B28),ISBLANK($C28)),"",(IF(E28="Yard",INDEX('TRU Ops & Costs'!$J$4:$J$74,MATCH($B28&$C28,'TRU Ops & Costs'!$P$4:$P$74,0)),INDEX('TRU Ops & Costs'!$K$4:$K$74,MATCH($B28&$C28,'TRU Ops & Costs'!$P$4:$P$74,0)))))/(IF(ISBLANK(R28),Q28,R28))),"") ->  | AA28: =IF(OR(ISBLANK($B28),ISBLANK($C28),AND($O28="",ISBLANK($P28))),"",IF(ISBLANK($P28),$O28,$P28)*INDEX('TRU Ops & Costs'!$M$4:$M$74,MATCH($B28&$C28,'TRU Ops & Costs'!$P$4:$P$74,0))*-INDEX('TRU Ops & Costs'!$L$4:$L$74,MATCH($B28&$C28,'TRU Ops & Costs'!$P$4:$P$74,0))) ->  | AF28: =IF(ISBLANK($F28),"",INDEX('eGRID2020 Subregion'!$J$7:$J$35,MATCH($F28,RegionUSER,0))) ->  | AH28: =IF(OR(ISBLANK($B28),ISBLANK($C28),$AD28=""),"",ROUND($AD28*INDEX('Diesel TRU Emission Factors'!$D$6:$D$76,MATCH($B28&$C28,'Diesel TRU Emission Factors'!$R$6:$R$77,0))*GramsToMT,4)) ->  | AI28: =IF(OR(ISBLANK($B28),ISBLANK($C28),$AD28=""),"",ROUND($AD28*INDEX('Diesel TRU Emission Factors'!$E$6:$E$76,MATCH($B28&$C28,'Diesel TRU Emission Factors'!$R$6:$R$77,0))*GramsToMT,4)) ->  | AJ28: =IF(OR(ISBLANK($B28),ISBLANK($C28),$AD28=""),"",ROUND($AD28*INDEX('Diesel TRU Emission Factors'!$H$6:$H$76,MATCH($B28&$C28,'Diesel TRU Emission Factors'!$R$6:$R$77,0))*GramsToMT,4)) ->  | AK28: =IF(OR(ISBLANK($B28),ISBLANK($C28),$AD28=""),"",ROUND($AD28*INDEX('Diesel TRU Emission Factors'!$F$6:$F$76,MATCH($B28&$C28,'Diesel TRU Emission Factors'!$R$6:$R$77,0))*GramsToMT,1)) ->  | AL28: =IF(OR(ISBLANK($B28),ISBLANK($C28),$AD28=""),"",$AD28*INDEX('Diesel TRU Emission Factors'!$G$6:$G$76,MATCH($B28&$C28,'Diesel TRU Emission Factors'!$R$6:$R$77,0))*GramsToMT) ->  | AM28: =IF(ISBLANK(F28),"",AD28*GalTokWh*'Diesel TRU Emission Factors'!$P$4/1000000) ->  | AN28: =IF(ISBLANK($F28),"",ROUND(AK28*References!$B$28+AL28*References!$B$29+AM28*References!$B$30,1)) ->  | AP28: =IF(OR(ISBLANK($F28),$AE28="",$AF28=""),"",ROUND($AE28*(1+$AF28)*INDEX('eGRID2020 Subregion'!$C$7:$C$36,MATCH($F28,RegionUSER,0))*GramsToMT,4)) ->  | AQ28: =IF(OR(ISBLANK($F28),$AE28="",$AF28=""),"",ROUND($AE28*(1+$AF28)*INDEX('eGRID2020 Subregion'!$D$7:$D$36,MATCH($F28,RegionUSER,0))*GramsToMT,4)) ->  | AR28: =IF(OR(ISBLANK($F28),$AE28="",$AF28=""),"",ROUND($AE28*(1+$AF28)*INDEX('eGRID2020 Subregion'!$I$7:$I$36,MATCH($F28,RegionUSER,0))*GramsToMT,4)) ->  | AS28: =IF(OR(ISBLANK($F28),$AE28="",$AF28=""),"",ROUND($AE28*(1+$AF28)*INDEX('eGRID2020 Subregion'!$E$7:$E$36,MATCH($F28,RegionUSER,0))*GramsToMT,1)) ->  | AT28: =IF(OR(ISBLANK($F28),$AE28="",$AF28=""),"",$AE28*(1+$AF28)*INDEX('eGRID2020 Subregion'!$F$7:$F$35,MATCH($F28,RegionUSER,0))*GramsToMT) ->  | AU28: =IF(OR(ISBLANK($F28),$AE28="",$AF28=""),"",$AE28*(1+$AF28)*INDEX('eGRID2020 Subregion'!$G$7:$G$35,MATCH($F28,RegionUSER,0))*GramsToMT) ->  | AV28: =IF(ISBLANK($F28),"",ROUND(AS28*References!$B$28+AT28*References!$B$29+AU28*References!$B$30,1)) -> 
G29: hp | H29: =IF(OR(ISBLANK($B29),ISBLANK($C29)),"",ROUND(INDEX('TRU Ops & Costs'!$D$4:$D$74,MATCH($B29&$C29,'TRU Ops & Costs'!$P$4:$P$74,0))/IF($G29="hp",0.7457,1),0)) ->  | J29: =IF(OR(ISBLANK($B29),ISBLANK($C29)),"",INDEX('TRU Ops & Costs'!$E$4:$E$74,MATCH($B29&$C29,'TRU Ops & Costs'!$P$4:$P$74,0))) ->  | L29: =IF(OR(ISBLANK($B29),ISBLANK($C29)),"",INDEX('TRU Ops & Costs'!$F$4:$F$74,MATCH($B29&$C29,'TRU Ops & Costs'!$P$4:$P$74,0))) ->  | N29: =IF(OR(ISBLANK($B29),ISBLANK($C29)),"",INDEX('TRU Ops & Costs'!$G$4:$G$74,MATCH($B29&$C29,'TRU Ops & Costs'!$P$4:$P$74,0))) ->  | S29: =IF(ISBLANK($F29),"",IFERROR(INDEX('Diesel Fuel Prices'!$D$5:$D$31,MATCH($F29,'Diesel Fuel Prices'!$B$5:$B$31,0)),INDEX('Diesel Fuel Prices'!$D$5:$D$31,MATCH("U.S. Average",'Diesel Fuel Prices'!$B$5:$B$31,0)))*References!$B$38/References!$B$37) ->  | U29: =IF(ISBLANK($F29),"",IFERROR(INDEX('Electricity Prices'!$F$4:$F$31,MATCH($F29,'Electricity Prices'!$B$4:$B$31,0)),INDEX('Electricity Prices'!$F$4:$F$31,MATCH("All U.S.",'Electricity Prices'!$B$4:$B$31,0)))*References!$B$38/References!$B$37) ->  | W29: =IF(OR(ISBLANK($B29),ISBLANK($C29)),"",INDEX('TRU Ops & Costs'!$I$4:$I$74,MATCH($B29&$C29,'TRU Ops & Costs'!$P$4:$P$74,0))) ->  | Y29: =IFERROR(IF(AND(ISBLANK(Q29),ISBLANK(R29)),"",IF(OR(ISBLANK($B29),ISBLANK($C29)),"",(IF(E29="Yard",INDEX('TRU Ops & Costs'!$J$4:$J$74,MATCH($B29&$C29,'TRU Ops & Costs'!$P$4:$P$74,0)),INDEX('TRU Ops & Costs'!$K$4:$K$74,MATCH($B29&$C29,'TRU Ops & Costs'!$P$4:$P$74,0)))))/(IF(ISBLANK(R29),Q29,R29))),"") ->  | AA29: =IF(OR(ISBLANK($B29),ISBLANK($C29),AND($O29="",ISBLANK($P29))),"",IF(ISBLANK($P29),$O29,$P29)*INDEX('TRU Ops & Costs'!$M$4:$M$74,MATCH($B29&$C29,'TRU Ops & Costs'!$P$4:$P$74,0))*-INDEX('TRU Ops & Costs'!$L$4:$L$74,MATCH($B29&$C29,'TRU Ops & Costs'!$P$4:$P$74,0))) ->  | AF29: =IF(ISBLANK($F29),"",INDEX('eGRID2020 Subregion'!$J$7:$J$35,MATCH($F29,RegionUSER,0))) ->  | AH29: =IF(OR(ISBLANK($B29),ISBLANK($C29),$AD29=""),"",ROUND($AD29*INDEX('Diesel TRU Emission Factors'!$D$6:$D$76,MATCH($B29&$C29,'Diesel TRU Emission Factors'!$R$6:$R$77,0))*GramsToMT,4)) ->  | AI29: =IF(OR(ISBLANK($B29),ISBLANK($C29),$AD29=""),"",ROUND($AD29*INDEX('Diesel TRU Emission Factors'!$E$6:$E$76,MATCH($B29&$C29,'Diesel TRU Emission Factors'!$R$6:$R$77,0))*GramsToMT,4)) ->  | AJ29: =IF(OR(ISBLANK($B29),ISBLANK($C29),$AD29=""),"",ROUND($AD29*INDEX('Diesel TRU Emission Factors'!$H$6:$H$76,MATCH($B29&$C29,'Diesel TRU Emission Factors'!$R$6:$R$77,0))*GramsToMT,4)) ->  | AK29: =IF(OR(ISBLANK($B29),ISBLANK($C29),$AD29=""),"",ROUND($AD29*INDEX('Diesel TRU Emission Factors'!$F$6:$F$76,MATCH($B29&$C29,'Diesel TRU Emission Factors'!$R$6:$R$77,0))*GramsToMT,1)) ->  | AL29: =IF(OR(ISBLANK($B29),ISBLANK($C29),$AD29=""),"",$AD29*INDEX('Diesel TRU Emission Factors'!$G$6:$G$76,MATCH($B29&$C29,'Diesel TRU Emission Factors'!$R$6:$R$77,0))*GramsToMT) ->  | AM29: =IF(ISBLANK(F29),"",AD29*GalTokWh*'Diesel TRU Emission Factors'!$P$4/1000000) ->  | AN29: =IF(ISBLANK($F29),"",ROUND(AK29*References!$B$28+AL29*References!$B$29+AM29*References!$B$30,1)) ->  | AP29: =IF(OR(ISBLANK($F29),$AE29="",$AF29=""),"",ROUND($AE29*(1+$AF29)*INDEX('eGRID2020 Subregion'!$C$7:$C$36,MATCH($F29,RegionUSER,0))*GramsToMT,4)) ->  | AQ29: =IF(OR(ISBLANK($F29),$AE29="",$AF29=""),"",ROUND($AE29*(1+$AF29)*INDEX('eGRID2020 Subregion'!$D$7:$D$36,MATCH($F29,RegionUSER,0))*GramsToMT,4)) ->  | AR29: =IF(OR(ISBLANK($F29),$AE29="",$AF29=""),"",ROUND($AE29*(1+$AF29)*INDEX('eGRID2020 Subregion'!$I$7:$I$36,MATCH($F29,RegionUSER,0))*GramsToMT,4)) ->  | AS29: =IF(OR(ISBLANK($F29),$AE29="",$AF29=""),"",ROUND($AE29*(1+$AF29)*INDEX('eGRID2020 Subregion'!$E$7:$E$36,MATCH($F29,RegionUSER,0))*GramsToMT,1)) ->  | AT29: =IF(OR(ISBLANK($F29),$AE29="",$AF29=""),"",$AE29*(1+$AF29)*INDEX('eGRID2020 Subregion'!$F$7:$F$35,MATCH($F29,RegionUSER,0))*GramsToMT) ->  | AU29: =IF(OR(ISBLANK($F29),$AE29="",$AF29=""),"",$AE29*(1+$AF29)*INDEX('eGRID2020 Subregion'!$G$7:$G$35,MATCH($F29,RegionUSER,0))*GramsToMT) ->  | AV29: =IF(ISBLANK($F29),"",ROUND(AS29*References!$B$28+AT29*References!$B$29+AU29*References!$B$30,1)) ->  | BL29: =IF(OR($BJ29="",$BK29=""),"",$BJ29+$BK29) ->  | BO29: =IF(OR($AD29="",$AF29="",AND($S29="",ISBLANK($T29)),AND($U29="",ISBLANK($V29))),"",($AD29*(IF(ISBLANK($T29),$S29,$T29)*GalTokWh))-($AE29*IF(ISBLANK($V29),$U29,$V29)*(1+$AF29))) ->  | BP29: =IF(OR($BN29="",$BO29=""),"",$BN29+$BO29) -> 
G30: hp | H30: =IF(OR(ISBLANK($B30),ISBLANK($C30)),"",ROUND(INDEX('TRU Ops & Costs'!$D$4:$D$74,MATCH($B30&$C30,'TRU Ops & Costs'!$P$4:$P$74,0))/IF($G30="hp",0.7457,1),0)) ->  | J30: =IF(OR(ISBLANK($B30),ISBLANK($C30)),"",INDEX('TRU Ops & Costs'!$E$4:$E$74,MATCH($B30&$C30,'TRU Ops & Costs'!$P$4:$P$74,0))) ->  | L30: =IF(OR(ISBLANK($B30),ISBLANK($C30)),"",INDEX('TRU Ops & Costs'!$F$4:$F$74,MATCH($B30&$C30,'TRU Ops & Costs'!$P$4:$P$74,0))) ->  | N30: =IF(OR(ISBLANK($B30),ISBLANK($C30)),"",INDEX('TRU Ops & Costs'!$G$4:$G$74,MATCH($B30&$C30,'TRU Ops & Costs'!$P$4:$P$74,0))) ->  | S30: =IF(ISBLANK($F30),"",IFERROR(INDEX('Diesel Fuel Prices'!$D$5:$D$31,MATCH($F30,'Diesel Fuel Prices'!$B$5:$B$31,0)),INDEX('Diesel Fuel Prices'!$D$5:$D$31,MATCH("U.S. Average",'Diesel Fuel Prices'!$B$5:$B$31,0)))*References!$B$38/References!$B$37) ->  | U30: =IF(ISBLANK($F30),"",IFERROR(INDEX('Electricity Prices'!$F$4:$F$31,MATCH($F30,'Electricity Prices'!$B$4:$B$31,0)),INDEX('Electricity Prices'!$F$4:$F$31,MATCH("All U.S.",'Electricity Prices'!$B$4:$B$31,0)))*References!$B$38/References!$B$37) ->  | W30: =IF(OR(ISBLANK($B30),ISBLANK($C30)),"",INDEX('TRU Ops & Costs'!$I$4:$I$74,MATCH($B30&$C30,'TRU Ops & Costs'!$P$4:$P$74,0))) ->  | Y30: =IFERROR(IF(AND(ISBLANK(Q30),ISBLANK(R30)),"",IF(OR(ISBLANK($B30),ISBLANK($C30)),"",(IF(E30="Yard",INDEX('TRU Ops & Costs'!$J$4:$J$74,MATCH($B30&$C30,'TRU Ops & Costs'!$P$4:$P$74,0)),INDEX('TRU Ops & Costs'!$K$4:$K$74,MATCH($B30&$C30,'TRU Ops & Costs'!$P$4:$P$74,0)))))/(IF(ISBLANK(R30),Q30,R30))),"") ->  | AA30: =IF(OR(ISBLANK($B30),ISBLANK($C30),AND($O30="",ISBLANK($P30))),"",IF(ISBLANK($P30),$O30,$P30)*INDEX('TRU Ops & Costs'!$M$4:$M$74,MATCH($B30&$C30,'TRU Ops & Costs'!$P$4:$P$74,0))*-INDEX('TRU Ops & Costs'!$L$4:$L$74,MATCH($B30&$C30,'TRU Ops & Costs'!$P$4:$P$74,0))) ->  | AF30: =IF(ISBLANK($F30),"",INDEX('eGRID2020 Subregion'!$J$7:$J$35,MATCH($F30,RegionUSER,0))) ->  | AH30: =IF(OR(ISBLANK($B30),ISBLANK($C30),$AD30=""),"",ROUND($AD30*INDEX('Diesel TRU Emission Factors'!$D$6:$D$76,MATCH($B30&$C30,'Diesel TRU Emission Factors'!$R$6:$R$77,0))*GramsToMT,4)) ->  | AI30: =IF(OR(ISBLANK($B30),ISBLANK($C30),$AD30=""),"",ROUND($AD30*INDEX('Diesel TRU Emission Factors'!$E$6:$E$76,MATCH($B30&$C30,'Diesel TRU Emission Factors'!$R$6:$R$77,0))*GramsToMT,4)) ->  | AJ30: =IF(OR(ISBLANK($B30),ISBLANK($C30),$AD30=""),"",ROUND($AD30*INDEX('Diesel TRU Emission Factors'!$H$6:$H$76,MATCH($B30&$C30,'Diesel TRU Emission Factors'!$R$6:$R$77,0))*GramsToMT,4)) ->  | AK30: =IF(OR(ISBLANK($B30),ISBLANK($C30),$AD30=""),"",ROUND($AD30*INDEX('Diesel TRU Emission Factors'!$F$6:$F$76,MATCH($B30&$C30,'Diesel TRU Emission Factors'!$R$6:$R$77,0))*GramsToMT,1)) ->  | AL30: =IF(OR(ISBLANK($B30),ISBLANK($C30),$AD30=""),"",$AD30*INDEX('Diesel TRU Emission Factors'!$G$6:$G$76,MATCH($B30&$C30,'Diesel TRU Emission Factors'!$R$6:$R$77,0))*GramsToMT) ->  | AM30: =IF(ISBLANK(F30),"",AD30*GalTokWh*'Diesel TRU Emission Factors'!$P$4/1000000) ->  | AN30: =IF(ISBLANK($F30),"",ROUND(AK30*References!$B$28+AL30*References!$B$29+AM30*References!$B$30,1)) ->  | AP30: =IF(OR(ISBLANK($F30),$AE30="",$AF30=""),"",ROUND($AE30*(1+$AF30)*INDEX('eGRID2020 Subregion'!$C$7:$C$36,MATCH($F30,RegionUSER,0))*GramsToMT,4)) ->  | AQ30: =IF(OR(ISBLANK($F30),$AE30="",$AF30=""),"",ROUND($AE30*(1+$AF30)*INDEX('eGRID2020 Subregion'!$D$7:$D$36,MATCH($F30,RegionUSER,0))*GramsToMT,4)) ->  | AR30: =IF(OR(ISBLANK($F30),$AE30="",$AF30=""),"",ROUND($AE30*(1+$AF30)*INDEX('eGRID2020 Subregion'!$I$7:$I$36,MATCH($F30,RegionUSER,0))*GramsToMT,4)) ->  | AS30: =IF(OR(ISBLANK($F30),$AE30="",$AF30=""),"",ROUND($AE30*(1+$AF30)*INDEX('eGRID2020 Subregion'!$E$7:$E$36,MATCH($F30,RegionUSER,0))*GramsToMT,1)) ->  | AT30: =IF(OR(ISBLANK($F30),$AE30="",$AF30=""),"",$AE30*(1+$AF30)*INDEX('eGRID2020 Subregion'!$F$7:$F$35,MATCH($F30,RegionUSER,0))*GramsToMT) ->  | AU30: =IF(OR(ISBLANK($F30),$AE30="",$AF30=""),"",$AE30*(1+$AF30)*INDEX('eGRID2020 Subregion'!$G$7:$G$35,MATCH($F30,RegionUSER,0))*GramsToMT) ->  | AV30: =IF(ISBLANK($F30),"",ROUND(AS30*References!$B$28+AT30*References!$B$29+AU30*References!$B$30,1)) -> 
G31: hp | H31: =IF(OR(ISBLANK($B31),ISBLANK($C31)),"",ROUND(INDEX('TRU Ops & Costs'!$D$4:$D$74,MATCH($B31&$C31,'TRU Ops & Costs'!$P$4:$P$74,0))/IF($G31="hp",0.7457,1),0)) ->  | J31: =IF(OR(ISBLANK($B31),ISBLANK($C31)),"",INDEX('TRU Ops & Costs'!$E$4:$E$74,MATCH($B31&$C31,'TRU Ops & Costs'!$P$4:$P$74,0))) ->  | L31: =IF(OR(ISBLANK($B31),ISBLANK($C31)),"",INDEX('TRU Ops & Costs'!$F$4:$F$74,MATCH($B31&$C31,'TRU Ops & Costs'!$P$4:$P$74,0))) ->  | N31: =IF(OR(ISBLANK($B31),ISBLANK($C31)),"",INDEX('TRU Ops & Costs'!$G$4:$G$74,MATCH($B31&$C31,'TRU Ops & Costs'!$P$4:$P$74,0))) ->  | S31: =IF(ISBLANK($F31),"",IFERROR(INDEX('Diesel Fuel Prices'!$D$5:$D$31,MATCH($F31,'Diesel Fuel Prices'!$B$5:$B$31,0)),INDEX('Diesel Fuel Prices'!$D$5:$D$31,MATCH("U.S. Average",'Diesel Fuel Prices'!$B$5:$B$31,0)))*References!$B$38/References!$B$37) ->  | U31: =IF(ISBLANK($F31),"",IFERROR(INDEX('Electricity Prices'!$F$4:$F$31,MATCH($F31,'Electricity Prices'!$B$4:$B$31,0)),INDEX('Electricity Prices'!$F$4:$F$31,MATCH("All U.S.",'Electricity Prices'!$B$4:$B$31,0)))*References!$B$38/References!$B$37) ->  | W31: =IF(OR(ISBLANK($B31),ISBLANK($C31)),"",INDEX('TRU Ops & Costs'!$I$4:$I$74,MATCH($B31&$C31,'TRU Ops & Costs'!$P$4:$P$74,0))) ->  | Y31: =IFERROR(IF(AND(ISBLANK(Q31),ISBLANK(R31)),"",IF(OR(ISBLANK($B31),ISBLANK($C31)),"",(IF(E31="Yard",INDEX('TRU Ops & Costs'!$J$4:$J$74,MATCH($B31&$C31,'TRU Ops & Costs'!$P$4:$P$74,0)),INDEX('TRU Ops & Costs'!$K$4:$K$74,MATCH($B31&$C31,'TRU Ops & Costs'!$P$4:$P$74,0)))))/(IF(ISBLANK(R31),Q31,R31))),"") ->  | AA31: =IF(OR(ISBLANK($B31),ISBLANK($C31),AND($O31="",ISBLANK($P31))),"",IF(ISBLANK($P31),$O31,$P31)*INDEX('TRU Ops & Costs'!$M$4:$M$74,MATCH($B31&$C31,'TRU Ops & Costs'!$P$4:$P$74,0))*-INDEX('TRU Ops & Costs'!$L$4:$L$74,MATCH($B31&$C31,'TRU Ops & Costs'!$P$4:$P$74,0))) ->  | AF31: =IF(ISBLANK($F31),"",INDEX('eGRID2020 Subregion'!$J$7:$J$35,MATCH($F31,RegionUSER,0))) ->  | AH31: =IF(OR(ISBLANK($B31),ISBLANK($C31),$AD31=""),"",ROUND($AD31*INDEX('Diesel TRU Emission Factors'!$D$6:$D$76,MATCH($B31&$C31,'Diesel TRU Emission Factors'!$R$6:$R$77,0))*GramsToMT,4)) ->  | AI31: =IF(OR(ISBLANK($B31),ISBLANK($C31),$AD31=""),"",ROUND($AD31*INDEX('Diesel TRU Emission Factors'!$E$6:$E$76,MATCH($B31&$C31,'Diesel TRU Emission Factors'!$R$6:$R$77,0))*GramsToMT,4)) ->  | AJ31: =IF(OR(ISBLANK($B31),ISBLANK($C31),$AD31=""),"",ROUND($AD31*INDEX('Diesel TRU Emission Factors'!$H$6:$H$76,MATCH($B31&$C31,'Diesel TRU Emission Factors'!$R$6:$R$77,0))*GramsToMT,4)) ->  | AK31: =IF(OR(ISBLANK($B31),ISBLANK($C31),$AD31=""),"",ROUND($AD31*INDEX('Diesel TRU Emission Factors'!$F$6:$F$76,MATCH($B31&$C31,'Diesel TRU Emission Factors'!$R$6:$R$77,0))*GramsToMT,1)) ->  | AL31: =IF(OR(ISBLANK($B31),ISBLANK($C31),$AD31=""),"",$AD31*INDEX('Diesel TRU Emission Factors'!$G$6:$G$76,MATCH($B31&$C31,'Diesel TRU Emission Factors'!$R$6:$R$77,0))*GramsToMT) ->  | AM31: =IF(ISBLANK(F31),"",AD31*GalTokWh*'Diesel TRU Emission Factors'!$P$4/1000000) ->  | AN31: =IF(ISBLANK($F31),"",ROUND(AK31*References!$B$28+AL31*References!$B$29+AM31*References!$B$30,1)) ->  | AP31: =IF(OR(ISBLANK($F31),$AE31="",$AF31=""),"",ROUND($AE31*(1+$AF31)*INDEX('eGRID2020 Subregion'!$C$7:$C$36,MATCH($F31,RegionUSER,0))*GramsToMT,4)) ->  | AQ31: =IF(OR(ISBLANK($F31),$AE31="",$AF31=""),"",ROUND($AE31*(1+$AF31)*INDEX('eGRID2020 Subregion'!$D$7:$D$36,MATCH($F31,RegionUSER,0))*GramsToMT,4)) ->  | AR31: =IF(OR(ISBLANK($F31),$AE31="",$AF31=""),"",ROUND($AE31*(1+$AF31)*INDEX('eGRID2020 Subregion'!$I$7:$I$36,MATCH($F31,RegionUSER,0))*GramsToMT,4)) ->  | AS31: =IF(OR(ISBLANK($F31),$AE31="",$AF31=""),"",ROUND($AE31*(1+$AF31)*INDEX('eGRID2020 Subregion'!$E$7:$E$36,MATCH($F31,RegionUSER,0))*GramsToMT,1)) ->  | AT31: =IF(OR(ISBLANK($F31),$AE31="",$AF31=""),"",$AE31*(1+$AF31)*INDEX('eGRID2020 Subregion'!$F$7:$F$35,MATCH($F31,RegionUSER,0))*GramsToMT) ->  | AU31: =IF(OR(ISBLANK($F31),$AE31="",$AF31=""),"",$AE31*(1+$AF31)*INDEX('eGRID2020 Subregion'!$G$7:$G$35,MATCH($F31,RegionUSER,0))*GramsToMT) ->  | AV31: =IF(ISBLANK($F31),"",ROUND(AS31*References!$B$28+AT31*References!$B$29+AU31*References!$B$30,1)) ->  | BL31: =IF(OR($BJ31="",$BK31=""),"",$BJ31+$BK31) ->  | BO31: =IF(OR($AD31="",$AF31="",AND($S31="",ISBLANK($T31)),AND($U31="",ISBLANK($V31))),"",($AD31*(IF(ISBLANK($T31),$S31,$T31)*GalTokWh))-($AE31*IF(ISBLANK($V31),$U31,$V31)*(1+$AF31))) ->  | BP31: =IF(OR($BN31="",$BO31=""),"",$BN31+$BO31) -> 
G32: hp | H32: =IF(OR(ISBLANK($B32),ISBLANK($C32)),"",ROUND(INDEX('TRU Ops & Costs'!$D$4:$D$74,MATCH($B32&$C32,'TRU Ops & Costs'!$P$4:$P$74,0))/IF($G32="hp",0.7457,1),0)) ->  | J32: =IF(OR(ISBLANK($B32),ISBLANK($C32)),"",INDEX('TRU Ops & Costs'!$E$4:$E$74,MATCH($B32&$C32,'TRU Ops & Costs'!$P$4:$P$74,0))) ->  | L32: =IF(OR(ISBLANK($B32),ISBLANK($C32)),"",INDEX('TRU Ops & Costs'!$F$4:$F$74,MATCH($B32&$C32,'TRU Ops & Costs'!$P$4:$P$74,0))) ->  | N32: =IF(OR(ISBLANK($B32),ISBLANK($C32)),"",INDEX('TRU Ops & Costs'!$G$4:$G$74,MATCH($B32&$C32,'TRU Ops & Costs'!$P$4:$P$74,0))) ->  | S32: =IF(ISBLANK($F32),"",IFERROR(INDEX('Diesel Fuel Prices'!$D$5:$D$31,MATCH($F32,'Diesel Fuel Prices'!$B$5:$B$31,0)),INDEX('Diesel Fuel Prices'!$D$5:$D$31,MATCH("U.S. Average",'Diesel Fuel Prices'!$B$5:$B$31,0)))*References!$B$38/References!$B$37) ->  | U32: =IF(ISBLANK($F32),"",IFERROR(INDEX('Electricity Prices'!$F$4:$F$31,MATCH($F32,'Electricity Prices'!$B$4:$B$31,0)),INDEX('Electricity Prices'!$F$4:$F$31,MATCH("All U.S.",'Electricity Prices'!$B$4:$B$31,0)))*References!$B$38/References!$B$37) ->  | W32: =IF(OR(ISBLANK($B32),ISBLANK($C32)),"",INDEX('TRU Ops & Costs'!$I$4:$I$74,MATCH($B32&$C32,'TRU Ops & Costs'!$P$4:$P$74,0))) ->  | Y32: =IFERROR(IF(AND(ISBLANK(Q32),ISBLANK(R32)),"",IF(OR(ISBLANK($B32),ISBLANK($C32)),"",(IF(E32="Yard",INDEX('TRU Ops & Costs'!$J$4:$J$74,MATCH($B32&$C32,'TRU Ops & Costs'!$P$4:$P$74,0)),INDEX('TRU Ops & Costs'!$K$4:$K$74,MATCH($B32&$C32,'TRU Ops & Costs'!$P$4:$P$74,0)))))/(IF(ISBLANK(R32),Q32,R32))),"") ->  | AA32: =IF(OR(ISBLANK($B32),ISBLANK($C32),AND($O32="",ISBLANK($P32))),"",IF(ISBLANK($P32),$O32,$P32)*INDEX('TRU Ops & Costs'!$M$4:$M$74,MATCH($B32&$C32,'TRU Ops & Costs'!$P$4:$P$74,0))*-INDEX('TRU Ops & Costs'!$L$4:$L$74,MATCH($B32&$C32,'TRU Ops & Costs'!$P$4:$P$74,0))) ->  | AF32: =IF(ISBLANK($F32),"",INDEX('eGRID2020 Subregion'!$J$7:$J$35,MATCH($F32,RegionUSER,0))) ->  | AH32: =IF(OR(ISBLANK($B32),ISBLANK($C32),$AD32=""),"",ROUND($AD32*INDEX('Diesel TRU Emission Factors'!$D$6:$D$76,MATCH($B32&$C32,'Diesel TRU Emission Factors'!$R$6:$R$77,0))*GramsToMT,4)) ->  | AI32: =IF(OR(ISBLANK($B32),ISBLANK($C32),$AD32=""),"",ROUND($AD32*INDEX('Diesel TRU Emission Factors'!$E$6:$E$76,MATCH($B32&$C32,'Diesel TRU Emission Factors'!$R$6:$R$77,0))*GramsToMT,4)) ->  | AJ32: =IF(OR(ISBLANK($B32),ISBLANK($C32),$AD32=""),"",ROUND($AD32*INDEX('Diesel TRU Emission Factors'!$H$6:$H$76,MATCH($B32&$C32,'Diesel TRU Emission Factors'!$R$6:$R$77,0))*GramsToMT,4)) ->  | AK32: =IF(OR(ISBLANK($B32),ISBLANK($C32),$AD32=""),"",ROUND($AD32*INDEX('Diesel TRU Emission Factors'!$F$6:$F$76,MATCH($B32&$C32,'Diesel TRU Emission Factors'!$R$6:$R$77,0))*GramsToMT,1)) ->  | AL32: =IF(OR(ISBLANK($B32),ISBLANK($C32),$AD32=""),"",$AD32*INDEX('Diesel TRU Emission Factors'!$G$6:$G$76,MATCH($B32&$C32,'Diesel TRU Emission Factors'!$R$6:$R$77,0))*GramsToMT) ->  | AM32: =IF(ISBLANK(F32),"",AD32*GalTokWh*'Diesel TRU Emission Factors'!$P$4/1000000) ->  | AN32: =IF(ISBLANK($F32),"",ROUND(AK32*References!$B$28+AL32*References!$B$29+AM32*References!$B$30,1)) ->  | AP32: =IF(OR(ISBLANK($F32),$AE32="",$AF32=""),"",ROUND($AE32*(1+$AF32)*INDEX('eGRID2020 Subregion'!$C$7:$C$36,MATCH($F32,RegionUSER,0))*GramsToMT,4)) ->  | AQ32: =IF(OR(ISBLANK($F32),$AE32="",$AF32=""),"",ROUND($AE32*(1+$AF32)*INDEX('eGRID2020 Subregion'!$D$7:$D$36,MATCH($F32,RegionUSER,0))*GramsToMT,4)) ->  | AR32: =IF(OR(ISBLANK($F32),$AE32="",$AF32=""),"",ROUND($AE32*(1+$AF32)*INDEX('eGRID2020 Subregion'!$I$7:$I$36,MATCH($F32,RegionUSER,0))*GramsToMT,4)) ->  | AS32: =IF(OR(ISBLANK($F32),$AE32="",$AF32=""),"",ROUND($AE32*(1+$AF32)*INDEX('eGRID2020 Subregion'!$E$7:$E$36,MATCH($F32,RegionUSER,0))*GramsToMT,1)) ->  | AT32: =IF(OR(ISBLANK($F32),$AE32="",$AF32=""),"",$AE32*(1+$AF32)*INDEX('eGRID2020 Subregion'!$F$7:$F$35,MATCH($F32,RegionUSER,0))*GramsToMT) ->  | AU32: =IF(OR(ISBLANK($F32),$AE32="",$AF32=""),"",$AE32*(1+$AF32)*INDEX('eGRID2020 Subregion'!$G$7:$G$35,MATCH($F32,RegionUSER,0))*GramsToMT) ->  | AV32: =IF(ISBLANK($F32),"",ROUND(AS32*References!$B$28+AT32*References!$B$29+AU32*References!$B$30,1)) -> 
G33: hp | H33: =IF(OR(ISBLANK($B33),ISBLANK($C33)),"",ROUND(INDEX('TRU Ops & Costs'!$D$4:$D$74,MATCH($B33&$C33,'TRU Ops & Costs'!$P$4:$P$74,0))/IF($G33="hp",0.7457,1),0)) ->  | J33: =IF(OR(ISBLANK($B33),ISBLANK($C33)),"",INDEX('TRU Ops & Costs'!$E$4:$E$74,MATCH($B33&$C33,'TRU Ops & Costs'!$P$4:$P$74,0))) ->  | L33: =IF(OR(ISBLANK($B33),ISBLANK($C33)),"",INDEX('TRU Ops & Costs'!$F$4:$F$74,MATCH($B33&$C33,'TRU Ops & Costs'!$P$4:$P$74,0))) ->  | N33: =IF(OR(ISBLANK($B33),ISBLANK($C33)),"",INDEX('TRU Ops & Costs'!$G$4:$G$74,MATCH($B33&$C33,'TRU Ops & Costs'!$P$4:$P$74,0))) ->  | S33: =IF(ISBLANK($F33),"",IFERROR(INDEX('Diesel Fuel Prices'!$D$5:$D$31,MATCH($F33,'Diesel Fuel Prices'!$B$5:$B$31,0)),INDEX('Diesel Fuel Prices'!$D$5:$D$31,MATCH("U.S. Average",'Diesel Fuel Prices'!$B$5:$B$31,0)))*References!$B$38/References!$B$37) ->  | U33: =IF(ISBLANK($F33),"",IFERROR(INDEX('Electricity Prices'!$F$4:$F$31,MATCH($F33,'Electricity Prices'!$B$4:$B$31,0)),INDEX('Electricity Prices'!$F$4:$F$31,MATCH("All U.S.",'Electricity Prices'!$B$4:$B$31,0)))*References!$B$38/References!$B$37) ->  | W33: =IF(OR(ISBLANK($B33),ISBLANK($C33)),"",INDEX('TRU Ops & Costs'!$I$4:$I$74,MATCH($B33&$C33,'TRU Ops & Costs'!$P$4:$P$74,0))) ->  | Y33: =IFERROR(IF(AND(ISBLANK(Q33),ISBLANK(R33)),"",IF(OR(ISBLANK($B33),ISBLANK($C33)),"",(IF(E33="Yard",INDEX('TRU Ops & Costs'!$J$4:$J$74,MATCH($B33&$C33,'TRU Ops & Costs'!$P$4:$P$74,0)),INDEX('TRU Ops & Costs'!$K$4:$K$74,MATCH($B33&$C33,'TRU Ops & Costs'!$P$4:$P$74,0)))))/(IF(ISBLANK(R33),Q33,R33))),"") ->  | AA33: =IF(OR(ISBLANK($B33),ISBLANK($C33),AND($O33="",ISBLANK($P33))),"",IF(ISBLANK($P33),$O33,$P33)*INDEX('TRU Ops & Costs'!$M$4:$M$74,MATCH($B33&$C33,'TRU Ops & Costs'!$P$4:$P$74,0))*-INDEX('TRU Ops & Costs'!$L$4:$L$74,MATCH($B33&$C33,'TRU Ops & Costs'!$P$4:$P$74,0))) ->  | AF33: =IF(ISBLANK($F33),"",INDEX('eGRID2020 Subregion'!$J$7:$J$35,MATCH($F33,RegionUSER,0))) ->  | AH33: =IF(OR(ISBLANK($B33),ISBLANK($C33),$AD33=""),"",ROUND($AD33*INDEX('Diesel TRU Emission Factors'!$D$6:$D$76,MATCH($B33&$C33,'Diesel TRU Emission Factors'!$R$6:$R$77,0))*GramsToMT,4)) ->  | AI33: =IF(OR(ISBLANK($B33),ISBLANK($C33),$AD33=""),"",ROUND($AD33*INDEX('Diesel TRU Emission Factors'!$E$6:$E$76,MATCH($B33&$C33,'Diesel TRU Emission Factors'!$R$6:$R$77,0))*GramsToMT,4)) ->  | AJ33: =IF(OR(ISBLANK($B33),ISBLANK($C33),$AD33=""),"",ROUND($AD33*INDEX('Diesel TRU Emission Factors'!$H$6:$H$76,MATCH($B33&$C33,'Diesel TRU Emission Factors'!$R$6:$R$77,0))*GramsToMT,4)) ->  | AK33: =IF(OR(ISBLANK($B33),ISBLANK($C33),$AD33=""),"",ROUND($AD33*INDEX('Diesel TRU Emission Factors'!$F$6:$F$76,MATCH($B33&$C33,'Diesel TRU Emission Factors'!$R$6:$R$77,0))*GramsToMT,1)) ->  | AL33: =IF(OR(ISBLANK($B33),ISBLANK($C33),$AD33=""),"",$AD33*INDEX('Diesel TRU Emission Factors'!$G$6:$G$76,MATCH($B33&$C33,'Diesel TRU Emission Factors'!$R$6:$R$77,0))*GramsToMT) ->  | AM33: =IF(ISBLANK(F33),"",AD33*GalTokWh*'Diesel TRU Emission Factors'!$P$4/1000000) ->  | AN33: =IF(ISBLANK($F33),"",ROUND(AK33*References!$B$28+AL33*References!$B$29+AM33*References!$B$30,1)) ->  | AP33: =IF(OR(ISBLANK($F33),$AE33="",$AF33=""),"",ROUND($AE33*(1+$AF33)*INDEX('eGRID2020 Subregion'!$C$7:$C$36,MATCH($F33,RegionUSER,0))*GramsToMT,4)) ->  | AQ33: =IF(OR(ISBLANK($F33),$AE33="",$AF33=""),"",ROUND($AE33*(1+$AF33)*INDEX('eGRID2020 Subregion'!$D$7:$D$36,MATCH($F33,RegionUSER,0))*GramsToMT,4)) ->  | AR33: =IF(OR(ISBLANK($F33),$AE33="",$AF33=""),"",ROUND($AE33*(1+$AF33)*INDEX('eGRID2020 Subregion'!$I$7:$I$36,MATCH($F33,RegionUSER,0))*GramsToMT,4)) ->  | AS33: =IF(OR(ISBLANK($F33),$AE33="",$AF33=""),"",ROUND($AE33*(1+$AF33)*INDEX('eGRID2020 Subregion'!$E$7:$E$36,MATCH($F33,RegionUSER,0))*GramsToMT,1)) ->  | AT33: =IF(OR(ISBLANK($F33),$AE33="",$AF33=""),"",$AE33*(1+$AF33)*INDEX('eGRID2020 Subregion'!$F$7:$F$35,MATCH($F33,RegionUSER,0))*GramsToMT) ->  | AU33: =IF(OR(ISBLANK($F33),$AE33="",$AF33=""),"",$AE33*(1+$AF33)*INDEX('eGRID2020 Subregion'!$G$7:$G$35,MATCH($F33,RegionUSER,0))*GramsToMT) ->  | AV33: =IF(ISBLANK($F33),"",ROUND(AS33*References!$B$28+AT33*References!$B$29+AU33*References!$B$30,1)) ->  | BL33: =IF(OR($BJ33="",$BK33=""),"",$BJ33+$BK33) ->  | BO33: =IF(OR($AD33="",$AF33="",AND($S33="",ISBLANK($T33)),AND($U33="",ISBLANK($V33))),"",($AD33*(IF(ISBLANK($T33),$S33,$T33)*GalTokWh))-($AE33*IF(ISBLANK($V33),$U33,$V33)*(1+$AF33))) ->  | BP33: =IF(OR($BN33="",$BO33=""),"",$BN33+$BO33) -> 
G34: hp | H34: =IF(OR(ISBLANK($B34),ISBLANK($C34)),"",ROUND(INDEX('TRU Ops & Costs'!$D$4:$D$74,MATCH($B34&$C34,'TRU Ops & Costs'!$P$4:$P$74,0))/IF($G34="hp",0.7457,1),0)) ->  | J34: =IF(OR(ISBLANK($B34),ISBLANK($C34)),"",INDEX('TRU Ops & Costs'!$E$4:$E$74,MATCH($B34&$C34,'TRU Ops & Costs'!$P$4:$P$74,0))) ->  | L34: =IF(OR(ISBLANK($B34),ISBLANK($C34)),"",INDEX('TRU Ops & Costs'!$F$4:$F$74,MATCH($B34&$C34,'TRU Ops & Costs'!$P$4:$P$74,0))) ->  | N34: =IF(OR(ISBLANK($B34),ISBLANK($C34)),"",INDEX('TRU Ops & Costs'!$G$4:$G$74,MATCH($B34&$C34,'TRU Ops & Costs'!$P$4:$P$74,0))) ->  | S34: =IF(ISBLANK($F34),"",IFERROR(INDEX('Diesel Fuel Prices'!$D$5:$D$31,MATCH($F34,'Diesel Fuel Prices'!$B$5:$B$31,0)),INDEX('Diesel Fuel Prices'!$D$5:$D$31,MATCH("U.S. Average",'Diesel Fuel Prices'!$B$5:$B$31,0)))*References!$B$38/References!$B$37) ->  | U34: =IF(ISBLANK($F34),"",IFERROR(INDEX('Electricity Prices'!$F$4:$F$31,MATCH($F34,'Electricity Prices'!$B$4:$B$31,0)),INDEX('Electricity Prices'!$F$4:$F$31,MATCH("All U.S.",'Electricity Prices'!$B$4:$B$31,0)))*References!$B$38/References!$B$37) ->  | W34: =IF(OR(ISBLANK($B34),ISBLANK($C34)),"",INDEX('TRU Ops & Costs'!$I$4:$I$74,MATCH($B34&$C34,'TRU Ops & Costs'!$P$4:$P$74,0))) ->  | Y34: =IFERROR(IF(AND(ISBLANK(Q34),ISBLANK(R34)),"",IF(OR(ISBLANK($B34),ISBLANK($C34)),"",(IF(E34="Yard",INDEX('TRU Ops & Costs'!$J$4:$J$74,MATCH($B34&$C34,'TRU Ops & Costs'!$P$4:$P$74,0)),INDEX('TRU Ops & Costs'!$K$4:$K$74,MATCH($B34&$C34,'TRU Ops & Costs'!$P$4:$P$74,0)))))/(IF(ISBLANK(R34),Q34,R34))),"") ->  | AA34: =IF(OR(ISBLANK($B34),ISBLANK($C34),AND($O34="",ISBLANK($P34))),"",IF(ISBLANK($P34),$O34,$P34)*INDEX('TRU Ops & Costs'!$M$4:$M$74,MATCH($B34&$C34,'TRU Ops & Costs'!$P$4:$P$74,0))*-INDEX('TRU Ops & Costs'!$L$4:$L$74,MATCH($B34&$C34,'TRU Ops & Costs'!$P$4:$P$74,0))) ->  | AF34: =IF(ISBLANK($F34),"",INDEX('eGRID2020 Subregion'!$J$7:$J$35,MATCH($F34,RegionUSER,0))) ->  | AH34: =IF(OR(ISBLANK($B34),ISBLANK($C34),$AD34=""),"",ROUND($AD34*INDEX('Diesel TRU Emission Factors'!$D$6:$D$76,MATCH($B34&$C34,'Diesel TRU Emission Factors'!$R$6:$R$77,0))*GramsToMT,4)) ->  | AI34: =IF(OR(ISBLANK($B34),ISBLANK($C34),$AD34=""),"",ROUND($AD34*INDEX('Diesel TRU Emission Factors'!$E$6:$E$76,MATCH($B34&$C34,'Diesel TRU Emission Factors'!$R$6:$R$77,0))*GramsToMT,4)) ->  | AJ34: =IF(OR(ISBLANK($B34),ISBLANK($C34),$AD34=""),"",ROUND($AD34*INDEX('Diesel TRU Emission Factors'!$H$6:$H$76,MATCH($B34&$C34,'Diesel TRU Emission Factors'!$R$6:$R$77,0))*GramsToMT,4)) ->  | AK34: =IF(OR(ISBLANK($B34),ISBLANK($C34),$AD34=""),"",ROUND($AD34*INDEX('Diesel TRU Emission Factors'!$F$6:$F$76,MATCH($B34&$C34,'Diesel TRU Emission Factors'!$R$6:$R$77,0))*GramsToMT,1)) ->  | AL34: =IF(OR(ISBLANK($B34),ISBLANK($C34),$AD34=""),"",$AD34*INDEX('Diesel TRU Emission Factors'!$G$6:$G$76,MATCH($B34&$C34,'Diesel TRU Emission Factors'!$R$6:$R$77,0))*GramsToMT) ->  | AM34: =IF(ISBLANK(F34),"",AD34*GalTokWh*'Diesel TRU Emission Factors'!$P$4/1000000) ->  | AN34: =IF(ISBLANK($F34),"",ROUND(AK34*References!$B$28+AL34*References!$B$29+AM34*References!$B$30,1)) ->  | AP34: =IF(OR(ISBLANK($F34),$AE34="",$AF34=""),"",ROUND($AE34*(1+$AF34)*INDEX('eGRID2020 Subregion'!$C$7:$C$36,MATCH($F34,RegionUSER,0))*GramsToMT,4)) ->  | AQ34: =IF(OR(ISBLANK($F34),$AE34="",$AF34=""),"",ROUND($AE34*(1+$AF34)*INDEX('eGRID2020 Subregion'!$D$7:$D$36,MATCH($F34,RegionUSER,0))*GramsToMT,4)) ->  | AR34: =IF(OR(ISBLANK($F34),$AE34="",$AF34=""),"",ROUND($AE34*(1+$AF34)*INDEX('eGRID2020 Subregion'!$I$7:$I$36,MATCH($F34,RegionUSER,0))*GramsToMT,4)) ->  | AS34: =IF(OR(ISBLANK($F34),$AE34="",$AF34=""),"",ROUND($AE34*(1+$AF34)*INDEX('eGRID2020 Subregion'!$E$7:$E$36,MATCH($F34,RegionUSER,0))*GramsToMT,1)) ->  | AT34: =IF(OR(ISBLANK($F34),$AE34="",$AF34=""),"",$AE34*(1+$AF34)*INDEX('eGRID2020 Subregion'!$F$7:$F$35,MATCH($F34,RegionUSER,0))*GramsToMT) ->  | AU34: =IF(OR(ISBLANK($F34),$AE34="",$AF34=""),"",$AE34*(1+$AF34)*INDEX('eGRID2020 Subregion'!$G$7:$G$35,MATCH($F34,RegionUSER,0))*GramsToMT) ->  | AV34: =IF(ISBLANK($F34),"",ROUND(AS34*References!$B$28+AT34*References!$B$29+AU34*References!$B$30,1)) -> 
G35: hp | H35: =IF(OR(ISBLANK($B35),ISBLANK($C35)),"",ROUND(INDEX('TRU Ops & Costs'!$D$4:$D$74,MATCH($B35&$C35,'TRU Ops & Costs'!$P$4:$P$74,0))/IF($G35="hp",0.7457,1),0)) ->  | J35: =IF(OR(ISBLANK($B35),ISBLANK($C35)),"",INDEX('TRU Ops & Costs'!$E$4:$E$74,MATCH($B35&$C35,'TRU Ops & Costs'!$P$4:$P$74,0))) ->  | L35: =IF(OR(ISBLANK($B35),ISBLANK($C35)),"",INDEX('TRU Ops & Costs'!$F$4:$F$74,MATCH($B35&$C35,'TRU Ops & Costs'!$P$4:$P$74,0))) ->  | N35: =IF(OR(ISBLANK($B35),ISBLANK($C35)),"",INDEX('TRU Ops & Costs'!$G$4:$G$74,MATCH($B35&$C35,'TRU Ops & Costs'!$P$4:$P$74,0))) ->  | S35: =IF(ISBLANK($F35),"",IFERROR(INDEX('Diesel Fuel Prices'!$D$5:$D$31,MATCH($F35,'Diesel Fuel Prices'!$B$5:$B$31,0)),INDEX('Diesel Fuel Prices'!$D$5:$D$31,MATCH("U.S. Average",'Diesel Fuel Prices'!$B$5:$B$31,0)))*References!$B$38/References!$B$37) ->  | U35: =IF(ISBLANK($F35),"",IFERROR(INDEX('Electricity Prices'!$F$4:$F$31,MATCH($F35,'Electricity Prices'!$B$4:$B$31,0)),INDEX('Electricity Prices'!$F$4:$F$31,MATCH("All U.S.",'Electricity Prices'!$B$4:$B$31,0)))*References!$B$38/References!$B$37) ->  | W35: =IF(OR(ISBLANK($B35),ISBLANK($C35)),"",INDEX('TRU Ops & Costs'!$I$4:$I$74,MATCH($B35&$C35,'TRU Ops & Costs'!$P$4:$P$74,0))) ->  | Y35: =IFERROR(IF(AND(ISBLANK(Q35),ISBLANK(R35)),"",IF(OR(ISBLANK($B35),ISBLANK($C35)),"",(IF(E35="Yard",INDEX('TRU Ops & Costs'!$J$4:$J$74,MATCH($B35&$C35,'TRU Ops & Costs'!$P$4:$P$74,0)),INDEX('TRU Ops & Costs'!$K$4:$K$74,MATCH($B35&$C35,'TRU Ops & Costs'!$P$4:$P$74,0)))))/(IF(ISBLANK(R35),Q35,R35))),"") ->  | AA35: =IF(OR(ISBLANK($B35),ISBLANK($C35),AND($O35="",ISBLANK($P35))),"",IF(ISBLANK($P35),$O35,$P35)*INDEX('TRU Ops & Costs'!$M$4:$M$74,MATCH($B35&$C35,'TRU Ops & Costs'!$P$4:$P$74,0))*-INDEX('TRU Ops & Costs'!$L$4:$L$74,MATCH($B35&$C35,'TRU Ops & Costs'!$P$4:$P$74,0))) ->  | AF35: =IF(ISBLANK($F35),"",INDEX('eGRID2020 Subregion'!$J$7:$J$35,MATCH($F35,RegionUSER,0))) ->  | AH35: =IF(OR(ISBLANK($B35),ISBLANK($C35),$AD35=""),"",ROUND($AD35*INDEX('Diesel TRU Emission Factors'!$D$6:$D$76,MATCH($B35&$C35,'Diesel TRU Emission Factors'!$R$6:$R$77,0))*GramsToMT,4)) ->  | AI35: =IF(OR(ISBLANK($B35),ISBLANK($C35),$AD35=""),"",ROUND($AD35*INDEX('Diesel TRU Emission Factors'!$E$6:$E$76,MATCH($B35&$C35,'Diesel TRU Emission Factors'!$R$6:$R$77,0))*GramsToMT,4)) ->  | AJ35: =IF(OR(ISBLANK($B35),ISBLANK($C35),$AD35=""),"",ROUND($AD35*INDEX('Diesel TRU Emission Factors'!$H$6:$H$76,MATCH($B35&$C35,'Diesel TRU Emission Factors'!$R$6:$R$77,0))*GramsToMT,4)) ->  | AK35: =IF(OR(ISBLANK($B35),ISBLANK($C35),$AD35=""),"",ROUND($AD35*INDEX('Diesel TRU Emission Factors'!$F$6:$F$76,MATCH($B35&$C35,'Diesel TRU Emission Factors'!$R$6:$R$77,0))*GramsToMT,1)) ->  | AL35: =IF(OR(ISBLANK($B35),ISBLANK($C35),$AD35=""),"",$AD35*INDEX('Diesel TRU Emission Factors'!$G$6:$G$76,MATCH($B35&$C35,'Diesel TRU Emission Factors'!$R$6:$R$77,0))*GramsToMT) ->  | AM35: =IF(ISBLANK(F35),"",AD35*GalTokWh*'Diesel TRU Emission Factors'!$P$4/1000000) ->  | AN35: =IF(ISBLANK($F35),"",ROUND(AK35*References!$B$28+AL35*References!$B$29+AM35*References!$B$30,1)) ->  | AP35: =IF(OR(ISBLANK($F35),$AE35="",$AF35=""),"",ROUND($AE35*(1+$AF35)*INDEX('eGRID2020 Subregion'!$C$7:$C$36,MATCH($F35,RegionUSER,0))*GramsToMT,4)) ->  | AQ35: =IF(OR(ISBLANK($F35),$AE35="",$AF35=""),"",ROUND($AE35*(1+$AF35)*INDEX('eGRID2020 Subregion'!$D$7:$D$36,MATCH($F35,RegionUSER,0))*GramsToMT,4)) ->  | AR35: =IF(OR(ISBLANK($F35),$AE35="",$AF35=""),"",ROUND($AE35*(1+$AF35)*INDEX('eGRID2020 Subregion'!$I$7:$I$36,MATCH($F35,RegionUSER,0))*GramsToMT,4)) ->  | AS35: =IF(OR(ISBLANK($F35),$AE35="",$AF35=""),"",ROUND($AE35*(1+$AF35)*INDEX('eGRID2020 Subregion'!$E$7:$E$36,MATCH($F35,RegionUSER,0))*GramsToMT,1)) ->  | AT35: =IF(OR(ISBLANK($F35),$AE35="",$AF35=""),"",$AE35*(1+$AF35)*INDEX('eGRID2020 Subregion'!$F$7:$F$35,MATCH($F35,RegionUSER,0))*GramsToMT) ->  | AU35: =IF(OR(ISBLANK($F35),$AE35="",$AF35=""),"",$AE35*(1+$AF35)*INDEX('eGRID2020 Subregion'!$G$7:$G$35,MATCH($F35,RegionUSER,0))*GramsToMT) ->  | AV35: =IF(ISBLANK($F35),"",ROUND(AS35*References!$B$28+AT35*References!$B$29+AU35*References!$B$30,1)) ->  | BL35: =IF(OR($BJ35="",$BK35=""),"",$BJ35+$BK35) ->  | BO35: =IF(OR($AD35="",$AF35="",AND($S35="",ISBLANK($T35)),AND($U35="",ISBLANK($V35))),"",($AD35*(IF(ISBLANK($T35),$S35,$T35)*GalTokWh))-($AE35*IF(ISBLANK($V35),$U35,$V35)*(1+$AF35))) ->  | BP35: =IF(OR($BN35="",$BO35=""),"",$BN35+$BO35) -> 
G36: hp | H36: =IF(OR(ISBLANK($B36),ISBLANK($C36)),"",ROUND(INDEX('TRU Ops & Costs'!$D$4:$D$74,MATCH($B36&$C36,'TRU Ops & Costs'!$P$4:$P$74,0))/IF($G36="hp",0.7457,1),0)) ->  | J36: =IF(OR(ISBLANK($B36),ISBLANK($C36)),"",INDEX('TRU Ops & Costs'!$E$4:$E$74,MATCH($B36&$C36,'TRU Ops & Costs'!$P$4:$P$74,0))) ->  | L36: =IF(OR(ISBLANK($B36),ISBLANK($C36)),"",INDEX('TRU Ops & Costs'!$F$4:$F$74,MATCH($B36&$C36,'TRU Ops & Costs'!$P$4:$P$74,0))) ->  | N36: =IF(OR(ISBLANK($B36),ISBLANK($C36)),"",INDEX('TRU Ops & Costs'!$G$4:$G$74,MATCH($B36&$C36,'TRU Ops & Costs'!$P$4:$P$74,0))) ->  | S36: =IF(ISBLANK($F36),"",IFERROR(INDEX('Diesel Fuel Prices'!$D$5:$D$31,MATCH($F36,'Diesel Fuel Prices'!$B$5:$B$31,0)),INDEX('Diesel Fuel Prices'!$D$5:$D$31,MATCH("U.S. Average",'Diesel Fuel Prices'!$B$5:$B$31,0)))*References!$B$38/References!$B$37) ->  | U36: =IF(ISBLANK($F36),"",IFERROR(INDEX('Electricity Prices'!$F$4:$F$31,MATCH($F36,'Electricity Prices'!$B$4:$B$31,0)),INDEX('Electricity Prices'!$F$4:$F$31,MATCH("All U.S.",'Electricity Prices'!$B$4:$B$31,0)))*References!$B$38/References!$B$37) ->  | W36: =IF(OR(ISBLANK($B36),ISBLANK($C36)),"",INDEX('TRU Ops & Costs'!$I$4:$I$74,MATCH($B36&$C36,'TRU Ops & Costs'!$P$4:$P$74,0))) ->  | Y36: =IFERROR(IF(AND(ISBLANK(Q36),ISBLANK(R36)),"",IF(OR(ISBLANK($B36),ISBLANK($C36)),"",(IF(E36="Yard",INDEX('TRU Ops & Costs'!$J$4:$J$74,MATCH($B36&$C36,'TRU Ops & Costs'!$P$4:$P$74,0)),INDEX('TRU Ops & Costs'!$K$4:$K$74,MATCH($B36&$C36,'TRU Ops & Costs'!$P$4:$P$74,0)))))/(IF(ISBLANK(R36),Q36,R36))),"") ->  | AA36: =IF(OR(ISBLANK($B36),ISBLANK($C36),AND($O36="",ISBLANK($P36))),"",IF(ISBLANK($P36),$O36,$P36)*INDEX('TRU Ops & Costs'!$M$4:$M$74,MATCH($B36&$C36,'TRU Ops & Costs'!$P$4:$P$74,0))*-INDEX('TRU Ops & Costs'!$L$4:$L$74,MATCH($B36&$C36,'TRU Ops & Costs'!$P$4:$P$74,0))) ->  | AF36: =IF(ISBLANK($F36),"",INDEX('eGRID2020 Subregion'!$J$7:$J$35,MATCH($F36,RegionUSER,0))) ->  | AH36: =IF(OR(ISBLANK($B36),ISBLANK($C36),$AD36=""),"",ROUND($AD36*INDEX('Diesel TRU Emission Factors'!$D$6:$D$76,MATCH($B36&$C36,'Diesel TRU Emission Factors'!$R$6:$R$77,0))*GramsToMT,4)) ->  | AI36: =IF(OR(ISBLANK($B36),ISBLANK($C36),$AD36=""),"",ROUND($AD36*INDEX('Diesel TRU Emission Factors'!$E$6:$E$76,MATCH($B36&$C36,'Diesel TRU Emission Factors'!$R$6:$R$77,0))*GramsToMT,4)) ->  | AJ36: =IF(OR(ISBLANK($B36),ISBLANK($C36),$AD36=""),"",ROUND($AD36*INDEX('Diesel TRU Emission Factors'!$H$6:$H$76,MATCH($B36&$C36,'Diesel TRU Emission Factors'!$R$6:$R$77,0))*GramsToMT,4)) ->  | AK36: =IF(OR(ISBLANK($B36),ISBLANK($C36),$AD36=""),"",ROUND($AD36*INDEX('Diesel TRU Emission Factors'!$F$6:$F$76,MATCH($B36&$C36,'Diesel TRU Emission Factors'!$R$6:$R$77,0))*GramsToMT,1)) ->  | AL36: =IF(OR(ISBLANK($B36),ISBLANK($C36),$AD36=""),"",$AD36*INDEX('Diesel TRU Emission Factors'!$G$6:$G$76,MATCH($B36&$C36,'Diesel TRU Emission Factors'!$R$6:$R$77,0))*GramsToMT) ->  | AM36: =IF(ISBLANK(F36),"",AD36*GalTokWh*'Diesel TRU Emission Factors'!$P$4/1000000) ->  | AN36: =IF(ISBLANK($F36),"",ROUND(AK36*References!$B$28+AL36*References!$B$29+AM36*References!$B$30,1)) ->  | AP36: =IF(OR(ISBLANK($F36),$AE36="",$AF36=""),"",ROUND($AE36*(1+$AF36)*INDEX('eGRID2020 Subregion'!$C$7:$C$36,MATCH($F36,RegionUSER,0))*GramsToMT,4)) ->  | AQ36: =IF(OR(ISBLANK($F36),$AE36="",$AF36=""),"",ROUND($AE36*(1+$AF36)*INDEX('eGRID2020 Subregion'!$D$7:$D$36,MATCH($F36,RegionUSER,0))*GramsToMT,4)) ->  | AR36: =IF(OR(ISBLANK($F36),$AE36="",$AF36=""),"",ROUND($AE36*(1+$AF36)*INDEX('eGRID2020 Subregion'!$I$7:$I$36,MATCH($F36,RegionUSER,0))*GramsToMT,4)) ->  | AS36: =IF(OR(ISBLANK($F36),$AE36="",$AF36=""),"",ROUND($AE36*(1+$AF36)*INDEX('eGRID2020 Subregion'!$E$7:$E$36,MATCH($F36,RegionUSER,0))*GramsToMT,1)) ->  | AT36: =IF(OR(ISBLANK($F36),$AE36="",$AF36=""),"",$AE36*(1+$AF36)*INDEX('eGRID2020 Subregion'!$F$7:$F$35,MATCH($F36,RegionUSER,0))*GramsToMT) ->  | AU36: =IF(OR(ISBLANK($F36),$AE36="",$AF36=""),"",$AE36*(1+$AF36)*INDEX('eGRID2020 Subregion'!$G$7:$G$35,MATCH($F36,RegionUSER,0))*GramsToMT) ->  | AV36: =IF(ISBLANK($F36),"",ROUND(AS36*References!$B$28+AT36*References!$B$29+AU36*References!$B$30,1)) -> 
G37: hp | H37: =IF(OR(ISBLANK($B37),ISBLANK($C37)),"",ROUND(INDEX('TRU Ops & Costs'!$D$4:$D$74,MATCH($B37&$C37,'TRU Ops & Costs'!$P$4:$P$74,0))/IF($G37="hp",0.7457,1),0)) ->  | J37: =IF(OR(ISBLANK($B37),ISBLANK($C37)),"",INDEX('TRU Ops & Costs'!$E$4:$E$74,MATCH($B37&$C37,'TRU Ops & Costs'!$P$4:$P$74,0))) ->  | L37: =IF(OR(ISBLANK($B37),ISBLANK($C37)),"",INDEX('TRU Ops & Costs'!$F$4:$F$74,MATCH($B37&$C37,'TRU Ops & Costs'!$P$4:$P$74,0))) ->  | N37: =IF(OR(ISBLANK($B37),ISBLANK($C37)),"",INDEX('TRU Ops & Costs'!$G$4:$G$74,MATCH($B37&$C37,'TRU Ops & Costs'!$P$4:$P$74,0))) ->  | S37: =IF(ISBLANK($F37),"",IFERROR(INDEX('Diesel Fuel Prices'!$D$5:$D$31,MATCH($F37,'Diesel Fuel Prices'!$B$5:$B$31,0)),INDEX('Diesel Fuel Prices'!$D$5:$D$31,MATCH("U.S. Average",'Diesel Fuel Prices'!$B$5:$B$31,0)))*References!$B$38/References!$B$37) ->  | U37: =IF(ISBLANK($F37),"",IFERROR(INDEX('Electricity Prices'!$F$4:$F$31,MATCH($F37,'Electricity Prices'!$B$4:$B$31,0)),INDEX('Electricity Prices'!$F$4:$F$31,MATCH("All U.S.",'Electricity Prices'!$B$4:$B$31,0)))*References!$B$38/References!$B$37) ->  | W37: =IF(OR(ISBLANK($B37),ISBLANK($C37)),"",INDEX('TRU Ops & Costs'!$I$4:$I$74,MATCH($B37&$C37,'TRU Ops & Costs'!$P$4:$P$74,0))) ->  | Y37: =IFERROR(IF(AND(ISBLANK(Q37),ISBLANK(R37)),"",IF(OR(ISBLANK($B37),ISBLANK($C37)),"",(IF(E37="Yard",INDEX('TRU Ops & Costs'!$J$4:$J$74,MATCH($B37&$C37,'TRU Ops & Costs'!$P$4:$P$74,0)),INDEX('TRU Ops & Costs'!$K$4:$K$74,MATCH($B37&$C37,'TRU Ops & Costs'!$P$4:$P$74,0)))))/(IF(ISBLANK(R37),Q37,R37))),"") ->  | AA37: =IF(OR(ISBLANK($B37),ISBLANK($C37),AND($O37="",ISBLANK($P37))),"",IF(ISBLANK($P37),$O37,$P37)*INDEX('TRU Ops & Costs'!$M$4:$M$74,MATCH($B37&$C37,'TRU Ops & Costs'!$P$4:$P$74,0))*-INDEX('TRU Ops & Costs'!$L$4:$L$74,MATCH($B37&$C37,'TRU Ops & Costs'!$P$4:$P$74,0))) ->  | AF37: =IF(ISBLANK($F37),"",INDEX('eGRID2020 Subregion'!$J$7:$J$35,MATCH($F37,RegionUSER,0))) ->  | AH37: =IF(OR(ISBLANK($B37),ISBLANK($C37),$AD37=""),"",ROUND($AD37*INDEX('Diesel TRU Emission Factors'!$D$6:$D$76,MATCH($B37&$C37,'Diesel TRU Emission Factors'!$R$6:$R$77,0))*GramsToMT,4)) ->  | AI37: =IF(OR(ISBLANK($B37),ISBLANK($C37),$AD37=""),"",ROUND($AD37*INDEX('Diesel TRU Emission Factors'!$E$6:$E$76,MATCH($B37&$C37,'Diesel TRU Emission Factors'!$R$6:$R$77,0))*GramsToMT,4)) ->  | AJ37: =IF(OR(ISBLANK($B37),ISBLANK($C37),$AD37=""),"",ROUND($AD37*INDEX('Diesel TRU Emission Factors'!$H$6:$H$76,MATCH($B37&$C37,'Diesel TRU Emission Factors'!$R$6:$R$77,0))*GramsToMT,4)) ->  | AK37: =IF(OR(ISBLANK($B37),ISBLANK($C37),$AD37=""),"",ROUND($AD37*INDEX('Diesel TRU Emission Factors'!$F$6:$F$76,MATCH($B37&$C37,'Diesel TRU Emission Factors'!$R$6:$R$77,0))*GramsToMT,1)) ->  | AL37: =IF(OR(ISBLANK($B37),ISBLANK($C37),$AD37=""),"",$AD37*INDEX('Diesel TRU Emission Factors'!$G$6:$G$76,MATCH($B37&$C37,'Diesel TRU Emission Factors'!$R$6:$R$77,0))*GramsToMT) ->  | AM37: =IF(ISBLANK(F37),"",AD37*GalTokWh*'Diesel TRU Emission Factors'!$P$4/1000000) ->  | AN37: =IF(ISBLANK($F37),"",ROUND(AK37*References!$B$28+AL37*References!$B$29+AM37*References!$B$30,1)) ->  | AP37: =IF(OR(ISBLANK($F37),$AE37="",$AF37=""),"",ROUND($AE37*(1+$AF37)*INDEX('eGRID2020 Subregion'!$C$7:$C$36,MATCH($F37,RegionUSER,0))*GramsToMT,4)) ->  | AQ37: =IF(OR(ISBLANK($F37),$AE37="",$AF37=""),"",ROUND($AE37*(1+$AF37)*INDEX('eGRID2020 Subregion'!$D$7:$D$36,MATCH($F37,RegionUSER,0))*GramsToMT,4)) ->  | AR37: =IF(OR(ISBLANK($F37),$AE37="",$AF37=""),"",ROUND($AE37*(1+$AF37)*INDEX('eGRID2020 Subregion'!$I$7:$I$36,MATCH($F37,RegionUSER,0))*GramsToMT,4)) ->  | AS37: =IF(OR(ISBLANK($F37),$AE37="",$AF37=""),"",ROUND($AE37*(1+$AF37)*INDEX('eGRID2020 Subregion'!$E$7:$E$36,MATCH($F37,RegionUSER,0))*GramsToMT,1)) ->  | AT37: =IF(OR(ISBLANK($F37),$AE37="",$AF37=""),"",$AE37*(1+$AF37)*INDEX('eGRID2020 Subregion'!$F$7:$F$35,MATCH($F37,RegionUSER,0))*GramsToMT) ->  | AU37: =IF(OR(ISBLANK($F37),$AE37="",$AF37=""),"",$AE37*(1+$AF37)*INDEX('eGRID2020 Subregion'!$G$7:$G$35,MATCH($F37,RegionUSER,0))*GramsToMT) ->  | AV37: =IF(ISBLANK($F37),"",ROUND(AS37*References!$B$28+AT37*References!$B$29+AU37*References!$B$30,1)) ->  | BL37: =IF(OR($BJ37="",$BK37=""),"",$BJ37+$BK37) ->  | BO37: =IF(OR($AD37="",$AF37="",AND($S37="",ISBLANK($T37)),AND($U37="",ISBLANK($V37))),"",($AD37*(IF(ISBLANK($T37),$S37,$T37)*GalTokWh))-($AE37*IF(ISBLANK($V37),$U37,$V37)*(1+$AF37))) ->  | BP37: =IF(OR($BN37="",$BO37=""),"",$BN37+$BO37) -> 
G38: hp | H38: =IF(OR(ISBLANK($B38),ISBLANK($C38)),"",ROUND(INDEX('TRU Ops & Costs'!$D$4:$D$74,MATCH($B38&$C38,'TRU Ops & Costs'!$P$4:$P$74,0))/IF($G38="hp",0.7457,1),0)) ->  | J38: =IF(OR(ISBLANK($B38),ISBLANK($C38)),"",INDEX('TRU Ops & Costs'!$E$4:$E$74,MATCH($B38&$C38,'TRU Ops & Costs'!$P$4:$P$74,0))) ->  | L38: =IF(OR(ISBLANK($B38),ISBLANK($C38)),"",INDEX('TRU Ops & Costs'!$F$4:$F$74,MATCH($B38&$C38,'TRU Ops & Costs'!$P$4:$P$74,0))) ->  | N38: =IF(OR(ISBLANK($B38),ISBLANK($C38)),"",INDEX('TRU Ops & Costs'!$G$4:$G$74,MATCH($B38&$C38,'TRU Ops & Costs'!$P$4:$P$74,0))) ->  | S38: =IF(ISBLANK($F38),"",IFERROR(INDEX('Diesel Fuel Prices'!$D$5:$D$31,MATCH($F38,'Diesel Fuel Prices'!$B$5:$B$31,0)),INDEX('Diesel Fuel Prices'!$D$5:$D$31,MATCH("U.S. Average",'Diesel Fuel Prices'!$B$5:$B$31,0)))*References!$B$38/References!$B$37) ->  | U38: =IF(ISBLANK($F38),"",IFERROR(INDEX('Electricity Prices'!$F$4:$F$31,MATCH($F38,'Electricity Prices'!$B$4:$B$31,0)),INDEX('Electricity Prices'!$F$4:$F$31,MATCH("All U.S.",'Electricity Prices'!$B$4:$B$31,0)))*References!$B$38/References!$B$37) ->  | W38: =IF(OR(ISBLANK($B38),ISBLANK($C38)),"",INDEX('TRU Ops & Costs'!$I$4:$I$74,MATCH($B38&$C38,'TRU Ops & Costs'!$P$4:$P$74,0))) ->  | Y38: =IFERROR(IF(AND(ISBLANK(Q38),ISBLANK(R38)),"",IF(OR(ISBLANK($B38),ISBLANK($C38)),"",(IF(E38="Yard",INDEX('TRU Ops & Costs'!$J$4:$J$74,MATCH($B38&$C38,'TRU Ops & Costs'!$P$4:$P$74,0)),INDEX('TRU Ops & Costs'!$K$4:$K$74,MATCH($B38&$C38,'TRU Ops & Costs'!$P$4:$P$74,0)))))/(IF(ISBLANK(R38),Q38,R38))),"") ->  | AA38: =IF(OR(ISBLANK($B38),ISBLANK($C38),AND($O38="",ISBLANK($P38))),"",IF(ISBLANK($P38),$O38,$P38)*INDEX('TRU Ops & Costs'!$M$4:$M$74,MATCH($B38&$C38,'TRU Ops & Costs'!$P$4:$P$74,0))*-INDEX('TRU Ops & Costs'!$L$4:$L$74,MATCH($B38&$C38,'TRU Ops & Costs'!$P$4:$P$74,0))) ->  | AF38: =IF(ISBLANK($F38),"",INDEX('eGRID2020 Subregion'!$J$7:$J$35,MATCH($F38,RegionUSER,0))) ->  | AH38: =IF(OR(ISBLANK($B38),ISBLANK($C38),$AD38=""),"",ROUND($AD38*INDEX('Diesel TRU Emission Factors'!$D$6:$D$76,MATCH($B38&$C38,'Diesel TRU Emission Factors'!$R$6:$R$77,0))*GramsToMT,4)) ->  | AI38: =IF(OR(ISBLANK($B38),ISBLANK($C38),$AD38=""),"",ROUND($AD38*INDEX('Diesel TRU Emission Factors'!$E$6:$E$76,MATCH($B38&$C38,'Diesel TRU Emission Factors'!$R$6:$R$77,0))*GramsToMT,4)) ->  | AJ38: =IF(OR(ISBLANK($B38),ISBLANK($C38),$AD38=""),"",ROUND($AD38*INDEX('Diesel TRU Emission Factors'!$H$6:$H$76,MATCH($B38&$C38,'Diesel TRU Emission Factors'!$R$6:$R$77,0))*GramsToMT,4)) ->  | AK38: =IF(OR(ISBLANK($B38),ISBLANK($C38),$AD38=""),"",ROUND($AD38*INDEX('Diesel TRU Emission Factors'!$F$6:$F$76,MATCH($B38&$C38,'Diesel TRU Emission Factors'!$R$6:$R$77,0))*GramsToMT,1)) ->  | AL38: =IF(OR(ISBLANK($B38),ISBLANK($C38),$AD38=""),"",$AD38*INDEX('Diesel TRU Emission Factors'!$G$6:$G$76,MATCH($B38&$C38,'Diesel TRU Emission Factors'!$R$6:$R$77,0))*GramsToMT) ->  | AM38: =IF(ISBLANK(F38),"",AD38*GalTokWh*'Diesel TRU Emission Factors'!$P$4/1000000) ->  | AN38: =IF(ISBLANK($F38),"",ROUND(AK38*References!$B$28+AL38*References!$B$29+AM38*References!$B$30,1)) ->  | AP38: =IF(OR(ISBLANK($F38),$AE38="",$AF38=""),"",ROUND($AE38*(1+$AF38)*INDEX('eGRID2020 Subregion'!$C$7:$C$36,MATCH($F38,RegionUSER,0))*GramsToMT,4)) ->  | AQ38: =IF(OR(ISBLANK($F38),$AE38="",$AF38=""),"",ROUND($AE38*(1+$AF38)*INDEX('eGRID2020 Subregion'!$D$7:$D$36,MATCH($F38,RegionUSER,0))*GramsToMT,4)) ->  | AR38: =IF(OR(ISBLANK($F38),$AE38="",$AF38=""),"",ROUND($AE38*(1+$AF38)*INDEX('eGRID2020 Subregion'!$I$7:$I$36,MATCH($F38,RegionUSER,0))*GramsToMT,4)) ->  | AS38: =IF(OR(ISBLANK($F38),$AE38="",$AF38=""),"",ROUND($AE38*(1+$AF38)*INDEX('eGRID2020 Subregion'!$E$7:$E$36,MATCH($F38,RegionUSER,0))*GramsToMT,1)) ->  | AT38: =IF(OR(ISBLANK($F38),$AE38="",$AF38=""),"",$AE38*(1+$AF38)*INDEX('eGRID2020 Subregion'!$F$7:$F$35,MATCH($F38,RegionUSER,0))*GramsToMT) ->  | AU38: =IF(OR(ISBLANK($F38),$AE38="",$AF38=""),"",$AE38*(1+$AF38)*INDEX('eGRID2020 Subregion'!$G$7:$G$35,MATCH($F38,RegionUSER,0))*GramsToMT) ->  | AV38: =IF(ISBLANK($F38),"",ROUND(AS38*References!$B$28+AT38*References!$B$29+AU38*References!$B$30,1)) -> 
